Workbook

Sheet Sumário
A1: ARSAE-MG
A2: Cálculo do Índice de Reposicionamento Tarifário (IRT) e Efeito Tarifário Médio (ETM) - Revisão Tarifária da Copanor - 2021
A3: ='4.IRT_e_ETM_2021'!A3 -> Data: 17/06/2021
B7: Esta planilha contém os cálculos finais referentes à 3ª Revisão Tarifária Periódica da Copanor - 2021 Ciclo tarifário: ago/2021 a jul/2022 | R7: PR0: | S7: =EDATE(S8,-12) -> 2019-08-01 | T7: =EDATE(S7,11) -> 2020-07-01
R8: PR1: | S8: 2020-08-01 | T8: =EDATE(S8,11) -> 2021-07-01
B10: Conteúdo das abas principais:
C12: 1.Dados_cont_historicos | H12: Dados contábeis históricos extraídos da contabilidade da Copanor e agregados conforme classificação regulatória definida para a RTP 2021
C13: 2.Dados_cont_atualizados | H13: Dados da aba anterior atualizados pela inflação acumulada de cada mês até julho/2021. A inflação acumulada está calculada na aba 3.Índices_inflação
C14: 3.Índices_inflação | H14: Histórico dos índices de inflação utilizados nos cálculos, e também da taxa Selic, com cálculo dos percentuais acumulados nos períodos de interesse.
C15: 3.1.Variação_mensal_IEE | H15: Cálculo do índice de reajuste de energia elétrica (IEE) mensal. O resultado alimenta a plan. 3.Índices_inflação.
C16: 3.1.1.IEE_compensacao_pasep_cofins | H16: Mesmo cálculo da aba anterior, porém sem a alteração da forma de incidência do Pasep/Cofins e ICMS da Cemig, para cálculo da diferença a ser compensada referente ao período jul/19 a jul/21. O resultado alimenta a aba 8.Componentes_financeiros.
C17: 4.IRT_e_ETM_2021 | H17: Planilha principal, onde é feito o cálculo do IRT e do ETM
C18: 5.NCG | H18: Resumo do cálculo da necessidade de capital de giro e da remuneração desse montante
C19: 6.Outras_receitas | H19: Apuração dos valores de reversão das outras receitas
C20: 7.Componentes_financeiros | H20: Apresenta os componentes financeiros referentes ao período anterior
C21: 7.1.Itens_não_adm | H21: Resumo do cálculo da compensação dos itens não administráveis

Sheet 1.Dados_cont_historicos
A1: ARSAE-MG
A2: Dados contábeis históricos agregados conforme classificação regulatória definida para a RTP 2021 | BF2: Em roxo: | BG2: valor do mesmo mês do ano anterior atualizado pela inflação acumulada
D3: 67 | E3: 68 | F3: 69 | G3: 70 | H3: 71 | I3: 72 | J3: 73 | K3: 74 | L3: 75 | M3: 76 | N3: 77 | O3: 78 | P3: 79 | Q3: 80 | R3: 81 | S3: 82 | T3: 83 | U3: 84 | V3: 85 | W3: 86 | X3: 87 | Y3: 88 | Z3: 89 | AA3: 90 | AB3: 91 | AC3: 92 | AD3: 93 | AE3: 94 | AF3: 95 | AG3: 96 | AH3: 97 | AI3: 98 | AJ3: 99 | AK3: 100 | AL3: 101 | AM3: 102 | AN3: 103 | AO3: 104 | AP3: 105 | AQ3: 106 | AR3: 107 | AS3: 108 | AT3: 109 | AU3: 110 | AV3: 111 | AW3: 112 | AX3: 113 | AY3: 114 | AZ3: 115 | BA3: 116 | BB3: 117 | BC3: 118 | BD3: 119 | BE3: 120 | BF3: Em vermelho: | BG3: média últimos 3 meses | BM3: Totais nominais | BV3: Índices inflação
C4: Classificação Regulatória | D4: 2017-01-01 | E4: 2017-02-01 | F4: 2017-03-01 | G4: 2017-04-01 | H4: 2017-05-01 | I4: 2017-06-01 | J4: 2017-07-01 | K4: 2017-08-01 | L4: 2017-09-01 | M4: 2017-10-01 | N4: 2017-11-01 | O4: 2017-12-01 | P4: 2017 | Q4: 2018-01-01 | R4: 2018-02-01 | S4: 2018-03-01 | T4: 2018-04-01 | U4: 2018-05-01 | V4: 2018-06-01 | W4: 2018-07-01 | X4: 2018-08-01 | Y4: 2018-09-01 | Z4: 2018-10-01 | AA4: 2018-11-01 | AB4: 2018-12-01 | AC4: 2018 | AD4: 2019-01-01 | AE4: 2019-02-01 | AF4: 2019-03-01 | AG4: 2019-04-01 | AH4: 2019-05-01 | AI4: 2019-06-01 | AJ4: 2019-07-01 | AK4: 2019-08-01 | AL4: 2019-09-01 | AM4: 2019-10-01 | AN4: 2019-11-01 | AO4: 2019-12-01 | AP4: 2019 | AQ4: 2020-01-01 | AR4: 2020-02-01 | AS4: 2020-03-01 | AT4: 2020-04-01 | AU4: 2020-05-01 | AV4: 2020-06-01 | AW4: 2020-07-01 | AX4: 2020-08-01 | AY4: 2020-09-01 | AZ4: 2020-10-01 | BA4: 2020-11-01 | BB4: 2020-12-01 | BC4: 2020 | BD4: 2021-01-01 | BE4: 2021-02-01 | BF4: 2021-03-01 | BG4: 2021-04-01 | BH4: 2021-05-01 | BI4: 2021-06-01 | BJ4: 2021-07-01 | BM4: 2017 | BN4: 2018 | BO4: 2019 | BP4: 2020 | BQ4: PR2017/18 | BR4: PR2018/19 | BS4: PR2019/20 | BT4: PR2020/21
C6: Receita Direta de Água | D6: -1840351.39 | E6: -1686900.33 | F6: -1704980.97 | G6: -1681782.33 | H6: -1736305.56 | I6: -1595962.16 | J6: -1685008.96 | K6: -1673191.17 | L6: -1569211.91 | M6: -2063037.47 | N6: -2062323.77 | O6: -2163854.35 | P6: -21462910.37 | Q6: -2049136.74 | R6: -1951037.1 | S6: -1970017.84 | T6: -1760157.83 | U6: -1812465.08 | V6: -1811503.59 | W6: -1749121.17 | X6: -1768200.12 | Y6: -1870495.9 | Z6: -2078980.7 | AA6: -1828931.26 | AB6: -1883035.72 | AC6: -22533083.05 | AD6: -1876662.62 | AE6: -2216543.24 | AF6: -2591029.46 | AG6: -2177440.96 | AH6: -2278253.24 | AI6: -2012823.1 | AJ6: -2262190.69 | AK6: -2290385.48 | AL6: -2233267.96 | AM6: -2715483.03 | AN6: -2388900.48 | AO6: -2484475.08 | AP6: -27527455.34 | AQ6: -2717261.83 | AR6: -2235043.61 | AS6: -2176133.53 | AT6: -2250177.89 | AU6: -2360742.54 | AV6: -2296334.94 | AW6: -2506905.89 | AX6: -2515115.62 | AY6: -2740140.2 | AZ6: -3301935.79 | BA6: -2548240.37 | BB6: -2446045.35 | BC6: -30094077.56 | BD6: -3275092.62 | BE6: -2863065.7 | BF6: -2338353.42 | BG6: -2543196.49 | BH6: =AVERAGE(BE6,BF6,BG6) -> -2581538.537 | BI6: -2487696.149 | BJ6: -2537477.059 | BM6: =P6 -> -21462910.37 | BN6: =AC6 -> -22533083.05 | BO6: =AP6 -> -27527455.34 | BP6: =BC6 -> -30094077.56 | BQ6: =SUM(K6:O6,Q6:W6) -> -22635058.02 | BR6: =SUM(X6:AB6,AD6:AJ6) -> -24844587.01 | BS6: =SUM(AK6:AO6,AQ6:AW6) -> -28655112.26 | BT6: =SUM(AX6:BB6,BD6:BJ6) -> -32177897.3 | BV6: ETM
C7: Receita Direta de Esgoto | D7: -544054.28 | E7: -490675.12 | F7: -524930.05 | G7: -504125.14 | H7: -523136.42 | I7: -485917.3 | J7: -499398.85 | K7: -513203.49 | L7: -515744.37 | M7: -581923.13 | N7: -610808.26 | O7: -904472.47 | P7: -6698388.88 | Q7: -587001.91 | R7: -556454.95 | S7: -573717.38 | T7: -486425.13 | U7: -532734.49 | V7: -546365.1 | W7: -501450.05 | X7: -534408.72 | Y7: -559771.95 | Z7: -615610.66 | AA7: -566018.29 | AB7: -650396.55 | AC7: -6710355.18 | AD7: -549461.67 | AE7: -650543.16 | AF7: -771590.05 | AG7: -645306.32 | AH7: -678842.45 | AI7: -517518.53 | AJ7: -631749.96 | AK7: -636798.22 | AL7: -641277.71 | AM7: -779557.44 | AN7: -670774.83 | AO7: -683526.44 | AP7: -7856946.78 | AQ7: -753289.68 | AR7: -659783.01 | AS7: -627503.85 | AT7: -616986.52 | AU7: -654524.97 | AV7: -667991.15 | AW7: -749802 | AX7: -669697.81 | AY7: -772293.88 | AZ7: -1005521.81 | BA7: -734812.93 | BB7: -775572.02 | BC7: -8687779.63 | BD7: -934395.07 | BE7: -790386 | BF7: -722480.72 | BG7: -845116.98 | BH7: -785994.5667 | BI7: -784530.7556 | BJ7: -805214.1007 | BM7: =P7 -> -6698388.88 | BN7: =AC7 -> -6710355.18 | BO7: =AP7 -> -7856946.78 | BP7: =BC7 -> -8687779.63 | BQ7: =SUM(K7:O7,Q7:W7) -> -6910300.73 | BR7: =SUM(X7:AB7,AD7:AJ7) -> -7371218.31 | BS7: =SUM(AK7:AO7,AQ7:AW7) -> -8141815.82 | BT7: =SUM(AX7:BB7,BD7:BJ7) -> -9626016.643 | BV7: ETM
C8: Receita Direta de Água - Devoluções | D8: 755.72 | E8: 407.2 | F8: 376.79 | G8: 423.88 | H8: 512.75 | I8: 808.66 | J8: 632.95 | K8: 210.96 | L8: 213.91 | M8: -318.55 | N8: 195.19 | O8: 319.3 | P8: 4538.76 | Q8: 242.73 | R8: 311.63 | S8: 423.42 | T8: 494.3 | U8: 665.86 | V8: 491.84 | W8: 212.65 | X8: 12098.32 | Y8: 6438.33 | Z8: 1321.23 | AA8: 511 | AB8: 459.13 | AC8: 23670.44 | AD8: 540.63 | AE8: 1116.76 | AF8: 636.89 | AG8: 551.27 | AH8: 525.26 | AI8: 389.99 | AJ8: 165928.59 | AK8: 37645.84 | AL8: 3626.31 | AM8: 2868.23 | AN8: 2053.37 | AO8: 2459.37 | AP8: 218342.51 | AQ8: 698.81 | AR8: 2047.35 | AS8: 728 | AT8: 570.03 | AU8: 539.53 | AV8: 894.73 | AW8: 791.16 | AX8: 580.75 | AY8: 945.35 | AZ8: 719.24 | BA8: 428.71 | BB8: 881.72 | BC8: 9825.38 | BD8: 743.11 | BE8: 692.76 | BF8: 522.03 | BG8: 783.28 | BH8: 666.0233333 | BI8: 657.1111111 | BJ8: 702.1381481 | BM8: =P8 -> 4538.76 | BN8: =AC8 -> 23670.44 | BO8: =AP8 -> 218342.51 | BP8: =BC8 -> 9825.38 | BQ8: =SUM(K8:O8,Q8:W8) -> 3463.24 | BR8: =SUM(X8:AB8,AD8:AJ8) -> 190517.4 | BS8: =SUM(AK8:AO8,AQ8:AW8) -> 54922.73 | BT8: =SUM(AX8:BB8,BD8:BJ8) -> 8322.222593 | BV8: ETM
C9: Receita Direta de Esgoto - Devoluções | D9: 669.05 | E9: 106.44 | F9: 156.91 | G9: 2478.27 | H9: 2832.11 | I9: 2252.97 | J9: 1988.92 | K9: 1412.37 | L9: 284.29 | M9: 550.48 | N9: 287.22 | O9: 603.09 | P9: 13622.12 | Q9: 169.11 | R9: 432.47 | S9: 636.89 | T9: -1117.09 | U9: 3773.48 | V9: 741.61 | W9: 547.72 | X9: 1220.26 | Y9: 1604.33 | Z9: 1087.13 | AA9: 640.33 | AB9: 686.37 | AC9: 10422.61 | AD9: -896.66 | AE9: 1670.51 | AF9: 1484.57 | AG9: 11594.6 | AH9: 6048.95 | AI9: 20609.96 | AJ9: 23718.23 | AK9: 22439.67 | AL9: 17722.94 | AM9: 13053.26 | AN9: 9680.5 | AO9: 8268.09 | AP9: 135394.62 | AQ9: 8089.72 | AR9: 10163.98 | AS9: 6405.92 | AT9: 6160.93 | AU9: 10093.85 | AV9: 7017.36 | AW9: 4468.88 | AX9: 8939.25 | AY9: 3725.27 | AZ9: 3778.86 | BA9: 4432.76 | BB9: 3471.23 | BC9: 76748.01 | BD9: 3320.84 | BE9: 3571.03 | BF9: 2745.93 | BG9: 3174.21 | BH9: 3163.723333 | BI9: 3027.954444 | BJ9: 3121.962593 | BM9: =P9 -> 13622.12 | BN9: =AC9 -> 10422.61 | BO9: =AP9 -> 135394.62 | BP9: =BC9 -> 76748.01 | BQ9: =SUM(K9:O9,Q9:W9) -> 8321.64 | BR9: =SUM(X9:AB9,AD9:AJ9) -> 69468.58 | BS9: =SUM(AK9:AO9,AQ9:AW9) -> 123565.1 | BT9: =SUM(AX9:BB9,BD9:BJ9) -> 46473.02037 | BV9: ETM
C10: Descontos Tarifários Concedidos | D10: 0 | E10: 0 | F10: 0 | G10: 0 | H10: 0 | I10: 0 | J10: 0 | K10: -3.21 | L10: 12.34 | M10: 0 | N10: 0 | O10: 0 | P10: 9.13 | Q10: 0 | R10: 0 | S10: 0 | T10: 0 | U10: 0 | V10: 0 | W10: 577.99 | X10: 0 | Y10: 5.88 | Z10: 0 | AA10: 0 | AB10: 0 | AC10: 583.87 | AD10: 0 | AE10: 0 | AF10: 0 | AG10: 0 | AH10: 16.57 | AI10: 0 | AJ10: 0 | AK10: 0 | AL10: 0 | AM10: 301.44 | AN10: 0 | AO10: 0 | AP10: 318.01 | AQ10: 0 | AR10: 0 | AS10: 0 | AT10: 0 | AU10: 0 | AV10: 0 | AW10: 0 | AX10: 0 | AY10: 0 | AZ10: 0 | BA10: 0 | BB10: 0 | BC10: 0 | BD10: 124.56 | BE10: 0 | BF10: 0 | BG10: 0 | BH10: 0 | BI10: 0 | BJ10: 0 | BM10: =P10 -> 9.13 | BN10: =AC10 -> 583.87 | BO10: =AP10 -> 318.01 | BP10: =BC10 -> 0 | BQ10: =SUM(K10:O10,Q10:W10) -> 587.12 | BR10: =SUM(X10:AB10,AD10:AJ10) -> 22.45 | BS10: =SUM(AK10:AO10,AQ10:AW10) -> 301.44 | BT10: =SUM(AX10:BB10,BD10:BJ10) -> 124.56 | BV10: ETM
C11: Total - Receitas Operacionais Diretas | D11: -2382980.9 | E11: -2177061.81 | F11: -2229377.32 | G11: -2183005.32 | H11: -2256097.12 | I11: -2078817.83 | J11: -2181785.94 | K11: -2184774.54 | L11: -2084445.74 | M11: -2644728.67 | N11: -2672649.62 | O11: -3067404.43 | P11: -28143129.24 | Q11: -2635726.81 | R11: -2506747.95 | S11: -2542674.91 | T11: -2247205.75 | U11: -2340760.23 | V11: -2356635.24 | W11: -2249232.86 | X11: -2289290.26 | Y11: -2422219.31 | Z11: -2692183 | AA11: -2393798.22 | AB11: -2532286.77 | AC11: -29208761.31 | AD11: -2426480.32 | AE11: -2864299.13 | AF11: -3360498.05 | AG11: -2810601.41 | AH11: -2950504.91 | AI11: -2509341.68 | AJ11: -2704293.83 | AK11: -2867098.19 | AL11: -2853196.42 | AM11: -3478817.54 | AN11: -3047941.44 | AO11: -3157274.06 | AP11: -35030346.98 | AQ11: -3461762.98 | AR11: -2882615.29 | AS11: -2796503.46 | AT11: -2860433.45 | AU11: -3004634.13 | AV11: -2956414 | AW11: -3251447.85 | AX11: -3175293.43 | AY11: -3507763.46 | AZ11: -4302959.5 | BA11: -3278191.83 | BB11: -3217264.42 | BC11: -38695283.8 | BD11: -4205299.18 | BE11: =SUM(BE6:BE10) -> -3649187.91 | BF11: -3057566.18 | BG11: -3384355.98 | BH11: -3363703.357 | BI11: -3268541.839 | BJ11: -3338867.059 | BM11: =SUM(BM6:BM10) -> -28143129.24 | BN11: -29208761.31 | BO11: -35030346.98 | BP11: -38695283.8 | BQ11: -29532986.75 | BR11: -31955796.89 | BS11: -36618138.81 | BT11: -41748994.14
C13: Receitas Operacionais Indiretas | D13: -34359.66 | E13: -14717.72 | F13: -15698.16 | G13: -16364.79 | H13: -23019.37 | I13: -18820.78 | J13: -26568.3 | K13: -18460.3 | L13: -14377.65 | M13: -4665.55 | N13: -13782.6 | O13: -75331.38 | P13: -276166.26 | Q13: -19805.42 | R13: -18607.86 | S13: -13432.67 | T13: -18469.13 | U13: -16429.69 | V13: -28305.18 | W13: -22998.75 | X13: -30822.75 | Y13: -28536.65 | Z13: 2194.32 | AA13: -30253.13 | AB13: -5968.6 | AC13: -231435.51 | AD13: -18672.86 | AE13: -29709.61 | AF13: -17624.67 | AG13: -27661.68 | AH13: -19948.85 | AI13: -35609.44 | AJ13: -28745.84 | AK13: -32393.02 | AL13: -34651.23 | AM13: -30386.74 | AN13: 7479.49 | AO13: -219544.37 | AP13: -487468.82 | AQ13: -20973.87 | AR13: -18431.35 | AS13: -16337.47 | AT13: -13618.31 | AU13: -18923.68 | AV13: 21075.89 | AW13: -13444.5 | AX13: -17540.35 | AY13: -14187.61 | AZ13: -13350.53 | BA13: -14992.13 | BB13: -13934.89 | BC13: -154658.8 | BD13: -15102.61 | BE13: -26804.13 | BF13: -24894.1 | BG13: -27242.04 | BH13: =AVERAGE(BE13,BF13,BG13) -> -26313.42333 | BI13: -26149.85444 | BJ13: -26568.43926 | BM13: =P13 -> -276166.26 | BN13: =AC13 -> -231435.51 | BO13: =AP13 -> -487468.82 | BP13: =BC13 -> -154658.8 | BQ13: =SUM(K13:O13,Q13:W13) -> -264666.18 | BR13: =SUM(X13:AB13,AD13:AJ13) -> -271359.76 | BS13: =SUM(AK13:AO13,AQ13:AW13) -> -390149.16 | BT13: =SUM(AX13:BB13,BD13:BJ13) -> -247080.107 | BV13: INPC
C14: Receitas Financeiras | D14: -323852.35 | E14: -243031.17 | F14: -378191.48 | G14: -267477.68 | H14: -284156.65 | I14: -239689.21 | J14: -173092.74 | K14: -179136 | L14: -103850.99 | M14: -184843.49 | N14: -184270.86 | O14: -159762.01 | P14: -2721354.63 | Q14: -121019.61 | R14: -117512 | S14: -111878.85 | T14: -179473.27 | U14: -166947.63 | V14: -133379.89 | W14: -151855.57 | X14: -126968.57 | Y14: -175757.52 | Z14: -137103.23 | AA14: -115657.26 | AB14: -131259.93 | AC14: -1668813.33 | AD14: -105582.25 | AE14: -108966.95 | AF14: -54177.38 | AG14: -168541.54 | AH14: -156252.44 | AI14: -98872.13 | AJ14: -90199.41 | AK14: -107755 | AL14: -152584.02 | AM14: -133622.85 | AN14: -80816.57 | AO14: -100801.14 | AP14: -1358171.68 | AQ14: -124813.13 | AR14: -104394.79 | AS14: -89820.94 | AT14: -107726.43 | AU14: -94724.27 | AV14: -94695.4 | AW14: -106037.38 | AX14: -94561.3 | AY14: -121472.6 | AZ14: -125950.35 | BA14: -130804.67 | BB14: -128701.52 | BC14: -1323702.78 | BD14: -122941.29 | BE14: -129145.03 | BF14: -136732.44 | BG14: -181166.78 | BH14: -149014.75 | BI14: -155637.99 | BJ14: -161939.84 | BM14: -2721354.63 | BN14: -1668813.33 | BO14: -1358171.68 | BP14: -1323702.78 | BQ14: -1793930.17 | BR14: -1469338.61 | BS14: -1297791.92 | BT14: -1638068.56 | BV14: IPCA
C15: Descontos e multas por impontualidade | D15: -34234.95 | E15: -35501.12 | F15: -33828.96 | G15: -33811.94 | H15: -35548.26 | I15: -34476.13 | J15: -34931.96 | K15: -39518.26 | L15: -39825.24 | M15: -44458.6 | N15: -46923.14 | O15: -41970.62 | P15: -455029.18 | Q15: -45533.05 | R15: -46142.46 | S15: -48529.57 | T15: -45640 | U15: -43885.98 | V15: -26438.65 | W15: -69262.58 | X15: -53722.72 | Y15: -45284.17 | Z15: -44239.77 | AA15: -44493.13 | AB15: -51124.75 | AC15: -564296.83 | AD15: -38159.75 | AE15: -39426.08 | AF15: -55399.73 | AG15: -49965.58 | AH15: -47052.09 | AI15: -44907.33 | AJ15: -41463.2 | AK15: -42419.74 | AL15: -47405.55 | AM15: -43693.37 | AN15: -13707.61 | AO15: -42240.86 | AP15: -505840.89 | AQ15: -46398.92 | AR15: -51472.35 | AS15: -46936.74 | AT15: -26663.3 | AU15: -26006.19 | AV15: -34037.39 | AW15: -51605.59 | AX15: -42440.48 | AY15: -46345.04 | AZ15: -47829.7 | BA15: -59388.89 | BB15: -56324.12 | BC15: -535448.71 | BD15: -48975.76 | BE15: -53755.88 | BF15: -55547.89 | BG15: -54312.42 | BH15: -54538.73 | BI15: -54799.68 | BJ15: -54550.27667 | BM15: -455029.18 | BN15: -564296.83 | BO15: -505840.89 | BP15: -535448.71 | BQ15: -538128.15 | BR15: -555238.3 | BS15: -472587.61 | BT15: -628808.8667
C16: Juros por impontualidade, rendimentos de aplicações e outras | D16: -289617.4 | E16: -207530.05 | F16: -344362.52 | G16: -233665.74 | H16: -248608.39 | I16: -205213.08 | J16: -138160.78 | K16: -139617.74 | L16: -64025.75 | M16: -140384.89 | N16: -137347.72 | O16: -117791.39 | P16: -2266325.45 | Q16: -75486.56 | R16: -71369.54 | S16: -63349.28 | T16: -133833.27 | U16: -123061.65 | V16: -106941.24 | W16: -82592.99 | X16: -73245.85 | Y16: -130473.35 | Z16: -92863.46 | AA16: -71164.13 | AB16: -80135.18 | AC16: -1104516.5 | AD16: -67422.5 | AE16: -69540.87 | AF16: 1222.35 | AG16: -118575.96 | AH16: -109200.35 | AI16: -53964.8 | AJ16: -48736.21 | AK16: -65335.26 | AL16: -105178.47 | AM16: -89929.48 | AN16: -67108.96 | AO16: -58560.28 | AP16: -852330.79 | AQ16: -78414.21 | AR16: -52922.44 | AS16: -42884.2 | AT16: -81063.13 | AU16: -68718.08 | AV16: -60658.01 | AW16: -54431.79 | AX16: -52120.82 | AY16: -75127.56 | AZ16: -78120.65 | BA16: -71415.78 | BB16: -72377.4 | BC16: -788254.07 | BD16: -73965.53 | BE16: -75389.15 | BF16: -81184.55 | BG16: -126854.36 | BH16: -94476.02 | BI16: -100838.31 | BJ16: -107389.5633 | BM16: -2266325.45 | BN16: -1104516.5 | BO16: -852330.79 | BP16: -788254.07 | BQ16: -1255802.02 | BR16: -914100.31 | BS16: -825204.31 | BT16: -1009259.693
C17: Outras Receitas Diversas | D17: -7405.5 | E17: -33339.96 | F17: -68100.28 | G17: -8872.98 | H17: -3906.5 | I17: -58278.57 | J17: -43304.42 | K17: -13685.48 | L17: -25794.43 | M17: -17270.3 | N17: -12788.9 | O17: -6101.01 | P17: -298848.33 | Q17: -20730.89 | R17: -15307.7 | S17: -19212.77 | T17: -8501.86 | U17: -25148.2 | V17: -2075.58 | W17: -6883.5 | X17: -15929.99 | Y17: -26842.03 | Z17: -13633.73 | AA17: -24965.03 | AB17: 2686.97 | AC17: -176544.31 | AD17: -3001.35 | AE17: -7470.1 | AF17: -5845.51 | AG17: -16548.91 | AH17: -14044.29 | AI17: -35699.12 | AJ17: -16289.01 | AK17: -19444.55 | AL17: -17677.33 | AM17: -11941.1 | AN17: -23227.1 | AO17: -15172.37 | AP17: -186360.74 | AQ17: -33658.65 | AR17: -143867.02 | AS17: -49934.91 | AT17: -5178.83 | AU17: -5749.61 | AV17: -385762.37 | AW17: -11335.76 | AX17: -4612.43 | AY17: -34291.93 | AZ17: -18520.41 | BA17: -14054.21 | BB17: -26055.4 | BC17: -733021.53 | BD17: 9554.37 | BE17: -17983.61 | BF17: -50687.75 | BG17: -7412.59 | BH17: -25361.31667 | BI17: -27820.55222 | BJ17: -20198.15296 | BM17: -298848.33 | BN17: -176544.31 | BO17: -186360.74 | BP17: -733021.53 | BQ17: -173500.62 | BR17: -177582.1 | BS17: -722949.6 | BT17: -237443.9819 | BV17: IPCA
C18: Indenizações e Ressarcimentos | D18: 0 | E18: 0 | F18: 0 | G18: 0 | H18: 0 | I18: 0 | J18: 0 | K18: 0 | L18: 0 | M18: 0 | N18: 0 | O18: 0 | P18: 0 | Q18: 0 | R18: -80 | S18: 0 | T18: 0 | U18: -330 | V18: 0 | W18: 0 | X18: 0 | Y18: 0 | Z18: 0 | AA18: 0 | AB18: 0 | AC18: -410 | AD18: 0 | AE18: 0 | AF18: 0 | AG18: 0 | AH18: 0 | AI18: 0 | AJ18: 0 | AK18: 0 | AL18: 0 | AM18: 0 | AN18: 0 | AO18: 0 | AP18: 0 | AQ18: -156.18 | AR18: -5126.86 | AS18: 0 | AT18: 0 | AU18: 0 | AV18: 0 | AW18: 0 | AX18: 249.78 | AY18: 129.11 | AZ18: 0 | BA18: -4666.44 | BB18: 0 | BC18: -9570.59 | BD18: 0 | BE18: 0 | BF18: 0 | BG18: 0 | BH18: 0 | BI18: 0 | BJ18: 0 | BM18: 0 | BN18: -410 | BO18: 0 | BP18: -9570.59 | BQ18: -410 | BR18: 0 | BS18: -5283.04 | BT18: -4287.55
C19: Outras | D19: -7405.5 | E19: -33339.96 | F19: -68100.28 | G19: -8872.98 | H19: -3906.5 | I19: -58278.57 | J19: -43304.42 | K19: -13685.48 | L19: -25794.43 | M19: -17270.3 | N19: -12788.9 | O19: -6101.01 | P19: -298848.33 | Q19: -20730.89 | R19: -15227.7 | S19: -19212.77 | T19: -8501.86 | U19: -24818.2 | V19: -2075.58 | W19: -6883.5 | X19: -15929.99 | Y19: -26842.03 | Z19: -13633.73 | AA19: -24965.03 | AB19: 2686.97 | AC19: -176134.31 | AD19: -3001.35 | AE19: -7320.1 | AF19: -5845.51 | AG19: -16548.91 | AH19: -14044.29 | AI19: -35699.12 | AJ19: -16289.01 | AK19: -19444.55 | AL19: -17677.33 | AM19: -11941.1 | AN19: -23227.1 | AO19: -15172.37 | AP19: -186210.74 | AQ19: -33502.47 | AR19: -138740.16 | AS19: -49934.91 | AT19: -5178.83 | AU19: -5749.61 | AV19: -385762.37 | AW19: -11335.76 | AX19: -4862.21 | AY19: -34421.04 | AZ19: -18520.41 | BA19: -9287.77 | BB19: -26155.4 | BC19: -723450.94 | BD19: 9554.37 | BE19: -17983.53 | BF19: -50687.75 | BG19: -7412.59 | BH19: -25361.29 | BI19: -27820.54333 | BJ19: -20198.14111 | BM19: -298848.33 | BN19: -176134.31 | BO19: -186210.74 | BP19: -723450.94 | BQ19: -173090.62 | BR19: -177432.1 | BS19: -717666.56 | BT19: -233156.3044
C20: Total - Outras Receitas | D20: -365617.51 | E20: -291088.85 | F20: -461989.92 | G20: -292715.45 | H20: -311082.52 | I20: -316788.56 | J20: -242965.46 | K20: -211281.78 | L20: -144023.07 | M20: -206779.34 | N20: -210842.36 | O20: -241194.4 | P20: -3296369.22 | Q20: -161555.92 | R20: -151427.56 | S20: -144524.29 | T20: -206444.26 | U20: -208525.52 | V20: -163760.65 | W20: -181737.82 | X20: -173721.31 | Y20: -231136.2 | Z20: -148542.64 | AA20: -170875.42 | AB20: -134541.56 | AC20: -2076793.15 | AD20: -127256.46 | AE20: -146146.66 | AF20: -77647.56 | AG20: -212752.13 | AH20: -190245.58 | AI20: -170180.69 | AJ20: -135234.26 | AK20: -159592.57 | AL20: -204912.58 | AM20: -175950.69 | AN20: -96564.18 | AO20: -335517.88 | AP20: -2032001.24 | AQ20: -179445.65 | AR20: -266693.16 | AS20: -156093.32 | AT20: -126523.57 | AU20: -119397.56 | AV20: -459381.88 | AW20: -130817.64 | AX20: -116714.08 | AY20: -169952.14 | AZ20: -157821.29 | BA20: -159851.01 | BB20: -168691.81 | BC20: -2211383.11 | BD20: -128489.53 | BE20: =SUM(BE13:BE14,BE17) -> -173932.77 | BF20: =SUM(BF13:BF14,BF17) -> -212314.29 | BG20: -215821.41 | BH20: -200689.49 | BI20: -209608.3967 | BJ20: -208706.4322 | BM20: =SUM(BM13:BM14)+BM17 -> -3296369.22 | BN20: -2076793.15 | BO20: -2032001.24 | BP20: -2211383.11 | BQ20: -2232096.97 | BR20: -1918280.47 | BS20: -2410890.68 | BT20: -2122592.649
C22: Aluguel | D22: 16638.96 | E22: 15023.78 | F22: 11371.24 | G22: 23158.57 | H22: 36107.1 | I22: 20009.82 | J22: 21440.39 | K22: 14194.27 | L22: 14937.13 | M22: 14301.85 | N22: 49852.75 | O22: 7430 | P22: 244465.86 | Q22: 14990.25 | R22: 9259.84 | S22: 6440 | T22: 9543.16 | U22: 11704.86 | V22: 9329.18 | W22: 63933 | X22: 13416 | Y22: 6685 | Z22: 46861.6 | AA22: 21696 | AB22: 8720.95 | AC22: 222579.84 | AD22: 29010.15 | AE22: 18337 | AF22: 14259 | AG22: 15405 | AH22: 21060.02 | AI22: 10590.05 | AJ22: 26079.49 | AK22: 10506.97 | AL22: 63313.63 | AM22: 13032.2 | AN22: 13694.3 | AO22: 29876.41 | AP22: 265164.22 | AQ22: 22051.04 | AR22: 16686.2 | AS22: 15338.62 | AT22: 13346.49 | AU22: 12245.36 | AV22: 10761.45 | AW22: 4180.17 | AX22: 4478.23 | AY22: 3927.37 | AZ22: 17626.54 | BA22: 9493.14 | BB22: 20572.85 | BC22: 150707.46 | BD22: 10373.8 | BE22: 25895.28 | BF22: 9847.46 | BG22: 13313.86 | BH22: =AU22*(1+HLOOKUP($BV22,'3.Índices_inflação'!$B$127:$AY$134,6,FALSE)) -> 16830.85588 | BI22: =AV22*(1+HLOOKUP($BV22,'3.Índices_inflação'!$B$127:$AY$134,7,FALSE)) -> 14935.81872 | BJ22: =AW22*(1+HLOOKUP($BV22,'3.Índices_inflação'!$B$127:$AY$134,8,FALSE)) -> 5747.960917 | BM22: =P22 -> 244465.86 | BN22: =AC22 -> 222579.84 | BO22: =AP22 -> 265164.22 | BP22: =BC22 -> 150707.46 | BQ22: =SUM(K22:O22,Q22:W22) -> 225916.29 | BR22: =SUM(X22:AB22,AD22:AJ22) -> 232120.26 | BS22: =SUM(AK22:AO22,AQ22:AW22) -> 225032.84 | BT22: =SUM(AX22:BB22,BD22:BJ22) -> 153043.1655 | BV22: IGP-M
C23: Atendimento Telefônico | D23: 22924.71 | E23: 22286.9 | F23: 22323.71 | G23: 22144.43 | H23: 34842.94 | I23: 9463.99 | J23: 22784.43 | K23: 22657.57 | L23: 22866.34 | M23: 22402.92 | N23: 21551.45 | O23: 21574.93 | P23: 267824.32 | Q23: 22701.17 | R23: 22586.56 | S23: 22831.84 | T23: 22305.94 | U23: 22133.27 | V23: 21221.73 | W23: 23654.11 | X23: 21129.61 | Y23: 21328.77 | Z23: 22844.42 | AA23: 22088.19 | AB23: 21759.24 | AC23: 266584.85 | AD23: 22948.93 | AE23: 22242.61 | AF23: 23011.97 | AG23: 23574.99 | AH23: 22784.05 | AI23: 22792.37 | AJ23: 22134.98 | AK23: 22885.43 | AL23: 22242.61 | AM23: 22745.19 | AN23: 22439.41 | AO23: 22538.83 | AP23: 272341.37 | AQ23: 23118.99 | AR23: 22852.09 | AS23: 23136.36 | AT23: 264.61 | AU23: 266.91 | AV23: 68547.04 | AW23: 22806.65 | AX23: 22690.35 | AY23: 22751.46 | AZ23: 22806.65 | BA23: 22751.46 | BB23: 22751.46 | BC23: 274744.03 | BD23: 23495.86 | BE23: 23481.42 | BF23: 23757.57 | BG23: 23757.57 | BH23: =AU23*(1+HLOOKUP($BV23,'3.Índices_inflação'!$B$127:$AY$134,6,FALSE)) -> 287.316043 | BI23: =AV23*(1+HLOOKUP($BV23,'3.Índices_inflação'!$B$127:$AY$134,7,FALSE)) -> 74417.24739 | BJ23: =AW23*(1+HLOOKUP($BV23,'3.Índices_inflação'!$B$127:$AY$134,8,FALSE)) -> 24779.51434 | BM23: 267824.32 | BN23: 266584.85 | BO23: 272341.37 | BP23: 274744.03 | BQ23: 268487.83 | BR23: 268640.13 | BS23: 273844.12 | BT23: 307727.8778 | BV23: IPCA
C24: Autosserviços de Água e Esgoto | D24: 3763.02 | E24: 5330.44 | F24: 5292.2 | G24: 8369.63 | H24: 7453.19 | I24: 7219.83 | J24: 8187.29 | K24: 8822.28 | L24: 6272.94 | M24: 14638.88 | N24: 8893.33 | O24: 5351.23 | P24: 89594.26 | Q24: 4701.35 | R24: 6301.03 | S24: 3972.33 | T24: 4668.91 | U24: 9646.69 | V24: 4976.16 | W24: 4999.59 | X24: 4616.39 | Y24: 8322.49 | Z24: 5927.08 | AA24: 5808.01 | AB24: 4300.58 | AC24: 68240.61 | AD24: 5156.06 | AE24: 6034.71 | AF24: 17878.22 | AG24: 6014.93 | AH24: 5407.33 | AI24: 7766.44 | AJ24: 4967.64 | AK24: 5143.16 | AL24: 7677.99 | AM24: 7638.59 | AN24: 8603.55 | AO24: 5789.05 | AP24: 88077.67 | AQ24: 5833.52 | AR24: 5491.18 | AS24: 61382.79 | AT24: 5345.11 | AU24: 6410.25 | AV24: 5999.91 | AW24: 5766.84 | AX24: 5444.52 | AY24: 5444.89 | AZ24: 5820.3 | BA24: 5334.53 | BB24: 7314.86 | BC24: 125588.7 | BD24: 5471.09 | BE24: 7785.77 | BF24: 7531.49 | BG24: 5597.12 | BH24: =AU24*(1+HLOOKUP($BV24,'3.Índices_inflação'!$B$127:$AY$134,6,FALSE)) -> 6410.25 | BI24: =AV24*(1+HLOOKUP($BV24,'3.Índices_inflação'!$B$127:$AY$134,7,FALSE)) -> 5999.91 | BJ24: =AW24*(1+HLOOKUP($BV24,'3.Índices_inflação'!$B$127:$AY$134,8,FALSE)) -> 5766.84 | BM24: 89594.26 | BN24: 68240.61 | BO24: 88077.67 | BP24: 125588.7 | BQ24: 83244.72 | BR24: 82199.88 | BS24: 131081.94 | BT24: 73921.57 | BV24: ETM
C25: Combustíveis e Lubrificantes | D25: 74134.99 | E25: 48503.77 | F25: 69532.42 | G25: 56188.77 | H25: 78051.19 | I25: 79523.58 | J25: 67207.95 | K25: 120014.87 | L25: 78479.44 | M25: 54535.91 | N25: 89001.27 | O25: 90723.52 | P25: 905897.68 | Q25: 100312.42 | R25: 60988.19 | S25: 99810.24 | T25: 93494.97 | U25: 104862.87 | V25: 93906.66 | W25: 102083.97 | X25: 131146.55 | Y25: 81752.96 | Z25: 112180.03 | AA25: 107757.19 | AB25: 121041.49 | AC25: 1209337.54 | AD25: 54918.04 | AE25: 109437.02 | AF25: 108025.9 | AG25: 114603.11 | AH25: 118258.51 | AI25: 92437.37 | AJ25: 131226.21 | AK25: 94337.17 | AL25: 125989.66 | AM25: 111479.88 | AN25: 117907.11 | AO25: 190124.63 | AP25: 1368744.61 | AQ25: 93101.47 | AR25: 88182.84 | AS25: 94672.26 | AT25: 97225.02 | AU25: 107645.08 | AV25: 109950.5 | AW25: 102808.08 | AX25: 98701.41 | AY25: 144221.6 | AZ25: 78276.18 | BA25: 99017.24 | BB25: 137100.37 | BC25: 1250902.05 | BD25: 37319.83 | BE25: 82961.01 | BF25: 99245.71 | BG25: 153354.58 | BH25: =AU25*(1+HLOOKUP($BV25,'3.Índices_inflação'!$B$127:$AY$134,6,FALSE)) -> 142169.1789 | BI25: =AV25*(1+HLOOKUP($BV25,'3.Índices_inflação'!$B$127:$AY$134,7,FALSE)) -> 160733.3385 | BJ25: =AW25*(1+HLOOKUP($BV25,'3.Índices_inflação'!$B$127:$AY$134,8,FALSE)) -> 154508.6176 | BM25: 905897.68 | BN25: 1209337.54 | BO25: 1368744.61 | BP25: 1250902.05 | BQ25: 1088214.33 | BR25: 1282784.38 | BS25: 1333423.7 | BT25: 1387609.065 | BV25: IPCA BH Comb
C26: Comercialização | D26: 83236.3 | E26: 77362 | F26: 74979.83 | G26: 63067.22 | H26: 73077.23 | I26: 67908.99 | J26: 67678.42 | K26: 72117.82 | L26: 67427.41 | M26: 68429.96 | N26: 76699.09 | O26: 85258 | P26: 877242.27 | Q26: 74026.06 | R26: 94329.87 | S26: 67522.32 | T26: 78510.9 | U26: 71797.74 | V26: 79705.2 | W26: 98775.43 | X26: 86304.37 | Y26: 80473.68 | Z26: 113142.22 | AA26: 240946.93 | AB26: 115518.66 | AC26: 1201053.38 | AD26: 112624.38 | AE26: 117804.66 | AF26: 120252.4 | AG26: 126292.83 | AH26: 126398.45 | AI26: 140821.54 | AJ26: 129964.05 | AK26: 128839.94 | AL26: 123084.73 | AM26: 132868.08 | AN26: 126585.64 | AO26: 129112.58 | AP26: 1514649.28 | AQ26: 133558.37 | AR26: 129217.31 | AS26: 122636.48 | AT26: 130413.5 | AU26: 131754.32 | AV26: 125332.29 | AW26: 131141.76 | AX26: 128323.11 | AY26: 122821.89 | AZ26: 132136.27 | BA26: 132167.12 | BB26: 137865.49 | BC26: 1557367.91 | BD26: 139190.19 | BE26: 136586.9 | BF26: 143745.01 | BG26: 141256.72 | BH26: =AU26*(1+HLOOKUP($BV26,'3.Índices_inflação'!$B$127:$AY$134,6,FALSE)) -> 141827.3196 | BI26: =AV26*(1+HLOOKUP($BV26,'3.Índices_inflação'!$B$127:$AY$134,7,FALSE)) -> 136065.4527 | BJ26: =AW26*(1+HLOOKUP($BV26,'3.Índices_inflação'!$B$127:$AY$134,8,FALSE)) -> 142486.0347 | BM26: 877242.27 | BN26: 1201053.38 | BO26: 1514649.28 | BP26: 1557367.91 | BQ26: 934599.8 | BR26: 1510544.17 | BS26: 1544545 | BT26: 1634471.507 | BV26: IPCA
C27: Comunicação, Publicidade e Propaganda Legal | D27: 4366.72 | E27: 235.7 | F27: 0 | G27: 0 | H27: 3 | I27: 2000.32 | J27: 9703.68 | K27: 255.36 | L27: 45.9 | M27: 0 | N27: 0 | O27: 0 | P27: 16610.68 | Q27: 0 | R27: 4780.8 | S27: 8331.35 | T27: 319.09 | U27: 487.28 | V27: 628.88 | W27: 98.12 | X27: 856.82 | Y27: 51.03 | Z27: 1259.44 | AA27: 864.53 | AB27: 446.04 | AC27: 18123.38 | AD27: 212.8 | AE27: 340.48 | AF27: 9916.48 | AG27: 680.96 | AH27: 425.6 | AI27: 1064 | AJ27: 0 | AK27: 0 | AL27: 0 | AM27: 3422.84 | AN27: 595.84 | AO27: 553.28 | AP27: 17212.28 | AQ27: 2532.68 | AR27: 1234.24 | AS27: 510.72 | AT27: 553.28 | AU27: 383.04 | AV27: 0 | AW27: 0 | AX27: 0 | AY27: 0 | AZ27: 0 | BA27: 0 | BB27: 0 | BC27: 5213.96 | BD27: 0 | BE27: 553.28 | BF27: 0 | BG27: 37623.04 | BH27: =AU27*(1+HLOOKUP($BV27,'3.Índices_inflação'!$B$127:$AY$134,6,FALSE)) -> 412.324518 | BI27: =AV27*(1+HLOOKUP($BV27,'3.Índices_inflação'!$B$127:$AY$134,7,FALSE)) -> 0 | BJ27: =AW27*(1+HLOOKUP($BV27,'3.Índices_inflação'!$B$127:$AY$134,8,FALSE)) -> 0 | BM27: 16610.68 | BN27: 18123.38 | BO27: 17212.28 | BP27: 5213.96 | BQ27: 14946.78 | BR27: 16118.18 | BS27: 9785.92 | BT27: 38588.64452 | BV27: IPCA
C28: Convênios | D28: 0 | E28: 0 | F28: 0 | G28: 0 | H28: 0 | I28: 0 | J28: 0 | K28: 0 | L28: 0 | M28: 0 | N28: 0 | O28: 0 | P28: 0 | Q28: 0 | R28: 0 | S28: 0 | T28: 0 | U28: 0 | V28: 0 | W28: 0 | X28: 0 | Y28: 0 | Z28: 0 | AA28: 0 | AB28: 0 | AC28: 0 | AD28: 0 | AE28: 0 | AF28: 191864.01 | AG28: 0 | AH28: 0 | AI28: 0 | AJ28: 0 | AK28: 0 | AL28: 0 | AM28: 0 | AN28: 0 | AO28: 0 | AP28: 191864.01 | AQ28: 0 | AR28: 0 | AS28: 0 | AT28: 0 | AU28: 0 | AV28: 0 | AW28: 0 | AX28: 0 | AY28: 0 | AZ28: 0 | BA28: 0 | BB28: 0 | BC28: 0 | BD28: 0 | BE28: 0 | BF28: 0 | BG28: 0 | BH28: =AU28*(1+HLOOKUP($BV28,'3.Índices_inflação'!$B$127:$AY$134,6,FALSE)) -> 0 | BI28: =AV28*(1+HLOOKUP($BV28,'3.Índices_inflação'!$B$127:$AY$134,7,FALSE)) -> 0 | BJ28: =AW28*(1+HLOOKUP($BV28,'3.Índices_inflação'!$B$127:$AY$134,8,FALSE)) -> 0 | BM28: 0 | BN28: 0 | BO28: 191864.01 | BP28: 0 | BQ28: 0 | BR28: 191864.01 | BS28: 0 | BT28: 0 | BV28: IPCA
C29: Energia Elétrica | D29: 480091.94 | E29: 727411.54 | F29: 620390.48 | G29: 789025.81 | H29: 635624.88 | I29: 636186.82 | J29: 705667.84 | K29: 586824.94 | L29: 634120.57 | M29: 727103.07 | N29: 670224.01 | O29: 781428.15 | P29: 7994100.05 | Q29: 540798.01 | R29: 660483.04 | S29: 610932.26 | T29: 555126.48 | U29: 645974.67 | V29: 613638.75 | W29: 757710.56 | X29: 865687.31 | Y29: 938873.49 | Z29: 840595.72 | AA29: 893302.35 | AB29: 866620.7 | AC29: 8789743.34 | AD29: 834565.35 | AE29: 865794.46 | AF29: 894185.97 | AG29: 807531.72 | AH29: 782375.33 | AI29: 729115.58 | AJ29: 797764.87 | AK29: 1050081.04 | AL29: 997713.17 | AM29: 1041608.27 | AN29: 795527 | AO29: 917592.18 | AP29: 10513854.94 | AQ29: 725465.44 | AR29: 1001922.89 | AS29: 857670.75 | AT29: 717303.12 | AU29: 809239.14 | AV29: 627046.34 | AW29: 788719.94 | AX29: 808018.23 | AY29: 1055272.97 | AZ29: 762259.29 | BA29: 920966.21 | BB29: 849646.05 | BC29: 9923530.37 | BD29: 860836.93 | BE29: 1030178.28 | BF29: 812548.62 | BG29: 858202.73 | BH29: =AU29*(1+HLOOKUP($BV29,'3.Índices_inflação'!$B$127:$AY$134,6,FALSE)) -> 877011.992 | BI29: =AV29*(1+HLOOKUP($BV29,'3.Índices_inflação'!$B$127:$AY$134,7,FALSE)) -> 719592.8994 | BJ29: =AW29*(1+HLOOKUP($BV29,'3.Índices_inflação'!$B$127:$AY$134,8,FALSE)) -> 811323.4605 | BM29: 7994100.05 | BN29: 8789743.34 | BO29: 10513854.94 | BP29: 9923530.37 | BQ29: 7784364.51 | BR29: 10116412.85 | BS29: 10329889.28 | BT29: 10365857.66 | BV29: IEE
C30: Indenizações | D30: 0 | E30: 0 | F30: 0 | G30: 0 | H30: 0 | I30: 0 | J30: 0 | K30: 0 | L30: 0 | M30: 0 | N30: 0 | O30: 0 | P30: 0 | Q30: 0 | R30: 0 | S30: 0 | T30: 0 | U30: 0 | V30: 0 | W30: 0 | X30: 0 | Y30: 0 | Z30: 0 | AA30: 0 | AB30: 0 | AC30: 0 | AD30: 0 | AE30: 0 | AF30: 0 | AG30: 0 | AH30: 0 | AI30: 0 | AJ30: 0 | AK30: 0 | AL30: 0 | AM30: 0 | AN30: 0 | AO30: 0 | AP30: 0 | AQ30: 0 | AR30: 0 | AS30: 0 | AT30: 0 | AU30: 0 | AV30: 0 | AW30: 0 | AX30: 0 | AY30: 0 | AZ30: 0 | BA30: 0 | BB30: 0 | BC30: 0 | BD30: 0 | BE30: 0 | BF30: 0 | BG30: 0 | BH30: =AU30*(1+HLOOKUP($BV30,'3.Índices_inflação'!$B$127:$AY$134,6,FALSE)) -> 0 | BI30: =AV30*(1+HLOOKUP($BV30,'3.Índices_inflação'!$B$127:$AY$134,7,FALSE)) -> 0 | BJ30: =AW30*(1+HLOOKUP($BV30,'3.Índices_inflação'!$B$127:$AY$134,8,FALSE)) -> 0 | BM30: 0 | BN30: 0 | BO30: 0 | BP30: 0 | BQ30: 0 | BR30: 0 | BS30: 0 | BT30: 0 | BV30: IGP-M
C31: Manutenção | D31: 154074.99 | E31: 171281.98 | F31: 150179.31 | G31: 155308 | H31: 279805.57 | I31: 207924.63 | J31: 218563.29 | K31: 287982.29 | L31: 234562.71 | M31: 284078.85 | N31: 200531.35 | O31: 222415.92 | P31: 2566708.89 | Q31: 227020.39 | R31: 154580.82 | S31: 228102.94 | T31: 261783.1 | U31: 244757.35 | V31: 293162.17 | W31: 365539.01 | X31: 337533.85 | Y31: 242652.54 | Z31: 374357.36 | AA31: 570397.34 | AB31: 505637.39 | AC31: 3805524.26 | AD31: 254461.5 | AE31: 586568.91 | AF31: 848015.99 | AG31: 552117.06 | AH31: 887243.83 | AI31: 482535.22 | AJ31: 698810.52 | AK31: 553345.14 | AL31: 215267.03 | AM31: 284798.58 | AN31: 212916.6 | AO31: 373964.62 | AP31: 5950045 | AQ31: 256313.17 | AR31: 337896.71 | AS31: 239198.95 | AT31: 207979.32 | AU31: 296601.19 | AV31: 140603.89 | AW31: 225016.51 | AX31: 164108.05 | AY31: 335100.24 | AZ31: 317380.08 | BA31: 345571.59 | BB31: 429127.17 | BC31: 3294896.87 | BD31: 235124.04 | BE31: 327154.82 | BF31: 295732.24 | BG31: 288584.79 | BH31: =AU31*(1+HLOOKUP($BV31,'3.Índices_inflação'!$B$127:$AY$134,6,FALSE)) -> 379640.944 | BI31: =AV31*(1+HLOOKUP($BV31,'3.Índices_inflação'!$B$127:$AY$134,7,FALSE)) -> 182844.7595 | BJ31: =AW31*(1+HLOOKUP($BV31,'3.Índices_inflação'!$B$127:$AY$134,8,FALSE)) -> 296723.4934 | BM31: 2566708.89 | BN31: 3805524.26 | BO31: 5950045 | BP31: 3294896.87 | BQ31: 3004516.9 | BR31: 6340331.51 | BS31: 3343901.71 | BT31: 3597092.217 | BV31: INCC-DI MS
C32: Material de Tratamento | D32: 123669.41 | E32: 145874.84 | F32: 205177.79 | G32: 194676.36 | H32: 37777.48 | I32: 73640.31 | J32: 83791.63 | K32: 60537.22 | L32: 43687.96 | M32: 40627.41 | N32: 210309.61 | O32: 85491.11 | P32: 1305261.13 | Q32: 148772.86 | R32: 76479.36 | S32: 79048.9 | T32: 118858.05 | U32: 79996.84 | V32: 74494.29 | W32: 134327.35 | X32: 125024.33 | Y32: 72570.21 | Z32: 133356.63 | AA32: 122052.05 | AB32: 133498.85 | AC32: 1298479.72 | AD32: 127345.64 | AE32: 108540.06 | AF32: 124274.88 | AG32: 122923.64 | AH32: 138857.98 | AI32: 80310.46 | AJ32: 223499.3 | AK32: 162669.07 | AL32: 135737.05 | AM32: 150123.52 | AN32: 155283.13 | AO32: 163588.87 | AP32: 1693153.6 | AQ32: 99929.71 | AR32: 112300.31 | AS32: 213141.64 | AT32: 137683.79 | AU32: 155823.49 | AV32: 101564.81 | AW32: 188756.8 | AX32: 187659.62 | AY32: 136259.17 | AZ32: 120825.89 | BA32: 227088.58 | BB32: 231307.69 | BC32: 1912341.5 | BD32: 86176.21 | BE32: 185388.07 | BF32: 190877.87 | BG32: 104460.36 | BH32: =AU32*(1+HLOOKUP($BV32,'3.Índices_inflação'!$B$127:$AY$134,6,FALSE)) -> 214174.4059 | BI32: =AV32*(1+HLOOKUP($BV32,'3.Índices_inflação'!$B$127:$AY$134,7,FALSE)) -> 140961.8212 | BJ32: =AW32*(1+HLOOKUP($BV32,'3.Índices_inflação'!$B$127:$AY$134,8,FALSE)) -> 259550.8578 | BM32: 1305261.13 | BN32: 1298479.72 | BO32: 1693153.6 | BP32: 1912341.5 | BQ32: 1152630.96 | BR32: 1512254.03 | BS32: 1776602.19 | BT32: 2084730.545 | BV32: IGP-M
C33: Outros Materiais | D33: 44699.78 | E33: 22196 | F33: 12874.15 | G33: 16695.41 | H33: 17189.1 | I33: 25133.76 | J33: 20775.31 | K33: 14520.2 | L33: 19691.14 | M33: 21466.55 | N33: 10595.41 | O33: 7276.28 | P33: 233113.09 | Q33: 23078.98 | R33: 7522.3 | S33: 21247.41 | T33: 16552.54 | U33: 8340.91 | V33: 20762.48 | W33: 14385.11 | X33: 25753.85 | Y33: 17776.3 | Z33: 22613.05 | AA33: 3208.42 | AB33: 36210.39 | AC33: 217451.74 | AD33: 9441.04 | AE33: 11027.86 | AF33: 9791.8 | AG33: 10612.44 | AH33: 13114.11 | AI33: 16303.22 | AJ33: 19867.81 | AK33: 12887.11 | AL33: 13481.85 | AM33: 12862.31 | AN33: 14679.57 | AO33: 42995.06 | AP33: 187064.18 | AQ33: 10779.94 | AR33: 8585.41 | AS33: 15325.11 | AT33: 23953.62 | AU33: 25669.56 | AV33: 15959.9 | AW33: 19025.9 | AX33: 11664.54 | AY33: 8741.66 | AZ33: 26722.93 | BA33: 39166.98 | BB33: 41076.07 | BC33: 246671.62 | BD33: 6203.8 | BE33: 10900.5 | BF33: 1987.49 | BG33: 10730.61 | BH33: =AU33*(1+HLOOKUP($BV33,'3.Índices_inflação'!$B$127:$AY$134,6,FALSE)) -> 35281.98966 | BI33: =AV33*(1+HLOOKUP($BV33,'3.Índices_inflação'!$B$127:$AY$134,7,FALSE)) -> 22150.74857 | BJ33: =AW33*(1+HLOOKUP($BV33,'3.Índices_inflação'!$B$127:$AY$134,8,FALSE)) -> 26161.64644 | BM33: 233113.09 | BN33: 217451.74 | BO33: 187064.18 | BP33: 246671.62 | BQ33: 185439.31 | BR33: 195720.29 | BS33: 216205.34 | BT33: 240788.9647 | BV33: IGP-M
C34: Pessoal | D34: 1122250.59 | E34: 1123652.88 | F34: 1617959.55 | G34: 1367567.88 | H34: 1442835.33 | I34: 1243485.08 | J34: 1249505.47 | K34: 1271150.58 | L34: 1201015.49 | M34: 1380349.84 | N34: 1372524.88 | O34: 1391278.99 | P34: 15783576.56 | Q34: 1386622.08 | R34: 1414519.61 | S34: 1274997.13 | T34: 1380755.12 | U34: 1679682.75 | V34: 1434792.46 | W34: 1408743.51 | X34: 1451214.67 | Y34: 1489518.1 | Z34: 1528677.92 | AA34: 1484410.58 | AB34: 1733596.74 | AC34: 17667530.67 | AD34: 1540516.29 | AE34: 1499133.66 | AF34: 1498070.4 | AG34: 1519701.29 | AH34: 1522745.83 | AI34: 1445172.08 | AJ34: 1571970.32 | AK34: 1581461.63 | AL34: 1507362.97 | AM34: 1585506.66 | AN34: 1555155.93 | AO34: 1800381.76 | AP34: 18627178.82 | AQ34: 1563069.24 | AR34: 1548371.08 | AS34: 1591221.41 | AT34: 1604778.07 | AU34: 1616963.48 | AV34: 1614679.57 | AW34: 1547023.24 | AX34: 1568019.9 | AY34: 1551740.22 | AZ34: 1586233.56 | BA34: 1668622.59 | BB34: 1698398.08 | BC34: 19159120.44 | BD34: 1597331.78 | BE34: 1703195.3 | BF34: 1644640.74 | BG34: 1663130.02 | BH34: =AU34*(1+HLOOKUP($BV34,'3.Índices_inflação'!$B$127:$AY$134,6,FALSE)) -> 1756410.135 | BI34: =AV34*(1+HLOOKUP($BV34,'3.Índices_inflação'!$B$127:$AY$134,7,FALSE)) -> 1770867.793 | BJ34: =AW34*(1+HLOOKUP($BV34,'3.Índices_inflação'!$B$127:$AY$134,8,FALSE)) -> 1704241.629 | BM34: 15783576.56 | BN34: 17667530.67 | BO34: 18627178.82 | BP34: 19159120.44 | BQ34: 16596432.44 | BR34: 18284727.88 | BS34: 19115975.04 | BT34: 19912831.75 | BV34: INPC
C35: Serviços de Terceiros | D35: 182647.24 | E35: 187777.57 | F35: 374013.19 | G35: 155789.56 | H35: 342334.51 | I35: 301642.66 | J35: 157562.72 | K35: 201021.57 | L35: 259336.93 | M35: 271428.27 | N35: 252734.67 | O35: 987639.02 | P35: 3673927.91 | Q35: 133107.13 | R35: 165591.63 | S35: 29962.17 | T35: 278407.84 | U35: 31291.02 | V35: 129916.59 | W35: 218153.07 | X35: 147160.9 | Y35: 227034.16 | Z35: 582029.12 | AA35: 513849.02 | AB35: 457667.81 | AC35: 2914170.46 | AD35: 508356.01 | AE35: 58726.15 | AF35: 132980.9 | AG35: 81721.04 | AH35: 124409.2 | AI35: 45532.45 | AJ35: 325510.61 | AK35: 167891.56 | AL35: 110895.68 | AM35: 227491.94 | AN35: 54641.74 | AO35: 205441.8 | AP35: 2043599.08 | AQ35: 441084.73 | AR35: 149316.42 | AS35: 248717.07 | AT35: 84742.25 | AU35: 39019.5 | AV35: 26686.19 | AW35: 36742.22 | AX35: 27669.72 | AY35: 26439.54 | AZ35: 29044.43 | BA35: 199514.41 | BB35: 133361.73 | BC35: 1442338.21 | BD35: 8908.89 | BE35: 61649.62 | BF35: 175142.18 | BG35: 136367.81 | BH35: =AU35*(1+HLOOKUP($BV35,'3.Índices_inflação'!$B$127:$AY$134,6,FALSE)) -> 42002.65385 | BI35: =AV35*(1+HLOOKUP($BV35,'3.Índices_inflação'!$B$127:$AY$134,7,FALSE)) -> 28971.53259 | BJ35: =AW35*(1+HLOOKUP($BV35,'3.Índices_inflação'!$B$127:$AY$134,8,FALSE)) -> 39920.5656 | BM35: 3673927.91 | BN35: 2914170.46 | BO35: 2043599.08 | BP35: 1442338.21 | BQ35: 2958589.91 | BR35: 3204977.37 | BS35: 1792671.1 | BT35: 908993.082 | BV35: IPCA
C36: Telecomunicação | D36: 55231.43 | E36: 55773.92 | F36: 55809.66 | G36: 54563.85 | H36: 55374.62 | I36: 54700.7 | J36: 56759.88 | K36: 53778.1 | L36: 55947.79 | M36: 53842.1 | N36: 55930.44 | O36: 50852.07 | P36: 658564.56 | Q36: 12395.93 | R36: 11807.28 | S36: 12751.15 | T36: 13846.36 | U36: 13555.91 | V36: 571.57 | W36: 161891.34 | X36: 50527.91 | Y36: 52298.48 | Z36: 39755.65 | AA36: 42173.52 | AB36: 42577.92 | AC36: 454153.02 | AD36: 41624.72 | AE36: 41308.25 | AF36: 9935.23 | AG36: 45132.73 | AH36: 73798.09 | AI36: 44913.83 | AJ36: 44059.98 | AK36: 45546.08 | AL36: 43739.35 | AM36: 44633.93 | AN36: 13497.54 | AO36: 45710.06 | AP36: 493899.79 | AQ36: 84667.99 | AR36: 37198.48 | AS36: 36526.3 | AT36: 35954.91 | AU36: 36091.75 | AV36: 36144.19 | AW36: 34765.26 | AX36: 36375.27 | AY36: 40663.21 | AZ36: 38340 | BA36: 16987.18 | BB36: 18218.63 | BC36: 451933.17 | BD36: 18435.23 | BE36: 17114.51 | BF36: 123608.71 | BG36: 15564.73 | BH36: =AU36*(1+HLOOKUP($BV36,'3.Índices_inflação'!$B$127:$AY$134,6,FALSE)) -> 37922.32267 | BI36: =AV36*(1+HLOOKUP($BV36,'3.Índices_inflação'!$B$127:$AY$134,7,FALSE)) -> 38145.87294 | BJ36: =AW36*(1+HLOOKUP($BV36,'3.Índices_inflação'!$B$127:$AY$134,8,FALSE)) -> 36867.60907 | BM36: 658564.56 | BN36: 454153.02 | BO36: 493899.79 | BP36: 451933.17 | BQ36: 497170.04 | BR36: 528106.31 | BS36: 494475.84 | BT36: 438243.2747 | BV36: IPCA BH Tel
C37: Treinamento | D37: 0 | E37: 0 | F37: 5760 | G37: 0 | H37: 5713 | I37: 3154 | J37: 15165.61 | K37: 31990.8 | L37: 15402.17 | M37: 10732.72 | N37: 14891.08 | O37: 11863.25 | P37: 114672.63 | Q37: 12047 | R37: 7563.76 | S37: 4874.79 | T37: 3843.4 | U37: 13064.99 | V37: 16481.16 | W37: 62573.94 | X37: 138616.94 | Y37: 65716.43 | Z37: 54028.92 | AA37: 8769.64 | AB37: 25811.35 | AC37: 413392.32 | AD37: 11169.08 | AE37: 5233.85 | AF37: 11099.65 | AG37: 19553.7 | AH37: 31420.92 | AI37: 48095 | AJ37: 52491.56 | AK37: 43361.66 | AL37: 64835.12 | AM37: 67236.41 | AN37: 50618.68 | AO37: 86534.11 | AP37: 491649.74 | AQ37: 28525.95 | AR37: 8246.2 | AS37: 69732.49 | AT37: 8487.44 | AU37: 2101.48 | AV37: 3027.8 | AW37: 4075.75 | AX37: 1688.53 | AY37: 2414.68 | AZ37: 3645.37 | BA37: 13325.55 | BB37: 21698.55 | BC37: 166969.79 | BD37: 708.5 | BE37: 881.35 | BF37: 989.4 | BG37: 0 | BH37: =AU37*(1+HLOOKUP($BV37,'3.Índices_inflação'!$B$127:$AY$134,6,FALSE)) -> 2262.144236 | BI37: =AV37*(1+HLOOKUP($BV37,'3.Índices_inflação'!$B$127:$AY$134,7,FALSE)) -> 3287.093675 | BJ37: =AW37*(1+HLOOKUP($BV37,'3.Índices_inflação'!$B$127:$AY$134,8,FALSE)) -> 4428.318301 | BM37: 114672.63 | BN37: 413392.32 | BO37: 491649.74 | BP37: 166969.79 | BQ37: 205329.06 | BR37: 472007.04 | BS37: 436783.09 | BT37: 55329.48621 | BV37: IPCA
C38: Outros Custos Operacionais | D38: 38928.35 | E38: 41916.56 | F38: 71921.14 | G38: 44622.46 | H38: 90880.7 | I38: 82590.14 | J38: 64407.88 | K38: 96063.39 | L38: 57025.99 | M38: 36446.02 | N38: 56729.24 | O38: 79555.18 | P38: 761087.05 | Q38: 77091.82 | R38: 46681.34 | S38: 58534.73 | T38: 59072.98 | U38: 67915.85 | V38: 78662.53 | W38: 87407.56 | X38: 109073.93 | Y38: 54469.42 | Z38: 65740.46 | AA38: 72375.64 | AB38: 80022.74 | AC38: 857049 | AD38: 36995.92 | AE38: 69962.79 | AF38: 72974.43 | AG38: 66053.83 | AH38: 81910.25 | AI38: 54356.7 | AJ38: 82738.09 | AK38: 62699.03 | AL38: 88470.25 | AM38: 60918.38 | AN38: 71174.86 | AO38: 333256.15 | AP38: 1081510.68 | AQ38: 43767.93 | AR38: 45769.57 | AS38: 66690.01 | AT38: 42930.77 | AU38: 39255.15 | AV38: 39391.25 | AW38: 55596.73 | AX38: 58915.22 | AY38: 72813.16 | AZ38: 49931.93 | BA38: 57243.74 | BB38: 75440.48 | BC38: 647745.94 | BD38: 32783.23 | BE38: 38274.53 | BF38: 58043.64 | BG38: 45257.43 | BH38: =AU38*(1+HLOOKUP($BV38,'3.Índices_inflação'!$B$127:$AY$134,6,FALSE)) -> 42256.31998 | BI38: =AV38*(1+HLOOKUP($BV38,'3.Índices_inflação'!$B$127:$AY$134,7,FALSE)) -> 42764.62407 | BJ38: =AW38*(1+HLOOKUP($BV38,'3.Índices_inflação'!$B$127:$AY$134,8,FALSE)) -> 60406.06439 | BM38: 761087.05 | BN38: 857049 | BO38: 1081510.68 | BP38: 647745.94 | BQ38: 801186.63 | BR38: 846674.2 | BS38: 949920.08 | BT38: 634130.3684 | BV38: IPCA
C39: Total - Custos Operacionais | D39: 2406658.43 | E39: 2644627.88 | F39: 3297584.67 | G39: 2951177.95 | H39: 3137069.84 | I39: 2814584.63 | J39: 2769201.79 | K39: 2841931.26 | L39: 2710819.91 | M39: 3000384.35 | N39: 3090468.58 | O39: 3828137.65 | P39: 35492646.94 | Q39: 2777665.45 | R39: 2743475.43 | S39: 2529359.56 | T39: 2897088.84 | U39: 3005213 | V39: 2872249.81 | W39: 3504275.67 | X39: 3508063.43 | Y39: 3359523.06 | Z39: 3943369.62 | AA39: 4109699.41 | AB39: 4153430.85 | AC39: 39403414.13 | AD39: 3589345.91 | AE39: 3520492.47 | AF39: 4086537.23 | AG39: 3511919.27 | AH39: 3950209.5 | AI39: 3221806.31 | AJ39: 4131085.43 | AK39: 3941654.99 | AL39: 3519811.09 | AM39: 3766366.78 | AN39: 3213320.9 | AO39: 4347459.39 | AP39: 44800009.27 | AQ39: 3533800.17 | AR39: 3513270.93 | AS39: 3655900.96 | AT39: 3110961.3 | AU39: 3279469.7 | AV39: 2925695.13 | AW39: 3166425.85 | AX39: 3123756.7 | AY39: 3528612.06 | AZ39: 3191049.42 | BA39: 3757250.32 | BB39: 3823879.48 | BC39: 40610072.02 | BD39: 3062359.38 | BE39: =SUM(BE22:BE38) -> 3652000.64 | BF39: 3587698.13 | BG39: 3497201.37 | BH39: 3694900.153 | BI39: 3341738.912 | BJ39: 3572912.612 | BM39: =SUM(BM22:BM38) -> 35492646.94 | BN39: 39403414.13 | BO39: 44800009.27 | BP39: 40610072.02 | BQ39: 35801069.51 | BR39: 45085482.49 | BS39: 41974137.19 | BT39: 41833359.18
C41: Repasse Tarifário a Fundos Municipais de Saneamento | D41: 0 | E41: 0 | F41: 0 | G41: 0 | H41: 0 | I41: 0 | J41: 0 | K41: 0 | L41: 0 | M41: 0 | N41: 0 | O41: 0 | P41: 0 | Q41: 0 | R41: 0 | S41: 0 | T41: 0 | U41: 0 | V41: 0 | W41: 0 | X41: 0 | Y41: 0 | Z41: 0 | AA41: 0 | AB41: 0 | AC41: 0 | AD41: 0 | AE41: 0 | AF41: 0 | AG41: 0 | AH41: 0 | AI41: 0 | AJ41: 0 | AK41: 0 | AL41: 0 | AM41: 0 | AN41: 0 | AO41: 0 | AP41: 0 | AQ41: 0 | AR41: 0 | AS41: 0 | AT41: 0 | AU41: 0 | AV41: 0 | AW41: 0 | AX41: 0 | AY41: 0 | AZ41: 0 | BA41: 0 | BB41: 0 | BC41: 0 | BD41: 0 | BE41: 0 | BF41: 0 | BG41: 0 | BH41: =AVERAGE(BE41,BF41,BG41) -> 0 | BI41: =AVERAGE(BF41,BG41,BH41) -> 0 | BJ41: =AVERAGE(BG41,BH41,BI41) -> 0 | BM41: =P41 -> 0 | BN41: =AC41 -> 0 | BO41: =AP41 -> 0 | BP41: =BC41 -> 0 | BQ41: =SUM(K41:O41,Q41:W41) -> 0 | BR41: =SUM(X41:AB41,AD41:AJ41) -> 0 | BS41: =SUM(AK41:AO41,AQ41:AW41) -> 0 | BT41: =SUM(AX41:BB41,BD41:BJ41) -> 0 | BV41: ETM
C42: Total - Programas Especiais | D42: 0 | E42: 0 | F42: 0 | G42: 0 | H42: 0 | I42: 0 | J42: 0 | K42: 0 | L42: 0 | M42: 0 | N42: 0 | O42: 0 | P42: 0 | Q42: 0 | R42: 0 | S42: 0 | T42: 0 | U42: 0 | V42: 0 | W42: 0 | X42: 0 | Y42: 0 | Z42: 0 | AA42: 0 | AB42: 0 | AC42: 0 | AD42: 0 | AE42: 0 | AF42: 0 | AG42: 0 | AH42: 0 | AI42: 0 | AJ42: 0 | AK42: 0 | AL42: 0 | AM42: 0 | AN42: 0 | AO42: 0 | AP42: 0 | AQ42: 0 | AR42: 0 | AS42: 0 | AT42: 0 | AU42: 0 | AV42: 0 | AW42: 0 | AX42: 0 | AY42: 0 | AZ42: 0 | BA42: 0 | BB42: 0 | BC42: 0 | BD42: 0 | BE42: =BE41 -> 0 | BF42: 0 | BG42: 0 | BH42: 0 | BI42: 0 | BJ42: 0 | BM42: =SUM(BM39:BM41) -> 35492646.94 | BN42: 39403414.13 | BO42: 44800009.27 | BP42: 40610072.02 | BQ42: 35801069.51 | BR42: 45085482.49 | BS42: 41974137.19 | BT42: 41833359.18
D44: 0.06290755415 | E44: 0.05655767302 | F44: 0.05910019305 | G44: 0.05420252938 | H44: 0.05014653359 | I44: 0.04947360395 | J44: 0.05281160167 | K44: 0.05327988672 | L44: 0.05426125412 | M44: 0.05544988477 | N44: 0.05300800335 | O44: 0.06097779548 | P44: 0.05540244678 | Q44: 0.06074845063 | R44: 0.05795737062 | S44: 0.05593543219 | T44: 0.05473750679 | U44: 0.05526138403 | V44: 0.05357862679 | W44: 0.05066767075 | X44: 0.04225794417 | Y44: 0.04278128722 | Z44: 0.04495922454 | AA44: 0.02509889493 | AB44: 0.01957726928 | AC44: 0.04694745441 | AD44: 0.03818998211 | AE44: 0.02900951899 | AF44: 0.03193397776 | AG44: 0.02995040126 | AH44: 0.01289782975 | AI44: 0.03087749692 | AJ44: 0.03432804489 | AK44: 0.04631401898 | AL44: 0.0419395311 | AM44: 0.0596373186 | AN44: 0.05708224499 | AO44: 0.1120644212 | AP44: 0.04462815201 | AQ44: 0.07681942742 | AR44: 0.07691355165 | AS44: 0.07490805679 | AT44: 0.07120239417 | AU44: 0.07996616214 | AV44: 0.06691192438 | AW44: 0.06742478124 | AX44: 0.0557815156 | AY44: 0.06417683306 | AZ44: 0.06778324081 | BA44: 0.05968958504 | BB44: 0.06197167344 | BC44: 0.06840811153 | BD44: 0.06872528865 | BE44: =-BE45/BE11 -> 0.06652603976 | BF44: =-BF45/BF11 -> 0.06053952363 | BG44: =-BG45/BG11 -> 0.06725308784 | BH44: =AVERAGE(BE44,BF44,BG44) -> 0.06477288374 | BI44: 0.0641884984 | BJ44: 0.06540482333 | BM44: =BM45/-BM11 -> 0.05540244678 | BN44: 0.04694745441 | BO44: 0.04462815201 | BP44: 0.06840811153 | BQ44: 0.05570346453 | BR44: 0.03150239324 | BS44: 0.06952366157 | BT44: 0.06422138863
C45: PIS/Pasep e Cofins | D45: 149907.5 | E45: 123129.55 | F45: 131756.63 | G45: 118324.41 | H45: 113135.45 | I45: 102846.61 | J45: 115223.61 | K45: 116404.54 | L45: 113104.64 | M45: 146649.9 | N45: 141671.82 | O45: 187043.56 | P45: 1559198.22 | Q45: 160116.32 | R45: 145284.52 | S45: 142225.62 | T45: 123006.44 | U45: 129353.65 | V45: 126265.28 | W45: 113963.39 | X45: 96740.7 | Y45: 103625.66 | Z45: 121038.46 | AA45: 60081.69 | AB45: 49575.26 | AC45: 1371276.99 | AD45: 92667.24 | AE45: 83091.94 | AF45: 107314.07 | AG45: 84178.64 | AH45: 38055.11 | AI45: 77482.19 | AJ45: 92833.12 | AK45: 132786.84 | AL45: 119661.72 | AM45: 207467.35 | AN45: 173983.34 | AO45: 353818.09 | AP45: 1563339.65 | AQ45: 265930.65 | AR45: 221712.18 | AS45: 209480.64 | AT45: 203669.71 | AU45: 240269.06 | AV45: 197819.35 | AW45: 219228.16 | AX45: 177122.68 | AY45: 225117.15 | AZ45: 291668.54 | BA45: 195673.91 | BB45: 199379.26 | BC45: 2647071.29 | BD45: 289010.4 | BE45: 242766.02 | BF45: 185103.6 | BG45: 227608.39 | BH45: 218492.67 | BI45: 210401.5533 | BJ45: 218834.2044 | BM45: =P45 -> 1559198.22 | BN45: =AC45 -> 1371276.99 | BO45: =AP45 -> 1563339.65 | BP45: =BC45 -> 2647071.29 | BQ45: =SUM(K45:O45,Q45:W45) -> 1645089.68 | BR45: =SUM(X45:AB45,AD45:AJ45) -> 1006684.08 | BS45: =SUM(AK45:AO45,AQ45:AW45) -> 2545827.09 | BT45: =SUM(AX45:BB45,BD45:BJ45) -> 2681178.378 | BV45: ETM
C46: TFAS | D46: 47513.82 | E46: 47513.82 | F46: 47513.82 | G46: 47513.82 | H46: 47513.82 | I46: 47513.82 | J46: 47513.82 | K46: 47513.82 | L46: 47513.82 | M46: 47513.82 | N46: 47513.82 | O46: 47513.82 | P46: 570165.84 | Q46: 48096.56 | R46: 48096.56 | S46: 48096.56 | T46: 48096.56 | U46: 48096.56 | V46: 48096.56 | W46: 48096.56 | X46: 48096.56 | Y46: 48096.56 | Z46: 48096.56 | AA46: 48096.56 | AB46: 48168.7 | AC46: 577230.86 | AD46: 53523.08 | AE46: 53523.08 | AF46: 0 | AG46: 107046.16 | AH46: 53523.08 | AI46: 53523.08 | AJ46: 53523.08 | AK46: 53523.08 | AL46: 53523.08 | AM46: 53523.08 | AN46: 53523.08 | AO46: 53523.08 | AP46: 642276.96 | AQ46: 57686.53 | AR46: 57686.59 | AS46: 57686.59 | AT46: 57686.59 | AU46: 57686.59 | AV46: 57686.59 | AW46: 57686.59 | AX46: 57686.59 | AY46: 57686.59 | AZ46: 57686.59 | BA46: 57686.59 | BB46: 57686.59 | BC46: 692239.02 | BD46: 64622.3775 | BE46: 64622.3775 | BF46: 64622.3775 | BG46: 64622.3775 | BH46: =BG46 -> 64622.3775 | BI46: 64622.3775 | BJ46: 64622.3775 | BM46: =P46 -> 570165.84 | BN46: =AC46 -> 577230.86 | BO46: =AP46 -> 642276.96 | BP46: =BC46 -> 692239.02 | BQ46: =SUM(K46:O46,Q46:W46) -> 574245.02 | BR46: =SUM(X46:AB46,AD46:AJ46) -> 615216.5 | BS46: =SUM(AK46:AO46,AQ46:AW46) -> 671421.47 | BT46: =SUM(AX46:BB46,BD46:BJ46) -> 740789.5925 | BV46: IGP-DI
C47: Outros Tributos e Taxas | D47: 6532.4 | E47: 6580.57 | F47: 8869.36 | G47: 7016.11 | H47: 9352.99 | I47: 19340.1 | J47: 10065.6 | K47: 11982.17 | L47: 2069.72 | M47: 0 | N47: 3790.6 | O47: 1904.84 | P47: 87504.46 | Q47: 31242.96 | R47: 2069.72 | S47: 0 | T47: 5657.44 | U47: 5896.69 | V47: 0 | W47: 0 | X47: 0 | Y47: 0 | Z47: 0 | AA47: 987.5 | AB47: 46917.13 | AC47: 92771.44 | AD47: 58093.09 | AE47: 0 | AF47: 0 | AG47: 0 | AH47: 1279.82 | AI47: 1750.05 | AJ47: 0 | AK47: 0 | AL47: 0 | AM47: 0 | AN47: 0 | AO47: 12045.75 | AP47: 73168.71 | AQ47: 58860.99 | AR47: 0 | AS47: 0 | AT47: 0 | AU47: 0 | AV47: 0 | AW47: 0 | AX47: 0 | AY47: 400.86 | AZ47: 846.26 | BA47: 2839.88 | BB47: 58.04 | BC47: 63006.03 | BD47: 77884.96 | BE47: 0 | BF47: 287.92 | BG47: 4993.33 | BH47: =AVERAGE(BE47,BF47,BG47) -> 1760.416667 | BI47: =AVERAGE(BF47,BG47,BH47) -> 2347.222222 | BJ47: =AVERAGE(BG47,BH47,BI47) -> 3033.656296 | BM47: =P47 -> 87504.46 | BN47: =AC47 -> 92771.44 | BO47: =AP47 -> 73168.71 | BP47: =BC47 -> 63006.03 | BQ47: =SUM(K47:O47,Q47:W47) -> 64614.14 | BR47: =SUM(X47:AB47,AD47:AJ47) -> 109027.59 | BS47: =SUM(AK47:AO47,AQ47:AW47) -> 70906.74 | BT47: =SUM(AX47:BB47,BD47:BJ47) -> 94452.54519 | BV47: IPCA
C48: Total - Tributos e Outras Obrigações | D48: 203953.72 | E48: 177223.94 | F48: 188139.81 | G48: 172854.34 | H48: 170002.26 | I48: 169700.53 | J48: 172803.03 | K48: 175900.53 | L48: 162688.18 | M48: 194163.72 | N48: 192976.24 | O48: 236462.22 | P48: 2216868.52 | Q48: 239455.84 | R48: 195450.8 | S48: 190322.18 | T48: 176760.44 | U48: 183346.9 | V48: 174361.84 | W48: 162059.95 | X48: 144837.26 | Y48: 151722.22 | Z48: 169135.02 | AA48: 109165.75 | AB48: 144661.09 | AC48: 2041279.29 | AD48: 204283.41 | AE48: 136615.02 | AF48: 107314.07 | AG48: 191224.8 | AH48: 92858.01 | AI48: 132755.32 | AJ48: 146356.2 | AK48: 186309.92 | AL48: 173184.8 | AM48: 260990.43 | AN48: 227506.42 | AO48: 419386.92 | AP48: 2278785.32 | AQ48: 382478.17 | AR48: 279398.77 | AS48: 267167.23 | AT48: 261356.3 | AU48: 297955.65 | AV48: 255505.94 | AW48: 276914.75 | AX48: 234809.27 | AY48: 283204.6 | AZ48: 350201.39 | BA48: 256200.38 | BB48: 257123.89 | BC48: 3402316.34 | BD48: 431517.7375 | BE48: =SUM(BE45:BE47) -> 307388.3975 | BF48: 250013.8975 | BG48: 297224.0975 | BH48: 284875.4642 | BI48: 277371.1531 | BJ48: 286490.2382 | BM48: =SUM(BM45:BM47) -> 2216868.52 | BN48: 2041279.29 | BO48: 2278785.32 | BP48: 3402316.34 | BQ48: 2283948.84 | BR48: 1730928.17 | BS48: 3288155.3 | BT48: 3516420.515
C50: Depreciação e Amortização | D50: 0 | E50: 0 | F50: 0 | G50: 0 | H50: 0 | I50: 0 | J50: 0 | K50: 0 | L50: 0 | M50: 0 | N50: 0 | O50: 0 | P50: 0 | Q50: 0 | R50: 0 | S50: 0 | T50: 0 | U50: 0 | V50: 0 | W50: 0 | X50: 0 | Y50: 101768.15 | Z50: 88233.71 | AA50: 92113.79 | AB50: 151759.22 | AC50: 433874.87 | AD50: 141292.34 | AE50: 142739.99 | AF50: 227477.32 | AG50: 162887.59 | AH50: 174935.83 | AI50: 272848.1 | AJ50: 203251.68 | AK50: 204689.63 | AL50: 244082.42 | AM50: 208895.61 | AN50: 210157.02 | AO50: 274902.09 | AP50: 2468159.62 | AQ50: 211680.15 | AR50: 212773.08 | AS50: 280989.09 | AT50: 216074.95 | AU50: 221522.71 | AV50: 372402.15 | AW50: 361862.02 | AX50: 405491.83 | AY50: 599385.02 | AZ50: 438237.56 | BA50: 443578.11 | BB50: 660560.85 | BC50: 4424557.52 | BD50: 485132.98 | BE50: 491496.83 | BF50: 664810.06 | BG50: 501354.75 | BH50: =AU50*(1+HLOOKUP($BV50,'3.Índices_inflação'!$B$127:$AY$134,6,FALSE)) -> 238458.7631 | BI50: =AV50*(1+HLOOKUP($BV50,'3.Índices_inflação'!$B$127:$AY$134,7,FALSE)) -> 404293.7948 | BJ50: =AW50*(1+HLOOKUP($BV50,'3.Índices_inflação'!$B$127:$AY$134,8,FALSE)) -> 393164.4987 | BM50: =P50 -> 0 | BN50: =AC50 -> 433874.87 | BO50: =AP50 -> 2468159.62 | BP50: =BC50 -> 4424557.52 | BQ50: =SUM(K50:O50,Q50:W50) -> 0 | BR50: =SUM(X50:AB50,AD50:AJ50) -> 1759307.72 | BS50: =SUM(AK50:AO50,AQ50:AW50) -> 3020030.92 | BT50: =SUM(AX50:BB50,BD50:BJ50) -> 5725965.047 | BV50: IPCA
C51: Encargos sobre Empréstimos | D51: 100.76 | E51: 1093.83 | F51: -422.2 | G51: -397.66 | H51: 3857.18 | I51: 546.78 | J51: 1634.5 | K51: 1807.97 | L51: 5923.47 | M51: 98.88 | N51: 1991.11 | O51: -8719.51 | P51: 7515.11 | Q51: 1407.84 | R51: -847.95 | S51: -489.81 | T51: 909.97 | U51: -415.21 | V51: -407.95 | W51: -555.8 | X51: -636.41 | Y51: -424.15 | Z51: 575.44 | AA51: 1995.16 | AB51: -29823.78 | AC51: -28712.65 | AD51: 3525.37 | AE51: -3199.1 | AF51: -45981.78 | AG51: -902.9 | AH51: -1298.1 | AI51: -531.48 | AJ51: -2691.59 | AK51: -1364.47 | AL51: -1071.96 | AM51: -4096.59 | AN51: -2025.28 | AO51: -11751.23 | AP51: -71389.11 | AQ51: -3758.71 | AR51: -56495.75 | AS51: -524.41 | AT51: -955.22 | AU51: -1085.9 | AV51: 54432.27 | AW51: -1109.59 | AX51: -1818.08 | AY51: -1185.14 | AZ51: -1558.27 | BA51: -1583.56 | BB51: -5845.81 | BC51: -21488.17 | BD51: -1719.84 | BE51: -1976.28 | BF51: -1964.62 | BG51: -3121.57 | BH51: =AU51*(1+HLOOKUP($BV51,'3.Índices_inflação'!$B$127:$AY$134,6,FALSE)) -> -1168.920202 | BI51: =AV51*(1+HLOOKUP($BV51,'3.Índices_inflação'!$B$127:$AY$134,7,FALSE)) -> 59093.72167 | BJ51: =AW51*(1+HLOOKUP($BV51,'3.Índices_inflação'!$B$127:$AY$134,8,FALSE)) -> -1205.573871 | BM51: =P51 -> 7515.11 | BN51: =AC51 -> -28712.65 | BO51: =AP51 -> -71389.11 | BP51: =BC51 -> -21488.17 | BQ51: =SUM(K51:O51,Q51:W51) -> 703.01 | BR51: =SUM(X51:AB51,AD51:AJ51) -> -79393.32 | BS51: =SUM(AK51:AO51,AQ51:AW51) -> -29806.84 | BT51: =SUM(AX51:BB51,BD51:BJ51) -> 35946.05759 | BV51: IPCA
C52: Tributos sobre o Lucro | D52: 0 | E52: 0 | F52: 0 | G52: 0 | H52: 0 | I52: 0 | J52: 0 | K52: 0 | L52: 0 | M52: 0 | N52: 0 | O52: 0 | P52: 0 | Q52: 0 | R52: 0 | S52: 0 | T52: 0 | U52: 0 | V52: 0 | W52: 0 | X52: 0 | Y52: 0 | Z52: 0 | AA52: 0 | AB52: 0 | AC52: 0 | AD52: 0 | AE52: 0 | AF52: 0 | AG52: 0 | AH52: 0 | AI52: 0 | AJ52: 0 | AK52: 0 | AL52: 0 | AM52: 0 | AN52: 0 | AO52: 0 | AP52: 0 | AQ52: 0 | AR52: 0 | AS52: 0 | AT52: 0 | AU52: 0 | AV52: 0 | AW52: 0 | AX52: 0 | AY52: 0 | AZ52: 0 | BA52: 0 | BB52: 0 | BC52: 0 | BD52: 11498.83 | BE52: -11498.83 | BF52: 0 | BG52: 0 | BH52: =AVERAGE(BE52,BF52,BG52) -> -3832.943333 | BI52: =AVERAGE(BF52,BG52,BH52) -> -1277.647778 | BJ52: =AVERAGE(BG52,BH52,BI52) -> -1703.53037 | BM52: =P52 -> 0 | BN52: =AC52 -> 0 | BO52: =AP52 -> 0 | BP52: =BC52 -> 0 | BQ52: =SUM(K52:O52,Q52:W52) -> 0 | BR52: =SUM(X52:AB52,AD52:AJ52) -> 0 | BS52: =SUM(AK52:AO52,AQ52:AW52) -> 0 | BT52: =SUM(AX52:BB52,BD52:BJ52) -> -6814.121481 | BV52: IPCA
C53: Total - Custos de Capital | D53: 100.76 | E53: 1093.83 | F53: -422.2 | G53: -397.66 | H53: 3857.18 | I53: 546.78 | J53: 1634.5 | K53: 1807.97 | L53: 5923.47 | M53: 98.88 | N53: 1991.11 | O53: -8719.51 | P53: 7515.11 | Q53: 1407.84 | R53: -847.95 | S53: -489.81 | T53: 909.97 | U53: -415.21 | V53: -407.95 | W53: -555.8 | X53: -636.41 | Y53: 101344 | Z53: 88809.15 | AA53: 94108.95 | AB53: 121935.44 | AC53: 405162.22 | AD53: 144817.71 | AE53: 139540.89 | AF53: 181495.54 | AG53: 161984.69 | AH53: 173637.73 | AI53: 272316.62 | AJ53: 200560.09 | AK53: 203325.16 | AL53: 243010.46 | AM53: 204799.02 | AN53: 208131.74 | AO53: 263150.86 | AP53: 2396770.51 | AQ53: 207921.44 | AR53: 156277.33 | AS53: 280464.68 | AT53: 215119.73 | AU53: 220436.81 | AV53: 426834.42 | AW53: 360752.43 | AX53: 403673.75 | AY53: 598199.88 | AZ53: 436679.29 | BA53: 441994.55 | BB53: 654715.04 | BC53: 4403069.35 | BD53: 494911.97 | BE53: =SUM(BE50:BE52) -> 478021.72 | BF53: 662845.44 | BG53: 498233.18 | BH53: 233456.8996 | BI53: 462109.8687 | BJ53: 390255.3944 | BM53: =SUM(BM50:BM52) -> 7515.11 | BN53: 405162.22 | BO53: 2396770.51 | BP53: 4403069.35 | BQ53: 703.01 | BR53: 1679914.4 | BS53: 2990224.08 | BT53: 5755096.983
C55: Doações | D55: 0 | E55: 0 | F55: 0 | G55: 0 | H55: 0 | I55: 0 | J55: 0 | K55: 0 | L55: 0 | M55: 0 | N55: 0 | O55: 0 | P55: 0 | Q55: 0 | R55: 0 | S55: 0 | T55: 0 | U55: 0 | V55: 0 | W55: 0 | X55: 0 | Y55: 5580.5 | Z55: 1100 | AA55: 0 | AB55: 0 | AC55: 6680.5 | AD55: 0 | AE55: 0 | AF55: 0 | AG55: 0 | AH55: 0 | AI55: 0 | AJ55: 0 | AK55: 0 | AL55: 0 | AM55: 0 | AN55: 0 | AO55: 0 | AP55: 0 | AQ55: 0 | AR55: 0 | AS55: 0 | AT55: 0 | AU55: 0 | AV55: 0 | AW55: 0 | AX55: 0 | AY55: 0 | AZ55: 0 | BA55: 0 | BB55: 0 | BC55: 0 | BD55: 0 | BE55: 0 | BF55: 0 | BG55: 0 | BH55: =AVERAGE(BE55,BF55,BG55) -> 0 | BI55: 0 | BJ55: 0 | BM55: =P55 -> 0 | BN55: =AC55 -> 6680.5 | BO55: =AP55 -> 0 | BP55: =BC55 -> 0 | BQ55: =SUM(K55:O55,Q55:W55) -> 0 | BR55: =SUM(X55:AB55,AD55:AJ55) -> 6680.5 | BS55: =SUM(AK55:AO55,AQ55:AW55) -> 0 | BT55: =SUM(AX55:BB55,BD55:BJ55) -> 0 | BV55: IPCA
C56: Repasse Tarifário a Municípios | D56: 0 | E56: 0 | F56: 0 | G56: 0 | H56: 0 | I56: 0 | J56: 0 | K56: 0 | L56: 0 | M56: 0 | N56: 0 | O56: 0 | P56: 0 | Q56: 0 | R56: 0 | S56: 0 | T56: 0 | U56: 0 | V56: 0 | W56: 0 | X56: 0 | Y56: 0 | Z56: 0 | AA56: 0 | AB56: 0 | AC56: 0 | AD56: 0 | AE56: 0 | AF56: 0 | AG56: 0 | AH56: 0 | AI56: 0 | AJ56: 0 | AK56: 0 | AL56: 0 | AM56: 0 | AN56: 0 | AO56: 0 | AP56: 0 | AQ56: 0 | AR56: 0 | AS56: 0 | AT56: 0 | AU56: 0 | AV56: 0 | AW56: 0 | AX56: 0 | AY56: 37459.13 | AZ56: 8017.71 | BA56: 9514.33 | BB56: 5759.31 | BC56: 60750.48 | BD56: 6361.24 | BE56: 8442.47 | BF56: 7438.2 | BG56: 5435.64 | BH56: 7105.436667 | BI56: 6659.758889 | BJ56: 6400.278519 | BM56: 0 | BN56: 0 | BO56: 0 | BP56: 60750.48 | BQ56: 0 | BR56: 0 | BS56: 0 | BT56: 108593.5041 | BV56: IPCA
C57: Indenizações e Despesas Judiciais | D57: 124642.84 | E57: 2256.68 | F57: -58484.34 | G57: 1769.6 | H57: 43393.06 | I57: 18266.76 | J57: 57818.76 | K57: 48123.16 | L57: 103458.17 | M57: 27645.39 | N57: 71657.16 | O57: 163810.96 | P57: 604358.2 | Q57: 99108.48 | R57: 98259.01 | S57: 50250 | T57: 18183.87 | U57: 114979.92 | V57: 177139.66 | W57: 125864.58 | X57: 594891.26 | Y57: 11430.57 | Z57: 9235.21 | AA57: 53960.59 | AB57: 50478.86 | AC57: 1403782.01 | AD57: 19120.62 | AE57: 11463.17 | AF57: 215705.79 | AG57: 36579.65 | AH57: 52638.41 | AI57: -64024.47 | AJ57: 5764.6 | AK57: 54409.44 | AL57: -19393.55 | AM57: 68169.52 | AN57: 36291.51 | AO57: 5019.42 | AP57: 421744.11 | AQ57: 18492.94 | AR57: 24507.93 | AS57: 88200.12 | AT57: 12720.79 | AU57: 16913.25 | AV57: 7775.52 | AW57: 2443.58 | AX57: 21590.84 | AY57: 261686.44 | AZ57: 5335.9 | BA57: 7902.16 | BB57: -4158.75 | BC57: 463410.72 | BD57: 12363.46 | BE57: 26061.31 | BF57: 71847.65 | BG57: 13281.59 | BH57: 37063.51667 | BI57: 40730.91889 | BJ57: 30358.67519 | BM57: 604358.2 | BN57: 1403782.01 | BO57: 421744.11 | BP57: 463410.72 | BQ57: 1098480.36 | BR57: 997244.26 | BS57: 315550.47 | BT57: 524063.7107 | BV57: IPCA
C58: Multas e Juros | D58: 0 | E58: 0 | F58: 0 | G58: 338.26 | H58: 2985.94 | I58: 8569.11 | J58: 1852.89 | K58: 393.72 | L58: 0 | M58: 877.77 | N58: 1166.09 | O58: 0 | P58: 16183.78 | Q58: 15658.58 | R58: 17.02 | S58: 60615.85 | T58: 0 | U58: 24360.24 | V58: 0 | W58: 0 | X58: 1915.4 | Y58: 0 | Z58: 0 | AA58: 1252.3 | AB58: 135.53 | AC58: 103954.92 | AD58: 34916.91 | AE58: 111418.18 | AF58: 3632.68 | AG58: 4901.98 | AH58: 5141.47 | AI58: 103466.03 | AJ58: 11656.93 | AK58: 39292.77 | AL58: 64254.77 | AM58: 114459.8 | AN58: 81038.27 | AO58: 197406.47 | AP58: 771586.26 | AQ58: 29414.12 | AR58: 151.18 | AS58: 10975.7 | AT58: 2436.9 | AU58: 4831.62 | AV58: 3761.08 | AW58: 2230.11 | AX58: 27135.71 | AY58: 0 | AZ58: 1806.6 | BA58: 0 | BB58: 478.37 | BC58: 83221.39 | BD58: 212.02 | BE58: 3992.33 | BF58: 3815.84 | BG58: 0 | BH58: 2602.723333 | BI58: 2139.521111 | BJ58: 1580.748148 | BM58: 16183.78 | BN58: 103954.92 | BO58: 771586.26 | BP58: 83221.39 | BQ58: 103089.27 | BR58: 278437.41 | BS58: 550252.79 | BT58: 43763.86259 | BV58: IPCA
C59: Operações com a Controladora | D59: 0 | E59: 0 | F59: 0 | G59: 0 | H59: 0 | I59: 0 | J59: 0 | K59: 0 | L59: 0 | M59: 0 | N59: 0 | O59: 0 | P59: 0 | Q59: 0 | R59: 0 | S59: 0 | T59: 0 | U59: 0 | V59: 0 | W59: 0 | X59: 0 | Y59: 0 | Z59: 0 | AA59: 0 | AB59: 0 | AC59: 0 | AD59: 0 | AE59: 0 | AF59: 0 | AG59: 0 | AH59: 0 | AI59: 0 | AJ59: 0 | AK59: 0 | AL59: 1608.72 | AM59: 0 | AN59: 0 | AO59: 0 | AP59: 1608.72 | AQ59: 0 | AR59: 0 | AS59: 0 | AT59: 0 | AU59: 0 | AV59: 0 | AW59: 0 | AX59: 0 | AY59: 0 | AZ59: 167.06 | BA59: 0 | BB59: 29.48 | BC59: 196.54 | BD59: 0 | BE59: 0 | BF59: 0 | BG59: 0 | BH59: 0 | BI59: 0 | BJ59: 0 | BM59: 0 | BN59: 0 | BO59: 1608.72 | BP59: 196.54 | BQ59: 0 | BR59: 0 | BS59: 1608.72 | BT59: 196.54 | BV59: IPCA
C60: Outros não associados aos serv. de água e esgoto | D60: 36 | E60: 70 | F60: 225.4 | G60: 14.89 | H60: 160.4 | I60: 325.6 | J60: 83.43 | K60: 74.16 | L60: 217.9 | M60: 625 | N60: 0 | O60: 595.65 | P60: 2428.43 | Q60: 614.9 | R60: 1578.13 | S60: 440.7 | T60: 1505.8 | U60: 849.26 | V60: 779.02 | W60: 458.05 | X60: 752 | Y60: 434 | Z60: 0 | AA60: 883.7 | AB60: 0 | AC60: 8295.56 | AD60: 0 | AE60: 0 | AF60: 112 | AG60: 0 | AH60: 0 | AI60: 0 | AJ60: 190 | AK60: 486.72 | AL60: 0 | AM60: 0 | AN60: 0 | AO60: 0 | AP60: 788.72 | AQ60: 1000 | AR60: 3767.2 | AS60: 582.4 | AT60: 0 | AU60: 28576.5 | AV60: 5148.6 | AW60: 0 | AX60: 0 | AY60: 0 | AZ60: 0 | BA60: 0 | BB60: 12110.9 | BC60: 51185.6 | BD60: 0 | BE60: 0 | BF60: 9633.15 | BG60: 140 | BH60: 3257.716667 | BI60: 4343.622222 | BJ60: 2580.446296 | BM60: 2428.43 | BN60: 8295.56 | BO60: 788.72 | BP60: 51185.6 | BQ60: 7738.57 | BR60: 2371.7 | BS60: 39561.42 | BT60: 32065.83519 | BV60: IPCA
C61: Total - Glosas | D61: 124678.84 | E61: 2326.68 | F61: -58258.94 | G61: 2122.75 | H61: 46539.4 | I61: 27161.47 | J61: 59755.08 | K61: 48591.04 | L61: 103676.07 | M61: 29148.16 | N61: 72823.25 | O61: 164406.61 | P61: 622970.41 | Q61: 115381.96 | R61: 99854.16 | S61: 111306.55 | T61: 19689.67 | U61: 140189.42 | V61: 177918.68 | W61: 126322.63 | X61: 597558.66 | Y61: 17445.07 | Z61: 10335.21 | AA61: 56096.59 | AB61: 50614.39 | AC61: 1522712.99 | AD61: 54037.53 | AE61: 122881.35 | AF61: 219450.47 | AG61: 41481.63 | AH61: 57779.88 | AI61: 39441.56 | AJ61: 17611.53 | AK61: 94188.93 | AL61: 46469.94 | AM61: 182629.32 | AN61: 117329.78 | AO61: 202425.89 | AP61: 1195727.81 | AQ61: 48907.06 | AR61: 28426.31 | AS61: 99758.22 | AT61: 15157.69 | AU61: 50321.37 | AV61: 16685.2 | AW61: 4673.69 | AX61: 48726.55 | AY61: 299145.57 | AZ61: 15327.27 | BA61: 17416.49 | BB61: 14219.31 | BC61: 658764.73 | BD61: 18936.72 | BE61: =SUM(BE55:BE60) -> 38496.11 | BF61: 92734.84 | BG61: 18857.23 | BH61: 50029.39333 | BI61: 53873.82111 | BJ61: 40920.14815 | BM61: =SUM(BM55:BM60) -> 622970.41 | BN61: 1522712.99 | BO61: 1195727.81 | BP61: 658764.73 | BQ61: 1209308.2 | BR61: 1284733.87 | BS61: 906973.4 | BT61: 708683.4526
C63: Provisões | D63: 49651.59 | E63: 51452.85 | F63: 146142.87 | G63: 89575.2 | H63: -162346.24 | I63: 140281.83 | J63: 122942.39 | K63: 166995.95 | L63: -63384.53 | M63: 98689.66 | N63: 57219.65 | O63: 1043040.36 | P63: 1740261.58 | Q63: 154430.01 | R63: 100769.03 | S63: 76022.25 | T63: 72794.83 | U63: 208693.43 | V63: 174543.79 | W63: 120544.64 | X63: 140747.03 | Y63: 177842.76 | Z63: 94513.09 | AA63: 46300.78 | AB63: 1061159.81 | AC63: 2428361.45 | AD63: -265228.12 | AE63: 46011.29 | AF63: 104191.46 | AG63: 20550.31 | AH63: 85021.6 | AI63: -1440580.49 | AJ63: 31066.92 | AK63: 143120.22 | AL63: 104422.9 | AM63: 139008.11 | AN63: 102625.36 | AO63: 188050.8 | AP63: -741739.64 | AQ63: 172967.25 | AR63: 178776.74 | AS63: 729550.66 | AT63: 232764.07 | AU63: 150430.22 | AV63: 154153.19 | AW63: 197876.01 | AX63: 365920.71 | AY63: 1359181.58 | AZ63: 279989.33 | BA63: 161815.12 | BB63: 643587.46 | BC63: 4627012.34 | BD63: 237398.35 | BE63: 70125.03 | BF63: 209887.52 | BG63: 174463.65 | BH63: =AVERAGE(BE63,BF63,BG63) -> 151492.0667 | BI63: =AVERAGE(BF63,BG63,BH63) -> 178614.4122 | BJ63: =AVERAGE(BG63,BH63,BI63) -> 168190.043 | BM63: =P63 -> 1740261.58 | BN63: =AC63 -> 2428361.45 | BO63: =AP63 -> -741739.64 | BP63: =BC63 -> 4627012.34 | BQ63: =SUM(K63:O63,Q63:W63) -> 2210359.07 | BR63: =SUM(X63:AB63,AD63:AJ63) -> 101596.44 | BS63: =SUM(AK63:AO63,AQ63:AW63) -> 2493745.53 | BT63: =SUM(AX63:BB63,BD63:BJ63) -> 4000665.272 | BV63: IPCA
C64: Baixa de Ativos e Materiais | D64: -4318.6 | E64: -241.48 | F64: 3.57 | G64: 0.65 | H64: 1.65 | I64: 1.64 | J64: 1.76 | K64: 2.04 | L64: 0.73 | M64: 3.09 | N64: 1229.36 | O64: 3.73 | P64: -3311.86 | Q64: 0.77 | R64: 1.56 | S64: 2.41 | T64: 0.99 | U64: 1.79 | V64: 908.14 | W64: 612.03 | X64: 154.46 | Y64: 598.79 | Z64: 0.68 | AA64: 1.66 | AB64: 111.23 | AC64: 2394.51 | AD64: 4836.18 | AE64: 0.59 | AF64: 6.78 | AG64: 2.26 | AH64: 1.34 | AI64: 2.67 | AJ64: 2.42 | AK64: 2.6 | AL64: 2.63 | AM64: 1.38 | AN64: 2.77 | AO64: 5200000.36 | AP64: 5204861.98 | AQ64: 1.45 | AR64: 0.85 | AS64: 157.57 | AT64: 1934.32 | AU64: 153.04 | AV64: -112.74 | AW64: -5.48 | AX64: 45.65 | AY64: -78.61 | AZ64: -585.85 | BA64: -2.4 | BB64: -5200497.35 | BC64: -5198989.55 | BD64: 1.75 | BE64: 891.07 | BF64: -660.05 | BG64: 2.15 | BH64: =AU64*(1+HLOOKUP($BV64,'3.Índices_inflação'!$B$127:$AY$134,6,FALSE)) -> 164.7403515 | BI64: =AV64*(1+HLOOKUP($BV64,'3.Índices_inflação'!$B$127:$AY$134,7,FALSE)) -> -122.3947886 | BJ64: =AW64*(1+HLOOKUP($BV64,'3.Índices_inflação'!$B$127:$AY$134,8,FALSE)) -> -5.954041413 | BM64: =P64 -> -3311.86 | BN64: =AC64 -> 2394.51 | BO64: =AP64 -> 5204861.98 | BP64: =BC64 -> -5198989.55 | BQ64: =SUM(K64:O64,Q64:W64) -> 2766.64 | BR64: =SUM(X64:AB64,AD64:AJ64) -> 5719.06 | BS64: =SUM(AK64:AO64,AQ64:AW64) -> 5202138.75 | BT64: =SUM(AX64:BB64,BD64:BJ64) -> -5200847.248 | BV64: IPCA
C65: Ajustes de Inventário e Outros | D65: -1.31 | E65: -29770.18 | F65: -33.14 | G65: -2.98 | H65: -0.89 | I65: -0.42 | J65: -81.02 | K65: -27958.42 | L65: -0.61 | M65: -0.18 | N65: -0.29 | O65: -3.09 | P65: -57852.53 | Q65: -1.59 | R65: -0.08 | S65: -4.1 | T65: -0.75 | U65: -2.66 | V65: -7.29 | W65: -1.31 | X65: -4 | Y65: -3.93 | Z65: -0.46 | AA65: -0.24 | AB65: -9376.68 | AC65: -9403.09 | AD65: -0.03 | AE65: -1349.28 | AF65: -656.41 | AG65: -78.16 | AH65: -2.51 | AI65: -1.9 | AJ65: -598.62 | AK65: -0.19 | AL65: -2.66 | AM65: -0.24 | AN65: -9.2 | AO65: -4.97 | AP65: -2704.17 | AQ65: -0.2 | AR65: -2.67 | AS65: -32.62 | AT65: -2.92 | AU65: -0.68 | AV65: -1.7 | AW65: -0.88 | AX65: -1.08 | AY65: -1.18 | AZ65: -170.71 | BA65: -2.4 | BB65: -0.47 | BC65: -217.51 | BD65: -0.13 | BE65: -0.36 | BF65: -0.43 | BG65: -0.19 | BH65: =AU65*(1+HLOOKUP($BV65,'3.Índices_inflação'!$B$127:$AY$134,6,FALSE)) -> -0.7319879706 | BI65: =AV65*(1+HLOOKUP($BV65,'3.Índices_inflação'!$B$127:$AY$134,7,FALSE)) -> -1.845584004 | BJ65: =AW65*(1+HLOOKUP($BV65,'3.Índices_inflação'!$B$127:$AY$134,8,FALSE)) -> -0.9561234386 | BM65: =P65 -> -57852.53 | BN65: =AC65 -> -9403.09 | BO65: =AP65 -> -2704.17 | BP65: =BC65 -> -217.51 | BQ65: =SUM(K65:O65,Q65:W65) -> -27980.37 | BR65: =SUM(X65:AB65,AD65:AJ65) -> -12072.22 | BS65: =SUM(AK65:AO65,AQ65:AW65) -> -58.93 | BT65: =SUM(AX65:BB65,BD65:BJ65) -> -180.4836954 | BV65: IPCA
C66: Receita/Custos de Construção | D66: 0 | E66: 0 | F66: 0 | G66: 0 | H66: 0 | I66: 0 | J66: 0 | K66: 0 | L66: 0 | M66: 0 | N66: 0 | O66: 0 | P66: 0 | Q66: 0 | R66: 0 | S66: 0 | T66: 0 | U66: 0 | V66: 0 | W66: 0 | X66: 0 | Y66: 0 | Z66: 0 | AA66: 0 | AB66: 0 | AC66: 0 | AD66: 0 | AE66: 0 | AF66: 9.313225746e-10 | AG66: 0 | AH66: 0 | AI66: 0 | AJ66: 0 | AK66: 0 | AL66: 0 | AM66: 0 | AN66: 0 | AO66: 9.313225746e-10 | AP66: 1.862645149e-09 | AQ66: 0 | AR66: 0 | AS66: 4.656612873e-10 | AT66: 0 | AU66: 0 | AV66: 0 | AW66: 0 | AX66: 0 | AY66: 0 | AZ66: 0 | BA66: 0 | BB66: 0 | BC66: 4.656612873e-10 | BD66: 0 | BE66: 0 | BF66: -2.328306437e-10 | BG66: 0 | BH66: =AU66*(1+HLOOKUP($BV66,'3.Índices_inflação'!$B$127:$AY$134,6,FALSE)) -> 0 | BI66: =AV66*(1+HLOOKUP($BV66,'3.Índices_inflação'!$B$127:$AY$134,7,FALSE)) -> 0 | BJ66: =AW66*(1+HLOOKUP($BV66,'3.Índices_inflação'!$B$127:$AY$134,8,FALSE)) -> 0 | BM66: =P66 -> 0 | BN66: =AC66 -> 0 | BO66: =AP66 -> 1.862645149e-09 | BP66: =BC66 -> 4.656612873e-10 | BQ66: =SUM(K66:O66,Q66:W66) -> 0 | BR66: =SUM(X66:AB66,AD66:AJ66) -> 9.313225746e-10 | BS66: =SUM(AK66:AO66,AQ66:AW66) -> 1.396983862e-09 | BT66: =SUM(AX66:BB66,BD66:BJ66) -> -2.328306437e-10 | BV66: IPCA
C67: Capitalização e ganho de ativos financeiros | D67: 0 | E67: 0 | F67: 0 | G67: 0 | H67: 0 | I67: 0 | J67: 0 | K67: 0 | L67: 0 | M67: 0 | N67: 0 | O67: 0 | P67: 0 | Q67: 0 | R67: 0 | S67: 0 | T67: 0 | U67: 0 | V67: 0 | W67: 0 | X67: 0 | Y67: 0 | Z67: 0 | AA67: 0 | AB67: -291.67 | AC67: -291.67 | AD67: 0 | AE67: 0 | AF67: -34780.31 | AG67: 0 | AH67: 0 | AI67: -24982.6 | AJ67: 0 | AK67: 0 | AL67: -12509.47 | AM67: 0 | AN67: 0 | AO67: -24918.58 | AP67: -97190.96 | AQ67: 0 | AR67: 0 | AS67: -8216.29 | AT67: 0 | AU67: 0 | AV67: -46628.91 | AW67: 0 | AX67: 0 | AY67: -98207.66 | AZ67: 0 | BA67: 0 | BB67: -56090.91 | BC67: -209143.77 | BD67: 0 | BE67: 0 | BF67: -74894.51 | BG67: 0 | BH67: =AVERAGE(BE67,BF67,BG67) -> -24964.83667 | BI67: =AVERAGE(BF67,BG67,BH67) -> -33286.44889 | BJ67: =AVERAGE(BG67,BH67,BI67) -> -19417.09519 | BM67: =P67 -> 0 | BN67: =AC67 -> -291.67 | BO67: =AP67 -> -97190.96 | BP67: =BC67 -> -209143.77 | BQ67: =SUM(K67:O67,Q67:W67) -> 0 | BR67: =SUM(X67:AB67,AD67:AJ67) -> -60054.58 | BS67: =SUM(AK67:AO67,AQ67:AW67) -> -92273.25 | BT67: =SUM(AX67:BB67,BD67:BJ67) -> -306861.4607 | BV67: IPCA
C68: Total - Contas sem efeito nas análises tarifárias | D68: 45331.68 | E68: 21441.19 | F68: 146113.3 | G68: 89572.87 | H68: -162345.48 | I68: 140283.05 | J68: 122863.13 | K68: 139039.57 | L68: -63384.41 | M68: 98692.57 | N68: 58448.72 | O68: 1043041 | P68: 1679097.19 | Q68: 154429.19 | R68: 100770.51 | S68: 76020.56 | T68: 72795.07 | U68: 208692.56 | V68: 175444.64 | W68: 121155.36 | X68: 140897.49 | Y68: 178437.62 | Z68: 94513.31 | AA68: 46302.2 | AB68: 1051602.69 | AC68: 2421061.2 | AD68: -260391.97 | AE68: 44662.6 | AF68: 68761.52 | AG68: 20474.41 | AH68: 85020.43 | AI68: -1465562.32 | AJ68: 30470.72 | AK68: 143122.63 | AL68: 91913.4 | AM68: 139009.25 | AN68: 102618.93 | AO68: 5363127.61 | AP68: 4363227.21 | AQ68: 172968.5 | AR68: 178774.92 | AS68: 721459.32 | AT68: 234695.47 | AU68: 150582.58 | AV68: 107409.84 | AW68: 197869.65 | AX68: 365965.28 | AY68: 1260894.13 | AZ68: 279232.77 | BA68: 161810.32 | BB68: -4613001.27 | BC68: -781338.49 | BD68: 237399.97 | BE68: =SUM(BE63:BE67) -> 71015.74 | BF68: 134332.53 | BG68: 174465.61 | BH68: 126691.2384 | BI68: 145203.723 | BJ68: 148766.0376 | BM68: =SUM(BM63:BM67) -> 1679097.19 | BN68: 2421061.2 | BO68: 4363227.21 | BP68: -781338.49 | BQ68: 2185145.34 | BR68: 35188.7 | BS68: 7603552.1 | BT68: -1507223.921
C71: Resultado do período | D71: 32125.02 | E71: 378562.86 | F71: 881789.4 | G71: 739609.48 | H71: 627943.56 | I71: 756670.07 | J71: 701506.13 | K71: 811214.05 | L71: 691254.41 | M71: 470979.67 | N71: 533215.92 | O71: 1954729.14 | P71: 8579599.71 | Q71: 491057.55 | R71: 480527.44 | S71: 219319.84 | T71: 713593.98 | U71: 987740.92 | V71: 879171.13 | W71: 1482287.13 | X71: 1927708.86 | Y71: 1155116.46 | Z71: 1465436.67 | AA71: 1850699.26 | AB71: 2855416.13 | AC71: 14508075.37 | AD71: 1178355.81 | AE71: 953746.54 | AF71: 1225413.22 | AG71: 903731.26 | AH71: 1218755.06 | AI71: -478764.88 | AJ71: 1686555.88 | AK71: 1541910.87 | AL71: 1016280.69 | AM71: 899026.57 | AN71: 724402.15 | AO71: 7102758.73 | AP71: 17972171.9 | AQ71: 704866.71 | AR71: 1006839.81 | AS71: 2072153.63 | AT71: 850333.47 | AU71: 874734.42 | AV71: 316334.65 | AW71: 624370.88 | AX71: 884924.04 | AY71: 2292340.64 | AZ71: -188290.65 | BA71: 1196629.22 | BB71: -3249019.78 | BC71: 7386217.04 | BD71: -88662.9325 | BE71: =BE11+BE20+BE39+BE48+BE42+BE53+BE61+BE68 -> 723801.9275 | BF71: 1457744.367 | BG71: 885804.0975 | BH71: 825560.3015 | BI71: 802147.2425 | BJ71: 891770.9399 | BM71: =BM11+BM20+BM39+BM48+BM42+BM53+BM61+BM68 -> 44072246.65 | BN71: 53911489.5 | BO71: 62772181.17 | BP71: 47996289.06 | BQ71: 45516160.69 | BR71: 61027652.76 | BS71: 59708149.77 | BT71: 48268108.59
C75: MATERIAIS EM ALMOXARIFADO | D75: 1104888.04 | E75: 1026047.76 | F75: 824653.54 | G75: 615619.97 | H75: 673474.81 | I75: 767245.82 | J75: 778633.45 | K75: 842696.96 | L75: 851322.77 | M75: 927052.5 | N75: 951902.26 | O75: 1016432.39 | P75: 1016432.39 | Q75: 957470.99 | R75: 1210901.51 | S75: 1277666.26 | T75: 1322082.69 | U75: 1323115.73 | V75: 1475779.47 | W75: 1405863.81 | X75: 1400009.88 | Y75: 1381630.09 | Z75: 1423148.6 | AA75: 1834498.5 | AB75: 1745017.08 | AC75: 1745017.08 | AD75: 1729792.65 | AE75: 1851828.04 | AF75: 1874433.14 | AG75: 2058192.66 | AH75: 2117053.6 | AI75: 2175093.99 | AJ75: 2347983.2 | AK75: 2251107.68 | AL75: 2161672.5 | AM75: 2244149.29 | AN75: 2159562.98 | AO75: 1961567.07 | AP75: 1961567.07 | AQ75: 2048721.1 | AR75: 2003104.24 | AS75: 2320485.47 | AT75: 2188244.11 | AU75: 2216219.58 | AV75: 2183441.46 | AW75: 2234330.59 | AX75: 2463760.71 | AY75: 2708942.26 | AZ75: 2746378.85 | BA75: 2622830.7 | BB75: 2462283.58 | BC75: 2462283.58 | BD75: 2766239.82 | BE75: 2936139.75 | BF75: 3158136.97 | BG75: 3600867.95 | BH75: =AVERAGE(BE75,BF75,BG75) -> 3231714.89 | BI75: 3330239.937 | BJ75: 3387607.592 | BL75: (média) | BM75: =P75 -> 1016432.39 | BN75: =AC75 -> 1745017.08 | BO75: =AP75 -> 1961567.07 | BP75: =BC75 -> 2462283.58 | BQ75: =AVERAGE(K75:O75,Q75:W75) -> 1130190.612 | BR75: =AVERAGE(X75:AB75,AD75:AJ75) -> 1828223.453 | BS75: =AVERAGE(AK75:AO75,AQ75:AW75) -> 2164383.839 | BT75: =AVERAGE(AX75:BB75,BD75:BJ75) -> 2951261.917 | BV75: IPCA
C76: ESTOQUES PARA OBRAS / CONVENIOS | D76: 7811358.03 | E76: 7914455.36 | F76: 7662935.83 | G76: 7312682.43 | H76: 6773723.47 | I76: 6730527.92 | J76: 6746250.08 | K76: 7046473.61 | L76: 6551155.73 | M76: 6322386.31 | N76: 6142258.23 | O76: 5702787.03 | P76: 5702787.03 | Q76: 5664395.1 | R76: 5701467.48 | S76: 5640292.07 | T76: 5655796.6 | U76: 5396344.1 | V76: 5368392.05 | W76: 5267880.22 | X76: 5350897.04 | Y76: 5444629.47 | Z76: 5614580.85 | AA76: 6659884.44 | AB76: 6727647.86 | AC76: 6727647.86 | AD76: 6749202.16 | AE76: 6994460.82 | AF76: 7110740.37 | AG76: 7270684.66 | AH76: 7696098.32 | AI76: 7942482.2 | AJ76: 8136484.91 | AK76: 8387321 | AL76: 8026806.62 | AM76: 8213176.66 | AN76: 8364611.35 | AO76: 8785278.89 | AP76: 8785278.89 | AQ76: 8958871.95 | AR76: 9090953.74 | AS76: 9344169.5 | AT76: 9550390.14 | AU76: 9701651.42 | AV76: 9726537.7 | AW76: 9914641.07 | AX76: 9815429.69 | AY76: 9575890.76 | AZ76: 9831986.85 | BA76: 9743904.38 | BB76: 9867555.2 | BC76: 9867555.2 | BD76: 10703419.26 | BE76: 10429866.2 | BF76: 12169345.99 | BG76: 13062278.54 | BH76: 11887163.58 | BI76: 12372929.37 | BJ76: 12440790.5 | BL76: (média) | BM76: =P76 -> 5702787.03 | BN76: =AC76 -> 6727647.86 | BO76: =AP76 -> 8785278.89 | BP76: =BC76 -> 9867555.2 | BQ76: =AVERAGE(K76:O76,Q76:W76) -> 5871635.711 | BR76: =AVERAGE(X76:AB76,AD76:AJ76) -> 6808149.425 | BS76: =AVERAGE(AK76:AO76,AQ76:AW76) -> 9005367.503 | BT76: =AVERAGE(AX76:BB76,BD76:BJ76) -> 10991713.36 | BV76: IPCA
A78: PROCV: | C78: 1 | D78: 67 | E78: 68 | F78: 69 | G78: 70 | H78: 71 | I78: 72 | J78: 73 | K78: 74 | L78: 75 | M78: 76 | N78: 77 | O78: 78 | P78: 79 | Q78: 80 | R78: 81 | S78: 82 | T78: 83 | U78: 84 | V78: 85 | W78: 86 | X78: 87 | Y78: 88 | Z78: 89 | AA78: 90 | AB78: 91 | AC78: 92 | AD78: 93 | AE78: 94 | AF78: 95 | AG78: 96 | AH78: 97 | AI78: 98 | AJ78: 99 | AK78: 100 | AL78: 101 | AM78: 102 | AN78: 103 | AO78: 104 | AP78: 105 | AQ78: 106 | AR78: 107 | AS78: 108 | AT78: 109 | AU78: 110 | AV78: 111 | AW78: 112 | AX78: 113 | AY78: 114 | AZ78: 115 | BA78: 116 | BB78: 117 | BC78: 118 | BD78: 119 | BE78: 120

Sheet 2.Dados_cont_atualizados
A1: ARSAE-MG
A2: Dados contábeis agregados conforme classificação regulatória RTP 2021, atualizados pela inflação acumulada até julho/2021
BM3: Totais atualizados pela inflação até julho/2021 (índices previstos a partir de jun/21) | BV3: Índices inflação | BW3: Auxiliar Proch
C4: Classificação Regulatória | D4: 2017-01-01 | E4: 2017-02-01 | F4: 2017-03-01 | G4: 2017-04-01 | H4: 2017-05-01 | I4: 2017-06-01 | J4: 2017-07-01 | K4: 2017-08-01 | L4: 2017-09-01 | M4: 2017-10-01 | N4: 2017-11-01 | O4: 2017-12-01 | P4: 2017 | Q4: 2018-01-01 | R4: 2018-02-01 | S4: 2018-03-01 | T4: 2018-04-01 | U4: 2018-05-01 | V4: 2018-06-01 | W4: 2018-07-01 | X4: 2018-08-01 | Y4: 2018-09-01 | Z4: 2018-10-01 | AA4: 2018-11-01 | AB4: 2018-12-01 | AC4: 2018 | AD4: 2019-01-01 | AE4: 2019-02-01 | AF4: 2019-03-01 | AG4: 2019-04-01 | AH4: 2019-05-01 | AI4: 2019-06-01 | AJ4: 2019-07-01 | AK4: 2019-08-01 | AL4: 2019-09-01 | AM4: 2019-10-01 | AN4: 2019-11-01 | AO4: 2019-12-01 | AP4: 2019 | AQ4: 2020-01-01 | AR4: 2020-02-01 | AS4: 2020-03-01 | AT4: 2020-04-01 | AU4: 2020-05-01 | AV4: 2020-06-01 | AW4: 2020-07-01 | AX4: 2020-08-01 | AY4: 2020-09-01 | AZ4: 2020-10-01 | BA4: 2020-11-01 | BB4: 2020-12-01 | BC4: 2020 | BD4: 2021-01-01 | BE4: 2021-02-01 | BF4: 2021-03-01 | BG4: 2021-04-01 | BH4: 2021-05-01 | BI4: 2021-06-01 | BJ4: 2021-07-01 | BM4: 2017 | BN4: 2018 | BO4: 2019 | BP4: 2020 | BQ4: PR2017/18 | BR4: PR2018/19 | BS4: PR2019/20 | BT4: PR2020/21
C6: Receita Direta de Água | D6: ='1.Dados_cont_historicos'!D6*(1+VLOOKUP('1.Dados_cont_historicos'!D$4,'3.Índices_inflação'!$A$2:$BA$105,$BW6,FALSE)) -> -2488567.201 | E6: ='1.Dados_cont_historicos'!E6*(1+VLOOKUP('1.Dados_cont_historicos'!E$4,'3.Índices_inflação'!$A$2:$BA$105,$BW6,FALSE)) -> -2281067.005 | F6: ='1.Dados_cont_historicos'!F6*(1+VLOOKUP('1.Dados_cont_historicos'!F$4,'3.Índices_inflação'!$A$2:$BA$105,$BW6,FALSE)) -> -2305516.079 | G6: ='1.Dados_cont_historicos'!G6*(1+VLOOKUP('1.Dados_cont_historicos'!G$4,'3.Índices_inflação'!$A$2:$BA$105,$BW6,FALSE)) -> -2274146.323 | H6: ='1.Dados_cont_historicos'!H6*(1+VLOOKUP('1.Dados_cont_historicos'!H$4,'3.Índices_inflação'!$A$2:$BA$105,$BW6,FALSE)) -> -2347873.939 | I6: ='1.Dados_cont_historicos'!I6*(1+VLOOKUP('1.Dados_cont_historicos'!I$4,'3.Índices_inflação'!$A$2:$BA$105,$BW6,FALSE)) -> -2158098.235 | J6: ='1.Dados_cont_historicos'!J6*(1+VLOOKUP('1.Dados_cont_historicos'!J$4,'3.Índices_inflação'!$A$2:$BA$105,$BW6,FALSE)) -> -2278509.449 | K6: ='1.Dados_cont_historicos'!K6*(1+VLOOKUP('1.Dados_cont_historicos'!K$4,'3.Índices_inflação'!$A$2:$BA$105,$BW6,FALSE)) -> -2262529.151 | L6: ='1.Dados_cont_historicos'!L6*(1+VLOOKUP('1.Dados_cont_historicos'!L$4,'3.Índices_inflação'!$A$2:$BA$105,$BW6,FALSE)) -> -2121925.906 | M6: ='1.Dados_cont_historicos'!M6*(1+VLOOKUP('1.Dados_cont_historicos'!M$4,'3.Índices_inflação'!$A$2:$BA$105,$BW6,FALSE)) -> -2517315.15 | N6: ='1.Dados_cont_historicos'!N6*(1+VLOOKUP('1.Dados_cont_historicos'!N$4,'3.Índices_inflação'!$A$2:$BA$105,$BW6,FALSE)) -> -2516444.294 | O6: ='1.Dados_cont_historicos'!O6*(1+VLOOKUP('1.Dados_cont_historicos'!O$4,'3.Índices_inflação'!$A$2:$BA$105,$BW6,FALSE)) -> -2640331.752 | P6: =SUM(D6:O6) -> -28192324.48 | Q6: ='1.Dados_cont_historicos'!Q6*(1+VLOOKUP('1.Dados_cont_historicos'!Q$4,'3.Índices_inflação'!$A$2:$BA$105,$BW6,FALSE)) -> -2500353.5 | R6: ='1.Dados_cont_historicos'!R6*(1+VLOOKUP('1.Dados_cont_historicos'!R$4,'3.Índices_inflação'!$A$2:$BA$105,$BW6,FALSE)) -> -2380652.47 | S6: ='1.Dados_cont_historicos'!S6*(1+VLOOKUP('1.Dados_cont_historicos'!S$4,'3.Índices_inflação'!$A$2:$BA$105,$BW6,FALSE)) -> -2403812.74 | T6: ='1.Dados_cont_historicos'!T6*(1+VLOOKUP('1.Dados_cont_historicos'!T$4,'3.Índices_inflação'!$A$2:$BA$105,$BW6,FALSE)) -> -2147741.879 | U6: ='1.Dados_cont_historicos'!U6*(1+VLOOKUP('1.Dados_cont_historicos'!U$4,'3.Índices_inflação'!$A$2:$BA$105,$BW6,FALSE)) -> -2211567.105 | V6: ='1.Dados_cont_historicos'!V6*(1+VLOOKUP('1.Dados_cont_historicos'!V$4,'3.Índices_inflação'!$A$2:$BA$105,$BW6,FALSE)) -> -2210393.896 | W6: ='1.Dados_cont_historicos'!W6*(1+VLOOKUP('1.Dados_cont_historicos'!W$4,'3.Índices_inflação'!$A$2:$BA$105,$BW6,FALSE)) -> -2134274.963 | X6: ='1.Dados_cont_historicos'!X6*(1+VLOOKUP('1.Dados_cont_historicos'!X$4,'3.Índices_inflação'!$A$2:$BA$105,$BW6,FALSE)) -> -2157555.068 | Y6: ='1.Dados_cont_historicos'!Y6*(1+VLOOKUP('1.Dados_cont_historicos'!Y$4,'3.Índices_inflação'!$A$2:$BA$105,$BW6,FALSE)) -> -2282376.222 | Z6: ='1.Dados_cont_historicos'!Z6*(1+VLOOKUP('1.Dados_cont_historicos'!Z$4,'3.Índices_inflação'!$A$2:$BA$105,$BW6,FALSE)) -> -2536769.054 | AA6: ='1.Dados_cont_historicos'!AA6*(1+VLOOKUP('1.Dados_cont_historicos'!AA$4,'3.Índices_inflação'!$A$2:$BA$105,$BW6,FALSE)) -> -2231659.112 | AB6: ='1.Dados_cont_historicos'!AB6*(1+VLOOKUP('1.Dados_cont_historicos'!AB$4,'3.Índices_inflação'!$A$2:$BA$105,$BW6,FALSE)) -> -2297677.291 | AC6: =SUM(Q6:AB6) -> -27494833.3 | AD6: ='1.Dados_cont_historicos'!AD6*(1+VLOOKUP('1.Dados_cont_historicos'!AD$4,'3.Índices_inflação'!$A$2:$BA$105,$BW6,FALSE)) -> -1961203.19 | AE6: ='1.Dados_cont_historicos'!AE6*(1+VLOOKUP('1.Dados_cont_historicos'!AE$4,'3.Índices_inflação'!$A$2:$BA$105,$BW6,FALSE)) -> -2316394.874 | AF6: ='1.Dados_cont_historicos'!AF6*(1+VLOOKUP('1.Dados_cont_historicos'!AF$4,'3.Índices_inflação'!$A$2:$BA$105,$BW6,FALSE)) -> -2707751.083 | AG6: ='1.Dados_cont_historicos'!AG6*(1+VLOOKUP('1.Dados_cont_historicos'!AG$4,'3.Índices_inflação'!$A$2:$BA$105,$BW6,FALSE)) -> -2275531.1 | AH6: ='1.Dados_cont_historicos'!AH6*(1+VLOOKUP('1.Dados_cont_historicos'!AH$4,'3.Índices_inflação'!$A$2:$BA$105,$BW6,FALSE)) -> -2380884.808 | AI6: ='1.Dados_cont_historicos'!AI6*(1+VLOOKUP('1.Dados_cont_historicos'!AI$4,'3.Índices_inflação'!$A$2:$BA$105,$BW6,FALSE)) -> -2103497.476 | AJ6: ='1.Dados_cont_historicos'!AJ6*(1+VLOOKUP('1.Dados_cont_historicos'!AJ$4,'3.Índices_inflação'!$A$2:$BA$105,$BW6,FALSE)) -> -2364098.666 | AK6: ='1.Dados_cont_historicos'!AK6*(1+VLOOKUP('1.Dados_cont_historicos'!AK$4,'3.Índices_inflação'!$A$2:$BA$105,$BW6,FALSE)) -> -2393563.585 | AL6: ='1.Dados_cont_historicos'!AL6*(1+VLOOKUP('1.Dados_cont_historicos'!AL$4,'3.Índices_inflação'!$A$2:$BA$105,$BW6,FALSE)) -> -2333873.015 | AM6: ='1.Dados_cont_historicos'!AM6*(1+VLOOKUP('1.Dados_cont_historicos'!AM$4,'3.Índices_inflação'!$A$2:$BA$105,$BW6,FALSE)) -> -2837811.082 | AN6: ='1.Dados_cont_historicos'!AN6*(1+VLOOKUP('1.Dados_cont_historicos'!AN$4,'3.Índices_inflação'!$A$2:$BA$105,$BW6,FALSE)) -> -2496516.524 | AO6: ='1.Dados_cont_historicos'!AO6*(1+VLOOKUP('1.Dados_cont_historicos'!AO$4,'3.Índices_inflação'!$A$2:$BA$105,$BW6,FALSE)) -> -2596396.603 | AP6: =SUM(AD6:AO6) -> -28767522 | AQ6: ='1.Dados_cont_historicos'!AQ6*(1+VLOOKUP('1.Dados_cont_historicos'!AQ$4,'3.Índices_inflação'!$A$2:$BA$105,$BW6,FALSE)) -> -2839670.014 | AR6: ='1.Dados_cont_historicos'!AR6*(1+VLOOKUP('1.Dados_cont_historicos'!AR$4,'3.Índices_inflação'!$A$2:$BA$105,$BW6,FALSE)) -> -2335728.655 | AS6: ='1.Dados_cont_historicos'!AS6*(1+VLOOKUP('1.Dados_cont_historicos'!AS$4,'3.Índices_inflação'!$A$2:$BA$105,$BW6,FALSE)) -> -2176133.53 | AT6: ='1.Dados_cont_historicos'!AT6*(1+VLOOKUP('1.Dados_cont_historicos'!AT$4,'3.Índices_inflação'!$A$2:$BA$105,$BW6,FALSE)) -> -2250177.89 | AU6: ='1.Dados_cont_historicos'!AU6*(1+VLOOKUP('1.Dados_cont_historicos'!AU$4,'3.Índices_inflação'!$A$2:$BA$105,$BW6,FALSE)) -> -2360742.54 | AV6: ='1.Dados_cont_historicos'!AV6*(1+VLOOKUP('1.Dados_cont_historicos'!AV$4,'3.Índices_inflação'!$A$2:$BA$105,$BW6,FALSE)) -> -2296334.94 | AW6: ='1.Dados_cont_historicos'!AW6*(1+VLOOKUP('1.Dados_cont_historicos'!AW$4,'3.Índices_inflação'!$A$2:$BA$105,$BW6,FALSE)) -> -2506905.89 | AX6: ='1.Dados_cont_historicos'!AX6*(1+VLOOKUP('1.Dados_cont_historicos'!AX$4,'3.Índices_inflação'!$A$2:$BA$105,$BW6,FALSE)) -> -2515115.62 | AY6: ='1.Dados_cont_historicos'!AY6*(1+VLOOKUP('1.Dados_cont_historicos'!AY$4,'3.Índices_inflação'!$A$2:$BA$105,$BW6,FALSE)) -> -2740140.2 | AZ6: ='1.Dados_cont_historicos'!AZ6*(1+VLOOKUP('1.Dados_cont_historicos'!AZ$4,'3.Índices_inflação'!$A$2:$BA$105,$BW6,FALSE)) -> -3301935.79 | BA6: ='1.Dados_cont_historicos'!BA6*(1+VLOOKUP('1.Dados_cont_historicos'!BA$4,'3.Índices_inflação'!$A$2:$BA$105,$BW6,FALSE)) -> -2548240.37 | BB6: ='1.Dados_cont_historicos'!BB6*(1+VLOOKUP('1.Dados_cont_historicos'!BB$4,'3.Índices_inflação'!$A$2:$BA$105,$BW6,FALSE)) -> -2446045.35 | BC6: =SUM(AQ6:BB6) -> -30317170.79 | BD6: ='1.Dados_cont_historicos'!BD6*(1+VLOOKUP('1.Dados_cont_historicos'!BD$4,'3.Índices_inflação'!$A$2:$BA$105,$BW6,FALSE)) -> -3275092.62 | BE6: ='1.Dados_cont_historicos'!BE6*(1+VLOOKUP('1.Dados_cont_historicos'!BE$4,'3.Índices_inflação'!$A$2:$BA$105,$BW6,FALSE)) -> -2863065.7 | BF6: ='1.Dados_cont_historicos'!BF6*(1+VLOOKUP('1.Dados_cont_historicos'!BF$4,'3.Índices_inflação'!$A$2:$BA$105,$BW6,FALSE)) -> -2338353.42 | BG6: ='1.Dados_cont_historicos'!BG6*(1+VLOOKUP('1.Dados_cont_historicos'!BG$4,'3.Índices_inflação'!$A$2:$BA$105,$BW6,FALSE)) -> -2543196.49 | BH6: ='1.Dados_cont_historicos'!BH6*(1+VLOOKUP('1.Dados_cont_historicos'!BH$4,'3.Índices_inflação'!$A$2:$BA$105,$BW6,FALSE)) -> -2581538.537 | BI6: ='1.Dados_cont_historicos'!BI6*(1+VLOOKUP('1.Dados_cont_historicos'!BI$4,'3.Índices_inflação'!$A$2:$BA$105,$BW6,FALSE)) -> -2487696.149 | BJ6: ='1.Dados_cont_historicos'!BJ6*(1+VLOOKUP('1.Dados_cont_historicos'!BJ$4,'3.Índices_inflação'!$A$2:$BA$105,$BW6,FALSE)) -> -2537477.059 | BM6: =P6 -> -28192324.48 | BN6: =AC6 -> -27494833.3 | BO6: =AP6 -> -28767522 | BP6: =BC6 -> -30317170.79 | BQ6: =SUM(K6:O6,Q6:W6) -> -28047342.81 | BR6: =SUM(X6:AB6,AD6:AJ6) -> -27615397.94 | BS6: =SUM(AK6:AO6,AQ6:AW6) -> -29423854.27 | BT6: =SUM(AX6:BB6,BD6:BJ6) -> -32177897.3 | BV6: ETM | BW6: 50
C7: Receita Direta de Esgoto | D7: ='1.Dados_cont_historicos'!D7*(1+VLOOKUP('1.Dados_cont_historicos'!D$4,'3.Índices_inflação'!$A$2:$BA$105,$BW7,FALSE)) -> -735683.2202 | E7: ='1.Dados_cont_historicos'!E7*(1+VLOOKUP('1.Dados_cont_historicos'!E$4,'3.Índices_inflação'!$A$2:$BA$105,$BW7,FALSE)) -> -663502.6423 | F7: ='1.Dados_cont_historicos'!F7*(1+VLOOKUP('1.Dados_cont_historicos'!F$4,'3.Índices_inflação'!$A$2:$BA$105,$BW7,FALSE)) -> -709822.9786 | G7: ='1.Dados_cont_historicos'!G7*(1+VLOOKUP('1.Dados_cont_historicos'!G$4,'3.Índices_inflação'!$A$2:$BA$105,$BW7,FALSE)) -> -681690.0813 | H7: ='1.Dados_cont_historicos'!H7*(1+VLOOKUP('1.Dados_cont_historicos'!H$4,'3.Índices_inflação'!$A$2:$BA$105,$BW7,FALSE)) -> -707397.5892 | I7: ='1.Dados_cont_historicos'!I7*(1+VLOOKUP('1.Dados_cont_historicos'!I$4,'3.Índices_inflação'!$A$2:$BA$105,$BW7,FALSE)) -> -657069.0042 | J7: ='1.Dados_cont_historicos'!J7*(1+VLOOKUP('1.Dados_cont_historicos'!J$4,'3.Índices_inflação'!$A$2:$BA$105,$BW7,FALSE)) -> -675299.0789 | K7: ='1.Dados_cont_historicos'!K7*(1+VLOOKUP('1.Dados_cont_historicos'!K$4,'3.Índices_inflação'!$A$2:$BA$105,$BW7,FALSE)) -> -693966.0435 | L7: ='1.Dados_cont_historicos'!L7*(1+VLOOKUP('1.Dados_cont_historicos'!L$4,'3.Índices_inflação'!$A$2:$BA$105,$BW7,FALSE)) -> -697401.8823 | M7: ='1.Dados_cont_historicos'!M7*(1+VLOOKUP('1.Dados_cont_historicos'!M$4,'3.Índices_inflação'!$A$2:$BA$105,$BW7,FALSE)) -> -710061.7087 | N7: ='1.Dados_cont_historicos'!N7*(1+VLOOKUP('1.Dados_cont_historicos'!N$4,'3.Índices_inflação'!$A$2:$BA$105,$BW7,FALSE)) -> -745307.3 | O7: ='1.Dados_cont_historicos'!O7*(1+VLOOKUP('1.Dados_cont_historicos'!O$4,'3.Índices_inflação'!$A$2:$BA$105,$BW7,FALSE)) -> -1103635.918 | P7: =SUM(D7:O7) -> -8780837.447 | Q7: ='1.Dados_cont_historicos'!Q7*(1+VLOOKUP('1.Dados_cont_historicos'!Q$4,'3.Índices_inflação'!$A$2:$BA$105,$BW7,FALSE)) -> -716258.8283 | R7: ='1.Dados_cont_historicos'!R7*(1+VLOOKUP('1.Dados_cont_historicos'!R$4,'3.Índices_inflação'!$A$2:$BA$105,$BW7,FALSE)) -> -678985.4747 | S7: ='1.Dados_cont_historicos'!S7*(1+VLOOKUP('1.Dados_cont_historicos'!S$4,'3.Índices_inflação'!$A$2:$BA$105,$BW7,FALSE)) -> -700049.0652 | T7: ='1.Dados_cont_historicos'!T7*(1+VLOOKUP('1.Dados_cont_historicos'!T$4,'3.Índices_inflação'!$A$2:$BA$105,$BW7,FALSE)) -> -593535.1959 | U7: ='1.Dados_cont_historicos'!U7*(1+VLOOKUP('1.Dados_cont_historicos'!U$4,'3.Índices_inflação'!$A$2:$BA$105,$BW7,FALSE)) -> -650041.8058 | V7: ='1.Dados_cont_historicos'!V7*(1+VLOOKUP('1.Dados_cont_historicos'!V$4,'3.Índices_inflação'!$A$2:$BA$105,$BW7,FALSE)) -> -666673.8552 | W7: ='1.Dados_cont_historicos'!W7*(1+VLOOKUP('1.Dados_cont_historicos'!W$4,'3.Índices_inflação'!$A$2:$BA$105,$BW7,FALSE)) -> -611868.5802 | X7: ='1.Dados_cont_historicos'!X7*(1+VLOOKUP('1.Dados_cont_historicos'!X$4,'3.Índices_inflação'!$A$2:$BA$105,$BW7,FALSE)) -> -652084.6987 | Y7: ='1.Dados_cont_historicos'!Y7*(1+VLOOKUP('1.Dados_cont_historicos'!Y$4,'3.Índices_inflação'!$A$2:$BA$105,$BW7,FALSE)) -> -683032.873 | Z7: ='1.Dados_cont_historicos'!Z7*(1+VLOOKUP('1.Dados_cont_historicos'!Z$4,'3.Índices_inflação'!$A$2:$BA$105,$BW7,FALSE)) -> -751167.1811 | AA7: ='1.Dados_cont_historicos'!AA7*(1+VLOOKUP('1.Dados_cont_historicos'!AA$4,'3.Índices_inflação'!$A$2:$BA$105,$BW7,FALSE)) -> -690654.6474 | AB7: ='1.Dados_cont_historicos'!AB7*(1+VLOOKUP('1.Dados_cont_historicos'!AB$4,'3.Índices_inflação'!$A$2:$BA$105,$BW7,FALSE)) -> -793612.8706 | AC7: =SUM(Q7:AB7) -> -8187965.076 | AD7: ='1.Dados_cont_historicos'!AD7*(1+VLOOKUP('1.Dados_cont_historicos'!AD$4,'3.Índices_inflação'!$A$2:$BA$105,$BW7,FALSE)) -> -574214.0161 | AE7: ='1.Dados_cont_historicos'!AE7*(1+VLOOKUP('1.Dados_cont_historicos'!AE$4,'3.Índices_inflação'!$A$2:$BA$105,$BW7,FALSE)) -> -679849.0612 | AF7: ='1.Dados_cont_historicos'!AF7*(1+VLOOKUP('1.Dados_cont_historicos'!AF$4,'3.Índices_inflação'!$A$2:$BA$105,$BW7,FALSE)) -> -806348.9149 | AG7: ='1.Dados_cont_historicos'!AG7*(1+VLOOKUP('1.Dados_cont_historicos'!AG$4,'3.Índices_inflação'!$A$2:$BA$105,$BW7,FALSE)) -> -674376.3102 | AH7: ='1.Dados_cont_historicos'!AH7*(1+VLOOKUP('1.Dados_cont_historicos'!AH$4,'3.Índices_inflação'!$A$2:$BA$105,$BW7,FALSE)) -> -709423.1878 | AI7: ='1.Dados_cont_historicos'!AI7*(1+VLOOKUP('1.Dados_cont_historicos'!AI$4,'3.Índices_inflação'!$A$2:$BA$105,$BW7,FALSE)) -> -540831.89 | AJ7: ='1.Dados_cont_historicos'!AJ7*(1+VLOOKUP('1.Dados_cont_historicos'!AJ$4,'3.Índices_inflação'!$A$2:$BA$105,$BW7,FALSE)) -> -660209.2584 | AK7: ='1.Dados_cont_historicos'!AK7*(1+VLOOKUP('1.Dados_cont_historicos'!AK$4,'3.Índices_inflação'!$A$2:$BA$105,$BW7,FALSE)) -> -665484.9342 | AL7: ='1.Dados_cont_historicos'!AL7*(1+VLOOKUP('1.Dados_cont_historicos'!AL$4,'3.Índices_inflação'!$A$2:$BA$105,$BW7,FALSE)) -> -670166.2179 | AM7: ='1.Dados_cont_historicos'!AM7*(1+VLOOKUP('1.Dados_cont_historicos'!AM$4,'3.Índices_inflação'!$A$2:$BA$105,$BW7,FALSE)) -> -814675.2227 | AN7: ='1.Dados_cont_historicos'!AN7*(1+VLOOKUP('1.Dados_cont_historicos'!AN$4,'3.Índices_inflação'!$A$2:$BA$105,$BW7,FALSE)) -> -700992.1347 | AO7: ='1.Dados_cont_historicos'!AO7*(1+VLOOKUP('1.Dados_cont_historicos'!AO$4,'3.Índices_inflação'!$A$2:$BA$105,$BW7,FALSE)) -> -714318.1838 | AP7: =SUM(AD7:AO7) -> -8210889.332 | AQ7: ='1.Dados_cont_historicos'!AQ7*(1+VLOOKUP('1.Dados_cont_historicos'!AQ$4,'3.Índices_inflação'!$A$2:$BA$105,$BW7,FALSE)) -> -787224.1432 | AR7: ='1.Dados_cont_historicos'!AR7*(1+VLOOKUP('1.Dados_cont_historicos'!AR$4,'3.Índices_inflação'!$A$2:$BA$105,$BW7,FALSE)) -> -689505.1513 | AS7: ='1.Dados_cont_historicos'!AS7*(1+VLOOKUP('1.Dados_cont_historicos'!AS$4,'3.Índices_inflação'!$A$2:$BA$105,$BW7,FALSE)) -> -627503.85 | AT7: ='1.Dados_cont_historicos'!AT7*(1+VLOOKUP('1.Dados_cont_historicos'!AT$4,'3.Índices_inflação'!$A$2:$BA$105,$BW7,FALSE)) -> -616986.52 | AU7: ='1.Dados_cont_historicos'!AU7*(1+VLOOKUP('1.Dados_cont_historicos'!AU$4,'3.Índices_inflação'!$A$2:$BA$105,$BW7,FALSE)) -> -654524.97 | AV7: ='1.Dados_cont_historicos'!AV7*(1+VLOOKUP('1.Dados_cont_historicos'!AV$4,'3.Índices_inflação'!$A$2:$BA$105,$BW7,FALSE)) -> -667991.15 | AW7: ='1.Dados_cont_historicos'!AW7*(1+VLOOKUP('1.Dados_cont_historicos'!AW$4,'3.Índices_inflação'!$A$2:$BA$105,$BW7,FALSE)) -> -749802 | AX7: ='1.Dados_cont_historicos'!AX7*(1+VLOOKUP('1.Dados_cont_historicos'!AX$4,'3.Índices_inflação'!$A$2:$BA$105,$BW7,FALSE)) -> -669697.81 | AY7: ='1.Dados_cont_historicos'!AY7*(1+VLOOKUP('1.Dados_cont_historicos'!AY$4,'3.Índices_inflação'!$A$2:$BA$105,$BW7,FALSE)) -> -772293.88 | AZ7: ='1.Dados_cont_historicos'!AZ7*(1+VLOOKUP('1.Dados_cont_historicos'!AZ$4,'3.Índices_inflação'!$A$2:$BA$105,$BW7,FALSE)) -> -1005521.81 | BA7: ='1.Dados_cont_historicos'!BA7*(1+VLOOKUP('1.Dados_cont_historicos'!BA$4,'3.Índices_inflação'!$A$2:$BA$105,$BW7,FALSE)) -> -734812.93 | BB7: ='1.Dados_cont_historicos'!BB7*(1+VLOOKUP('1.Dados_cont_historicos'!BB$4,'3.Índices_inflação'!$A$2:$BA$105,$BW7,FALSE)) -> -775572.02 | BC7: =SUM(AQ7:BB7) -> -8751436.235 | BD7: ='1.Dados_cont_historicos'!BD7*(1+VLOOKUP('1.Dados_cont_historicos'!BD$4,'3.Índices_inflação'!$A$2:$BA$105,$BW7,FALSE)) -> -934395.07 | BE7: ='1.Dados_cont_historicos'!BE7*(1+VLOOKUP('1.Dados_cont_historicos'!BE$4,'3.Índices_inflação'!$A$2:$BA$105,$BW7,FALSE)) -> -790386 | BF7: ='1.Dados_cont_historicos'!BF7*(1+VLOOKUP('1.Dados_cont_historicos'!BF$4,'3.Índices_inflação'!$A$2:$BA$105,$BW7,FALSE)) -> -722480.72 | BG7: ='1.Dados_cont_historicos'!BG7*(1+VLOOKUP('1.Dados_cont_historicos'!BG$4,'3.Índices_inflação'!$A$2:$BA$105,$BW7,FALSE)) -> -845116.98 | BH7: ='1.Dados_cont_historicos'!BH7*(1+VLOOKUP('1.Dados_cont_historicos'!BH$4,'3.Índices_inflação'!$A$2:$BA$105,$BW7,FALSE)) -> -785994.5667 | BI7: ='1.Dados_cont_historicos'!BI7*(1+VLOOKUP('1.Dados_cont_historicos'!BI$4,'3.Índices_inflação'!$A$2:$BA$105,$BW7,FALSE)) -> -784530.7556 | BJ7: ='1.Dados_cont_historicos'!BJ7*(1+VLOOKUP('1.Dados_cont_historicos'!BJ$4,'3.Índices_inflação'!$A$2:$BA$105,$BW7,FALSE)) -> -805214.1007 | BM7: =P7 -> -8780837.447 | BN7: =AC7 -> -8187965.076 | BO7: =AP7 -> -8210889.332 | BP7: =BC7 -> -8751436.235 | BQ7: =SUM(K7:O7,Q7:W7) -> -8567785.657 | BR7: =SUM(X7:AB7,AD7:AJ7) -> -8215804.909 | BS7: =SUM(AK7:AO7,AQ7:AW7) -> -8359174.478 | BT7: =SUM(AX7:BB7,BD7:BJ7) -> -9626016.643 | BV7: ETM | BW7: 50
C8: Receita Direta de Água - Devoluções | D8: ='1.Dados_cont_historicos'!D8*(1+VLOOKUP('1.Dados_cont_historicos'!D$4,'3.Índices_inflação'!$A$2:$BA$105,$BW8,FALSE)) -> 1021.902673 | E8: ='1.Dados_cont_historicos'!E8*(1+VLOOKUP('1.Dados_cont_historicos'!E$4,'3.Índices_inflação'!$A$2:$BA$105,$BW8,FALSE)) -> 550.625587 | F8: ='1.Dados_cont_historicos'!F8*(1+VLOOKUP('1.Dados_cont_historicos'!F$4,'3.Índices_inflação'!$A$2:$BA$105,$BW8,FALSE)) -> 509.5044571 | G8: ='1.Dados_cont_historicos'!G8*(1+VLOOKUP('1.Dados_cont_historicos'!G$4,'3.Índices_inflação'!$A$2:$BA$105,$BW8,FALSE)) -> 573.1806822 | H8: ='1.Dados_cont_historicos'!H8*(1+VLOOKUP('1.Dados_cont_historicos'!H$4,'3.Índices_inflação'!$A$2:$BA$105,$BW8,FALSE)) -> 693.3528235 | I8: ='1.Dados_cont_historicos'!I8*(1+VLOOKUP('1.Dados_cont_historicos'!I$4,'3.Índices_inflação'!$A$2:$BA$105,$BW8,FALSE)) -> 1093.489409 | J8: ='1.Dados_cont_historicos'!J8*(1+VLOOKUP('1.Dados_cont_historicos'!J$4,'3.Índices_inflação'!$A$2:$BA$105,$BW8,FALSE)) -> 855.8901406 | K8: ='1.Dados_cont_historicos'!K8*(1+VLOOKUP('1.Dados_cont_historicos'!K$4,'3.Índices_inflação'!$A$2:$BA$105,$BW8,FALSE)) -> 285.2651617 | L8: ='1.Dados_cont_historicos'!L8*(1+VLOOKUP('1.Dados_cont_historicos'!L$4,'3.Índices_inflação'!$A$2:$BA$105,$BW8,FALSE)) -> 289.2542223 | M8: ='1.Dados_cont_historicos'!M8*(1+VLOOKUP('1.Dados_cont_historicos'!M$4,'3.Índices_inflação'!$A$2:$BA$105,$BW8,FALSE)) -> -388.6942204 | N8: ='1.Dados_cont_historicos'!N8*(1+VLOOKUP('1.Dados_cont_historicos'!N$4,'3.Índices_inflação'!$A$2:$BA$105,$BW8,FALSE)) -> 238.170538 | O8: ='1.Dados_cont_historicos'!O8*(1+VLOOKUP('1.Dados_cont_historicos'!O$4,'3.Índices_inflação'!$A$2:$BA$105,$BW8,FALSE)) -> 389.6093692 | P8: 6111.550843 | Q8: ='1.Dados_cont_historicos'!Q8*(1+VLOOKUP('1.Dados_cont_historicos'!Q$4,'3.Índices_inflação'!$A$2:$BA$105,$BW8,FALSE)) -> 296.1787729 | R8: ='1.Dados_cont_historicos'!R8*(1+VLOOKUP('1.Dados_cont_historicos'!R$4,'3.Índices_inflação'!$A$2:$BA$105,$BW8,FALSE)) -> 380.250447 | S8: ='1.Dados_cont_historicos'!S8*(1+VLOOKUP('1.Dados_cont_historicos'!S$4,'3.Índices_inflação'!$A$2:$BA$105,$BW8,FALSE)) -> 516.6564332 | T8: ='1.Dados_cont_historicos'!T8*(1+VLOOKUP('1.Dados_cont_historicos'!T$4,'3.Índices_inflação'!$A$2:$BA$105,$BW8,FALSE)) -> 603.1441002 | U8: ='1.Dados_cont_historicos'!U8*(1+VLOOKUP('1.Dados_cont_historicos'!U$4,'3.Índices_inflação'!$A$2:$BA$105,$BW8,FALSE)) -> 812.4813485 | V8: ='1.Dados_cont_historicos'!V8*(1+VLOOKUP('1.Dados_cont_historicos'!V$4,'3.Índices_inflação'!$A$2:$BA$105,$BW8,FALSE)) -> 600.142412 | W8: ='1.Dados_cont_historicos'!W8*(1+VLOOKUP('1.Dados_cont_historicos'!W$4,'3.Índices_inflação'!$A$2:$BA$105,$BW8,FALSE)) -> 259.4752031 | X8: ='1.Dados_cont_historicos'!X8*(1+VLOOKUP('1.Dados_cont_historicos'!X$4,'3.Índices_inflação'!$A$2:$BA$105,$BW8,FALSE)) -> 14762.35147 | Y8: ='1.Dados_cont_historicos'!Y8*(1+VLOOKUP('1.Dados_cont_historicos'!Y$4,'3.Índices_inflação'!$A$2:$BA$105,$BW8,FALSE)) -> 7856.04037 | Z8: ='1.Dados_cont_historicos'!Z8*(1+VLOOKUP('1.Dados_cont_historicos'!Z$4,'3.Índices_inflação'!$A$2:$BA$105,$BW8,FALSE)) -> 1612.162815 | AA8: ='1.Dados_cont_historicos'!AA8*(1+VLOOKUP('1.Dados_cont_historicos'!AA$4,'3.Índices_inflação'!$A$2:$BA$105,$BW8,FALSE)) -> 623.5214145 | AB8: ='1.Dados_cont_historicos'!AB8*(1+VLOOKUP('1.Dados_cont_historicos'!AB$4,'3.Índices_inflação'!$A$2:$BA$105,$BW8,FALSE)) -> 560.2297203 | AC8: 28882.6345 | AD8: ='1.Dados_cont_historicos'!AD8*(1+VLOOKUP('1.Dados_cont_historicos'!AD$4,'3.Índices_inflação'!$A$2:$BA$105,$BW8,FALSE)) -> 564.9844938 | AE8: ='1.Dados_cont_historicos'!AE8*(1+VLOOKUP('1.Dados_cont_historicos'!AE$4,'3.Índices_inflação'!$A$2:$BA$105,$BW8,FALSE)) -> 1167.068204 | AF8: ='1.Dados_cont_historicos'!AF8*(1+VLOOKUP('1.Dados_cont_historicos'!AF$4,'3.Índices_inflação'!$A$2:$BA$105,$BW8,FALSE)) -> 665.5808488 | AG8: ='1.Dados_cont_historicos'!AG8*(1+VLOOKUP('1.Dados_cont_historicos'!AG$4,'3.Índices_inflação'!$A$2:$BA$105,$BW8,FALSE)) -> 576.1038084 | AH8: ='1.Dados_cont_historicos'!AH8*(1+VLOOKUP('1.Dados_cont_historicos'!AH$4,'3.Índices_inflação'!$A$2:$BA$105,$BW8,FALSE)) -> 548.9221006 | AI8: ='1.Dados_cont_historicos'!AI8*(1+VLOOKUP('1.Dados_cont_historicos'!AI$4,'3.Índices_inflação'!$A$2:$BA$105,$BW8,FALSE)) -> 407.5584092 | AJ8: ='1.Dados_cont_historicos'!AJ8*(1+VLOOKUP('1.Dados_cont_historicos'!AJ$4,'3.Índices_inflação'!$A$2:$BA$105,$BW8,FALSE)) -> 173403.4005 | AK8: ='1.Dados_cont_historicos'!AK8*(1+VLOOKUP('1.Dados_cont_historicos'!AK$4,'3.Índices_inflação'!$A$2:$BA$105,$BW8,FALSE)) -> 39341.72328 | AL8: ='1.Dados_cont_historicos'!AL8*(1+VLOOKUP('1.Dados_cont_historicos'!AL$4,'3.Índices_inflação'!$A$2:$BA$105,$BW8,FALSE)) -> 3789.669311 | AM8: ='1.Dados_cont_historicos'!AM8*(1+VLOOKUP('1.Dados_cont_historicos'!AM$4,'3.Índices_inflação'!$A$2:$BA$105,$BW8,FALSE)) -> 2997.439052 | AN8: ='1.Dados_cont_historicos'!AN8*(1+VLOOKUP('1.Dados_cont_historicos'!AN$4,'3.Índices_inflação'!$A$2:$BA$105,$BW8,FALSE)) -> 2145.870947 | AO8: ='1.Dados_cont_historicos'!AO8*(1+VLOOKUP('1.Dados_cont_historicos'!AO$4,'3.Índices_inflação'!$A$2:$BA$105,$BW8,FALSE)) -> 2570.16058 | AP8: 228178.4816 | AQ8: ='1.Dados_cont_historicos'!AQ8*(1+VLOOKUP('1.Dados_cont_historicos'!AQ$4,'3.Índices_inflação'!$A$2:$BA$105,$BW8,FALSE)) -> 730.2902431 | AR8: ='1.Dados_cont_historicos'!AR8*(1+VLOOKUP('1.Dados_cont_historicos'!AR$4,'3.Índices_inflação'!$A$2:$BA$105,$BW8,FALSE)) -> 2139.579756 | AS8: ='1.Dados_cont_historicos'!AS8*(1+VLOOKUP('1.Dados_cont_historicos'!AS$4,'3.Índices_inflação'!$A$2:$BA$105,$BW8,FALSE)) -> 728 | AT8: ='1.Dados_cont_historicos'!AT8*(1+VLOOKUP('1.Dados_cont_historicos'!AT$4,'3.Índices_inflação'!$A$2:$BA$105,$BW8,FALSE)) -> 570.03 | AU8: ='1.Dados_cont_historicos'!AU8*(1+VLOOKUP('1.Dados_cont_historicos'!AU$4,'3.Índices_inflação'!$A$2:$BA$105,$BW8,FALSE)) -> 539.53 | AV8: ='1.Dados_cont_historicos'!AV8*(1+VLOOKUP('1.Dados_cont_historicos'!AV$4,'3.Índices_inflação'!$A$2:$BA$105,$BW8,FALSE)) -> 894.73 | AW8: ='1.Dados_cont_historicos'!AW8*(1+VLOOKUP('1.Dados_cont_historicos'!AW$4,'3.Índices_inflação'!$A$2:$BA$105,$BW8,FALSE)) -> 791.16 | AX8: ='1.Dados_cont_historicos'!AX8*(1+VLOOKUP('1.Dados_cont_historicos'!AX$4,'3.Índices_inflação'!$A$2:$BA$105,$BW8,FALSE)) -> 580.75 | AY8: ='1.Dados_cont_historicos'!AY8*(1+VLOOKUP('1.Dados_cont_historicos'!AY$4,'3.Índices_inflação'!$A$2:$BA$105,$BW8,FALSE)) -> 945.35 | AZ8: ='1.Dados_cont_historicos'!AZ8*(1+VLOOKUP('1.Dados_cont_historicos'!AZ$4,'3.Índices_inflação'!$A$2:$BA$105,$BW8,FALSE)) -> 719.24 | BA8: ='1.Dados_cont_historicos'!BA8*(1+VLOOKUP('1.Dados_cont_historicos'!BA$4,'3.Índices_inflação'!$A$2:$BA$105,$BW8,FALSE)) -> 428.71 | BB8: ='1.Dados_cont_historicos'!BB8*(1+VLOOKUP('1.Dados_cont_historicos'!BB$4,'3.Índices_inflação'!$A$2:$BA$105,$BW8,FALSE)) -> 881.72 | BC8: 9949.089999 | BD8: ='1.Dados_cont_historicos'!BD8*(1+VLOOKUP('1.Dados_cont_historicos'!BD$4,'3.Índices_inflação'!$A$2:$BA$105,$BW8,FALSE)) -> 743.11 | BE8: ='1.Dados_cont_historicos'!BE8*(1+VLOOKUP('1.Dados_cont_historicos'!BE$4,'3.Índices_inflação'!$A$2:$BA$105,$BW8,FALSE)) -> 692.76 | BF8: ='1.Dados_cont_historicos'!BF8*(1+VLOOKUP('1.Dados_cont_historicos'!BF$4,'3.Índices_inflação'!$A$2:$BA$105,$BW8,FALSE)) -> 522.03 | BG8: ='1.Dados_cont_historicos'!BG8*(1+VLOOKUP('1.Dados_cont_historicos'!BG$4,'3.Índices_inflação'!$A$2:$BA$105,$BW8,FALSE)) -> 783.28 | BH8: ='1.Dados_cont_historicos'!BH8*(1+VLOOKUP('1.Dados_cont_historicos'!BH$4,'3.Índices_inflação'!$A$2:$BA$105,$BW8,FALSE)) -> 666.0233333 | BI8: ='1.Dados_cont_historicos'!BI8*(1+VLOOKUP('1.Dados_cont_historicos'!BI$4,'3.Índices_inflação'!$A$2:$BA$105,$BW8,FALSE)) -> 657.1111111 | BJ8: ='1.Dados_cont_historicos'!BJ8*(1+VLOOKUP('1.Dados_cont_historicos'!BJ$4,'3.Índices_inflação'!$A$2:$BA$105,$BW8,FALSE)) -> 702.1381481 | BM8: 6111.550843 | BN8: 28882.6345 | BO8: 228178.4816 | BP8: 9949.089999 | BQ8: 4281.933788 | BR8: 202747.9242 | BS8: 57238.18317 | BT8: 8322.222593 | BV8: ETM | BW8: 50
C9: Receita Direta de Esgoto - Devoluções | D9: ='1.Dados_cont_historicos'!D9*(1+VLOOKUP('1.Dados_cont_historicos'!D$4,'3.Índices_inflação'!$A$2:$BA$105,$BW9,FALSE)) -> 904.7054248 | E9: ='1.Dados_cont_historicos'!E9*(1+VLOOKUP('1.Dados_cont_historicos'!E$4,'3.Índices_inflação'!$A$2:$BA$105,$BW9,FALSE)) -> 143.9307158 | F9: ='1.Dados_cont_historicos'!F9*(1+VLOOKUP('1.Dados_cont_historicos'!F$4,'3.Índices_inflação'!$A$2:$BA$105,$BW9,FALSE)) -> 212.1774579 | G9: ='1.Dados_cont_historicos'!G9*(1+VLOOKUP('1.Dados_cont_historicos'!G$4,'3.Índices_inflação'!$A$2:$BA$105,$BW9,FALSE)) -> 3351.176015 | H9: ='1.Dados_cont_historicos'!H9*(1+VLOOKUP('1.Dados_cont_historicos'!H$4,'3.Índices_inflação'!$A$2:$BA$105,$BW9,FALSE)) -> 3829.646933 | I9: ='1.Dados_cont_historicos'!I9*(1+VLOOKUP('1.Dados_cont_historicos'!I$4,'3.Índices_inflação'!$A$2:$BA$105,$BW9,FALSE)) -> 3046.519962 | J9: ='1.Dados_cont_historicos'!J9*(1+VLOOKUP('1.Dados_cont_historicos'!J$4,'3.Índices_inflação'!$A$2:$BA$105,$BW9,FALSE)) -> 2689.465232 | K9: ='1.Dados_cont_historicos'!K9*(1+VLOOKUP('1.Dados_cont_historicos'!K$4,'3.Índices_inflação'!$A$2:$BA$105,$BW9,FALSE)) -> 1909.840521 | L9: ='1.Dados_cont_historicos'!L9*(1+VLOOKUP('1.Dados_cont_historicos'!L$4,'3.Índices_inflação'!$A$2:$BA$105,$BW9,FALSE)) -> 384.4237429 | M9: ='1.Dados_cont_historicos'!M9*(1+VLOOKUP('1.Dados_cont_historicos'!M$4,'3.Índices_inflação'!$A$2:$BA$105,$BW9,FALSE)) -> 671.6948498 | N9: ='1.Dados_cont_historicos'!N9*(1+VLOOKUP('1.Dados_cont_historicos'!N$4,'3.Índices_inflação'!$A$2:$BA$105,$BW9,FALSE)) -> 350.4654025 | O9: ='1.Dados_cont_historicos'!O9*(1+VLOOKUP('1.Dados_cont_historicos'!O$4,'3.Índices_inflação'!$A$2:$BA$105,$BW9,FALSE)) -> 735.889491 | P9: 18229.93575 | Q9: ='1.Dados_cont_historicos'!Q9*(1+VLOOKUP('1.Dados_cont_historicos'!Q$4,'3.Índices_inflação'!$A$2:$BA$105,$BW9,FALSE)) -> 206.3477621 | R9: ='1.Dados_cont_historicos'!R9*(1+VLOOKUP('1.Dados_cont_historicos'!R$4,'3.Índices_inflação'!$A$2:$BA$105,$BW9,FALSE)) -> 527.6992292 | S9: ='1.Dados_cont_historicos'!S9*(1+VLOOKUP('1.Dados_cont_historicos'!S$4,'3.Índices_inflação'!$A$2:$BA$105,$BW9,FALSE)) -> 777.132199 | T9: ='1.Dados_cont_historicos'!T9*(1+VLOOKUP('1.Dados_cont_historicos'!T$4,'3.Índices_inflação'!$A$2:$BA$105,$BW9,FALSE)) -> -1363.071501 | U9: ='1.Dados_cont_historicos'!U9*(1+VLOOKUP('1.Dados_cont_historicos'!U$4,'3.Índices_inflação'!$A$2:$BA$105,$BW9,FALSE)) -> 4604.394496 | V9: ='1.Dados_cont_historicos'!V9*(1+VLOOKUP('1.Dados_cont_historicos'!V$4,'3.Índices_inflação'!$A$2:$BA$105,$BW9,FALSE)) -> 904.9113821 | W9: ='1.Dados_cont_historicos'!W9*(1+VLOOKUP('1.Dados_cont_historicos'!W$4,'3.Índices_inflação'!$A$2:$BA$105,$BW9,FALSE)) -> 668.3271021 | X9: ='1.Dados_cont_historicos'!X9*(1+VLOOKUP('1.Dados_cont_historicos'!X$4,'3.Índices_inflação'!$A$2:$BA$105,$BW9,FALSE)) -> 1488.959376 | Y9: ='1.Dados_cont_historicos'!Y9*(1+VLOOKUP('1.Dados_cont_historicos'!Y$4,'3.Índices_inflação'!$A$2:$BA$105,$BW9,FALSE)) -> 1957.601 | Z9: ='1.Dados_cont_historicos'!Z9*(1+VLOOKUP('1.Dados_cont_historicos'!Z$4,'3.Índices_inflação'!$A$2:$BA$105,$BW9,FALSE)) -> 1326.514355 | AA9: ='1.Dados_cont_historicos'!AA9*(1+VLOOKUP('1.Dados_cont_historicos'!AA$4,'3.Índices_inflação'!$A$2:$BA$105,$BW9,FALSE)) -> 781.3296817 | AB9: ='1.Dados_cont_historicos'!AB9*(1+VLOOKUP('1.Dados_cont_historicos'!AB$4,'3.Índices_inflação'!$A$2:$BA$105,$BW9,FALSE)) -> 837.507619 | AC9: 12717.6527 | AD9: ='1.Dados_cont_historicos'!AD9*(1+VLOOKUP('1.Dados_cont_historicos'!AD$4,'3.Índices_inflação'!$A$2:$BA$105,$BW9,FALSE)) -> -937.0530607 | AE9: ='1.Dados_cont_historicos'!AE9*(1+VLOOKUP('1.Dados_cont_historicos'!AE$4,'3.Índices_inflação'!$A$2:$BA$105,$BW9,FALSE)) -> 1745.763733 | AF9: ='1.Dados_cont_historicos'!AF9*(1+VLOOKUP('1.Dados_cont_historicos'!AF$4,'3.Índices_inflação'!$A$2:$BA$105,$BW9,FALSE)) -> 1551.447441 | AG9: ='1.Dados_cont_historicos'!AG9*(1+VLOOKUP('1.Dados_cont_historicos'!AG$4,'3.Índices_inflação'!$A$2:$BA$105,$BW9,FALSE)) -> 12116.91769 | AH9: ='1.Dados_cont_historicos'!AH9*(1+VLOOKUP('1.Dados_cont_historicos'!AH$4,'3.Índices_inflação'!$A$2:$BA$105,$BW9,FALSE)) -> 6321.445266 | AI9: ='1.Dados_cont_historicos'!AI9*(1+VLOOKUP('1.Dados_cont_historicos'!AI$4,'3.Índices_inflação'!$A$2:$BA$105,$BW9,FALSE)) -> 21538.40486 | AJ9: ='1.Dados_cont_historicos'!AJ9*(1+VLOOKUP('1.Dados_cont_historicos'!AJ$4,'3.Índices_inflação'!$A$2:$BA$105,$BW9,FALSE)) -> 24786.69732 | AK9: ='1.Dados_cont_historicos'!AK9*(1+VLOOKUP('1.Dados_cont_historicos'!AK$4,'3.Índices_inflação'!$A$2:$BA$105,$BW9,FALSE)) -> 23450.54029 | AL9: ='1.Dados_cont_historicos'!AL9*(1+VLOOKUP('1.Dados_cont_historicos'!AL$4,'3.Índices_inflação'!$A$2:$BA$105,$BW9,FALSE)) -> 18521.32935 | AM9: ='1.Dados_cont_historicos'!AM9*(1+VLOOKUP('1.Dados_cont_historicos'!AM$4,'3.Índices_inflação'!$A$2:$BA$105,$BW9,FALSE)) -> 13641.28793 | AN9: ='1.Dados_cont_historicos'!AN9*(1+VLOOKUP('1.Dados_cont_historicos'!AN$4,'3.Índices_inflação'!$A$2:$BA$105,$BW9,FALSE)) -> 10116.59063 | AO9: ='1.Dados_cont_historicos'!AO9*(1+VLOOKUP('1.Dados_cont_historicos'!AO$4,'3.Índices_inflação'!$A$2:$BA$105,$BW9,FALSE)) -> 8640.553879 | AP9: 141493.9253 | AQ9: ='1.Dados_cont_historicos'!AQ9*(1+VLOOKUP('1.Dados_cont_historicos'!AQ$4,'3.Índices_inflação'!$A$2:$BA$105,$BW9,FALSE)) -> 8454.148603 | AR9: ='1.Dados_cont_historicos'!AR9*(1+VLOOKUP('1.Dados_cont_historicos'!AR$4,'3.Índices_inflação'!$A$2:$BA$105,$BW9,FALSE)) -> 10621.85061 | AS9: ='1.Dados_cont_historicos'!AS9*(1+VLOOKUP('1.Dados_cont_historicos'!AS$4,'3.Índices_inflação'!$A$2:$BA$105,$BW9,FALSE)) -> 6405.92 | AT9: ='1.Dados_cont_historicos'!AT9*(1+VLOOKUP('1.Dados_cont_historicos'!AT$4,'3.Índices_inflação'!$A$2:$BA$105,$BW9,FALSE)) -> 6160.93 | AU9: ='1.Dados_cont_historicos'!AU9*(1+VLOOKUP('1.Dados_cont_historicos'!AU$4,'3.Índices_inflação'!$A$2:$BA$105,$BW9,FALSE)) -> 10093.85 | AV9: ='1.Dados_cont_historicos'!AV9*(1+VLOOKUP('1.Dados_cont_historicos'!AV$4,'3.Índices_inflação'!$A$2:$BA$105,$BW9,FALSE)) -> 7017.36 | AW9: ='1.Dados_cont_historicos'!AW9*(1+VLOOKUP('1.Dados_cont_historicos'!AW$4,'3.Índices_inflação'!$A$2:$BA$105,$BW9,FALSE)) -> 4468.88 | AX9: ='1.Dados_cont_historicos'!AX9*(1+VLOOKUP('1.Dados_cont_historicos'!AX$4,'3.Índices_inflação'!$A$2:$BA$105,$BW9,FALSE)) -> 8939.25 | AY9: ='1.Dados_cont_historicos'!AY9*(1+VLOOKUP('1.Dados_cont_historicos'!AY$4,'3.Índices_inflação'!$A$2:$BA$105,$BW9,FALSE)) -> 3725.27 | AZ9: ='1.Dados_cont_historicos'!AZ9*(1+VLOOKUP('1.Dados_cont_historicos'!AZ$4,'3.Índices_inflação'!$A$2:$BA$105,$BW9,FALSE)) -> 3778.86 | BA9: ='1.Dados_cont_historicos'!BA9*(1+VLOOKUP('1.Dados_cont_historicos'!BA$4,'3.Índices_inflação'!$A$2:$BA$105,$BW9,FALSE)) -> 4432.76 | BB9: ='1.Dados_cont_historicos'!BB9*(1+VLOOKUP('1.Dados_cont_historicos'!BB$4,'3.Índices_inflação'!$A$2:$BA$105,$BW9,FALSE)) -> 3471.23 | BC9: 77570.30921 | BD9: ='1.Dados_cont_historicos'!BD9*(1+VLOOKUP('1.Dados_cont_historicos'!BD$4,'3.Índices_inflação'!$A$2:$BA$105,$BW9,FALSE)) -> 3320.84 | BE9: ='1.Dados_cont_historicos'!BE9*(1+VLOOKUP('1.Dados_cont_historicos'!BE$4,'3.Índices_inflação'!$A$2:$BA$105,$BW9,FALSE)) -> 3571.03 | BF9: ='1.Dados_cont_historicos'!BF9*(1+VLOOKUP('1.Dados_cont_historicos'!BF$4,'3.Índices_inflação'!$A$2:$BA$105,$BW9,FALSE)) -> 2745.93 | BG9: ='1.Dados_cont_historicos'!BG9*(1+VLOOKUP('1.Dados_cont_historicos'!BG$4,'3.Índices_inflação'!$A$2:$BA$105,$BW9,FALSE)) -> 3174.21 | BH9: ='1.Dados_cont_historicos'!BH9*(1+VLOOKUP('1.Dados_cont_historicos'!BH$4,'3.Índices_inflação'!$A$2:$BA$105,$BW9,FALSE)) -> 3163.723333 | BI9: ='1.Dados_cont_historicos'!BI9*(1+VLOOKUP('1.Dados_cont_historicos'!BI$4,'3.Índices_inflação'!$A$2:$BA$105,$BW9,FALSE)) -> 3027.954444 | BJ9: ='1.Dados_cont_historicos'!BJ9*(1+VLOOKUP('1.Dados_cont_historicos'!BJ$4,'3.Índices_inflação'!$A$2:$BA$105,$BW9,FALSE)) -> 3121.962593 | BM9: 18229.93575 | BN9: 12717.6527 | BO9: 141493.9253 | BP9: 77570.30921 | BQ9: 10378.05468 | BR9: 73515.53528 | BS9: 127593.2413 | BT9: 46473.02037 | BV9: ETM | BW9: 50
C10: Descontos Tarifários Concedidos | D10: ='1.Dados_cont_historicos'!D10*(1+VLOOKUP('1.Dados_cont_historicos'!D$4,'3.Índices_inflação'!$A$2:$BA$105,$BW10,FALSE)) -> 0 | E10: ='1.Dados_cont_historicos'!E10*(1+VLOOKUP('1.Dados_cont_historicos'!E$4,'3.Índices_inflação'!$A$2:$BA$105,$BW10,FALSE)) -> 0 | F10: ='1.Dados_cont_historicos'!F10*(1+VLOOKUP('1.Dados_cont_historicos'!F$4,'3.Índices_inflação'!$A$2:$BA$105,$BW10,FALSE)) -> 0 | G10: ='1.Dados_cont_historicos'!G10*(1+VLOOKUP('1.Dados_cont_historicos'!G$4,'3.Índices_inflação'!$A$2:$BA$105,$BW10,FALSE)) -> 0 | H10: ='1.Dados_cont_historicos'!H10*(1+VLOOKUP('1.Dados_cont_historicos'!H$4,'3.Índices_inflação'!$A$2:$BA$105,$BW10,FALSE)) -> 0 | I10: ='1.Dados_cont_historicos'!I10*(1+VLOOKUP('1.Dados_cont_historicos'!I$4,'3.Índices_inflação'!$A$2:$BA$105,$BW10,FALSE)) -> 0 | J10: ='1.Dados_cont_historicos'!J10*(1+VLOOKUP('1.Dados_cont_historicos'!J$4,'3.Índices_inflação'!$A$2:$BA$105,$BW10,FALSE)) -> 0 | K10: ='1.Dados_cont_historicos'!K10*(1+VLOOKUP('1.Dados_cont_historicos'!K$4,'3.Índices_inflação'!$A$2:$BA$105,$BW10,FALSE)) -> -4.340638836 | L10: ='1.Dados_cont_historicos'!L10*(1+VLOOKUP('1.Dados_cont_historicos'!L$4,'3.Índices_inflação'!$A$2:$BA$105,$BW10,FALSE)) -> 16.68644338 | M10: ='1.Dados_cont_historicos'!M10*(1+VLOOKUP('1.Dados_cont_historicos'!M$4,'3.Índices_inflação'!$A$2:$BA$105,$BW10,FALSE)) -> 0 | N10: ='1.Dados_cont_historicos'!N10*(1+VLOOKUP('1.Dados_cont_historicos'!N$4,'3.Índices_inflação'!$A$2:$BA$105,$BW10,FALSE)) -> 0 | O10: ='1.Dados_cont_historicos'!O10*(1+VLOOKUP('1.Dados_cont_historicos'!O$4,'3.Índices_inflação'!$A$2:$BA$105,$BW10,FALSE)) -> 0 | P10: 12.34580454 | Q10: ='1.Dados_cont_historicos'!Q10*(1+VLOOKUP('1.Dados_cont_historicos'!Q$4,'3.Índices_inflação'!$A$2:$BA$105,$BW10,FALSE)) -> 0 | R10: ='1.Dados_cont_historicos'!R10*(1+VLOOKUP('1.Dados_cont_historicos'!R$4,'3.Índices_inflação'!$A$2:$BA$105,$BW10,FALSE)) -> 0 | S10: ='1.Dados_cont_historicos'!S10*(1+VLOOKUP('1.Dados_cont_historicos'!S$4,'3.Índices_inflação'!$A$2:$BA$105,$BW10,FALSE)) -> 0 | T10: ='1.Dados_cont_historicos'!T10*(1+VLOOKUP('1.Dados_cont_historicos'!T$4,'3.Índices_inflação'!$A$2:$BA$105,$BW10,FALSE)) -> 0 | U10: ='1.Dados_cont_historicos'!U10*(1+VLOOKUP('1.Dados_cont_historicos'!U$4,'3.Índices_inflação'!$A$2:$BA$105,$BW10,FALSE)) -> 0 | V10: ='1.Dados_cont_historicos'!V10*(1+VLOOKUP('1.Dados_cont_historicos'!V$4,'3.Índices_inflação'!$A$2:$BA$105,$BW10,FALSE)) -> 0 | W10: ='1.Dados_cont_historicos'!W10*(1+VLOOKUP('1.Dados_cont_historicos'!W$4,'3.Índices_inflação'!$A$2:$BA$105,$BW10,FALSE)) -> 705.2625096 | X10: ='1.Dados_cont_historicos'!X10*(1+VLOOKUP('1.Dados_cont_historicos'!X$4,'3.Índices_inflação'!$A$2:$BA$105,$BW10,FALSE)) -> 0 | Y10: ='1.Dados_cont_historicos'!Y10*(1+VLOOKUP('1.Dados_cont_historicos'!Y$4,'3.Índices_inflação'!$A$2:$BA$105,$BW10,FALSE)) -> 7.174766962 | Z10: ='1.Dados_cont_historicos'!Z10*(1+VLOOKUP('1.Dados_cont_historicos'!Z$4,'3.Índices_inflação'!$A$2:$BA$105,$BW10,FALSE)) -> 0 | AA10: ='1.Dados_cont_historicos'!AA10*(1+VLOOKUP('1.Dados_cont_historicos'!AA$4,'3.Índices_inflação'!$A$2:$BA$105,$BW10,FALSE)) -> 0 | AB10: ='1.Dados_cont_historicos'!AB10*(1+VLOOKUP('1.Dados_cont_historicos'!AB$4,'3.Índices_inflação'!$A$2:$BA$105,$BW10,FALSE)) -> 0 | AC10: 712.4372765 | AD10: ='1.Dados_cont_historicos'!AD10*(1+VLOOKUP('1.Dados_cont_historicos'!AD$4,'3.Índices_inflação'!$A$2:$BA$105,$BW10,FALSE)) -> 0 | AE10: ='1.Dados_cont_historicos'!AE10*(1+VLOOKUP('1.Dados_cont_historicos'!AE$4,'3.Índices_inflação'!$A$2:$BA$105,$BW10,FALSE)) -> 0 | AF10: ='1.Dados_cont_historicos'!AF10*(1+VLOOKUP('1.Dados_cont_historicos'!AF$4,'3.Índices_inflação'!$A$2:$BA$105,$BW10,FALSE)) -> 0 | AG10: ='1.Dados_cont_historicos'!AG10*(1+VLOOKUP('1.Dados_cont_historicos'!AG$4,'3.Índices_inflação'!$A$2:$BA$105,$BW10,FALSE)) -> 0 | AH10: ='1.Dados_cont_historicos'!AH10*(1+VLOOKUP('1.Dados_cont_historicos'!AH$4,'3.Índices_inflação'!$A$2:$BA$105,$BW10,FALSE)) -> 17.31645129 | AI10: ='1.Dados_cont_historicos'!AI10*(1+VLOOKUP('1.Dados_cont_historicos'!AI$4,'3.Índices_inflação'!$A$2:$BA$105,$BW10,FALSE)) -> 0 | AJ10: ='1.Dados_cont_historicos'!AJ10*(1+VLOOKUP('1.Dados_cont_historicos'!AJ$4,'3.Índices_inflação'!$A$2:$BA$105,$BW10,FALSE)) -> 0 | AK10: ='1.Dados_cont_historicos'!AK10*(1+VLOOKUP('1.Dados_cont_historicos'!AK$4,'3.Índices_inflação'!$A$2:$BA$105,$BW10,FALSE)) -> 0 | AL10: ='1.Dados_cont_historicos'!AL10*(1+VLOOKUP('1.Dados_cont_historicos'!AL$4,'3.Índices_inflação'!$A$2:$BA$105,$BW10,FALSE)) -> 0 | AM10: ='1.Dados_cont_historicos'!AM10*(1+VLOOKUP('1.Dados_cont_historicos'!AM$4,'3.Índices_inflação'!$A$2:$BA$105,$BW10,FALSE)) -> 315.0193771 | AN10: ='1.Dados_cont_historicos'!AN10*(1+VLOOKUP('1.Dados_cont_historicos'!AN$4,'3.Índices_inflação'!$A$2:$BA$105,$BW10,FALSE)) -> 0 | AO10: ='1.Dados_cont_historicos'!AO10*(1+VLOOKUP('1.Dados_cont_historicos'!AO$4,'3.Índices_inflação'!$A$2:$BA$105,$BW10,FALSE)) -> 0 | AP10: 332.3358283 | AQ10: ='1.Dados_cont_historicos'!AQ10*(1+VLOOKUP('1.Dados_cont_historicos'!AQ$4,'3.Índices_inflação'!$A$2:$BA$105,$BW10,FALSE)) -> 0 | AR10: ='1.Dados_cont_historicos'!AR10*(1+VLOOKUP('1.Dados_cont_historicos'!AR$4,'3.Índices_inflação'!$A$2:$BA$105,$BW10,FALSE)) -> 0 | AS10: ='1.Dados_cont_historicos'!AS10*(1+VLOOKUP('1.Dados_cont_historicos'!AS$4,'3.Índices_inflação'!$A$2:$BA$105,$BW10,FALSE)) -> 0 | AT10: ='1.Dados_cont_historicos'!AT10*(1+VLOOKUP('1.Dados_cont_historicos'!AT$4,'3.Índices_inflação'!$A$2:$BA$105,$BW10,FALSE)) -> 0 | AU10: ='1.Dados_cont_historicos'!AU10*(1+VLOOKUP('1.Dados_cont_historicos'!AU$4,'3.Índices_inflação'!$A$2:$BA$105,$BW10,FALSE)) -> 0 | AV10: ='1.Dados_cont_historicos'!AV10*(1+VLOOKUP('1.Dados_cont_historicos'!AV$4,'3.Índices_inflação'!$A$2:$BA$105,$BW10,FALSE)) -> 0 | AW10: ='1.Dados_cont_historicos'!AW10*(1+VLOOKUP('1.Dados_cont_historicos'!AW$4,'3.Índices_inflação'!$A$2:$BA$105,$BW10,FALSE)) -> 0 | AX10: ='1.Dados_cont_historicos'!AX10*(1+VLOOKUP('1.Dados_cont_historicos'!AX$4,'3.Índices_inflação'!$A$2:$BA$105,$BW10,FALSE)) -> 0 | AY10: ='1.Dados_cont_historicos'!AY10*(1+VLOOKUP('1.Dados_cont_historicos'!AY$4,'3.Índices_inflação'!$A$2:$BA$105,$BW10,FALSE)) -> 0 | AZ10: ='1.Dados_cont_historicos'!AZ10*(1+VLOOKUP('1.Dados_cont_historicos'!AZ$4,'3.Índices_inflação'!$A$2:$BA$105,$BW10,FALSE)) -> 0 | BA10: ='1.Dados_cont_historicos'!BA10*(1+VLOOKUP('1.Dados_cont_historicos'!BA$4,'3.Índices_inflação'!$A$2:$BA$105,$BW10,FALSE)) -> 0 | BB10: ='1.Dados_cont_historicos'!BB10*(1+VLOOKUP('1.Dados_cont_historicos'!BB$4,'3.Índices_inflação'!$A$2:$BA$105,$BW10,FALSE)) -> 0 | BC10: 0 | BD10: ='1.Dados_cont_historicos'!BD10*(1+VLOOKUP('1.Dados_cont_historicos'!BD$4,'3.Índices_inflação'!$A$2:$BA$105,$BW10,FALSE)) -> 124.56 | BE10: ='1.Dados_cont_historicos'!BE10*(1+VLOOKUP('1.Dados_cont_historicos'!BE$4,'3.Índices_inflação'!$A$2:$BA$105,$BW10,FALSE)) -> 0 | BF10: ='1.Dados_cont_historicos'!BF10*(1+VLOOKUP('1.Dados_cont_historicos'!BF$4,'3.Índices_inflação'!$A$2:$BA$105,$BW10,FALSE)) -> 0 | BG10: ='1.Dados_cont_historicos'!BG10*(1+VLOOKUP('1.Dados_cont_historicos'!BG$4,'3.Índices_inflação'!$A$2:$BA$105,$BW10,FALSE)) -> 0 | BH10: ='1.Dados_cont_historicos'!BH10*(1+VLOOKUP('1.Dados_cont_historicos'!BH$4,'3.Índices_inflação'!$A$2:$BA$105,$BW10,FALSE)) -> 0 | BI10: ='1.Dados_cont_historicos'!BI10*(1+VLOOKUP('1.Dados_cont_historicos'!BI$4,'3.Índices_inflação'!$A$2:$BA$105,$BW10,FALSE)) -> 0 | BJ10: ='1.Dados_cont_historicos'!BJ10*(1+VLOOKUP('1.Dados_cont_historicos'!BJ$4,'3.Índices_inflação'!$A$2:$BA$105,$BW10,FALSE)) -> 0 | BM10: 12.34580454 | BN10: 712.4372765 | BO10: 332.3358283 | BP10: 0 | BQ10: 717.6083141 | BR10: 24.49121825 | BS10: 315.0193771 | BT10: 124.56 | BV10: ETM | BW10: 50
C11: Total - Receitas Operacionais Diretas | D11: =SUM(D6:D10) -> -3222323.813 | E11: =SUM(E6:E10) -> -2943875.091 | F11: -3014617.376 | G11: -2951912.047 | H11: -3050748.529 | I11: -2811027.229 | J11: -2950263.173 | K11: -2954304.429 | L11: -2818637.424 | M11: -3227093.858 | N11: -3261162.958 | O11: -3742842.171 | P11: =SUM(D11:O11) -> -36948808.1 | Q11: =SUM(Q6:Q10) -> -3216109.802 | R11: -3058729.995 | S11: -3102568.017 | T11: -2742037.002 | U11: -2856192.035 | V11: -2875562.697 | W11: -2744510.478 | X11: -2793388.456 | Y11: -2955588.279 | Z11: -3284997.558 | AA11: -2920908.908 | AB11: -3089892.424 | AC11: -35640485.65 | AD11: =SUM(AD6:AD10) -> -2535789.274 | AE11: -2993331.103 | AF11: -3511882.969 | AG11: -2937214.389 | AH11: -3083420.312 | AI11: -2622383.403 | AJ11: -2826117.827 | AK11: -2996256.256 | AL11: -2981728.234 | AM11: -3635532.558 | AN11: -3185246.197 | AO11: -3299504.072 | AP11: -36608406.59 | AQ11: =SUM(AQ6:AQ10) -> -3617709.718 | AR11: -3012472.376 | AS11: -2796503.46 | AT11: -2860433.45 | AU11: -3004634.13 | AV11: -2956414 | AW11: -3251447.85 | AX11: -3175293.43 | AY11: -3507763.46 | AZ11: -4302959.5 | BA11: -3278191.83 | BB11: -3217264.42 | BC11: -38981087.62 | BD11: =SUM(BD6:BD10) -> -4205299.18 | BE11: -3649187.91 | BF11: =SUM(BF6:BF10) -> -3057566.18 | BG11: -3384355.98 | BH11: -3363703.357 | BI11: -3268541.839 | BJ11: -3338867.059 | BM11: =SUM(BM6:BM10) -> -36948808.1 | BN11: -35640485.65 | BO11: -36608406.59 | BP11: -38981087.62 | BQ11: -36599750.87 | BR11: -35554914.9 | BS11: -37597882.3 | BT11: -41748994.14
C13: Receitas Operacionais Indiretas | D13: ='1.Dados_cont_historicos'!D13*(1+VLOOKUP('1.Dados_cont_historicos'!D$4,'3.Índices_inflação'!$A$2:$BA$105,$BW13,FALSE)) -> -41726.10146 | E13: ='1.Dados_cont_historicos'!E13*(1+VLOOKUP('1.Dados_cont_historicos'!E$4,'3.Índices_inflação'!$A$2:$BA$105,$BW13,FALSE)) -> -17830.29097 | F13: ='1.Dados_cont_historicos'!F13*(1+VLOOKUP('1.Dados_cont_historicos'!F$4,'3.Índices_inflação'!$A$2:$BA$105,$BW13,FALSE)) -> -18957.41519 | G13: ='1.Dados_cont_historicos'!G13*(1+VLOOKUP('1.Dados_cont_historicos'!G$4,'3.Índices_inflação'!$A$2:$BA$105,$BW13,FALSE)) -> -19746.65372 | H13: ='1.Dados_cont_historicos'!H13*(1+VLOOKUP('1.Dados_cont_historicos'!H$4,'3.Índices_inflação'!$A$2:$BA$105,$BW13,FALSE)) -> -27676.79869 | I13: ='1.Dados_cont_historicos'!I13*(1+VLOOKUP('1.Dados_cont_historicos'!I$4,'3.Índices_inflação'!$A$2:$BA$105,$BW13,FALSE)) -> -22696.81308 | J13: ='1.Dados_cont_historicos'!J13*(1+VLOOKUP('1.Dados_cont_historicos'!J$4,'3.Índices_inflação'!$A$2:$BA$105,$BW13,FALSE)) -> -31985.51559 | K13: ='1.Dados_cont_historicos'!K13*(1+VLOOKUP('1.Dados_cont_historicos'!K$4,'3.Índices_inflação'!$A$2:$BA$105,$BW13,FALSE)) -> -22230.98223 | L13: ='1.Dados_cont_historicos'!L13*(1+VLOOKUP('1.Dados_cont_historicos'!L$4,'3.Índices_inflação'!$A$2:$BA$105,$BW13,FALSE)) -> -17317.87784 | M13: ='1.Dados_cont_historicos'!M13*(1+VLOOKUP('1.Dados_cont_historicos'!M$4,'3.Índices_inflação'!$A$2:$BA$105,$BW13,FALSE)) -> -5598.938389 | N13: ='1.Dados_cont_historicos'!N13*(1+VLOOKUP('1.Dados_cont_historicos'!N$4,'3.Índices_inflação'!$A$2:$BA$105,$BW13,FALSE)) -> -16510.22399 | O13: ='1.Dados_cont_historicos'!O13*(1+VLOOKUP('1.Dados_cont_historicos'!O$4,'3.Índices_inflação'!$A$2:$BA$105,$BW13,FALSE)) -> -90005.70463 | P13: =SUM(D13:O13) -> -332283.3158 | Q13: ='1.Dados_cont_historicos'!Q13*(1+VLOOKUP('1.Dados_cont_historicos'!Q$4,'3.Índices_inflação'!$A$2:$BA$105,$BW13,FALSE)) -> -23609.15476 | R13: ='1.Dados_cont_historicos'!R13*(1+VLOOKUP('1.Dados_cont_historicos'!R$4,'3.Índices_inflação'!$A$2:$BA$105,$BW13,FALSE)) -> -22141.74195 | S13: ='1.Dados_cont_historicos'!S13*(1+VLOOKUP('1.Dados_cont_historicos'!S$4,'3.Índices_inflação'!$A$2:$BA$105,$BW13,FALSE)) -> -15972.53325 | T13: ='1.Dados_cont_historicos'!T13*(1+VLOOKUP('1.Dados_cont_historicos'!T$4,'3.Índices_inflação'!$A$2:$BA$105,$BW13,FALSE)) -> -21915.27029 | U13: ='1.Dados_cont_historicos'!U13*(1+VLOOKUP('1.Dados_cont_historicos'!U$4,'3.Índices_inflação'!$A$2:$BA$105,$BW13,FALSE)) -> -19411.82197 | V13: ='1.Dados_cont_historicos'!V13*(1+VLOOKUP('1.Dados_cont_historicos'!V$4,'3.Índices_inflação'!$A$2:$BA$105,$BW13,FALSE)) -> -32971.32696 | W13: ='1.Dados_cont_historicos'!W13*(1+VLOOKUP('1.Dados_cont_historicos'!W$4,'3.Índices_inflação'!$A$2:$BA$105,$BW13,FALSE)) -> -26723.31655 | X13: ='1.Dados_cont_historicos'!X13*(1+VLOOKUP('1.Dados_cont_historicos'!X$4,'3.Índices_inflação'!$A$2:$BA$105,$BW13,FALSE)) -> -35814.38579 | Y13: ='1.Dados_cont_historicos'!Y13*(1+VLOOKUP('1.Dados_cont_historicos'!Y$4,'3.Índices_inflação'!$A$2:$BA$105,$BW13,FALSE)) -> -33058.8833 | Z13: ='1.Dados_cont_historicos'!Z13*(1+VLOOKUP('1.Dados_cont_historicos'!Z$4,'3.Índices_inflação'!$A$2:$BA$105,$BW13,FALSE)) -> 2531.928512 | AA13: ='1.Dados_cont_historicos'!AA13*(1+VLOOKUP('1.Dados_cont_historicos'!AA$4,'3.Índices_inflação'!$A$2:$BA$105,$BW13,FALSE)) -> -34995.23282 | AB13: ='1.Dados_cont_historicos'!AB13*(1+VLOOKUP('1.Dados_cont_historicos'!AB$4,'3.Índices_inflação'!$A$2:$BA$105,$BW13,FALSE)) -> -6894.510877 | AC13: =SUM(Q13:AB13) -> -270976.25 | AD13: ='1.Dados_cont_historicos'!AD13*(1+VLOOKUP('1.Dados_cont_historicos'!AD$4,'3.Índices_inflação'!$A$2:$BA$105,$BW13,FALSE)) -> -21492.21493 | AE13: ='1.Dados_cont_historicos'!AE13*(1+VLOOKUP('1.Dados_cont_historicos'!AE$4,'3.Índices_inflação'!$A$2:$BA$105,$BW13,FALSE)) -> -34011.70502 | AF13: ='1.Dados_cont_historicos'!AF13*(1+VLOOKUP('1.Dados_cont_historicos'!AF$4,'3.Índices_inflação'!$A$2:$BA$105,$BW13,FALSE)) -> -20022.63306 | AG13: ='1.Dados_cont_historicos'!AG13*(1+VLOOKUP('1.Dados_cont_historicos'!AG$4,'3.Índices_inflação'!$A$2:$BA$105,$BW13,FALSE)) -> -31237.82349 | AH13: ='1.Dados_cont_historicos'!AH13*(1+VLOOKUP('1.Dados_cont_historicos'!AH$4,'3.Índices_inflação'!$A$2:$BA$105,$BW13,FALSE)) -> -22494.12607 | AI13: ='1.Dados_cont_historicos'!AI13*(1+VLOOKUP('1.Dados_cont_historicos'!AI$4,'3.Índices_inflação'!$A$2:$BA$105,$BW13,FALSE)) -> -40148.83767 | AJ13: ='1.Dados_cont_historicos'!AJ13*(1+VLOOKUP('1.Dados_cont_historicos'!AJ$4,'3.Índices_inflação'!$A$2:$BA$105,$BW13,FALSE)) -> -32377.9061 | AK13: ='1.Dados_cont_historicos'!AK13*(1+VLOOKUP('1.Dados_cont_historicos'!AK$4,'3.Índices_inflação'!$A$2:$BA$105,$BW13,FALSE)) -> -36442.18038 | AL13: ='1.Dados_cont_historicos'!AL13*(1+VLOOKUP('1.Dados_cont_historicos'!AL$4,'3.Índices_inflação'!$A$2:$BA$105,$BW13,FALSE)) -> -39002.17001 | AM13: ='1.Dados_cont_historicos'!AM13*(1+VLOOKUP('1.Dados_cont_historicos'!AM$4,'3.Índices_inflação'!$A$2:$BA$105,$BW13,FALSE)) -> -34188.53904 | AN13: ='1.Dados_cont_historicos'!AN13*(1+VLOOKUP('1.Dados_cont_historicos'!AN$4,'3.Índices_inflação'!$A$2:$BA$105,$BW13,FALSE)) -> 8370.078629 | AO13: ='1.Dados_cont_historicos'!AO13*(1+VLOOKUP('1.Dados_cont_historicos'!AO$4,'3.Índices_inflação'!$A$2:$BA$105,$BW13,FALSE)) -> -242724.4488 | AP13: =SUM(AD13:AO13) -> -545772.5059 | AQ13: ='1.Dados_cont_historicos'!AQ13*(1+VLOOKUP('1.Dados_cont_historicos'!AQ$4,'3.Índices_inflação'!$A$2:$BA$105,$BW13,FALSE)) -> -23144.3727 | AR13: ='1.Dados_cont_historicos'!AR13*(1+VLOOKUP('1.Dados_cont_historicos'!AR$4,'3.Índices_inflação'!$A$2:$BA$105,$BW13,FALSE)) -> -20304.2202 | AS13: ='1.Dados_cont_historicos'!AS13*(1+VLOOKUP('1.Dados_cont_historicos'!AS$4,'3.Índices_inflação'!$A$2:$BA$105,$BW13,FALSE)) -> -17965.23673 | AT13: ='1.Dados_cont_historicos'!AT13*(1+VLOOKUP('1.Dados_cont_historicos'!AT$4,'3.Índices_inflação'!$A$2:$BA$105,$BW13,FALSE)) -> -15009.67833 | AU13: ='1.Dados_cont_historicos'!AU13*(1+VLOOKUP('1.Dados_cont_historicos'!AU$4,'3.Índices_inflação'!$A$2:$BA$105,$BW13,FALSE)) -> -20909.36579 | AV13: ='1.Dados_cont_historicos'!AV13*(1+VLOOKUP('1.Dados_cont_historicos'!AV$4,'3.Índices_inflação'!$A$2:$BA$105,$BW13,FALSE)) -> 23217.75664 | AW13: ='1.Dados_cont_historicos'!AW13*(1+VLOOKUP('1.Dados_cont_historicos'!AW$4,'3.Índices_inflação'!$A$2:$BA$105,$BW13,FALSE)) -> -14745.93391 | AX13: ='1.Dados_cont_historicos'!AX13*(1+VLOOKUP('1.Dados_cont_historicos'!AX$4,'3.Índices_inflação'!$A$2:$BA$105,$BW13,FALSE)) -> -19169.25479 | AY13: ='1.Dados_cont_historicos'!AY13*(1+VLOOKUP('1.Dados_cont_historicos'!AY$4,'3.Índices_inflação'!$A$2:$BA$105,$BW13,FALSE)) -> -15371.42732 | AZ13: ='1.Dados_cont_historicos'!AZ13*(1+VLOOKUP('1.Dados_cont_historicos'!AZ$4,'3.Índices_inflação'!$A$2:$BA$105,$BW13,FALSE)) -> -14336.90274 | BA13: ='1.Dados_cont_historicos'!BA13*(1+VLOOKUP('1.Dados_cont_historicos'!BA$4,'3.Índices_inflação'!$A$2:$BA$105,$BW13,FALSE)) -> -15948.27987 | BB13: ='1.Dados_cont_historicos'!BB13*(1+VLOOKUP('1.Dados_cont_historicos'!BB$4,'3.Índices_inflação'!$A$2:$BA$105,$BW13,FALSE)) -> -14610.30209 | BC13: -168297.2178 | BD13: ='1.Dados_cont_historicos'!BD13*(1+VLOOKUP('1.Dados_cont_historicos'!BD$4,'3.Índices_inflação'!$A$2:$BA$105,$BW13,FALSE)) -> -15791.98212 | BE13: ='1.Dados_cont_historicos'!BE13*(1+VLOOKUP('1.Dados_cont_historicos'!BE$4,'3.Índices_inflação'!$A$2:$BA$105,$BW13,FALSE)) -> -27799.67114 | BF13: ='1.Dados_cont_historicos'!BF13*(1+VLOOKUP('1.Dados_cont_historicos'!BF$4,'3.Índices_inflação'!$A$2:$BA$105,$BW13,FALSE)) -> -25598.55253 | BG13: ='1.Dados_cont_historicos'!BG13*(1+VLOOKUP('1.Dados_cont_historicos'!BG$4,'3.Índices_inflação'!$A$2:$BA$105,$BW13,FALSE)) -> -27906.88829 | BH13: ='1.Dados_cont_historicos'!BH13*(1+VLOOKUP('1.Dados_cont_historicos'!BH$4,'3.Índices_inflação'!$A$2:$BA$105,$BW13,FALSE)) -> -26699.29528 | BI13: ='1.Dados_cont_historicos'!BI13*(1+VLOOKUP('1.Dados_cont_historicos'!BI$4,'3.Índices_inflação'!$A$2:$BA$105,$BW13,FALSE)) -> -26345.39724 | BJ13: ='1.Dados_cont_historicos'!BJ13*(1+VLOOKUP('1.Dados_cont_historicos'!BJ$4,'3.Índices_inflação'!$A$2:$BA$105,$BW13,FALSE)) -> -26568.43926 | BM13: -332283.3158 | BN13: -270976.25 | BO13: -545772.5059 | BP13: -168297.2178 | BQ13: -314408.8928 | BR13: -310016.3306 | BS13: -432848.3106 | BT13: =SUM(AX13:BB13,BD13:BJ13) -> -256146.3927 | BU13: =BT13/AVERAGE(BQ13:BS13)-1 -> -0.2731879185 | BV13: INPC | BW13: 4
C14: Receitas Financeiras | D14: ='1.Dados_cont_historicos'!D14*(1+VLOOKUP('1.Dados_cont_historicos'!D$4,'3.Índices_inflação'!$A$2:$BA$105,$BW14,FALSE)) -> -390886.0334 | E14: ='1.Dados_cont_historicos'!E14*(1+VLOOKUP('1.Dados_cont_historicos'!E$4,'3.Índices_inflação'!$A$2:$BA$105,$BW14,FALSE)) -> -292370.9815 | F14: ='1.Dados_cont_historicos'!F14*(1+VLOOKUP('1.Dados_cont_historicos'!F$4,'3.Índices_inflação'!$A$2:$BA$105,$BW14,FALSE)) -> -453836.7364 | G14: ='1.Dados_cont_historicos'!G14*(1+VLOOKUP('1.Dados_cont_historicos'!G$4,'3.Índices_inflação'!$A$2:$BA$105,$BW14,FALSE)) -> -320529.3976 | H14: ='1.Dados_cont_historicos'!H14*(1+VLOOKUP('1.Dados_cont_historicos'!H$4,'3.Índices_inflação'!$A$2:$BA$105,$BW14,FALSE)) -> -339464.1478 | I14: ='1.Dados_cont_historicos'!I14*(1+VLOOKUP('1.Dados_cont_historicos'!I$4,'3.Índices_inflação'!$A$2:$BA$105,$BW14,FALSE)) -> -287001.7871 | J14: ='1.Dados_cont_historicos'!J14*(1+VLOOKUP('1.Dados_cont_historicos'!J$4,'3.Índices_inflação'!$A$2:$BA$105,$BW14,FALSE)) -> -206763.5175 | K14: ='1.Dados_cont_historicos'!K14*(1+VLOOKUP('1.Dados_cont_historicos'!K$4,'3.Índices_inflação'!$A$2:$BA$105,$BW14,FALSE)) -> -213576.5441 | L14: ='1.Dados_cont_historicos'!L14*(1+VLOOKUP('1.Dados_cont_historicos'!L$4,'3.Índices_inflação'!$A$2:$BA$105,$BW14,FALSE)) -> -123619.5071 | M14: ='1.Dados_cont_historicos'!M14*(1+VLOOKUP('1.Dados_cont_historicos'!M$4,'3.Índices_inflação'!$A$2:$BA$105,$BW14,FALSE)) -> -219109.0467 | N14: ='1.Dados_cont_historicos'!N14*(1+VLOOKUP('1.Dados_cont_historicos'!N$4,'3.Índices_inflação'!$A$2:$BA$105,$BW14,FALSE)) -> -217820.3678 | O14: ='1.Dados_cont_historicos'!O14*(1+VLOOKUP('1.Dados_cont_historicos'!O$4,'3.Índices_inflação'!$A$2:$BA$105,$BW14,FALSE)) -> -188021.9862 | P14: -3253000.053 | Q14: ='1.Dados_cont_historicos'!Q14*(1+VLOOKUP('1.Dados_cont_historicos'!Q$4,'3.Índices_inflação'!$A$2:$BA$105,$BW14,FALSE)) -> -142014.6795 | R14: ='1.Dados_cont_historicos'!R14*(1+VLOOKUP('1.Dados_cont_historicos'!R$4,'3.Índices_inflação'!$A$2:$BA$105,$BW14,FALSE)) -> -137458.6845 | S14: ='1.Dados_cont_historicos'!S14*(1+VLOOKUP('1.Dados_cont_historicos'!S$4,'3.Índices_inflação'!$A$2:$BA$105,$BW14,FALSE)) -> -130751.6776 | T14: ='1.Dados_cont_historicos'!T14*(1+VLOOKUP('1.Dados_cont_historicos'!T$4,'3.Índices_inflação'!$A$2:$BA$105,$BW14,FALSE)) -> -209288.157 | U14: ='1.Dados_cont_historicos'!U14*(1+VLOOKUP('1.Dados_cont_historicos'!U$4,'3.Índices_inflação'!$A$2:$BA$105,$BW14,FALSE)) -> -193906.0784 | V14: ='1.Dados_cont_historicos'!V14*(1+VLOOKUP('1.Dados_cont_historicos'!V$4,'3.Índices_inflação'!$A$2:$BA$105,$BW14,FALSE)) -> -152990.1945 | W14: ='1.Dados_cont_historicos'!W14*(1+VLOOKUP('1.Dados_cont_historicos'!W$4,'3.Índices_inflação'!$A$2:$BA$105,$BW14,FALSE)) -> -173609.368 | X14: ='1.Dados_cont_historicos'!X14*(1+VLOOKUP('1.Dados_cont_historicos'!X$4,'3.Índices_inflação'!$A$2:$BA$105,$BW14,FALSE)) -> -145287.9845 | Y14: ='1.Dados_cont_historicos'!Y14*(1+VLOOKUP('1.Dados_cont_historicos'!Y$4,'3.Índices_inflação'!$A$2:$BA$105,$BW14,FALSE)) -> -200155.6068 | Z14: ='1.Dados_cont_historicos'!Z14*(1+VLOOKUP('1.Dados_cont_historicos'!Z$4,'3.Índices_inflação'!$A$2:$BA$105,$BW14,FALSE)) -> -155435.9922 | AA14: ='1.Dados_cont_historicos'!AA14*(1+VLOOKUP('1.Dados_cont_historicos'!AA$4,'3.Índices_inflação'!$A$2:$BA$105,$BW14,FALSE)) -> -131398.3101 | AB14: ='1.Dados_cont_historicos'!AB14*(1+VLOOKUP('1.Dados_cont_historicos'!AB$4,'3.Índices_inflação'!$A$2:$BA$105,$BW14,FALSE)) -> -148901.1649 | AC14: -1921197.898 | AD14: ='1.Dados_cont_historicos'!AD14*(1+VLOOKUP('1.Dados_cont_historicos'!AD$4,'3.Índices_inflação'!$A$2:$BA$105,$BW14,FALSE)) -> -119390.375 | AE14: ='1.Dados_cont_historicos'!AE14*(1+VLOOKUP('1.Dados_cont_historicos'!AE$4,'3.Índices_inflação'!$A$2:$BA$105,$BW14,FALSE)) -> -122690.1609 | AF14: ='1.Dados_cont_historicos'!AF14*(1+VLOOKUP('1.Dados_cont_historicos'!AF$4,'3.Índices_inflação'!$A$2:$BA$105,$BW14,FALSE)) -> -60546.33854 | AG14: ='1.Dados_cont_historicos'!AG14*(1+VLOOKUP('1.Dados_cont_historicos'!AG$4,'3.Índices_inflação'!$A$2:$BA$105,$BW14,FALSE)) -> -187287.328 | AH14: ='1.Dados_cont_historicos'!AH14*(1+VLOOKUP('1.Dados_cont_historicos'!AH$4,'3.Índices_inflação'!$A$2:$BA$105,$BW14,FALSE)) -> -173405.963 | AI14: ='1.Dados_cont_historicos'!AI14*(1+VLOOKUP('1.Dados_cont_historicos'!AI$4,'3.Índices_inflação'!$A$2:$BA$105,$BW14,FALSE)) -> -109715.4232 | AJ14: ='1.Dados_cont_historicos'!AJ14*(1+VLOOKUP('1.Dados_cont_historicos'!AJ$4,'3.Índices_inflação'!$A$2:$BA$105,$BW14,FALSE)) -> -99901.75384 | AK14: ='1.Dados_cont_historicos'!AK14*(1+VLOOKUP('1.Dados_cont_historicos'!AK$4,'3.Índices_inflação'!$A$2:$BA$105,$BW14,FALSE)) -> -119214.5835 | AL14: ='1.Dados_cont_historicos'!AL14*(1+VLOOKUP('1.Dados_cont_historicos'!AL$4,'3.Índices_inflação'!$A$2:$BA$105,$BW14,FALSE)) -> -168878.6543 | AM14: ='1.Dados_cont_historicos'!AM14*(1+VLOOKUP('1.Dados_cont_historicos'!AM$4,'3.Índices_inflação'!$A$2:$BA$105,$BW14,FALSE)) -> -147744.8529 | AN14: ='1.Dados_cont_historicos'!AN14*(1+VLOOKUP('1.Dados_cont_historicos'!AN$4,'3.Índices_inflação'!$A$2:$BA$105,$BW14,FALSE)) -> -88904.30081 | AO14: ='1.Dados_cont_historicos'!AO14*(1+VLOOKUP('1.Dados_cont_historicos'!AO$4,'3.Índices_inflação'!$A$2:$BA$105,$BW14,FALSE)) -> -109628.1065 | AP14: -1507307.84 | AQ14: ='1.Dados_cont_historicos'!AQ14*(1+VLOOKUP('1.Dados_cont_historicos'!AQ$4,'3.Índices_inflação'!$A$2:$BA$105,$BW14,FALSE)) -> -135458.3189 | AR14: ='1.Dados_cont_historicos'!AR14*(1+VLOOKUP('1.Dados_cont_historicos'!AR$4,'3.Índices_inflação'!$A$2:$BA$105,$BW14,FALSE)) -> -113015.9789 | AS14: ='1.Dados_cont_historicos'!AS14*(1+VLOOKUP('1.Dados_cont_historicos'!AS$4,'3.Índices_inflação'!$A$2:$BA$105,$BW14,FALSE)) -> -97170.56366 | AT14: ='1.Dados_cont_historicos'!AT14*(1+VLOOKUP('1.Dados_cont_historicos'!AT$4,'3.Índices_inflação'!$A$2:$BA$105,$BW14,FALSE)) -> -116903.5765 | AU14: ='1.Dados_cont_historicos'!AU14*(1+VLOOKUP('1.Dados_cont_historicos'!AU$4,'3.Índices_inflação'!$A$2:$BA$105,$BW14,FALSE)) -> -103185.877 | AV14: ='1.Dados_cont_historicos'!AV14*(1+VLOOKUP('1.Dados_cont_historicos'!AV$4,'3.Índices_inflação'!$A$2:$BA$105,$BW14,FALSE)) -> -102886.9221 | AW14: ='1.Dados_cont_historicos'!AW14*(1+VLOOKUP('1.Dados_cont_historicos'!AW$4,'3.Índices_inflação'!$A$2:$BA$105,$BW14,FALSE)) -> -114796.7594 | AX14: ='1.Dados_cont_historicos'!AX14*(1+VLOOKUP('1.Dados_cont_historicos'!AX$4,'3.Índices_inflação'!$A$2:$BA$105,$BW14,FALSE)) -> -102127.5741 | AY14: ='1.Dados_cont_historicos'!AY14*(1+VLOOKUP('1.Dados_cont_historicos'!AY$4,'3.Índices_inflação'!$A$2:$BA$105,$BW14,FALSE)) -> -130357.8776 | AZ14: ='1.Dados_cont_historicos'!AZ14*(1+VLOOKUP('1.Dados_cont_historicos'!AZ$4,'3.Índices_inflação'!$A$2:$BA$105,$BW14,FALSE)) -> -134010.667 | BA14: ='1.Dados_cont_historicos'!BA14*(1+VLOOKUP('1.Dados_cont_historicos'!BA$4,'3.Índices_inflação'!$A$2:$BA$105,$BW14,FALSE)) -> -137947.9076 | BB14: ='1.Dados_cont_historicos'!BB14*(1+VLOOKUP('1.Dados_cont_historicos'!BB$4,'3.Índices_inflação'!$A$2:$BA$105,$BW14,FALSE)) -> -133921.9582 | BC14: -1421783.981 | BD14: ='1.Dados_cont_historicos'!BD14*(1+VLOOKUP('1.Dados_cont_historicos'!BD$4,'3.Índices_inflação'!$A$2:$BA$105,$BW14,FALSE)) -> -127609.057 | BE14: ='1.Dados_cont_historicos'!BE14*(1+VLOOKUP('1.Dados_cont_historicos'!BE$4,'3.Índices_inflação'!$A$2:$BA$105,$BW14,FALSE)) -> -132905.3512 | BF14: ='1.Dados_cont_historicos'!BF14*(1+VLOOKUP('1.Dados_cont_historicos'!BF$4,'3.Índices_inflação'!$A$2:$BA$105,$BW14,FALSE)) -> -139417.105 | BG14: ='1.Dados_cont_historicos'!BG14*(1+VLOOKUP('1.Dados_cont_historicos'!BG$4,'3.Índices_inflação'!$A$2:$BA$105,$BW14,FALSE)) -> -184153.0141 | BH14: ='1.Dados_cont_historicos'!BH14*(1+VLOOKUP('1.Dados_cont_historicos'!BH$4,'3.Índices_inflação'!$A$2:$BA$105,$BW14,FALSE)) -> -150224.1507 | BI14: ='1.Dados_cont_historicos'!BI14*(1+VLOOKUP('1.Dados_cont_historicos'!BI$4,'3.Índices_inflação'!$A$2:$BA$105,$BW14,FALSE)) -> -156167.1592 | BJ14: ='1.Dados_cont_historicos'!BJ14*(1+VLOOKUP('1.Dados_cont_historicos'!BJ$4,'3.Índices_inflação'!$A$2:$BA$105,$BW14,FALSE)) -> -161939.84 | BM14: -3253000.053 | BN14: -1921197.898 | BO14: -1507307.84 | BP14: -1421783.981 | BQ14: -2102166.291 | BR14: -1654116.401 | BS14: -1417788.495 | BT14: =SUM(AX14:BB14,BD14:BJ14) -> -1690781.662 | BV14: IPCA | BW14: 28
C15: Descontos e multas por impontualidade | D15: ='1.Dados_cont_historicos'!D15*(1+VLOOKUP('1.Dados_cont_historicos'!D$4,'3.Índices_inflação'!$A$2:$BA$105,$BW15,FALSE)) -> -41321.18791 | E15: ='1.Dados_cont_historicos'!E15*(1+VLOOKUP('1.Dados_cont_historicos'!E$4,'3.Índices_inflação'!$A$2:$BA$105,$BW15,FALSE)) -> -42708.50237 | F15: ='1.Dados_cont_historicos'!F15*(1+VLOOKUP('1.Dados_cont_historicos'!F$4,'3.Índices_inflação'!$A$2:$BA$105,$BW15,FALSE)) -> -40595.3746 | G15: ='1.Dados_cont_historicos'!G15*(1+VLOOKUP('1.Dados_cont_historicos'!G$4,'3.Índices_inflação'!$A$2:$BA$105,$BW15,FALSE)) -> -40518.22477 | H15: ='1.Dados_cont_historicos'!H15*(1+VLOOKUP('1.Dados_cont_historicos'!H$4,'3.Índices_inflação'!$A$2:$BA$105,$BW15,FALSE)) -> -42467.27918 | I15: ='1.Dados_cont_historicos'!I15*(1+VLOOKUP('1.Dados_cont_historicos'!I$4,'3.Índices_inflação'!$A$2:$BA$105,$BW15,FALSE)) -> -41281.4199 | J15: ='1.Dados_cont_historicos'!J15*(1+VLOOKUP('1.Dados_cont_historicos'!J$4,'3.Índices_inflação'!$A$2:$BA$105,$BW15,FALSE)) -> -41727.08181 | K15: ='1.Dados_cont_historicos'!K15*(1+VLOOKUP('1.Dados_cont_historicos'!K$4,'3.Índices_inflação'!$A$2:$BA$105,$BW15,FALSE)) -> -47116.00907 | L15: ='1.Dados_cont_historicos'!L15*(1+VLOOKUP('1.Dados_cont_historicos'!L$4,'3.Índices_inflação'!$A$2:$BA$105,$BW15,FALSE)) -> -47406.15895 | M15: ='1.Dados_cont_historicos'!M15*(1+VLOOKUP('1.Dados_cont_historicos'!M$4,'3.Índices_inflação'!$A$2:$BA$105,$BW15,FALSE)) -> -52700.15982 | N15: ='1.Dados_cont_historicos'!N15*(1+VLOOKUP('1.Dados_cont_historicos'!N$4,'3.Índices_inflação'!$A$2:$BA$105,$BW15,FALSE)) -> -55466.26098 | O15: ='1.Dados_cont_historicos'!O15*(1+VLOOKUP('1.Dados_cont_historicos'!O$4,'3.Índices_inflação'!$A$2:$BA$105,$BW15,FALSE)) -> -49394.71739 | P15: -542702.3768 | Q15: ='1.Dados_cont_historicos'!Q15*(1+VLOOKUP('1.Dados_cont_historicos'!Q$4,'3.Índices_inflação'!$A$2:$BA$105,$BW15,FALSE)) -> -53432.34457 | R15: ='1.Dados_cont_historicos'!R15*(1+VLOOKUP('1.Dados_cont_historicos'!R$4,'3.Índices_inflação'!$A$2:$BA$105,$BW15,FALSE)) -> -53974.75875 | S15: ='1.Dados_cont_historicos'!S15*(1+VLOOKUP('1.Dados_cont_historicos'!S$4,'3.Índices_inflação'!$A$2:$BA$105,$BW15,FALSE)) -> -56716.0164 | T15: ='1.Dados_cont_historicos'!T15*(1+VLOOKUP('1.Dados_cont_historicos'!T$4,'3.Índices_inflação'!$A$2:$BA$105,$BW15,FALSE)) -> -53221.91702 | U15: ='1.Dados_cont_historicos'!U15*(1+VLOOKUP('1.Dados_cont_historicos'!U$4,'3.Índices_inflação'!$A$2:$BA$105,$BW15,FALSE)) -> -50972.62104 | V15: ='1.Dados_cont_historicos'!V15*(1+VLOOKUP('1.Dados_cont_historicos'!V$4,'3.Índices_inflação'!$A$2:$BA$105,$BW15,FALSE)) -> -30325.81753 | W15: ='1.Dados_cont_historicos'!W15*(1+VLOOKUP('1.Dados_cont_historicos'!W$4,'3.Índices_inflação'!$A$2:$BA$105,$BW15,FALSE)) -> -79184.66696 | X15: ='1.Dados_cont_historicos'!X15*(1+VLOOKUP('1.Dados_cont_historicos'!X$4,'3.Índices_inflação'!$A$2:$BA$105,$BW15,FALSE)) -> -61473.99872 | Y15: ='1.Dados_cont_historicos'!Y15*(1+VLOOKUP('1.Dados_cont_historicos'!Y$4,'3.Índices_inflação'!$A$2:$BA$105,$BW15,FALSE)) -> -51570.37108 | Z15: ='1.Dados_cont_historicos'!Z15*(1+VLOOKUP('1.Dados_cont_historicos'!Z$4,'3.Índices_inflação'!$A$2:$BA$105,$BW15,FALSE)) -> -50155.29206 | AA15: ='1.Dados_cont_historicos'!AA15*(1+VLOOKUP('1.Dados_cont_historicos'!AA$4,'3.Índices_inflação'!$A$2:$BA$105,$BW15,FALSE)) -> -50548.68233 | AB15: ='1.Dados_cont_historicos'!AB15*(1+VLOOKUP('1.Dados_cont_historicos'!AB$4,'3.Índices_inflação'!$A$2:$BA$105,$BW15,FALSE)) -> -57995.87756 | AC15: -649572.364 | AD15: ='1.Dados_cont_historicos'!AD15*(1+VLOOKUP('1.Dados_cont_historicos'!AD$4,'3.Índices_inflação'!$A$2:$BA$105,$BW15,FALSE)) -> -43150.31042 | AE15: ='1.Dados_cont_historicos'!AE15*(1+VLOOKUP('1.Dados_cont_historicos'!AE$4,'3.Índices_inflação'!$A$2:$BA$105,$BW15,FALSE)) -> -44391.36911 | AF15: ='1.Dados_cont_historicos'!AF15*(1+VLOOKUP('1.Dados_cont_historicos'!AF$4,'3.Índices_inflação'!$A$2:$BA$105,$BW15,FALSE)) -> -61912.38497 | AG15: ='1.Dados_cont_historicos'!AG15*(1+VLOOKUP('1.Dados_cont_historicos'!AG$4,'3.Índices_inflação'!$A$2:$BA$105,$BW15,FALSE)) -> -55522.92907 | AH15: ='1.Dados_cont_historicos'!AH15*(1+VLOOKUP('1.Dados_cont_historicos'!AH$4,'3.Índices_inflação'!$A$2:$BA$105,$BW15,FALSE)) -> -52217.50762 | AI15: ='1.Dados_cont_historicos'!AI15*(1+VLOOKUP('1.Dados_cont_historicos'!AI$4,'3.Índices_inflação'!$A$2:$BA$105,$BW15,FALSE)) -> -49832.31085 | AJ15: ='1.Dados_cont_historicos'!AJ15*(1+VLOOKUP('1.Dados_cont_historicos'!AJ$4,'3.Índices_inflação'!$A$2:$BA$105,$BW15,FALSE)) -> -45923.20947 | AK15: ='1.Dados_cont_historicos'!AK15*(1+VLOOKUP('1.Dados_cont_historicos'!AK$4,'3.Índices_inflação'!$A$2:$BA$105,$BW15,FALSE)) -> -46931.01605 | AL15: ='1.Dados_cont_historicos'!AL15*(1+VLOOKUP('1.Dados_cont_historicos'!AL$4,'3.Índices_inflação'!$A$2:$BA$105,$BW15,FALSE)) -> -52468.04672 | AM15: ='1.Dados_cont_historicos'!AM15*(1+VLOOKUP('1.Dados_cont_historicos'!AM$4,'3.Índices_inflação'!$A$2:$BA$105,$BW15,FALSE)) -> -48311.12735 | AN15: ='1.Dados_cont_historicos'!AN15*(1+VLOOKUP('1.Dados_cont_historicos'!AN$4,'3.Índices_inflação'!$A$2:$BA$105,$BW15,FALSE)) -> -15079.4012 | AO15: ='1.Dados_cont_historicos'!AO15*(1+VLOOKUP('1.Dados_cont_historicos'!AO$4,'3.Índices_inflação'!$A$2:$BA$105,$BW15,FALSE)) -> -45939.81279 | AP15: -561679.4256 | AQ15: ='1.Dados_cont_historicos'!AQ15*(1+VLOOKUP('1.Dados_cont_historicos'!AQ$4,'3.Índices_inflação'!$A$2:$BA$105,$BW15,FALSE)) -> -50356.23819 | AR15: ='1.Dados_cont_historicos'!AR15*(1+VLOOKUP('1.Dados_cont_historicos'!AR$4,'3.Índices_inflação'!$A$2:$BA$105,$BW15,FALSE)) -> -55723.06837 | AS15: ='1.Dados_cont_historicos'!AS15*(1+VLOOKUP('1.Dados_cont_historicos'!AS$4,'3.Índices_inflação'!$A$2:$BA$105,$BW15,FALSE)) -> -50777.35194 | AT15: ='1.Dados_cont_historicos'!AT15*(1+VLOOKUP('1.Dados_cont_historicos'!AT$4,'3.Índices_inflação'!$A$2:$BA$105,$BW15,FALSE)) -> -28934.72968 | AU15: ='1.Dados_cont_historicos'!AU15*(1+VLOOKUP('1.Dados_cont_historicos'!AU$4,'3.Índices_inflação'!$A$2:$BA$105,$BW15,FALSE)) -> -28329.2922 | AV15: ='1.Dados_cont_historicos'!AV15*(1+VLOOKUP('1.Dados_cont_historicos'!AV$4,'3.Índices_inflação'!$A$2:$BA$105,$BW15,FALSE)) -> -36981.75723 | AW15: ='1.Dados_cont_historicos'!AW15*(1+VLOOKUP('1.Dados_cont_historicos'!AW$4,'3.Índices_inflação'!$A$2:$BA$105,$BW15,FALSE)) -> -55868.54841 | AX15: ='1.Dados_cont_historicos'!AX15*(1+VLOOKUP('1.Dados_cont_historicos'!AX$4,'3.Índices_inflação'!$A$2:$BA$105,$BW15,FALSE)) -> -45836.33333 | AY15: ='1.Dados_cont_historicos'!AY15*(1+VLOOKUP('1.Dados_cont_historicos'!AY$4,'3.Índices_inflação'!$A$2:$BA$105,$BW15,FALSE)) -> -49735.01063 | AZ15: ='1.Dados_cont_historicos'!AZ15*(1+VLOOKUP('1.Dados_cont_historicos'!AZ$4,'3.Índices_inflação'!$A$2:$BA$105,$BW15,FALSE)) -> -50890.60886 | BA15: ='1.Dados_cont_historicos'!BA15*(1+VLOOKUP('1.Dados_cont_historicos'!BA$4,'3.Índices_inflação'!$A$2:$BA$105,$BW15,FALSE)) -> -62632.11481 | BB15: ='1.Dados_cont_historicos'!BB15*(1+VLOOKUP('1.Dados_cont_historicos'!BB$4,'3.Índices_inflação'!$A$2:$BA$105,$BW15,FALSE)) -> -58608.7596 | BC15: -574673.8133 | BD15: ='1.Dados_cont_historicos'!BD15*(1+VLOOKUP('1.Dados_cont_historicos'!BD$4,'3.Índices_inflação'!$A$2:$BA$105,$BW15,FALSE)) -> -50835.24461 | BE15: ='1.Dados_cont_historicos'!BE15*(1+VLOOKUP('1.Dados_cont_historicos'!BE$4,'3.Índices_inflação'!$A$2:$BA$105,$BW15,FALSE)) -> -55321.09218 | BF15: ='1.Dados_cont_historicos'!BF15*(1+VLOOKUP('1.Dados_cont_historicos'!BF$4,'3.Índices_inflação'!$A$2:$BA$105,$BW15,FALSE)) -> -56638.54177 | BG15: ='1.Dados_cont_historicos'!BG15*(1+VLOOKUP('1.Dados_cont_historicos'!BG$4,'3.Índices_inflação'!$A$2:$BA$105,$BW15,FALSE)) -> -55207.67023 | BH15: ='1.Dados_cont_historicos'!BH15*(1+VLOOKUP('1.Dados_cont_historicos'!BH$4,'3.Índices_inflação'!$A$2:$BA$105,$BW15,FALSE)) -> -54981.36524 | BI15: ='1.Dados_cont_historicos'!BI15*(1+VLOOKUP('1.Dados_cont_historicos'!BI$4,'3.Índices_inflação'!$A$2:$BA$105,$BW15,FALSE)) -> -54985.99891 | BJ15: ='1.Dados_cont_historicos'!BJ15*(1+VLOOKUP('1.Dados_cont_historicos'!BJ$4,'3.Índices_inflação'!$A$2:$BA$105,$BW15,FALSE)) -> -54550.27667 | BM15: -542702.3768 | BN15: -649572.364 | BO15: -561679.4256 | BP15: -574673.8133 | BQ15: -629911.4485 | BR15: -624694.2433 | BS15: -515700.3901 | BT15: -650223.0168 | BV15: IPCA | BW15: 28
C16: Juros por impontualidade, rendimentos de aplicações e outras | D16: ='1.Dados_cont_historicos'!D16*(1+VLOOKUP('1.Dados_cont_historicos'!D$4,'3.Índices_inflação'!$A$2:$BA$105,$BW16,FALSE)) -> -349564.8455 | E16: ='1.Dados_cont_historicos'!E16*(1+VLOOKUP('1.Dados_cont_historicos'!E$4,'3.Índices_inflação'!$A$2:$BA$105,$BW16,FALSE)) -> -249662.4792 | F16: ='1.Dados_cont_historicos'!F16*(1+VLOOKUP('1.Dados_cont_historicos'!F$4,'3.Índices_inflação'!$A$2:$BA$105,$BW16,FALSE)) -> -413241.3618 | G16: ='1.Dados_cont_historicos'!G16*(1+VLOOKUP('1.Dados_cont_historicos'!G$4,'3.Índices_inflação'!$A$2:$BA$105,$BW16,FALSE)) -> -280011.1728 | H16: ='1.Dados_cont_historicos'!H16*(1+VLOOKUP('1.Dados_cont_historicos'!H$4,'3.Índices_inflação'!$A$2:$BA$105,$BW16,FALSE)) -> -296996.8686 | I16: ='1.Dados_cont_historicos'!I16*(1+VLOOKUP('1.Dados_cont_historicos'!I$4,'3.Índices_inflação'!$A$2:$BA$105,$BW16,FALSE)) -> -245720.3672 | J16: ='1.Dados_cont_historicos'!J16*(1+VLOOKUP('1.Dados_cont_historicos'!J$4,'3.Índices_inflação'!$A$2:$BA$105,$BW16,FALSE)) -> -165036.4357 | K16: ='1.Dados_cont_historicos'!K16*(1+VLOOKUP('1.Dados_cont_historicos'!K$4,'3.Índices_inflação'!$A$2:$BA$105,$BW16,FALSE)) -> -166460.5351 | L16: ='1.Dados_cont_historicos'!L16*(1+VLOOKUP('1.Dados_cont_historicos'!L$4,'3.Índices_inflação'!$A$2:$BA$105,$BW16,FALSE)) -> -76213.34815 | M16: ='1.Dados_cont_historicos'!M16*(1+VLOOKUP('1.Dados_cont_historicos'!M$4,'3.Índices_inflação'!$A$2:$BA$105,$BW16,FALSE)) -> -166408.8869 | N16: ='1.Dados_cont_historicos'!N16*(1+VLOOKUP('1.Dados_cont_historicos'!N$4,'3.Índices_inflação'!$A$2:$BA$105,$BW16,FALSE)) -> -162354.1068 | O16: ='1.Dados_cont_historicos'!O16*(1+VLOOKUP('1.Dados_cont_historicos'!O$4,'3.Índices_inflação'!$A$2:$BA$105,$BW16,FALSE)) -> -138627.2688 | P16: -2710297.677 | Q16: ='1.Dados_cont_historicos'!Q16*(1+VLOOKUP('1.Dados_cont_historicos'!Q$4,'3.Índices_inflação'!$A$2:$BA$105,$BW16,FALSE)) -> -88582.33491 | R16: ='1.Dados_cont_historicos'!R16*(1+VLOOKUP('1.Dados_cont_historicos'!R$4,'3.Índices_inflação'!$A$2:$BA$105,$BW16,FALSE)) -> -83483.92573 | S16: ='1.Dados_cont_historicos'!S16*(1+VLOOKUP('1.Dados_cont_historicos'!S$4,'3.Índices_inflação'!$A$2:$BA$105,$BW16,FALSE)) -> -74035.66122 | T16: ='1.Dados_cont_historicos'!T16*(1+VLOOKUP('1.Dados_cont_historicos'!T$4,'3.Índices_inflação'!$A$2:$BA$105,$BW16,FALSE)) -> -156066.2399 | U16: ='1.Dados_cont_historicos'!U16*(1+VLOOKUP('1.Dados_cont_historicos'!U$4,'3.Índices_inflação'!$A$2:$BA$105,$BW16,FALSE)) -> -142933.4573 | V16: ='1.Dados_cont_historicos'!V16*(1+VLOOKUP('1.Dados_cont_historicos'!V$4,'3.Índices_inflação'!$A$2:$BA$105,$BW16,FALSE)) -> -122664.377 | W16: ='1.Dados_cont_historicos'!W16*(1+VLOOKUP('1.Dados_cont_historicos'!W$4,'3.Índices_inflação'!$A$2:$BA$105,$BW16,FALSE)) -> -94424.70099 | X16: ='1.Dados_cont_historicos'!X16*(1+VLOOKUP('1.Dados_cont_historicos'!X$4,'3.Índices_inflação'!$A$2:$BA$105,$BW16,FALSE)) -> -83813.98576 | Y16: ='1.Dados_cont_historicos'!Y16*(1+VLOOKUP('1.Dados_cont_historicos'!Y$4,'3.Índices_inflação'!$A$2:$BA$105,$BW16,FALSE)) -> -148585.2358 | Z16: ='1.Dados_cont_historicos'!Z16*(1+VLOOKUP('1.Dados_cont_historicos'!Z$4,'3.Índices_inflação'!$A$2:$BA$105,$BW16,FALSE)) -> -105280.7001 | AA16: ='1.Dados_cont_historicos'!AA16*(1+VLOOKUP('1.Dados_cont_historicos'!AA$4,'3.Índices_inflação'!$A$2:$BA$105,$BW16,FALSE)) -> -80849.62781 | AB16: ='1.Dados_cont_historicos'!AB16*(1+VLOOKUP('1.Dados_cont_historicos'!AB$4,'3.Índices_inflação'!$A$2:$BA$105,$BW16,FALSE)) -> -90905.28731 | AC16: -1271625.534 | AD16: ='1.Dados_cont_historicos'!AD16*(1+VLOOKUP('1.Dados_cont_historicos'!AD$4,'3.Índices_inflação'!$A$2:$BA$105,$BW16,FALSE)) -> -76240.06457 | AE16: ='1.Dados_cont_historicos'!AE16*(1+VLOOKUP('1.Dados_cont_historicos'!AE$4,'3.Índices_inflação'!$A$2:$BA$105,$BW16,FALSE)) -> -78298.79177 | AF16: ='1.Dados_cont_historicos'!AF16*(1+VLOOKUP('1.Dados_cont_historicos'!AF$4,'3.Índices_inflação'!$A$2:$BA$105,$BW16,FALSE)) -> 1366.046437 | AG16: ='1.Dados_cont_historicos'!AG16*(1+VLOOKUP('1.Dados_cont_historicos'!AG$4,'3.Índices_inflação'!$A$2:$BA$105,$BW16,FALSE)) -> -131764.3989 | AH16: ='1.Dados_cont_historicos'!AH16*(1+VLOOKUP('1.Dados_cont_historicos'!AH$4,'3.Índices_inflação'!$A$2:$BA$105,$BW16,FALSE)) -> -121188.4553 | AI16: ='1.Dados_cont_historicos'!AI16*(1+VLOOKUP('1.Dados_cont_historicos'!AI$4,'3.Índices_inflação'!$A$2:$BA$105,$BW16,FALSE)) -> -59883.11236 | AJ16: ='1.Dados_cont_historicos'!AJ16*(1+VLOOKUP('1.Dados_cont_historicos'!AJ$4,'3.Índices_inflação'!$A$2:$BA$105,$BW16,FALSE)) -> -53978.54437 | AK16: ='1.Dados_cont_historicos'!AK16*(1+VLOOKUP('1.Dados_cont_historicos'!AK$4,'3.Índices_inflação'!$A$2:$BA$105,$BW16,FALSE)) -> -72283.56741 | AL16: ='1.Dados_cont_historicos'!AL16*(1+VLOOKUP('1.Dados_cont_historicos'!AL$4,'3.Índices_inflação'!$A$2:$BA$105,$BW16,FALSE)) -> -116410.6076 | AM16: ='1.Dados_cont_historicos'!AM16*(1+VLOOKUP('1.Dados_cont_historicos'!AM$4,'3.Índices_inflação'!$A$2:$BA$105,$BW16,FALSE)) -> -99433.72555 | AN16: ='1.Dados_cont_historicos'!AN16*(1+VLOOKUP('1.Dados_cont_historicos'!AN$4,'3.Índices_inflação'!$A$2:$BA$105,$BW16,FALSE)) -> -73824.89961 | AO16: ='1.Dados_cont_historicos'!AO16*(1+VLOOKUP('1.Dados_cont_historicos'!AO$4,'3.Índices_inflação'!$A$2:$BA$105,$BW16,FALSE)) -> -63688.29375 | AP16: -945628.4148 | AQ16: ='1.Dados_cont_historicos'!AQ16*(1+VLOOKUP('1.Dados_cont_historicos'!AQ$4,'3.Índices_inflação'!$A$2:$BA$105,$BW16,FALSE)) -> -85102.08075 | AR16: ='1.Dados_cont_historicos'!AR16*(1+VLOOKUP('1.Dados_cont_historicos'!AR$4,'3.Índices_inflação'!$A$2:$BA$105,$BW16,FALSE)) -> -57292.91051 | AS16: ='1.Dados_cont_historicos'!AS16*(1+VLOOKUP('1.Dados_cont_historicos'!AS$4,'3.Índices_inflação'!$A$2:$BA$105,$BW16,FALSE)) -> -46393.21172 | AT16: ='1.Dados_cont_historicos'!AT16*(1+VLOOKUP('1.Dados_cont_historicos'!AT$4,'3.Índices_inflação'!$A$2:$BA$105,$BW16,FALSE)) -> -87968.84682 | AU16: ='1.Dados_cont_historicos'!AU16*(1+VLOOKUP('1.Dados_cont_historicos'!AU$4,'3.Índices_inflação'!$A$2:$BA$105,$BW16,FALSE)) -> -74856.58484 | AV16: ='1.Dados_cont_historicos'!AV16*(1+VLOOKUP('1.Dados_cont_historicos'!AV$4,'3.Índices_inflação'!$A$2:$BA$105,$BW16,FALSE)) -> -65905.16488 | AW16: ='1.Dados_cont_historicos'!AW16*(1+VLOOKUP('1.Dados_cont_historicos'!AW$4,'3.Índices_inflação'!$A$2:$BA$105,$BW16,FALSE)) -> -58928.21097 | AX16: ='1.Dados_cont_historicos'!AX16*(1+VLOOKUP('1.Dados_cont_historicos'!AX$4,'3.Índices_inflação'!$A$2:$BA$105,$BW16,FALSE)) -> -56291.24079 | AY16: ='1.Dados_cont_historicos'!AY16*(1+VLOOKUP('1.Dados_cont_historicos'!AY$4,'3.Índices_inflação'!$A$2:$BA$105,$BW16,FALSE)) -> -80622.86699 | AZ16: ='1.Dados_cont_historicos'!AZ16*(1+VLOOKUP('1.Dados_cont_historicos'!AZ$4,'3.Índices_inflação'!$A$2:$BA$105,$BW16,FALSE)) -> -83120.05811 | BA16: ='1.Dados_cont_historicos'!BA16*(1+VLOOKUP('1.Dados_cont_historicos'!BA$4,'3.Índices_inflação'!$A$2:$BA$105,$BW16,FALSE)) -> -75315.79278 | BB16: ='1.Dados_cont_historicos'!BB16*(1+VLOOKUP('1.Dados_cont_historicos'!BB$4,'3.Índices_inflação'!$A$2:$BA$105,$BW16,FALSE)) -> -75313.19862 | BC16: -847110.1678 | BD16: ='1.Dados_cont_historicos'!BD16*(1+VLOOKUP('1.Dados_cont_historicos'!BD$4,'3.Índices_inflação'!$A$2:$BA$105,$BW16,FALSE)) -> -76773.8124 | BE16: ='1.Dados_cont_historicos'!BE16*(1+VLOOKUP('1.Dados_cont_historicos'!BE$4,'3.Índices_inflação'!$A$2:$BA$105,$BW16,FALSE)) -> -77584.25899 | BF16: ='1.Dados_cont_historicos'!BF16*(1+VLOOKUP('1.Dados_cont_historicos'!BF$4,'3.Índices_inflação'!$A$2:$BA$105,$BW16,FALSE)) -> -82778.56326 | BG16: ='1.Dados_cont_historicos'!BG16*(1+VLOOKUP('1.Dados_cont_historicos'!BG$4,'3.Índices_inflação'!$A$2:$BA$105,$BW16,FALSE)) -> -128945.3439 | BH16: ='1.Dados_cont_historicos'!BH16*(1+VLOOKUP('1.Dados_cont_historicos'!BH$4,'3.Índices_inflação'!$A$2:$BA$105,$BW16,FALSE)) -> -95242.78549 | BI16: ='1.Dados_cont_historicos'!BI16*(1+VLOOKUP('1.Dados_cont_historicos'!BI$4,'3.Índices_inflação'!$A$2:$BA$105,$BW16,FALSE)) -> -101181.1603 | BJ16: ='1.Dados_cont_historicos'!BJ16*(1+VLOOKUP('1.Dados_cont_historicos'!BJ$4,'3.Índices_inflação'!$A$2:$BA$105,$BW16,FALSE)) -> -107389.5633 | BM16: -2710297.677 | BN16: -1271625.534 | BO16: -945628.4148 | BP16: -847110.1678 | BQ16: -1472254.843 | BR16: -1029422.158 | BS16: -902088.1044 | BT16: -1040558.645 | BV16: IPCA | BW16: 28
C17: Outras Receitas Diversas | D17: ='1.Dados_cont_historicos'!D17*(1+VLOOKUP('1.Dados_cont_historicos'!D$4,'3.Índices_inflação'!$A$2:$BA$105,$BW17,FALSE)) -> -8938.35268 | E17: ='1.Dados_cont_historicos'!E17*(1+VLOOKUP('1.Dados_cont_historicos'!E$4,'3.Índices_inflação'!$A$2:$BA$105,$BW17,FALSE)) -> -40108.58702 | F17: ='1.Dados_cont_historicos'!F17*(1+VLOOKUP('1.Dados_cont_historicos'!F$4,'3.Índices_inflação'!$A$2:$BA$105,$BW17,FALSE)) -> -81721.58934 | G17: ='1.Dados_cont_historicos'!G17*(1+VLOOKUP('1.Dados_cont_historicos'!G$4,'3.Índices_inflação'!$A$2:$BA$105,$BW17,FALSE)) -> -10632.85331 | H17: ='1.Dados_cont_historicos'!H17*(1+VLOOKUP('1.Dados_cont_historicos'!H$4,'3.Índices_inflação'!$A$2:$BA$105,$BW17,FALSE)) -> -4666.850814 | I17: ='1.Dados_cont_historicos'!I17*(1+VLOOKUP('1.Dados_cont_historicos'!I$4,'3.Índices_inflação'!$A$2:$BA$105,$BW17,FALSE)) -> -69782.25571 | J17: ='1.Dados_cont_historicos'!J17*(1+VLOOKUP('1.Dados_cont_historicos'!J$4,'3.Índices_inflação'!$A$2:$BA$105,$BW17,FALSE)) -> -51728.19034 | K17: ='1.Dados_cont_historicos'!K17*(1+VLOOKUP('1.Dados_cont_historicos'!K$4,'3.Índices_inflação'!$A$2:$BA$105,$BW17,FALSE)) -> -16316.63944 | L17: ='1.Dados_cont_historicos'!L17*(1+VLOOKUP('1.Dados_cont_historicos'!L$4,'3.Índices_inflação'!$A$2:$BA$105,$BW17,FALSE)) -> -30704.51926 | M17: ='1.Dados_cont_historicos'!M17*(1+VLOOKUP('1.Dados_cont_historicos'!M$4,'3.Índices_inflação'!$A$2:$BA$105,$BW17,FALSE)) -> -20471.80006 | N17: ='1.Dados_cont_historicos'!N17*(1+VLOOKUP('1.Dados_cont_historicos'!N$4,'3.Índices_inflação'!$A$2:$BA$105,$BW17,FALSE)) -> -15117.3273 | O17: ='1.Dados_cont_historicos'!O17*(1+VLOOKUP('1.Dados_cont_historicos'!O$4,'3.Índices_inflação'!$A$2:$BA$105,$BW17,FALSE)) -> -7180.205219 | P17: -357369.1705 | Q17: ='1.Dados_cont_historicos'!Q17*(1+VLOOKUP('1.Dados_cont_historicos'!Q$4,'3.Índices_inflação'!$A$2:$BA$105,$BW17,FALSE)) -> -24327.38544 | R17: ='1.Dados_cont_historicos'!R17*(1+VLOOKUP('1.Dados_cont_historicos'!R$4,'3.Índices_inflação'!$A$2:$BA$105,$BW17,FALSE)) -> -17906.05474 | S17: ='1.Dados_cont_historicos'!S17*(1+VLOOKUP('1.Dados_cont_historicos'!S$4,'3.Índices_inflação'!$A$2:$BA$105,$BW17,FALSE)) -> -22453.76949 | T17: ='1.Dados_cont_historicos'!T17*(1+VLOOKUP('1.Dados_cont_historicos'!T$4,'3.Índices_inflação'!$A$2:$BA$105,$BW17,FALSE)) -> -9914.226281 | U17: ='1.Dados_cont_historicos'!U17*(1+VLOOKUP('1.Dados_cont_historicos'!U$4,'3.Índices_inflação'!$A$2:$BA$105,$BW17,FALSE)) -> -29209.09294 | V17: ='1.Dados_cont_historicos'!V17*(1+VLOOKUP('1.Dados_cont_historicos'!V$4,'3.Índices_inflação'!$A$2:$BA$105,$BW17,FALSE)) -> -2380.744113 | W17: ='1.Dados_cont_historicos'!W17*(1+VLOOKUP('1.Dados_cont_historicos'!W$4,'3.Índices_inflação'!$A$2:$BA$105,$BW17,FALSE)) -> -7869.583475 | X17: ='1.Dados_cont_historicos'!X17*(1+VLOOKUP('1.Dados_cont_historicos'!X$4,'3.Índices_inflação'!$A$2:$BA$105,$BW17,FALSE)) -> -18228.41779 | Y17: ='1.Dados_cont_historicos'!Y17*(1+VLOOKUP('1.Dados_cont_historicos'!Y$4,'3.Índices_inflação'!$A$2:$BA$105,$BW17,FALSE)) -> -30568.15323 | Z17: ='1.Dados_cont_historicos'!Z17*(1+VLOOKUP('1.Dados_cont_historicos'!Z$4,'3.Índices_inflação'!$A$2:$BA$105,$BW17,FALSE)) -> -15456.76458 | AA17: ='1.Dados_cont_historicos'!AA17*(1+VLOOKUP('1.Dados_cont_historicos'!AA$4,'3.Índices_inflação'!$A$2:$BA$105,$BW17,FALSE)) -> -28362.79153 | AB17: ='1.Dados_cont_historicos'!AB17*(1+VLOOKUP('1.Dados_cont_historicos'!AB$4,'3.Índices_inflação'!$A$2:$BA$105,$BW17,FALSE)) -> 3048.096727 | AC17: -203628.8869 | AD17: ='1.Dados_cont_historicos'!AD17*(1+VLOOKUP('1.Dados_cont_historicos'!AD$4,'3.Índices_inflação'!$A$2:$BA$105,$BW17,FALSE)) -> -3393.86878 | AE17: ='1.Dados_cont_historicos'!AE17*(1+VLOOKUP('1.Dados_cont_historicos'!AE$4,'3.Índices_inflação'!$A$2:$BA$105,$BW17,FALSE)) -> -8410.878443 | AF17: ='1.Dados_cont_historicos'!AF17*(1+VLOOKUP('1.Dados_cont_historicos'!AF$4,'3.Índices_inflação'!$A$2:$BA$105,$BW17,FALSE)) -> -6532.69367 | AG17: ='1.Dados_cont_historicos'!AG17*(1+VLOOKUP('1.Dados_cont_historicos'!AG$4,'3.Índices_inflação'!$A$2:$BA$105,$BW17,FALSE)) -> -18389.53848 | AH17: ='1.Dados_cont_historicos'!AH17*(1+VLOOKUP('1.Dados_cont_historicos'!AH$4,'3.Índices_inflação'!$A$2:$BA$105,$BW17,FALSE)) -> -15586.08385 | AI17: ='1.Dados_cont_historicos'!AI17*(1+VLOOKUP('1.Dados_cont_historicos'!AI$4,'3.Índices_inflação'!$A$2:$BA$105,$BW17,FALSE)) -> -39614.23769 | AJ17: ='1.Dados_cont_historicos'!AJ17*(1+VLOOKUP('1.Dados_cont_historicos'!AJ$4,'3.Índices_inflação'!$A$2:$BA$105,$BW17,FALSE)) -> -18041.14536 | AK17: ='1.Dados_cont_historicos'!AK17*(1+VLOOKUP('1.Dados_cont_historicos'!AK$4,'3.Índices_inflação'!$A$2:$BA$105,$BW17,FALSE)) -> -21512.44888 | AL17: ='1.Dados_cont_historicos'!AL17*(1+VLOOKUP('1.Dados_cont_historicos'!AL$4,'3.Índices_inflação'!$A$2:$BA$105,$BW17,FALSE)) -> -19565.11371 | AM17: ='1.Dados_cont_historicos'!AM17*(1+VLOOKUP('1.Dados_cont_historicos'!AM$4,'3.Índices_inflação'!$A$2:$BA$105,$BW17,FALSE)) -> -13203.10159 | AN17: ='1.Dados_cont_historicos'!AN17*(1+VLOOKUP('1.Dados_cont_historicos'!AN$4,'3.Índices_inflação'!$A$2:$BA$105,$BW17,FALSE)) -> -25551.55564 | AO17: ='1.Dados_cont_historicos'!AO17*(1+VLOOKUP('1.Dados_cont_historicos'!AO$4,'3.Índices_inflação'!$A$2:$BA$105,$BW17,FALSE)) -> -16500.98595 | AP17: -206301.652 | AQ17: ='1.Dados_cont_historicos'!AQ17*(1+VLOOKUP('1.Dados_cont_historicos'!AQ$4,'3.Índices_inflação'!$A$2:$BA$105,$BW17,FALSE)) -> -36529.36311 | AR17: ='1.Dados_cont_historicos'!AR17*(1+VLOOKUP('1.Dados_cont_historicos'!AR$4,'3.Índices_inflação'!$A$2:$BA$105,$BW17,FALSE)) -> -155747.9266 | AS17: ='1.Dados_cont_historicos'!AS17*(1+VLOOKUP('1.Dados_cont_historicos'!AS$4,'3.Índices_inflação'!$A$2:$BA$105,$BW17,FALSE)) -> -54020.84805 | AT17: ='1.Dados_cont_historicos'!AT17*(1+VLOOKUP('1.Dados_cont_historicos'!AT$4,'3.Índices_inflação'!$A$2:$BA$105,$BW17,FALSE)) -> -5620.011255 | AU17: ='1.Dados_cont_historicos'!AU17*(1+VLOOKUP('1.Dados_cont_historicos'!AU$4,'3.Índices_inflação'!$A$2:$BA$105,$BW17,FALSE)) -> -6263.215863 | AV17: ='1.Dados_cont_historicos'!AV17*(1+VLOOKUP('1.Dados_cont_historicos'!AV$4,'3.Índices_inflação'!$A$2:$BA$105,$BW17,FALSE)) -> -419132.3224 | AW17: ='1.Dados_cont_historicos'!AW17*(1+VLOOKUP('1.Dados_cont_historicos'!AW$4,'3.Índices_inflação'!$A$2:$BA$105,$BW17,FALSE)) -> -12272.16773 | AX17: ='1.Dados_cont_historicos'!AX17*(1+VLOOKUP('1.Dados_cont_historicos'!AX$4,'3.Índices_inflação'!$A$2:$BA$105,$BW17,FALSE)) -> -4981.49123 | AY17: ='1.Dados_cont_historicos'!AY17*(1+VLOOKUP('1.Dados_cont_historicos'!AY$4,'3.Índices_inflação'!$A$2:$BA$105,$BW17,FALSE)) -> -36800.2596 | AZ17: ='1.Dados_cont_historicos'!AZ17*(1+VLOOKUP('1.Dados_cont_historicos'!AZ$4,'3.Índices_inflação'!$A$2:$BA$105,$BW17,FALSE)) -> -19705.64192 | BA17: ='1.Dados_cont_historicos'!BA17*(1+VLOOKUP('1.Dados_cont_historicos'!BA$4,'3.Índices_inflação'!$A$2:$BA$105,$BW17,FALSE)) -> -14821.70982 | BB17: ='1.Dados_cont_historicos'!BB17*(1+VLOOKUP('1.Dados_cont_historicos'!BB$4,'3.Índices_inflação'!$A$2:$BA$105,$BW17,FALSE)) -> -27112.26868 | BC17: -793007.2262 | BD17: ='1.Dados_cont_historicos'!BD17*(1+VLOOKUP('1.Dados_cont_historicos'!BD$4,'3.Índices_inflação'!$A$2:$BA$105,$BW17,FALSE)) -> 9917.125045 | BE17: ='1.Dados_cont_historicos'!BE17*(1+VLOOKUP('1.Dados_cont_historicos'!BE$4,'3.Índices_inflação'!$A$2:$BA$105,$BW17,FALSE)) -> -18507.23952 | BF17: ='1.Dados_cont_historicos'!BF17*(1+VLOOKUP('1.Dados_cont_historicos'!BF$4,'3.Índices_inflação'!$A$2:$BA$105,$BW17,FALSE)) -> -51682.97564 | BG17: ='1.Dados_cont_historicos'!BG17*(1+VLOOKUP('1.Dados_cont_historicos'!BG$4,'3.Índices_inflação'!$A$2:$BA$105,$BW17,FALSE)) -> -7534.774261 | BH17: ='1.Dados_cont_historicos'!BH17*(1+VLOOKUP('1.Dados_cont_historicos'!BH$4,'3.Índices_inflação'!$A$2:$BA$105,$BW17,FALSE)) -> -25567.14861 | BI17: ='1.Dados_cont_historicos'!BI17*(1+VLOOKUP('1.Dados_cont_historicos'!BI$4,'3.Índices_inflação'!$A$2:$BA$105,$BW17,FALSE)) -> -27915.1421 | BJ17: ='1.Dados_cont_historicos'!BJ17*(1+VLOOKUP('1.Dados_cont_historicos'!BJ$4,'3.Índices_inflação'!$A$2:$BA$105,$BW17,FALSE)) -> -20198.15296 | BM17: -357369.1705 | BN17: -203628.8869 | BO17: -206301.652 | BP17: -793007.2262 | BQ17: -203851.3478 | BR17: -199536.4767 | BS17: -785919.0608 | BT17: -244909.6793 | BU17: =BT17/AVERAGE(BQ17:BS17)-1 -> -0.3822208153 | BV17: IPCA | BW17: 28
C18: Indenizações e Ressarcimentos | D18: ='1.Dados_cont_historicos'!D18*(1+VLOOKUP('1.Dados_cont_historicos'!D$4,'3.Índices_inflação'!$A$2:$BA$105,$BW18,FALSE)) -> 0 | E18: ='1.Dados_cont_historicos'!E18*(1+VLOOKUP('1.Dados_cont_historicos'!E$4,'3.Índices_inflação'!$A$2:$BA$105,$BW18,FALSE)) -> 0 | F18: ='1.Dados_cont_historicos'!F18*(1+VLOOKUP('1.Dados_cont_historicos'!F$4,'3.Índices_inflação'!$A$2:$BA$105,$BW18,FALSE)) -> 0 | G18: ='1.Dados_cont_historicos'!G18*(1+VLOOKUP('1.Dados_cont_historicos'!G$4,'3.Índices_inflação'!$A$2:$BA$105,$BW18,FALSE)) -> 0 | H18: ='1.Dados_cont_historicos'!H18*(1+VLOOKUP('1.Dados_cont_historicos'!H$4,'3.Índices_inflação'!$A$2:$BA$105,$BW18,FALSE)) -> 0 | I18: ='1.Dados_cont_historicos'!I18*(1+VLOOKUP('1.Dados_cont_historicos'!I$4,'3.Índices_inflação'!$A$2:$BA$105,$BW18,FALSE)) -> 0 | J18: ='1.Dados_cont_historicos'!J18*(1+VLOOKUP('1.Dados_cont_historicos'!J$4,'3.Índices_inflação'!$A$2:$BA$105,$BW18,FALSE)) -> 0 | K18: ='1.Dados_cont_historicos'!K18*(1+VLOOKUP('1.Dados_cont_historicos'!K$4,'3.Índices_inflação'!$A$2:$BA$105,$BW18,FALSE)) -> 0 | L18: ='1.Dados_cont_historicos'!L18*(1+VLOOKUP('1.Dados_cont_historicos'!L$4,'3.Índices_inflação'!$A$2:$BA$105,$BW18,FALSE)) -> 0 | M18: ='1.Dados_cont_historicos'!M18*(1+VLOOKUP('1.Dados_cont_historicos'!M$4,'3.Índices_inflação'!$A$2:$BA$105,$BW18,FALSE)) -> 0 | N18: ='1.Dados_cont_historicos'!N18*(1+VLOOKUP('1.Dados_cont_historicos'!N$4,'3.Índices_inflação'!$A$2:$BA$105,$BW18,FALSE)) -> 0 | O18: ='1.Dados_cont_historicos'!O18*(1+VLOOKUP('1.Dados_cont_historicos'!O$4,'3.Índices_inflação'!$A$2:$BA$105,$BW18,FALSE)) -> 0 | P18: 0 | Q18: ='1.Dados_cont_historicos'!Q18*(1+VLOOKUP('1.Dados_cont_historicos'!Q$4,'3.Índices_inflação'!$A$2:$BA$105,$BW18,FALSE)) -> 0 | R18: ='1.Dados_cont_historicos'!R18*(1+VLOOKUP('1.Dados_cont_historicos'!R$4,'3.Índices_inflação'!$A$2:$BA$105,$BW18,FALSE)) -> -93.57933452 | S18: ='1.Dados_cont_historicos'!S18*(1+VLOOKUP('1.Dados_cont_historicos'!S$4,'3.Índices_inflação'!$A$2:$BA$105,$BW18,FALSE)) -> 0 | T18: ='1.Dados_cont_historicos'!T18*(1+VLOOKUP('1.Dados_cont_historicos'!T$4,'3.Índices_inflação'!$A$2:$BA$105,$BW18,FALSE)) -> 0 | U18: ='1.Dados_cont_historicos'!U18*(1+VLOOKUP('1.Dados_cont_historicos'!U$4,'3.Índices_inflação'!$A$2:$BA$105,$BW18,FALSE)) -> -383.2878961 | V18: ='1.Dados_cont_historicos'!V18*(1+VLOOKUP('1.Dados_cont_historicos'!V$4,'3.Índices_inflação'!$A$2:$BA$105,$BW18,FALSE)) -> 0 | W18: ='1.Dados_cont_historicos'!W18*(1+VLOOKUP('1.Dados_cont_historicos'!W$4,'3.Índices_inflação'!$A$2:$BA$105,$BW18,FALSE)) -> 0 | X18: ='1.Dados_cont_historicos'!X18*(1+VLOOKUP('1.Dados_cont_historicos'!X$4,'3.Índices_inflação'!$A$2:$BA$105,$BW18,FALSE)) -> 0 | Y18: ='1.Dados_cont_historicos'!Y18*(1+VLOOKUP('1.Dados_cont_historicos'!Y$4,'3.Índices_inflação'!$A$2:$BA$105,$BW18,FALSE)) -> 0 | Z18: ='1.Dados_cont_historicos'!Z18*(1+VLOOKUP('1.Dados_cont_historicos'!Z$4,'3.Índices_inflação'!$A$2:$BA$105,$BW18,FALSE)) -> 0 | AA18: ='1.Dados_cont_historicos'!AA18*(1+VLOOKUP('1.Dados_cont_historicos'!AA$4,'3.Índices_inflação'!$A$2:$BA$105,$BW18,FALSE)) -> 0 | AB18: ='1.Dados_cont_historicos'!AB18*(1+VLOOKUP('1.Dados_cont_historicos'!AB$4,'3.Índices_inflação'!$A$2:$BA$105,$BW18,FALSE)) -> 0 | AC18: -476.8672307 | AD18: ='1.Dados_cont_historicos'!AD18*(1+VLOOKUP('1.Dados_cont_historicos'!AD$4,'3.Índices_inflação'!$A$2:$BA$105,$BW18,FALSE)) -> 0 | AE18: ='1.Dados_cont_historicos'!AE18*(1+VLOOKUP('1.Dados_cont_historicos'!AE$4,'3.Índices_inflação'!$A$2:$BA$105,$BW18,FALSE)) -> 0 | AF18: ='1.Dados_cont_historicos'!AF18*(1+VLOOKUP('1.Dados_cont_historicos'!AF$4,'3.Índices_inflação'!$A$2:$BA$105,$BW18,FALSE)) -> 0 | AG18: ='1.Dados_cont_historicos'!AG18*(1+VLOOKUP('1.Dados_cont_historicos'!AG$4,'3.Índices_inflação'!$A$2:$BA$105,$BW18,FALSE)) -> 0 | AH18: ='1.Dados_cont_historicos'!AH18*(1+VLOOKUP('1.Dados_cont_historicos'!AH$4,'3.Índices_inflação'!$A$2:$BA$105,$BW18,FALSE)) -> 0 | AI18: ='1.Dados_cont_historicos'!AI18*(1+VLOOKUP('1.Dados_cont_historicos'!AI$4,'3.Índices_inflação'!$A$2:$BA$105,$BW18,FALSE)) -> 0 | AJ18: ='1.Dados_cont_historicos'!AJ18*(1+VLOOKUP('1.Dados_cont_historicos'!AJ$4,'3.Índices_inflação'!$A$2:$BA$105,$BW18,FALSE)) -> 0 | AK18: ='1.Dados_cont_historicos'!AK18*(1+VLOOKUP('1.Dados_cont_historicos'!AK$4,'3.Índices_inflação'!$A$2:$BA$105,$BW18,FALSE)) -> 0 | AL18: ='1.Dados_cont_historicos'!AL18*(1+VLOOKUP('1.Dados_cont_historicos'!AL$4,'3.Índices_inflação'!$A$2:$BA$105,$BW18,FALSE)) -> 0 | AM18: ='1.Dados_cont_historicos'!AM18*(1+VLOOKUP('1.Dados_cont_historicos'!AM$4,'3.Índices_inflação'!$A$2:$BA$105,$BW18,FALSE)) -> 0 | AN18: ='1.Dados_cont_historicos'!AN18*(1+VLOOKUP('1.Dados_cont_historicos'!AN$4,'3.Índices_inflação'!$A$2:$BA$105,$BW18,FALSE)) -> 0 | AO18: ='1.Dados_cont_historicos'!AO18*(1+VLOOKUP('1.Dados_cont_historicos'!AO$4,'3.Índices_inflação'!$A$2:$BA$105,$BW18,FALSE)) -> 0 | AP18: 0 | AQ18: ='1.Dados_cont_historicos'!AQ18*(1+VLOOKUP('1.Dados_cont_historicos'!AQ$4,'3.Índices_inflação'!$A$2:$BA$105,$BW18,FALSE)) -> -169.5004384 | AR18: ='1.Dados_cont_historicos'!AR18*(1+VLOOKUP('1.Dados_cont_historicos'!AR$4,'3.Índices_inflação'!$A$2:$BA$105,$BW18,FALSE)) -> -5550.249217 | AS18: ='1.Dados_cont_historicos'!AS18*(1+VLOOKUP('1.Dados_cont_historicos'!AS$4,'3.Índices_inflação'!$A$2:$BA$105,$BW18,FALSE)) -> 0 | AT18: ='1.Dados_cont_historicos'!AT18*(1+VLOOKUP('1.Dados_cont_historicos'!AT$4,'3.Índices_inflação'!$A$2:$BA$105,$BW18,FALSE)) -> 0 | AU18: ='1.Dados_cont_historicos'!AU18*(1+VLOOKUP('1.Dados_cont_historicos'!AU$4,'3.Índices_inflação'!$A$2:$BA$105,$BW18,FALSE)) -> 0 | AV18: ='1.Dados_cont_historicos'!AV18*(1+VLOOKUP('1.Dados_cont_historicos'!AV$4,'3.Índices_inflação'!$A$2:$BA$105,$BW18,FALSE)) -> 0 | AW18: ='1.Dados_cont_historicos'!AW18*(1+VLOOKUP('1.Dados_cont_historicos'!AW$4,'3.Índices_inflação'!$A$2:$BA$105,$BW18,FALSE)) -> 0 | AX18: ='1.Dados_cont_historicos'!AX18*(1+VLOOKUP('1.Dados_cont_historicos'!AX$4,'3.Índices_inflação'!$A$2:$BA$105,$BW18,FALSE)) -> 269.7660191 | AY18: ='1.Dados_cont_historicos'!AY18*(1+VLOOKUP('1.Dados_cont_historicos'!AY$4,'3.Índices_inflação'!$A$2:$BA$105,$BW18,FALSE)) -> 138.5539256 | AZ18: ='1.Dados_cont_historicos'!AZ18*(1+VLOOKUP('1.Dados_cont_historicos'!AZ$4,'3.Índices_inflação'!$A$2:$BA$105,$BW18,FALSE)) -> 0 | BA18: ='1.Dados_cont_historicos'!BA18*(1+VLOOKUP('1.Dados_cont_historicos'!BA$4,'3.Índices_inflação'!$A$2:$BA$105,$BW18,FALSE)) -> -4921.274094 | BB18: ='1.Dados_cont_historicos'!BB18*(1+VLOOKUP('1.Dados_cont_historicos'!BB$4,'3.Índices_inflação'!$A$2:$BA$105,$BW18,FALSE)) -> 0 | BC18: -10232.70381 | BD18: ='1.Dados_cont_historicos'!BD18*(1+VLOOKUP('1.Dados_cont_historicos'!BD$4,'3.Índices_inflação'!$A$2:$BA$105,$BW18,FALSE)) -> 0 | BE18: ='1.Dados_cont_historicos'!BE18*(1+VLOOKUP('1.Dados_cont_historicos'!BE$4,'3.Índices_inflação'!$A$2:$BA$105,$BW18,FALSE)) -> 0 | BF18: ='1.Dados_cont_historicos'!BF18*(1+VLOOKUP('1.Dados_cont_historicos'!BF$4,'3.Índices_inflação'!$A$2:$BA$105,$BW18,FALSE)) -> 0 | BG18: ='1.Dados_cont_historicos'!BG18*(1+VLOOKUP('1.Dados_cont_historicos'!BG$4,'3.Índices_inflação'!$A$2:$BA$105,$BW18,FALSE)) -> 0 | BH18: ='1.Dados_cont_historicos'!BH18*(1+VLOOKUP('1.Dados_cont_historicos'!BH$4,'3.Índices_inflação'!$A$2:$BA$105,$BW18,FALSE)) -> 0 | BI18: ='1.Dados_cont_historicos'!BI18*(1+VLOOKUP('1.Dados_cont_historicos'!BI$4,'3.Índices_inflação'!$A$2:$BA$105,$BW18,FALSE)) -> 0 | BJ18: ='1.Dados_cont_historicos'!BJ18*(1+VLOOKUP('1.Dados_cont_historicos'!BJ$4,'3.Índices_inflação'!$A$2:$BA$105,$BW18,FALSE)) -> 0 | BM18: 0 | BN18: -476.8672307 | BO18: 0 | BP18: -10232.70381 | BQ18: -476.8672307 | BR18: 0 | BS18: -5719.749656 | BT18: -4512.95415 | BV18: IPCA | BW18: 28
C19: Outras | D19: ='1.Dados_cont_historicos'!D19*(1+VLOOKUP('1.Dados_cont_historicos'!D$4,'3.Índices_inflação'!$A$2:$BA$105,$BW19,FALSE)) -> -8938.35268 | E19: ='1.Dados_cont_historicos'!E19*(1+VLOOKUP('1.Dados_cont_historicos'!E$4,'3.Índices_inflação'!$A$2:$BA$105,$BW19,FALSE)) -> -40108.58702 | F19: ='1.Dados_cont_historicos'!F19*(1+VLOOKUP('1.Dados_cont_historicos'!F$4,'3.Índices_inflação'!$A$2:$BA$105,$BW19,FALSE)) -> -81721.58934 | G19: ='1.Dados_cont_historicos'!G19*(1+VLOOKUP('1.Dados_cont_historicos'!G$4,'3.Índices_inflação'!$A$2:$BA$105,$BW19,FALSE)) -> -10632.85331 | H19: ='1.Dados_cont_historicos'!H19*(1+VLOOKUP('1.Dados_cont_historicos'!H$4,'3.Índices_inflação'!$A$2:$BA$105,$BW19,FALSE)) -> -4666.850814 | I19: ='1.Dados_cont_historicos'!I19*(1+VLOOKUP('1.Dados_cont_historicos'!I$4,'3.Índices_inflação'!$A$2:$BA$105,$BW19,FALSE)) -> -69782.25571 | J19: ='1.Dados_cont_historicos'!J19*(1+VLOOKUP('1.Dados_cont_historicos'!J$4,'3.Índices_inflação'!$A$2:$BA$105,$BW19,FALSE)) -> -51728.19034 | K19: ='1.Dados_cont_historicos'!K19*(1+VLOOKUP('1.Dados_cont_historicos'!K$4,'3.Índices_inflação'!$A$2:$BA$105,$BW19,FALSE)) -> -16316.63944 | L19: ='1.Dados_cont_historicos'!L19*(1+VLOOKUP('1.Dados_cont_historicos'!L$4,'3.Índices_inflação'!$A$2:$BA$105,$BW19,FALSE)) -> -30704.51926 | M19: ='1.Dados_cont_historicos'!M19*(1+VLOOKUP('1.Dados_cont_historicos'!M$4,'3.Índices_inflação'!$A$2:$BA$105,$BW19,FALSE)) -> -20471.80006 | N19: ='1.Dados_cont_historicos'!N19*(1+VLOOKUP('1.Dados_cont_historicos'!N$4,'3.Índices_inflação'!$A$2:$BA$105,$BW19,FALSE)) -> -15117.3273 | O19: ='1.Dados_cont_historicos'!O19*(1+VLOOKUP('1.Dados_cont_historicos'!O$4,'3.Índices_inflação'!$A$2:$BA$105,$BW19,FALSE)) -> -7180.205219 | P19: -357369.1705 | Q19: ='1.Dados_cont_historicos'!Q19*(1+VLOOKUP('1.Dados_cont_historicos'!Q$4,'3.Índices_inflação'!$A$2:$BA$105,$BW19,FALSE)) -> -24327.38544 | R19: ='1.Dados_cont_historicos'!R19*(1+VLOOKUP('1.Dados_cont_historicos'!R$4,'3.Índices_inflação'!$A$2:$BA$105,$BW19,FALSE)) -> -17812.4754 | S19: ='1.Dados_cont_historicos'!S19*(1+VLOOKUP('1.Dados_cont_historicos'!S$4,'3.Índices_inflação'!$A$2:$BA$105,$BW19,FALSE)) -> -22453.76949 | T19: ='1.Dados_cont_historicos'!T19*(1+VLOOKUP('1.Dados_cont_historicos'!T$4,'3.Índices_inflação'!$A$2:$BA$105,$BW19,FALSE)) -> -9914.226281 | U19: ='1.Dados_cont_historicos'!U19*(1+VLOOKUP('1.Dados_cont_historicos'!U$4,'3.Índices_inflação'!$A$2:$BA$105,$BW19,FALSE)) -> -28825.80504 | V19: ='1.Dados_cont_historicos'!V19*(1+VLOOKUP('1.Dados_cont_historicos'!V$4,'3.Índices_inflação'!$A$2:$BA$105,$BW19,FALSE)) -> -2380.744113 | W19: ='1.Dados_cont_historicos'!W19*(1+VLOOKUP('1.Dados_cont_historicos'!W$4,'3.Índices_inflação'!$A$2:$BA$105,$BW19,FALSE)) -> -7869.583475 | X19: ='1.Dados_cont_historicos'!X19*(1+VLOOKUP('1.Dados_cont_historicos'!X$4,'3.Índices_inflação'!$A$2:$BA$105,$BW19,FALSE)) -> -18228.41779 | Y19: ='1.Dados_cont_historicos'!Y19*(1+VLOOKUP('1.Dados_cont_historicos'!Y$4,'3.Índices_inflação'!$A$2:$BA$105,$BW19,FALSE)) -> -30568.15323 | Z19: ='1.Dados_cont_historicos'!Z19*(1+VLOOKUP('1.Dados_cont_historicos'!Z$4,'3.Índices_inflação'!$A$2:$BA$105,$BW19,FALSE)) -> -15456.76458 | AA19: ='1.Dados_cont_historicos'!AA19*(1+VLOOKUP('1.Dados_cont_historicos'!AA$4,'3.Índices_inflação'!$A$2:$BA$105,$BW19,FALSE)) -> -28362.79153 | AB19: ='1.Dados_cont_historicos'!AB19*(1+VLOOKUP('1.Dados_cont_historicos'!AB$4,'3.Índices_inflação'!$A$2:$BA$105,$BW19,FALSE)) -> 3048.096727 | AC19: -203152.0197 | AD19: ='1.Dados_cont_historicos'!AD19*(1+VLOOKUP('1.Dados_cont_historicos'!AD$4,'3.Índices_inflação'!$A$2:$BA$105,$BW19,FALSE)) -> -3393.86878 | AE19: ='1.Dados_cont_historicos'!AE19*(1+VLOOKUP('1.Dados_cont_historicos'!AE$4,'3.Índices_inflação'!$A$2:$BA$105,$BW19,FALSE)) -> -8241.987562 | AF19: ='1.Dados_cont_historicos'!AF19*(1+VLOOKUP('1.Dados_cont_historicos'!AF$4,'3.Índices_inflação'!$A$2:$BA$105,$BW19,FALSE)) -> -6532.69367 | AG19: ='1.Dados_cont_historicos'!AG19*(1+VLOOKUP('1.Dados_cont_historicos'!AG$4,'3.Índices_inflação'!$A$2:$BA$105,$BW19,FALSE)) -> -18389.53848 | AH19: ='1.Dados_cont_historicos'!AH19*(1+VLOOKUP('1.Dados_cont_historicos'!AH$4,'3.Índices_inflação'!$A$2:$BA$105,$BW19,FALSE)) -> -15586.08385 | AI19: ='1.Dados_cont_historicos'!AI19*(1+VLOOKUP('1.Dados_cont_historicos'!AI$4,'3.Índices_inflação'!$A$2:$BA$105,$BW19,FALSE)) -> -39614.23769 | AJ19: ='1.Dados_cont_historicos'!AJ19*(1+VLOOKUP('1.Dados_cont_historicos'!AJ$4,'3.Índices_inflação'!$A$2:$BA$105,$BW19,FALSE)) -> -18041.14536 | AK19: ='1.Dados_cont_historicos'!AK19*(1+VLOOKUP('1.Dados_cont_historicos'!AK$4,'3.Índices_inflação'!$A$2:$BA$105,$BW19,FALSE)) -> -21512.44888 | AL19: ='1.Dados_cont_historicos'!AL19*(1+VLOOKUP('1.Dados_cont_historicos'!AL$4,'3.Índices_inflação'!$A$2:$BA$105,$BW19,FALSE)) -> -19565.11371 | AM19: ='1.Dados_cont_historicos'!AM19*(1+VLOOKUP('1.Dados_cont_historicos'!AM$4,'3.Índices_inflação'!$A$2:$BA$105,$BW19,FALSE)) -> -13203.10159 | AN19: ='1.Dados_cont_historicos'!AN19*(1+VLOOKUP('1.Dados_cont_historicos'!AN$4,'3.Índices_inflação'!$A$2:$BA$105,$BW19,FALSE)) -> -25551.55564 | AO19: ='1.Dados_cont_historicos'!AO19*(1+VLOOKUP('1.Dados_cont_historicos'!AO$4,'3.Índices_inflação'!$A$2:$BA$105,$BW19,FALSE)) -> -16500.98595 | AP19: -206132.7612 | AQ19: ='1.Dados_cont_historicos'!AQ19*(1+VLOOKUP('1.Dados_cont_historicos'!AQ$4,'3.Índices_inflação'!$A$2:$BA$105,$BW19,FALSE)) -> -36359.86267 | AR19: ='1.Dados_cont_historicos'!AR19*(1+VLOOKUP('1.Dados_cont_historicos'!AR$4,'3.Índices_inflação'!$A$2:$BA$105,$BW19,FALSE)) -> -150197.6774 | AS19: ='1.Dados_cont_historicos'!AS19*(1+VLOOKUP('1.Dados_cont_historicos'!AS$4,'3.Índices_inflação'!$A$2:$BA$105,$BW19,FALSE)) -> -54020.84805 | AT19: ='1.Dados_cont_historicos'!AT19*(1+VLOOKUP('1.Dados_cont_historicos'!AT$4,'3.Índices_inflação'!$A$2:$BA$105,$BW19,FALSE)) -> -5620.011255 | AU19: ='1.Dados_cont_historicos'!AU19*(1+VLOOKUP('1.Dados_cont_historicos'!AU$4,'3.Índices_inflação'!$A$2:$BA$105,$BW19,FALSE)) -> -6263.215863 | AV19: ='1.Dados_cont_historicos'!AV19*(1+VLOOKUP('1.Dados_cont_historicos'!AV$4,'3.Índices_inflação'!$A$2:$BA$105,$BW19,FALSE)) -> -419132.3224 | AW19: ='1.Dados_cont_historicos'!AW19*(1+VLOOKUP('1.Dados_cont_historicos'!AW$4,'3.Índices_inflação'!$A$2:$BA$105,$BW19,FALSE)) -> -12272.16773 | AX19: ='1.Dados_cont_historicos'!AX19*(1+VLOOKUP('1.Dados_cont_historicos'!AX$4,'3.Índices_inflação'!$A$2:$BA$105,$BW19,FALSE)) -> -5251.25725 | AY19: ='1.Dados_cont_historicos'!AY19*(1+VLOOKUP('1.Dados_cont_historicos'!AY$4,'3.Índices_inflação'!$A$2:$BA$105,$BW19,FALSE)) -> -36938.81353 | AZ19: ='1.Dados_cont_historicos'!AZ19*(1+VLOOKUP('1.Dados_cont_historicos'!AZ$4,'3.Índices_inflação'!$A$2:$BA$105,$BW19,FALSE)) -> -19705.64192 | BA19: ='1.Dados_cont_historicos'!BA19*(1+VLOOKUP('1.Dados_cont_historicos'!BA$4,'3.Índices_inflação'!$A$2:$BA$105,$BW19,FALSE)) -> -9794.974734 | BB19: ='1.Dados_cont_historicos'!BB19*(1+VLOOKUP('1.Dados_cont_historicos'!BB$4,'3.Índices_inflação'!$A$2:$BA$105,$BW19,FALSE)) -> -27216.32492 | BC19: -782773.1177 | BD19: ='1.Dados_cont_historicos'!BD19*(1+VLOOKUP('1.Dados_cont_historicos'!BD$4,'3.Índices_inflação'!$A$2:$BA$105,$BW19,FALSE)) -> 9917.125045 | BE19: ='1.Dados_cont_historicos'!BE19*(1+VLOOKUP('1.Dados_cont_historicos'!BE$4,'3.Índices_inflação'!$A$2:$BA$105,$BW19,FALSE)) -> -18507.15719 | BF19: ='1.Dados_cont_historicos'!BF19*(1+VLOOKUP('1.Dados_cont_historicos'!BF$4,'3.Índices_inflação'!$A$2:$BA$105,$BW19,FALSE)) -> -51682.97564 | BG19: ='1.Dados_cont_historicos'!BG19*(1+VLOOKUP('1.Dados_cont_historicos'!BG$4,'3.Índices_inflação'!$A$2:$BA$105,$BW19,FALSE)) -> -7534.774261 | BH19: ='1.Dados_cont_historicos'!BH19*(1+VLOOKUP('1.Dados_cont_historicos'!BH$4,'3.Índices_inflação'!$A$2:$BA$105,$BW19,FALSE)) -> -25567.12172 | BI19: ='1.Dados_cont_historicos'!BI19*(1+VLOOKUP('1.Dados_cont_historicos'!BI$4,'3.Índices_inflação'!$A$2:$BA$105,$BW19,FALSE)) -> -27915.13318 | BJ19: ='1.Dados_cont_historicos'!BJ19*(1+VLOOKUP('1.Dados_cont_historicos'!BJ$4,'3.Índices_inflação'!$A$2:$BA$105,$BW19,FALSE)) -> -20198.14111 | BM19: -357369.1705 | BN19: -203152.0197 | BO19: -206132.7612 | BP19: -782773.1177 | BQ19: -203374.4805 | BR19: -199367.5858 | BS19: -780199.3111 | BT19: -240395.1904 | BV19: IPCA | BW19: 28
C20: Total - Outras Receitas | D20: =D13+D14+D17 -> -441550.4876 | E20: -350309.8595 | F20: -554515.7409 | G20: -350908.9046 | H20: -371807.7973 | I20: -379480.8559 | J20: -290477.2234 | K20: -252124.1658 | L20: -171641.9042 | M20: -245179.7852 | N20: -249447.9191 | O20: -285207.896 | P20: -3942652.54 | Q20: -189951.2197 | R20: -177506.4812 | S20: -169177.9804 | T20: -241117.6535 | U20: -242526.9933 | V20: -188342.2656 | W20: -208202.268 | X20: -199330.7881 | Y20: -263782.6434 | Z20: -168360.8282 | AA20: -194756.3345 | AB20: -152747.579 | AC20: -2395803.035 | AD20: -144276.4587 | AE20: -165112.7443 | AF20: -87101.66527 | AG20: -236914.69 | AH20: -211486.1729 | AI20: -189478.4986 | AJ20: =AJ13+AJ14+AJ17 -> -150320.8053 | AK20: -177169.2127 | AL20: -227445.938 | AM20: -195136.4935 | AN20: -106085.7778 | AO20: -368853.5413 | AP20: -2259381.998 | AQ20: -195132.0547 | AR20: -289068.1257 | AS20: -169156.6484 | AT20: -137533.2661 | AU20: -130358.4587 | AV20: -498801.4878 | AW20: -141814.861 | AX20: -126278.3201 | AY20: -182529.5645 | AZ20: -168053.2116 | BA20: -168717.8973 | BB20: -175644.529 | BC20: -2383088.425 | BD20: -133483.9141 | BE20: -179212.2618 | BF20: -216698.6332 | BG20: -219594.6767 | BH20: -202490.5946 | BI20: -210427.6985 | BJ20: -208706.4322 | BM20: =BM13+BM14+BM17 -> -3942652.54 | BN20: -2395803.035 | BO20: -2259381.998 | BP20: -2383088.425 | BQ20: -2620426.532 | BR20: -2163669.208 | BS20: -2636555.866 | BT20: -2191837.734
C22: Aluguel | D22: ='1.Dados_cont_historicos'!D22*(1+VLOOKUP('1.Dados_cont_historicos'!D$4,'3.Índices_inflação'!$A$2:$BA$105,$BW22,FALSE)) -> 27246.01702 | E22: ='1.Dados_cont_historicos'!E22*(1+VLOOKUP('1.Dados_cont_historicos'!E$4,'3.Índices_inflação'!$A$2:$BA$105,$BW22,FALSE)) -> 24581.52173 | F22: ='1.Dados_cont_historicos'!F22*(1+VLOOKUP('1.Dados_cont_historicos'!F$4,'3.Índices_inflação'!$A$2:$BA$105,$BW22,FALSE)) -> 18603.46955 | G22: ='1.Dados_cont_historicos'!G22*(1+VLOOKUP('1.Dados_cont_historicos'!G$4,'3.Índices_inflação'!$A$2:$BA$105,$BW22,FALSE)) -> 38309.06649 | H22: ='1.Dados_cont_historicos'!H22*(1+VLOOKUP('1.Dados_cont_historicos'!H$4,'3.Índices_inflação'!$A$2:$BA$105,$BW22,FALSE)) -> 60289.30481 | I22: ='1.Dados_cont_historicos'!I22*(1+VLOOKUP('1.Dados_cont_historicos'!I$4,'3.Índices_inflação'!$A$2:$BA$105,$BW22,FALSE)) -> 33636.47012 | J22: ='1.Dados_cont_historicos'!J22*(1+VLOOKUP('1.Dados_cont_historicos'!J$4,'3.Índices_inflação'!$A$2:$BA$105,$BW22,FALSE)) -> 36302.63459 | K22: ='1.Dados_cont_historicos'!K22*(1+VLOOKUP('1.Dados_cont_historicos'!K$4,'3.Índices_inflação'!$A$2:$BA$105,$BW22,FALSE)) -> 24009.57364 | L22: ='1.Dados_cont_historicos'!L22*(1+VLOOKUP('1.Dados_cont_historicos'!L$4,'3.Índices_inflação'!$A$2:$BA$105,$BW22,FALSE)) -> 25147.9243 | M22: ='1.Dados_cont_historicos'!M22*(1+VLOOKUP('1.Dados_cont_historicos'!M$4,'3.Índices_inflação'!$A$2:$BA$105,$BW22,FALSE)) -> 24030.31595 | N22: ='1.Dados_cont_historicos'!N22*(1+VLOOKUP('1.Dados_cont_historicos'!N$4,'3.Índices_inflação'!$A$2:$BA$105,$BW22,FALSE)) -> 83330.4836 | O22: ='1.Dados_cont_historicos'!O22*(1+VLOOKUP('1.Dados_cont_historicos'!O$4,'3.Índices_inflação'!$A$2:$BA$105,$BW22,FALSE)) -> 12309.9269 | P22: =SUM(D22:O22) -> 407796.7087 | Q22: ='1.Dados_cont_historicos'!Q22*(1+VLOOKUP('1.Dados_cont_historicos'!Q$4,'3.Índices_inflação'!$A$2:$BA$105,$BW22,FALSE)) -> 24648.32304 | R22: ='1.Dados_cont_historicos'!R22*(1+VLOOKUP('1.Dados_cont_historicos'!R$4,'3.Índices_inflação'!$A$2:$BA$105,$BW22,FALSE)) -> 15215.21467 | S22: ='1.Dados_cont_historicos'!S22*(1+VLOOKUP('1.Dados_cont_historicos'!S$4,'3.Índices_inflação'!$A$2:$BA$105,$BW22,FALSE)) -> 10514.52943 | T22: ='1.Dados_cont_historicos'!T22*(1+VLOOKUP('1.Dados_cont_historicos'!T$4,'3.Índices_inflação'!$A$2:$BA$105,$BW22,FALSE)) -> 15492.72202 | U22: ='1.Dados_cont_historicos'!U22*(1+VLOOKUP('1.Dados_cont_historicos'!U$4,'3.Índices_inflação'!$A$2:$BA$105,$BW22,FALSE)) -> 18743.44689 | V22: ='1.Dados_cont_historicos'!V22*(1+VLOOKUP('1.Dados_cont_historicos'!V$4,'3.Índices_inflação'!$A$2:$BA$105,$BW22,FALSE)) -> 14664.94379 | W22: ='1.Dados_cont_historicos'!W22*(1+VLOOKUP('1.Dados_cont_historicos'!W$4,'3.Índices_inflação'!$A$2:$BA$105,$BW22,FALSE)) -> 99989.11882 | X22: ='1.Dados_cont_historicos'!X22*(1+VLOOKUP('1.Dados_cont_historicos'!X$4,'3.Índices_inflação'!$A$2:$BA$105,$BW22,FALSE)) -> 20836.33044 | Y22: ='1.Dados_cont_historicos'!Y22*(1+VLOOKUP('1.Dados_cont_historicos'!Y$4,'3.Índices_inflação'!$A$2:$BA$105,$BW22,FALSE)) -> 10226.99372 | Z22: ='1.Dados_cont_historicos'!Z22*(1+VLOOKUP('1.Dados_cont_historicos'!Z$4,'3.Índices_inflação'!$A$2:$BA$105,$BW22,FALSE)) -> 71058.42354 | AA22: ='1.Dados_cont_historicos'!AA22*(1+VLOOKUP('1.Dados_cont_historicos'!AA$4,'3.Índices_inflação'!$A$2:$BA$105,$BW22,FALSE)) -> 33060.65104 | AB22: ='1.Dados_cont_historicos'!AB22*(1+VLOOKUP('1.Dados_cont_historicos'!AB$4,'3.Índices_inflação'!$A$2:$BA$105,$BW22,FALSE)) -> 13434.1879 | AC22: =SUM(Q22:AB22) -> 347884.8853 | AD22: ='1.Dados_cont_historicos'!AD22*(1+VLOOKUP('1.Dados_cont_historicos'!AD$4,'3.Índices_inflação'!$A$2:$BA$105,$BW22,FALSE)) -> 44684.2187 | AE22: ='1.Dados_cont_historicos'!AE22*(1+VLOOKUP('1.Dados_cont_historicos'!AE$4,'3.Índices_inflação'!$A$2:$BA$105,$BW22,FALSE)) -> 27998.02557 | AF22: ='1.Dados_cont_historicos'!AF22*(1+VLOOKUP('1.Dados_cont_historicos'!AF$4,'3.Índices_inflação'!$A$2:$BA$105,$BW22,FALSE)) -> 21500.58451 | AG22: ='1.Dados_cont_historicos'!AG22*(1+VLOOKUP('1.Dados_cont_historicos'!AG$4,'3.Índices_inflação'!$A$2:$BA$105,$BW22,FALSE)) -> 23016.83787 | AH22: ='1.Dados_cont_historicos'!AH22*(1+VLOOKUP('1.Dados_cont_historicos'!AH$4,'3.Índices_inflação'!$A$2:$BA$105,$BW22,FALSE)) -> 31325.12366 | AI22: ='1.Dados_cont_historicos'!AI22*(1+VLOOKUP('1.Dados_cont_historicos'!AI$4,'3.Índices_inflação'!$A$2:$BA$105,$BW22,FALSE)) -> 15626.85179 | AJ22: ='1.Dados_cont_historicos'!AJ22*(1+VLOOKUP('1.Dados_cont_historicos'!AJ$4,'3.Índices_inflação'!$A$2:$BA$105,$BW22,FALSE)) -> 38330.00396 | AK22: ='1.Dados_cont_historicos'!AK22*(1+VLOOKUP('1.Dados_cont_historicos'!AK$4,'3.Índices_inflação'!$A$2:$BA$105,$BW22,FALSE)) -> 15546.65019 | AL22: ='1.Dados_cont_historicos'!AL22*(1+VLOOKUP('1.Dados_cont_historicos'!AL$4,'3.Índices_inflação'!$A$2:$BA$105,$BW22,FALSE)) -> 93691.45425 | AM22: ='1.Dados_cont_historicos'!AM22*(1+VLOOKUP('1.Dados_cont_historicos'!AM$4,'3.Índices_inflação'!$A$2:$BA$105,$BW22,FALSE)) -> 19154.78561 | AN22: ='1.Dados_cont_historicos'!AN22*(1+VLOOKUP('1.Dados_cont_historicos'!AN$4,'3.Índices_inflação'!$A$2:$BA$105,$BW22,FALSE)) -> 20067.73992 | AO22: ='1.Dados_cont_historicos'!AO22*(1+VLOOKUP('1.Dados_cont_historicos'!AO$4,'3.Índices_inflação'!$A$2:$BA$105,$BW22,FALSE)) -> 42884.84385 | AP22: =SUM(AD22:AO22) -> 393827.1199 | AQ22: ='1.Dados_cont_historicos'!AQ22*(1+VLOOKUP('1.Dados_cont_historicos'!AQ$4,'3.Índices_inflação'!$A$2:$BA$105,$BW22,FALSE)) -> 31501.03861 | AR22: ='1.Dados_cont_historicos'!AR22*(1+VLOOKUP('1.Dados_cont_historicos'!AR$4,'3.Índices_inflação'!$A$2:$BA$105,$BW22,FALSE)) -> 23846.6289 | AS22: ='1.Dados_cont_historicos'!AS22*(1+VLOOKUP('1.Dados_cont_historicos'!AS$4,'3.Índices_inflação'!$A$2:$BA$105,$BW22,FALSE)) -> 21652.28328 | AT22: ='1.Dados_cont_historicos'!AT22*(1+VLOOKUP('1.Dados_cont_historicos'!AT$4,'3.Índices_inflação'!$A$2:$BA$105,$BW22,FALSE)) -> 18690.63022 | AU22: ='1.Dados_cont_historicos'!AU22*(1+VLOOKUP('1.Dados_cont_historicos'!AU$4,'3.Índices_inflação'!$A$2:$BA$105,$BW22,FALSE)) -> 17100.70882 | AV22: ='1.Dados_cont_historicos'!AV22*(1+VLOOKUP('1.Dados_cont_historicos'!AV$4,'3.Índices_inflação'!$A$2:$BA$105,$BW22,FALSE)) -> 14797.57857 | AW22: ='1.Dados_cont_historicos'!AW22*(1+VLOOKUP('1.Dados_cont_historicos'!AW$4,'3.Índices_inflação'!$A$2:$BA$105,$BW22,FALSE)) -> 5622.57744 | AX22: ='1.Dados_cont_historicos'!AX22*(1+VLOOKUP('1.Dados_cont_historicos'!AX$4,'3.Índices_inflação'!$A$2:$BA$105,$BW22,FALSE)) -> 5862.843955 | AY22: ='1.Dados_cont_historicos'!AY22*(1+VLOOKUP('1.Dados_cont_historicos'!AY$4,'3.Índices_inflação'!$A$2:$BA$105,$BW22,FALSE)) -> 4927.798332 | AZ22: ='1.Dados_cont_historicos'!AZ22*(1+VLOOKUP('1.Dados_cont_historicos'!AZ$4,'3.Índices_inflação'!$A$2:$BA$105,$BW22,FALSE)) -> 21424.57677 | BA22: ='1.Dados_cont_historicos'!BA22*(1+VLOOKUP('1.Dados_cont_historicos'!BA$4,'3.Índices_inflação'!$A$2:$BA$105,$BW22,FALSE)) -> 11172.20348 | BB22: ='1.Dados_cont_historicos'!BB22*(1+VLOOKUP('1.Dados_cont_historicos'!BB$4,'3.Índices_inflação'!$A$2:$BA$105,$BW22,FALSE)) -> 23981.37437 | BC22: =SUM(AQ22:BB22) -> 200580.2427 | BD22: ='1.Dados_cont_historicos'!BD22*(1+VLOOKUP('1.Dados_cont_historicos'!BD$4,'3.Índices_inflação'!$A$2:$BA$105,$BW22,FALSE)) -> 11788.39787 | BE22: ='1.Dados_cont_historicos'!BE22*(1+VLOOKUP('1.Dados_cont_historicos'!BE$4,'3.Índices_inflação'!$A$2:$BA$105,$BW22,FALSE)) -> 28700.30873 | BF22: ='1.Dados_cont_historicos'!BF22*(1+VLOOKUP('1.Dados_cont_historicos'!BF$4,'3.Índices_inflação'!$A$2:$BA$105,$BW22,FALSE)) -> 10602.44477 | BG22: ='1.Dados_cont_historicos'!BG22*(1+VLOOKUP('1.Dados_cont_historicos'!BG$4,'3.Índices_inflação'!$A$2:$BA$105,$BW22,FALSE)) -> 14121.37387 | BH22: ='1.Dados_cont_historicos'!BH22*(1+VLOOKUP('1.Dados_cont_historicos'!BH$4,'3.Índices_inflação'!$A$2:$BA$105,$BW22,FALSE)) -> 17148.5908 | BI22: ='1.Dados_cont_historicos'!BI22*(1+VLOOKUP('1.Dados_cont_historicos'!BI$4,'3.Índices_inflação'!$A$2:$BA$105,$BW22,FALSE)) -> 15028.4208 | BJ22: ='1.Dados_cont_historicos'!BJ22*(1+VLOOKUP('1.Dados_cont_historicos'!BJ$4,'3.Índices_inflação'!$A$2:$BA$105,$BW22,FALSE)) -> 5747.960917 | BM22: 407796.7087 | BN22: 347884.8853 | BO22: 393827.1199 | BP22: 200580.2427 | BQ22: 368096.523 | BR22: 351098.2327 | BS22: 324556.9196 | BT22: =SUM(AX22:BB22,BD22:BJ22) -> 170506.2947 | BU22: =BT22/BS22-1 -> -0.4746490235 | BV22: IGP-M | BW22: 7
C23: Atendimento Telefônico | D23: ='1.Dados_cont_historicos'!D23*(1+VLOOKUP('1.Dados_cont_historicos'!D$4,'3.Índices_inflação'!$A$2:$BA$105,$BW23,FALSE)) -> 27669.8593 | E23: ='1.Dados_cont_historicos'!E23*(1+VLOOKUP('1.Dados_cont_historicos'!E$4,'3.Índices_inflação'!$A$2:$BA$105,$BW23,FALSE)) -> 26811.5519 | F23: ='1.Dados_cont_historicos'!F23*(1+VLOOKUP('1.Dados_cont_historicos'!F$4,'3.Índices_inflação'!$A$2:$BA$105,$BW23,FALSE)) -> 26788.86285 | G23: ='1.Dados_cont_historicos'!G23*(1+VLOOKUP('1.Dados_cont_historicos'!G$4,'3.Índices_inflação'!$A$2:$BA$105,$BW23,FALSE)) -> 26536.57235 | H23: ='1.Dados_cont_historicos'!H23*(1+VLOOKUP('1.Dados_cont_historicos'!H$4,'3.Índices_inflação'!$A$2:$BA$105,$BW23,FALSE)) -> 41624.67756 | I23: ='1.Dados_cont_historicos'!I23*(1+VLOOKUP('1.Dados_cont_historicos'!I$4,'3.Índices_inflação'!$A$2:$BA$105,$BW23,FALSE)) -> 11332.09978 | J23: ='1.Dados_cont_historicos'!J23*(1+VLOOKUP('1.Dados_cont_historicos'!J$4,'3.Índices_inflação'!$A$2:$BA$105,$BW23,FALSE)) -> 27216.55969 | K23: ='1.Dados_cont_historicos'!K23*(1+VLOOKUP('1.Dados_cont_historicos'!K$4,'3.Índices_inflação'!$A$2:$BA$105,$BW23,FALSE)) -> 27013.69629 | L23: ='1.Dados_cont_historicos'!L23*(1+VLOOKUP('1.Dados_cont_historicos'!L$4,'3.Índices_inflação'!$A$2:$BA$105,$BW23,FALSE)) -> 27219.05376 | M23: ='1.Dados_cont_historicos'!M23*(1+VLOOKUP('1.Dados_cont_historicos'!M$4,'3.Índices_inflação'!$A$2:$BA$105,$BW23,FALSE)) -> 26555.8849 | N23: ='1.Dados_cont_historicos'!N23*(1+VLOOKUP('1.Dados_cont_historicos'!N$4,'3.Índices_inflação'!$A$2:$BA$105,$BW23,FALSE)) -> 25475.24207 | O23: ='1.Dados_cont_historicos'!O23*(1+VLOOKUP('1.Dados_cont_historicos'!O$4,'3.Índices_inflação'!$A$2:$BA$105,$BW23,FALSE)) -> 25391.27538 | P23: 319635.3358 | Q23: ='1.Dados_cont_historicos'!Q23*(1+VLOOKUP('1.Dados_cont_historicos'!Q$4,'3.Índices_inflação'!$A$2:$BA$105,$BW23,FALSE)) -> 26639.47918 | R23: ='1.Dados_cont_historicos'!R23*(1+VLOOKUP('1.Dados_cont_historicos'!R$4,'3.Índices_inflação'!$A$2:$BA$105,$BW23,FALSE)) -> 26420.44068 | S23: ='1.Dados_cont_historicos'!S23*(1+VLOOKUP('1.Dados_cont_historicos'!S$4,'3.Índices_inflação'!$A$2:$BA$105,$BW23,FALSE)) -> 26683.33991 | T23: ='1.Dados_cont_historicos'!T23*(1+VLOOKUP('1.Dados_cont_historicos'!T$4,'3.Índices_inflação'!$A$2:$BA$105,$BW23,FALSE)) -> 26011.50061 | U23: ='1.Dados_cont_historicos'!U23*(1+VLOOKUP('1.Dados_cont_historicos'!U$4,'3.Índices_inflação'!$A$2:$BA$105,$BW23,FALSE)) -> 25707.31665 | V23: ='1.Dados_cont_historicos'!V23*(1+VLOOKUP('1.Dados_cont_historicos'!V$4,'3.Índices_inflação'!$A$2:$BA$105,$BW23,FALSE)) -> 24341.87493 | W23: ='1.Dados_cont_historicos'!W23*(1+VLOOKUP('1.Dados_cont_historicos'!W$4,'3.Índices_inflação'!$A$2:$BA$105,$BW23,FALSE)) -> 27042.6372 | X23: ='1.Dados_cont_historicos'!X23*(1+VLOOKUP('1.Dados_cont_historicos'!X$4,'3.Índices_inflação'!$A$2:$BA$105,$BW23,FALSE)) -> 24178.2549 | Y23: ='1.Dados_cont_historicos'!Y23*(1+VLOOKUP('1.Dados_cont_historicos'!Y$4,'3.Índices_inflação'!$A$2:$BA$105,$BW23,FALSE)) -> 24289.56043 | Z23: ='1.Dados_cont_historicos'!Z23*(1+VLOOKUP('1.Dados_cont_historicos'!Z$4,'3.Índices_inflação'!$A$2:$BA$105,$BW23,FALSE)) -> 25899.06225 | AA23: ='1.Dados_cont_historicos'!AA23*(1+VLOOKUP('1.Dados_cont_historicos'!AA$4,'3.Índices_inflação'!$A$2:$BA$105,$BW23,FALSE)) -> 25094.41119 | AB23: ='1.Dados_cont_historicos'!AB23*(1+VLOOKUP('1.Dados_cont_historicos'!AB$4,'3.Índices_inflação'!$A$2:$BA$105,$BW23,FALSE)) -> 24683.66533 | AC23: 306991.5433 | AD23: ='1.Dados_cont_historicos'!AD23*(1+VLOOKUP('1.Dados_cont_historicos'!AD$4,'3.Índices_inflação'!$A$2:$BA$105,$BW23,FALSE)) -> 25950.20809 | AE23: ='1.Dados_cont_historicos'!AE23*(1+VLOOKUP('1.Dados_cont_historicos'!AE$4,'3.Índices_inflação'!$A$2:$BA$105,$BW23,FALSE)) -> 25043.82658 | AF23: ='1.Dados_cont_historicos'!AF23*(1+VLOOKUP('1.Dados_cont_historicos'!AF$4,'3.Índices_inflação'!$A$2:$BA$105,$BW23,FALSE)) -> 25717.20017 | AG23: ='1.Dados_cont_historicos'!AG23*(1+VLOOKUP('1.Dados_cont_historicos'!AG$4,'3.Índices_inflação'!$A$2:$BA$105,$BW23,FALSE)) -> 26197.08402 | AH23: ='1.Dados_cont_historicos'!AH23*(1+VLOOKUP('1.Dados_cont_historicos'!AH$4,'3.Índices_inflação'!$A$2:$BA$105,$BW23,FALSE)) -> 25285.30198 | AI23: ='1.Dados_cont_historicos'!AI23*(1+VLOOKUP('1.Dados_cont_historicos'!AI$4,'3.Índices_inflação'!$A$2:$BA$105,$BW23,FALSE)) -> 25292.00616 | AJ23: ='1.Dados_cont_historicos'!AJ23*(1+VLOOKUP('1.Dados_cont_historicos'!AJ$4,'3.Índices_inflação'!$A$2:$BA$105,$BW23,FALSE)) -> 24515.94 | AK23: ='1.Dados_cont_historicos'!AK23*(1+VLOOKUP('1.Dados_cont_historicos'!AK$4,'3.Índices_inflação'!$A$2:$BA$105,$BW23,FALSE)) -> 25319.26133 | AL23: ='1.Dados_cont_historicos'!AL23*(1+VLOOKUP('1.Dados_cont_historicos'!AL$4,'3.Índices_inflação'!$A$2:$BA$105,$BW23,FALSE)) -> 24617.92555 | AM23: ='1.Dados_cont_historicos'!AM23*(1+VLOOKUP('1.Dados_cont_historicos'!AM$4,'3.Índices_inflação'!$A$2:$BA$105,$BW23,FALSE)) -> 25149.02766 | AN23: ='1.Dados_cont_historicos'!AN23*(1+VLOOKUP('1.Dados_cont_historicos'!AN$4,'3.Índices_inflação'!$A$2:$BA$105,$BW23,FALSE)) -> 24685.03744 | AO23: ='1.Dados_cont_historicos'!AO23*(1+VLOOKUP('1.Dados_cont_historicos'!AO$4,'3.Índices_inflação'!$A$2:$BA$105,$BW23,FALSE)) -> 24512.51302 | AP23: 302285.332 | AQ23: ='1.Dados_cont_historicos'!AQ23*(1+VLOOKUP('1.Dados_cont_historicos'!AQ$4,'3.Índices_inflação'!$A$2:$BA$105,$BW23,FALSE)) -> 25090.78589 | AR23: ='1.Dados_cont_historicos'!AR23*(1+VLOOKUP('1.Dados_cont_historicos'!AR$4,'3.Índices_inflação'!$A$2:$BA$105,$BW23,FALSE)) -> 24739.27407 | AS23: ='1.Dados_cont_historicos'!AS23*(1+VLOOKUP('1.Dados_cont_historicos'!AS$4,'3.Índices_inflação'!$A$2:$BA$105,$BW23,FALSE)) -> 25029.49916 | AT23: ='1.Dados_cont_historicos'!AT23*(1+VLOOKUP('1.Dados_cont_historicos'!AT$4,'3.Índices_inflação'!$A$2:$BA$105,$BW23,FALSE)) -> 287.1519587 | AU23: ='1.Dados_cont_historicos'!AU23*(1+VLOOKUP('1.Dados_cont_historicos'!AU$4,'3.Índices_inflação'!$A$2:$BA$105,$BW23,FALSE)) -> 290.7527547 | AV23: ='1.Dados_cont_historicos'!AV23*(1+VLOOKUP('1.Dados_cont_historicos'!AV$4,'3.Índices_inflação'!$A$2:$BA$105,$BW23,FALSE)) -> 74476.6268 | AW23: ='1.Dados_cont_historicos'!AW23*(1+VLOOKUP('1.Dados_cont_historicos'!AW$4,'3.Índices_inflação'!$A$2:$BA$105,$BW23,FALSE)) -> 24690.62808 | AX23: ='1.Dados_cont_historicos'!AX23*(1+VLOOKUP('1.Dados_cont_historicos'!AX$4,'3.Índices_inflação'!$A$2:$BA$105,$BW23,FALSE)) -> 24505.90676 | AY23: ='1.Dados_cont_historicos'!AY23*(1+VLOOKUP('1.Dados_cont_historicos'!AY$4,'3.Índices_inflação'!$A$2:$BA$105,$BW23,FALSE)) -> 24415.64631 | AZ23: ='1.Dados_cont_historicos'!AZ23*(1+VLOOKUP('1.Dados_cont_historicos'!AZ$4,'3.Índices_inflação'!$A$2:$BA$105,$BW23,FALSE)) -> 24266.18408 | BA23: ='1.Dados_cont_historicos'!BA23*(1+VLOOKUP('1.Dados_cont_historicos'!BA$4,'3.Índices_inflação'!$A$2:$BA$105,$BW23,FALSE)) -> 23993.91628 | BB23: ='1.Dados_cont_historicos'!BB23*(1+VLOOKUP('1.Dados_cont_historicos'!BB$4,'3.Índices_inflação'!$A$2:$BA$105,$BW23,FALSE)) -> 23674.31306 | BC23: 295460.6852 | BD23: ='1.Dados_cont_historicos'!BD23*(1+VLOOKUP('1.Dados_cont_historicos'!BD$4,'3.Índices_inflação'!$A$2:$BA$105,$BW23,FALSE)) -> 24387.93784 | BE23: ='1.Dados_cont_historicos'!BE23*(1+VLOOKUP('1.Dados_cont_historicos'!BE$4,'3.Índices_inflação'!$A$2:$BA$105,$BW23,FALSE)) -> 24165.12948 | BF23: ='1.Dados_cont_historicos'!BF23*(1+VLOOKUP('1.Dados_cont_historicos'!BF$4,'3.Índices_inflação'!$A$2:$BA$105,$BW23,FALSE)) -> 24224.03661 | BG23: ='1.Dados_cont_historicos'!BG23*(1+VLOOKUP('1.Dados_cont_historicos'!BG$4,'3.Índices_inflação'!$A$2:$BA$105,$BW23,FALSE)) -> 24149.17417 | BH23: ='1.Dados_cont_historicos'!BH23*(1+VLOOKUP('1.Dados_cont_historicos'!BH$4,'3.Índices_inflação'!$A$2:$BA$105,$BW23,FALSE)) -> 289.6478942 | BI23: ='1.Dados_cont_historicos'!BI23*(1+VLOOKUP('1.Dados_cont_historicos'!BI$4,'3.Índices_inflação'!$A$2:$BA$105,$BW23,FALSE)) -> 74670.26603 | BJ23: ='1.Dados_cont_historicos'!BJ23*(1+VLOOKUP('1.Dados_cont_historicos'!BJ$4,'3.Índices_inflação'!$A$2:$BA$105,$BW23,FALSE)) -> 24779.51434 | BM23: 319635.3358 | BN23: 306991.5433 | BO23: 302285.332 | BP23: 295460.6852 | BQ23: 314501.7416 | BR23: 302146.5211 | BS23: 298888.4837 | BT23: 317521.6729 | BU23: 0.0623416095 | BV23: IPCA | BW23: 28
C24: Autosserviços de Água e Esgoto | D24: ='1.Dados_cont_historicos'!D24*(1+VLOOKUP('1.Dados_cont_historicos'!D$4,'3.Índices_inflação'!$A$2:$BA$105,$BW24,FALSE)) -> 5088.445718 | E24: ='1.Dados_cont_historicos'!E24*(1+VLOOKUP('1.Dados_cont_historicos'!E$4,'3.Índices_inflação'!$A$2:$BA$105,$BW24,FALSE)) -> 7207.94856 | F24: ='1.Dados_cont_historicos'!F24*(1+VLOOKUP('1.Dados_cont_historicos'!F$4,'3.Índices_inflação'!$A$2:$BA$105,$BW24,FALSE)) -> 7156.239517 | G24: ='1.Dados_cont_historicos'!G24*(1+VLOOKUP('1.Dados_cont_historicos'!G$4,'3.Índices_inflação'!$A$2:$BA$105,$BW24,FALSE)) -> 11317.61403 | H24: ='1.Dados_cont_historicos'!H24*(1+VLOOKUP('1.Dados_cont_historicos'!H$4,'3.Índices_inflação'!$A$2:$BA$105,$BW24,FALSE)) -> 10078.38192 | I24: ='1.Dados_cont_historicos'!I24*(1+VLOOKUP('1.Dados_cont_historicos'!I$4,'3.Índices_inflação'!$A$2:$BA$105,$BW24,FALSE)) -> 9762.826944 | J24: ='1.Dados_cont_historicos'!J24*(1+VLOOKUP('1.Dados_cont_historicos'!J$4,'3.Índices_inflação'!$A$2:$BA$105,$BW24,FALSE)) -> 11071.04951 | K24: ='1.Dados_cont_historicos'!K24*(1+VLOOKUP('1.Dados_cont_historicos'!K$4,'3.Índices_inflação'!$A$2:$BA$105,$BW24,FALSE)) -> 11929.69819 | L24: ='1.Dados_cont_historicos'!L24*(1+VLOOKUP('1.Dados_cont_historicos'!L$4,'3.Índices_inflação'!$A$2:$BA$105,$BW24,FALSE)) -> 8482.419621 | M24: ='1.Dados_cont_historicos'!M24*(1+VLOOKUP('1.Dados_cont_historicos'!M$4,'3.Índices_inflação'!$A$2:$BA$105,$BW24,FALSE)) -> 17862.33887 | N24: ='1.Dados_cont_historicos'!N24*(1+VLOOKUP('1.Dados_cont_historicos'!N$4,'3.Índices_inflação'!$A$2:$BA$105,$BW24,FALSE)) -> 10851.6276 | O24: ='1.Dados_cont_historicos'!O24*(1+VLOOKUP('1.Dados_cont_historicos'!O$4,'3.Índices_inflação'!$A$2:$BA$105,$BW24,FALSE)) -> 6529.562621 | P24: 117338.1531 | Q24: ='1.Dados_cont_historicos'!Q24*(1+VLOOKUP('1.Dados_cont_historicos'!Q$4,'3.Índices_inflação'!$A$2:$BA$105,$BW24,FALSE)) -> 5736.580043 | R24: ='1.Dados_cont_historicos'!R24*(1+VLOOKUP('1.Dados_cont_historicos'!R$4,'3.Índices_inflação'!$A$2:$BA$105,$BW24,FALSE)) -> 7688.507121 | S24: ='1.Dados_cont_historicos'!S24*(1+VLOOKUP('1.Dados_cont_historicos'!S$4,'3.Índices_inflação'!$A$2:$BA$105,$BW24,FALSE)) -> 4847.03096 | T24: ='1.Dados_cont_historicos'!T24*(1+VLOOKUP('1.Dados_cont_historicos'!T$4,'3.Índices_inflação'!$A$2:$BA$105,$BW24,FALSE)) -> 5696.996805 | U24: ='1.Dados_cont_historicos'!U24*(1+VLOOKUP('1.Dados_cont_historicos'!U$4,'3.Índices_inflação'!$A$2:$BA$105,$BW24,FALSE)) -> 11770.87631 | V24: ='1.Dados_cont_historicos'!V24*(1+VLOOKUP('1.Dados_cont_historicos'!V$4,'3.Índices_inflação'!$A$2:$BA$105,$BW24,FALSE)) -> 6071.902783 | W24: ='1.Dados_cont_historicos'!W24*(1+VLOOKUP('1.Dados_cont_historicos'!W$4,'3.Índices_inflação'!$A$2:$BA$105,$BW24,FALSE)) -> 6100.492033 | X24: ='1.Dados_cont_historicos'!X24*(1+VLOOKUP('1.Dados_cont_historicos'!X$4,'3.Índices_inflação'!$A$2:$BA$105,$BW24,FALSE)) -> 5632.911982 | Y24: ='1.Dados_cont_historicos'!Y24*(1+VLOOKUP('1.Dados_cont_historicos'!Y$4,'3.Índices_inflação'!$A$2:$BA$105,$BW24,FALSE)) -> 10155.08951 | Z24: ='1.Dados_cont_historicos'!Z24*(1+VLOOKUP('1.Dados_cont_historicos'!Z$4,'3.Índices_inflação'!$A$2:$BA$105,$BW24,FALSE)) -> 7232.213905 | AA24: ='1.Dados_cont_historicos'!AA24*(1+VLOOKUP('1.Dados_cont_historicos'!AA$4,'3.Índices_inflação'!$A$2:$BA$105,$BW24,FALSE)) -> 7086.924874 | AB24: ='1.Dados_cont_historicos'!AB24*(1+VLOOKUP('1.Dados_cont_historicos'!AB$4,'3.Índices_inflação'!$A$2:$BA$105,$BW24,FALSE)) -> 5247.561105 | AC24: 83267.08743 | AD24: ='1.Dados_cont_historicos'!AD24*(1+VLOOKUP('1.Dados_cont_historicos'!AD$4,'3.Índices_inflação'!$A$2:$BA$105,$BW24,FALSE)) -> 5388.332037 | AE24: ='1.Dados_cont_historicos'!AE24*(1+VLOOKUP('1.Dados_cont_historicos'!AE$4,'3.Índices_inflação'!$A$2:$BA$105,$BW24,FALSE)) -> 6306.563777 | AF24: ='1.Dados_cont_historicos'!AF24*(1+VLOOKUP('1.Dados_cont_historicos'!AF$4,'3.Índices_inflação'!$A$2:$BA$105,$BW24,FALSE)) -> 18683.60446 | AG24: ='1.Dados_cont_historicos'!AG24*(1+VLOOKUP('1.Dados_cont_historicos'!AG$4,'3.Índices_inflação'!$A$2:$BA$105,$BW24,FALSE)) -> 6285.89272 | AH24: ='1.Dados_cont_historicos'!AH24*(1+VLOOKUP('1.Dados_cont_historicos'!AH$4,'3.Índices_inflação'!$A$2:$BA$105,$BW24,FALSE)) -> 5650.921338 | AI24: ='1.Dados_cont_historicos'!AI24*(1+VLOOKUP('1.Dados_cont_historicos'!AI$4,'3.Índices_inflação'!$A$2:$BA$105,$BW24,FALSE)) -> 8116.30537 | AJ24: ='1.Dados_cont_historicos'!AJ24*(1+VLOOKUP('1.Dados_cont_historicos'!AJ$4,'3.Índices_inflação'!$A$2:$BA$105,$BW24,FALSE)) -> 5191.424025 | AK24: ='1.Dados_cont_historicos'!AK24*(1+VLOOKUP('1.Dados_cont_historicos'!AK$4,'3.Índices_inflação'!$A$2:$BA$105,$BW24,FALSE)) -> 5374.850913 | AL24: ='1.Dados_cont_historicos'!AL24*(1+VLOOKUP('1.Dados_cont_historicos'!AL$4,'3.Índices_inflação'!$A$2:$BA$105,$BW24,FALSE)) -> 8023.870843 | AM24: ='1.Dados_cont_historicos'!AM24*(1+VLOOKUP('1.Dados_cont_historicos'!AM$4,'3.Índices_inflação'!$A$2:$BA$105,$BW24,FALSE)) -> 7982.695937 | AN24: ='1.Dados_cont_historicos'!AN24*(1+VLOOKUP('1.Dados_cont_historicos'!AN$4,'3.Índices_inflação'!$A$2:$BA$105,$BW24,FALSE)) -> 8991.125801 | AO24: ='1.Dados_cont_historicos'!AO24*(1+VLOOKUP('1.Dados_cont_historicos'!AO$4,'3.Índices_inflação'!$A$2:$BA$105,$BW24,FALSE)) -> 6049.837197 | AP24: 92045.42442 | AQ24: ='1.Dados_cont_historicos'!AQ24*(1+VLOOKUP('1.Dados_cont_historicos'!AQ$4,'3.Índices_inflação'!$A$2:$BA$105,$BW24,FALSE)) -> 6096.310498 | AR24: ='1.Dados_cont_historicos'!AR24*(1+VLOOKUP('1.Dados_cont_historicos'!AR$4,'3.Índices_inflação'!$A$2:$BA$105,$BW24,FALSE)) -> 5738.548643 | AS24: ='1.Dados_cont_historicos'!AS24*(1+VLOOKUP('1.Dados_cont_historicos'!AS$4,'3.Índices_inflação'!$A$2:$BA$105,$BW24,FALSE)) -> 61382.79 | AT24: ='1.Dados_cont_historicos'!AT24*(1+VLOOKUP('1.Dados_cont_historicos'!AT$4,'3.Índices_inflação'!$A$2:$BA$105,$BW24,FALSE)) -> 5345.11 | AU24: ='1.Dados_cont_historicos'!AU24*(1+VLOOKUP('1.Dados_cont_historicos'!AU$4,'3.Índices_inflação'!$A$2:$BA$105,$BW24,FALSE)) -> 6410.25 | AV24: ='1.Dados_cont_historicos'!AV24*(1+VLOOKUP('1.Dados_cont_historicos'!AV$4,'3.Índices_inflação'!$A$2:$BA$105,$BW24,FALSE)) -> 5999.91 | AW24: ='1.Dados_cont_historicos'!AW24*(1+VLOOKUP('1.Dados_cont_historicos'!AW$4,'3.Índices_inflação'!$A$2:$BA$105,$BW24,FALSE)) -> 5766.84 | AX24: ='1.Dados_cont_historicos'!AX24*(1+VLOOKUP('1.Dados_cont_historicos'!AX$4,'3.Índices_inflação'!$A$2:$BA$105,$BW24,FALSE)) -> 5444.52 | AY24: ='1.Dados_cont_historicos'!AY24*(1+VLOOKUP('1.Dados_cont_historicos'!AY$4,'3.Índices_inflação'!$A$2:$BA$105,$BW24,FALSE)) -> 5444.89 | AZ24: ='1.Dados_cont_historicos'!AZ24*(1+VLOOKUP('1.Dados_cont_historicos'!AZ$4,'3.Índices_inflação'!$A$2:$BA$105,$BW24,FALSE)) -> 5820.3 | BA24: ='1.Dados_cont_historicos'!BA24*(1+VLOOKUP('1.Dados_cont_historicos'!BA$4,'3.Índices_inflação'!$A$2:$BA$105,$BW24,FALSE)) -> 5334.53 | BB24: ='1.Dados_cont_historicos'!BB24*(1+VLOOKUP('1.Dados_cont_historicos'!BB$4,'3.Índices_inflação'!$A$2:$BA$105,$BW24,FALSE)) -> 7314.86 | BC24: 126098.8591 | BD24: ='1.Dados_cont_historicos'!BD24*(1+VLOOKUP('1.Dados_cont_historicos'!BD$4,'3.Índices_inflação'!$A$2:$BA$105,$BW24,FALSE)) -> 5471.09 | BE24: ='1.Dados_cont_historicos'!BE24*(1+VLOOKUP('1.Dados_cont_historicos'!BE$4,'3.Índices_inflação'!$A$2:$BA$105,$BW24,FALSE)) -> 7785.77 | BF24: ='1.Dados_cont_historicos'!BF24*(1+VLOOKUP('1.Dados_cont_historicos'!BF$4,'3.Índices_inflação'!$A$2:$BA$105,$BW24,FALSE)) -> 7531.49 | BG24: ='1.Dados_cont_historicos'!BG24*(1+VLOOKUP('1.Dados_cont_historicos'!BG$4,'3.Índices_inflação'!$A$2:$BA$105,$BW24,FALSE)) -> 5597.12 | BH24: ='1.Dados_cont_historicos'!BH24*(1+VLOOKUP('1.Dados_cont_historicos'!BH$4,'3.Índices_inflação'!$A$2:$BA$105,$BW24,FALSE)) -> 6410.25 | BI24: ='1.Dados_cont_historicos'!BI24*(1+VLOOKUP('1.Dados_cont_historicos'!BI$4,'3.Índices_inflação'!$A$2:$BA$105,$BW24,FALSE)) -> 5999.91 | BJ24: ='1.Dados_cont_historicos'!BJ24*(1+VLOOKUP('1.Dados_cont_historicos'!BJ$4,'3.Índices_inflação'!$A$2:$BA$105,$BW24,FALSE)) -> 5766.84 | BM24: 117338.1531 | BN24: 83267.08743 | BO24: 92045.42442 | BP24: 126098.8591 | BQ24: 103568.033 | BR24: 90977.7451 | BS24: 133162.1398 | BT24: 73921.57 | BU24: -0.4448754722 | BV24: ETM | BW24: 50
C25: Combustíveis e Lubrificantes | D25: ='1.Dados_cont_historicos'!D25*(1+VLOOKUP('1.Dados_cont_historicos'!D$4,'3.Índices_inflação'!$A$2:$BA$105,$BW25,FALSE)) -> 118454.7968 | E25: ='1.Dados_cont_historicos'!E25*(1+VLOOKUP('1.Dados_cont_historicos'!E$4,'3.Índices_inflação'!$A$2:$BA$105,$BW25,FALSE)) -> 77810.4573 | F25: ='1.Dados_cont_historicos'!F25*(1+VLOOKUP('1.Dados_cont_historicos'!F$4,'3.Índices_inflação'!$A$2:$BA$105,$BW25,FALSE)) -> 113343.3502 | G25: ='1.Dados_cont_historicos'!G25*(1+VLOOKUP('1.Dados_cont_historicos'!G$4,'3.Índices_inflação'!$A$2:$BA$105,$BW25,FALSE)) -> 93688.28564 | H25: ='1.Dados_cont_historicos'!H25*(1+VLOOKUP('1.Dados_cont_historicos'!H$4,'3.Índices_inflação'!$A$2:$BA$105,$BW25,FALSE)) -> 130215.6377 | I25: ='1.Dados_cont_historicos'!I25*(1+VLOOKUP('1.Dados_cont_historicos'!I$4,'3.Índices_inflação'!$A$2:$BA$105,$BW25,FALSE)) -> 134376.9917 | J25: ='1.Dados_cont_historicos'!J25*(1+VLOOKUP('1.Dados_cont_historicos'!J$4,'3.Índices_inflação'!$A$2:$BA$105,$BW25,FALSE)) -> 114043.6875 | K25: ='1.Dados_cont_historicos'!K25*(1+VLOOKUP('1.Dados_cont_historicos'!K$4,'3.Índices_inflação'!$A$2:$BA$105,$BW25,FALSE)) -> 190243.4409 | L25: ='1.Dados_cont_historicos'!L25*(1+VLOOKUP('1.Dados_cont_historicos'!L$4,'3.Índices_inflação'!$A$2:$BA$105,$BW25,FALSE)) -> 121523.5645 | M25: ='1.Dados_cont_historicos'!M25*(1+VLOOKUP('1.Dados_cont_historicos'!M$4,'3.Índices_inflação'!$A$2:$BA$105,$BW25,FALSE)) -> 84159.37915 | N25: ='1.Dados_cont_historicos'!N25*(1+VLOOKUP('1.Dados_cont_historicos'!N$4,'3.Índices_inflação'!$A$2:$BA$105,$BW25,FALSE)) -> 137693.6318 | O25: ='1.Dados_cont_historicos'!O25*(1+VLOOKUP('1.Dados_cont_historicos'!O$4,'3.Índices_inflação'!$A$2:$BA$105,$BW25,FALSE)) -> 137143.7715 | P25: 1452696.995 | Q25: ='1.Dados_cont_historicos'!Q25*(1+VLOOKUP('1.Dados_cont_historicos'!Q$4,'3.Índices_inflação'!$A$2:$BA$105,$BW25,FALSE)) -> 143660.191 | R25: ='1.Dados_cont_historicos'!R25*(1+VLOOKUP('1.Dados_cont_historicos'!R$4,'3.Índices_inflação'!$A$2:$BA$105,$BW25,FALSE)) -> 86127.89027 | S25: ='1.Dados_cont_historicos'!S25*(1+VLOOKUP('1.Dados_cont_historicos'!S$4,'3.Índices_inflação'!$A$2:$BA$105,$BW25,FALSE)) -> 140744.6279 | T25: ='1.Dados_cont_historicos'!T25*(1+VLOOKUP('1.Dados_cont_historicos'!T$4,'3.Índices_inflação'!$A$2:$BA$105,$BW25,FALSE)) -> 129919.8596 | U25: ='1.Dados_cont_historicos'!U25*(1+VLOOKUP('1.Dados_cont_historicos'!U$4,'3.Índices_inflação'!$A$2:$BA$105,$BW25,FALSE)) -> 141902.6172 | V25: ='1.Dados_cont_historicos'!V25*(1+VLOOKUP('1.Dados_cont_historicos'!V$4,'3.Índices_inflação'!$A$2:$BA$105,$BW25,FALSE)) -> 123432.221 | W25: ='1.Dados_cont_historicos'!W25*(1+VLOOKUP('1.Dados_cont_historicos'!W$4,'3.Índices_inflação'!$A$2:$BA$105,$BW25,FALSE)) -> 137197.0778 | X25: ='1.Dados_cont_historicos'!X25*(1+VLOOKUP('1.Dados_cont_historicos'!X$4,'3.Índices_inflação'!$A$2:$BA$105,$BW25,FALSE)) -> 177426.4664 | Y25: ='1.Dados_cont_historicos'!Y25*(1+VLOOKUP('1.Dados_cont_historicos'!Y$4,'3.Índices_inflação'!$A$2:$BA$105,$BW25,FALSE)) -> 105968.9376 | Z25: ='1.Dados_cont_historicos'!Z25*(1+VLOOKUP('1.Dados_cont_historicos'!Z$4,'3.Índices_inflação'!$A$2:$BA$105,$BW25,FALSE)) -> 142762.4993 | AA25: ='1.Dados_cont_historicos'!AA25*(1+VLOOKUP('1.Dados_cont_historicos'!AA$4,'3.Índices_inflação'!$A$2:$BA$105,$BW25,FALSE)) -> 139906.1827 | AB25: ='1.Dados_cont_historicos'!AB25*(1+VLOOKUP('1.Dados_cont_historicos'!AB$4,'3.Índices_inflação'!$A$2:$BA$105,$BW25,FALSE)) -> 163781.4165 | AC25: 1632829.987 | AD25: ='1.Dados_cont_historicos'!AD25*(1+VLOOKUP('1.Dados_cont_historicos'!AD$4,'3.Índices_inflação'!$A$2:$BA$105,$BW25,FALSE)) -> 75904.60135 | AE25: ='1.Dados_cont_historicos'!AE25*(1+VLOOKUP('1.Dados_cont_historicos'!AE$4,'3.Índices_inflação'!$A$2:$BA$105,$BW25,FALSE)) -> 151364.1712 | AF25: ='1.Dados_cont_historicos'!AF25*(1+VLOOKUP('1.Dados_cont_historicos'!AF$4,'3.Índices_inflação'!$A$2:$BA$105,$BW25,FALSE)) -> 146064.945 | AG25: ='1.Dados_cont_historicos'!AG25*(1+VLOOKUP('1.Dados_cont_historicos'!AG$4,'3.Índices_inflação'!$A$2:$BA$105,$BW25,FALSE)) -> 151767.8533 | AH25: ='1.Dados_cont_historicos'!AH25*(1+VLOOKUP('1.Dados_cont_historicos'!AH$4,'3.Índices_inflação'!$A$2:$BA$105,$BW25,FALSE)) -> 152692.7155 | AI25: ='1.Dados_cont_historicos'!AI25*(1+VLOOKUP('1.Dados_cont_historicos'!AI$4,'3.Índices_inflação'!$A$2:$BA$105,$BW25,FALSE)) -> 121554.2866 | AJ25: ='1.Dados_cont_historicos'!AJ25*(1+VLOOKUP('1.Dados_cont_historicos'!AJ$4,'3.Índices_inflação'!$A$2:$BA$105,$BW25,FALSE)) -> 177153.3803 | AK25: ='1.Dados_cont_historicos'!AK25*(1+VLOOKUP('1.Dados_cont_historicos'!AK$4,'3.Índices_inflação'!$A$2:$BA$105,$BW25,FALSE)) -> 128211.9278 | AL25: ='1.Dados_cont_historicos'!AL25*(1+VLOOKUP('1.Dados_cont_historicos'!AL$4,'3.Índices_inflação'!$A$2:$BA$105,$BW25,FALSE)) -> 169000.7044 | AM25: ='1.Dados_cont_historicos'!AM25*(1+VLOOKUP('1.Dados_cont_historicos'!AM$4,'3.Índices_inflação'!$A$2:$BA$105,$BW25,FALSE)) -> 147246.7739 | AN25: ='1.Dados_cont_historicos'!AN25*(1+VLOOKUP('1.Dados_cont_historicos'!AN$4,'3.Índices_inflação'!$A$2:$BA$105,$BW25,FALSE)) -> 155155.6771 | AO25: ='1.Dados_cont_historicos'!AO25*(1+VLOOKUP('1.Dados_cont_historicos'!AO$4,'3.Índices_inflação'!$A$2:$BA$105,$BW25,FALSE)) -> 245785.3466 | AP25: 1821902.383 | AQ25: ='1.Dados_cont_historicos'!AQ25*(1+VLOOKUP('1.Dados_cont_historicos'!AQ$4,'3.Índices_inflação'!$A$2:$BA$105,$BW25,FALSE)) -> 118920.2921 | AR25: ='1.Dados_cont_historicos'!AR25*(1+VLOOKUP('1.Dados_cont_historicos'!AR$4,'3.Índices_inflação'!$A$2:$BA$105,$BW25,FALSE)) -> 113617.2675 | AS25: ='1.Dados_cont_historicos'!AS25*(1+VLOOKUP('1.Dados_cont_historicos'!AS$4,'3.Índices_inflação'!$A$2:$BA$105,$BW25,FALSE)) -> 124209.5226 | AT25: ='1.Dados_cont_historicos'!AT25*(1+VLOOKUP('1.Dados_cont_historicos'!AT$4,'3.Índices_inflação'!$A$2:$BA$105,$BW25,FALSE)) -> 136539.1397 | AU25: ='1.Dados_cont_historicos'!AU25*(1+VLOOKUP('1.Dados_cont_historicos'!AU$4,'3.Índices_inflação'!$A$2:$BA$105,$BW25,FALSE)) -> 162439.0916 | AV25: ='1.Dados_cont_historicos'!AV25*(1+VLOOKUP('1.Dados_cont_historicos'!AV$4,'3.Índices_inflação'!$A$2:$BA$105,$BW25,FALSE)) -> 165242.8462 | AW25: ='1.Dados_cont_historicos'!AW25*(1+VLOOKUP('1.Dados_cont_historicos'!AW$4,'3.Índices_inflação'!$A$2:$BA$105,$BW25,FALSE)) -> 148279.8282 | AX25: ='1.Dados_cont_historicos'!AX25*(1+VLOOKUP('1.Dados_cont_historicos'!AX$4,'3.Índices_inflação'!$A$2:$BA$105,$BW25,FALSE)) -> 138162.6341 | AY25: ='1.Dados_cont_historicos'!AY25*(1+VLOOKUP('1.Dados_cont_historicos'!AY$4,'3.Índices_inflação'!$A$2:$BA$105,$BW25,FALSE)) -> 196091.172 | AZ25: ='1.Dados_cont_historicos'!AZ25*(1+VLOOKUP('1.Dados_cont_historicos'!AZ$4,'3.Índices_inflação'!$A$2:$BA$105,$BW25,FALSE)) -> 106132.8728 | BA25: ='1.Dados_cont_historicos'!BA25*(1+VLOOKUP('1.Dados_cont_historicos'!BA$4,'3.Índices_inflação'!$A$2:$BA$105,$BW25,FALSE)) -> 131989.8225 | BB25: ='1.Dados_cont_historicos'!BB25*(1+VLOOKUP('1.Dados_cont_historicos'!BB$4,'3.Índices_inflação'!$A$2:$BA$105,$BW25,FALSE)) -> 180105.3431 | BC25: 1721729.832 | BD25: ='1.Dados_cont_historicos'!BD25*(1+VLOOKUP('1.Dados_cont_historicos'!BD$4,'3.Índices_inflação'!$A$2:$BA$105,$BW25,FALSE)) -> 47831.21445 | BE25: ='1.Dados_cont_historicos'!BE25*(1+VLOOKUP('1.Dados_cont_historicos'!BE$4,'3.Índices_inflação'!$A$2:$BA$105,$BW25,FALSE)) -> 100613.9778 | BF25: ='1.Dados_cont_historicos'!BF25*(1+VLOOKUP('1.Dados_cont_historicos'!BF$4,'3.Índices_inflação'!$A$2:$BA$105,$BW25,FALSE)) -> 108002.8558 | BG25: ='1.Dados_cont_historicos'!BG25*(1+VLOOKUP('1.Dados_cont_historicos'!BG$4,'3.Índices_inflação'!$A$2:$BA$105,$BW25,FALSE)) -> 167700.0096 | BH25: ='1.Dados_cont_historicos'!BH25*(1+VLOOKUP('1.Dados_cont_historicos'!BH$4,'3.Índices_inflação'!$A$2:$BA$105,$BW25,FALSE)) -> 151172.6778 | BI25: ='1.Dados_cont_historicos'!BI25*(1+VLOOKUP('1.Dados_cont_historicos'!BI$4,'3.Índices_inflação'!$A$2:$BA$105,$BW25,FALSE)) -> 165918.0275 | BJ25: ='1.Dados_cont_historicos'!BJ25*(1+VLOOKUP('1.Dados_cont_historicos'!BJ$4,'3.Índices_inflação'!$A$2:$BA$105,$BW25,FALSE)) -> 154508.6176 | BM25: 1452696.995 | BN25: 1632829.987 | BO25: 1821902.383 | BP25: 1721729.832 | BQ25: 1573748.273 | BR25: 1706347.456 | BS25: 1814648.418 | BT25: 1648229.225 | BU25: -0.0917087802 | BV25: IPCA BH Comb | BW25: 47
C26: Comercialização | D26: ='1.Dados_cont_historicos'!D26*(1+VLOOKUP('1.Dados_cont_historicos'!D$4,'3.Índices_inflação'!$A$2:$BA$105,$BW26,FALSE)) -> 100465.2495 | E26: ='1.Dados_cont_historicos'!E26*(1+VLOOKUP('1.Dados_cont_historicos'!E$4,'3.Índices_inflação'!$A$2:$BA$105,$BW26,FALSE)) -> 93067.91336 | F26: ='1.Dados_cont_historicos'!F26*(1+VLOOKUP('1.Dados_cont_historicos'!F$4,'3.Índices_inflação'!$A$2:$BA$105,$BW26,FALSE)) -> 89977.17596 | G26: ='1.Dados_cont_historicos'!G26*(1+VLOOKUP('1.Dados_cont_historicos'!G$4,'3.Índices_inflação'!$A$2:$BA$105,$BW26,FALSE)) -> 75576.01829 | H26: ='1.Dados_cont_historicos'!H26*(1+VLOOKUP('1.Dados_cont_historicos'!H$4,'3.Índices_inflação'!$A$2:$BA$105,$BW26,FALSE)) -> 87300.78851 | I26: ='1.Dados_cont_historicos'!I26*(1+VLOOKUP('1.Dados_cont_historicos'!I$4,'3.Índices_inflação'!$A$2:$BA$105,$BW26,FALSE)) -> 81313.63733 | J26: ='1.Dados_cont_historicos'!J26*(1+VLOOKUP('1.Dados_cont_historicos'!J$4,'3.Índices_inflação'!$A$2:$BA$105,$BW26,FALSE)) -> 80843.53033 | K26: ='1.Dados_cont_historicos'!K26*(1+VLOOKUP('1.Dados_cont_historicos'!K$4,'3.Índices_inflação'!$A$2:$BA$105,$BW26,FALSE)) -> 85983.13441 | L26: ='1.Dados_cont_historicos'!L26*(1+VLOOKUP('1.Dados_cont_historicos'!L$4,'3.Índices_inflação'!$A$2:$BA$105,$BW26,FALSE)) -> 80262.52989 | M26: ='1.Dados_cont_historicos'!M26*(1+VLOOKUP('1.Dados_cont_historicos'!M$4,'3.Índices_inflação'!$A$2:$BA$105,$BW26,FALSE)) -> 81115.23593 | N26: ='1.Dados_cont_historicos'!N26*(1+VLOOKUP('1.Dados_cont_historicos'!N$4,'3.Índices_inflação'!$A$2:$BA$105,$BW26,FALSE)) -> 90663.40708 | O26: ='1.Dados_cont_historicos'!O26*(1+VLOOKUP('1.Dados_cont_historicos'!O$4,'3.Índices_inflação'!$A$2:$BA$105,$BW26,FALSE)) -> 100339.1138 | P26: 1046907.734 | Q26: ='1.Dados_cont_historicos'!Q26*(1+VLOOKUP('1.Dados_cont_historicos'!Q$4,'3.Índices_inflação'!$A$2:$BA$105,$BW26,FALSE)) -> 86868.46028 | R26: ='1.Dados_cont_historicos'!R26*(1+VLOOKUP('1.Dados_cont_historicos'!R$4,'3.Índices_inflação'!$A$2:$BA$105,$BW26,FALSE)) -> 110341.5808 | S26: ='1.Dados_cont_historicos'!S26*(1+VLOOKUP('1.Dados_cont_historicos'!S$4,'3.Índices_inflação'!$A$2:$BA$105,$BW26,FALSE)) -> 78912.65075 | T26: ='1.Dados_cont_historicos'!T26*(1+VLOOKUP('1.Dados_cont_historicos'!T$4,'3.Índices_inflação'!$A$2:$BA$105,$BW26,FALSE)) -> 91553.47514 | U26: ='1.Dados_cont_historicos'!U26*(1+VLOOKUP('1.Dados_cont_historicos'!U$4,'3.Índices_inflação'!$A$2:$BA$105,$BW26,FALSE)) -> 83391.52943 | V26: ='1.Dados_cont_historicos'!V26*(1+VLOOKUP('1.Dados_cont_historicos'!V$4,'3.Índices_inflação'!$A$2:$BA$105,$BW26,FALSE)) -> 91423.93245 | W26: ='1.Dados_cont_historicos'!W26*(1+VLOOKUP('1.Dados_cont_historicos'!W$4,'3.Índices_inflação'!$A$2:$BA$105,$BW26,FALSE)) -> 112925.3275 | X26: ='1.Dados_cont_historicos'!X26*(1+VLOOKUP('1.Dados_cont_historicos'!X$4,'3.Índices_inflação'!$A$2:$BA$105,$BW26,FALSE)) -> 98756.62906 | Y26: ='1.Dados_cont_historicos'!Y26*(1+VLOOKUP('1.Dados_cont_historicos'!Y$4,'3.Índices_inflação'!$A$2:$BA$105,$BW26,FALSE)) -> 91644.77432 | Z26: ='1.Dados_cont_historicos'!Z26*(1+VLOOKUP('1.Dados_cont_historicos'!Z$4,'3.Índices_inflação'!$A$2:$BA$105,$BW26,FALSE)) -> 128271.035 | AA26: ='1.Dados_cont_historicos'!AA26*(1+VLOOKUP('1.Dados_cont_historicos'!AA$4,'3.Índices_inflação'!$A$2:$BA$105,$BW26,FALSE)) -> 273740.0094 | AB26: ='1.Dados_cont_historicos'!AB26*(1+VLOOKUP('1.Dados_cont_historicos'!AB$4,'3.Índices_inflação'!$A$2:$BA$105,$BW26,FALSE)) -> 131044.2801 | AC26: 1378873.684 | AD26: ='1.Dados_cont_historicos'!AD26*(1+VLOOKUP('1.Dados_cont_historicos'!AD$4,'3.Índices_inflação'!$A$2:$BA$105,$BW26,FALSE)) -> 127353.48 | AE26: ='1.Dados_cont_historicos'!AE26*(1+VLOOKUP('1.Dados_cont_historicos'!AE$4,'3.Índices_inflação'!$A$2:$BA$105,$BW26,FALSE)) -> 132640.885 | AF26: ='1.Dados_cont_historicos'!AF26*(1+VLOOKUP('1.Dados_cont_historicos'!AF$4,'3.Índices_inflação'!$A$2:$BA$105,$BW26,FALSE)) -> 134388.9741 | AG26: ='1.Dados_cont_historicos'!AG26*(1+VLOOKUP('1.Dados_cont_historicos'!AG$4,'3.Índices_inflação'!$A$2:$BA$105,$BW26,FALSE)) -> 140339.5666 | AH26: ='1.Dados_cont_historicos'!AH26*(1+VLOOKUP('1.Dados_cont_historicos'!AH$4,'3.Índices_inflação'!$A$2:$BA$105,$BW26,FALSE)) -> 140274.5771 | AI26: ='1.Dados_cont_historicos'!AI26*(1+VLOOKUP('1.Dados_cont_historicos'!AI$4,'3.Índices_inflação'!$A$2:$BA$105,$BW26,FALSE)) -> 156265.4194 | AJ26: ='1.Dados_cont_historicos'!AJ26*(1+VLOOKUP('1.Dados_cont_historicos'!AJ$4,'3.Índices_inflação'!$A$2:$BA$105,$BW26,FALSE)) -> 143943.6969 | AK26: ='1.Dados_cont_historicos'!AK26*(1+VLOOKUP('1.Dados_cont_historicos'!AK$4,'3.Índices_inflação'!$A$2:$BA$105,$BW26,FALSE)) -> 142541.8754 | AL26: ='1.Dados_cont_historicos'!AL26*(1+VLOOKUP('1.Dados_cont_historicos'!AL$4,'3.Índices_inflação'!$A$2:$BA$105,$BW26,FALSE)) -> 136229.099 | AM26: ='1.Dados_cont_historicos'!AM26*(1+VLOOKUP('1.Dados_cont_historicos'!AM$4,'3.Índices_inflação'!$A$2:$BA$105,$BW26,FALSE)) -> 146910.3146 | AN26: ='1.Dados_cont_historicos'!AN26*(1+VLOOKUP('1.Dados_cont_historicos'!AN$4,'3.Índices_inflação'!$A$2:$BA$105,$BW26,FALSE)) -> 139253.7176 | AO26: ='1.Dados_cont_historicos'!AO26*(1+VLOOKUP('1.Dados_cont_historicos'!AO$4,'3.Índices_inflação'!$A$2:$BA$105,$BW26,FALSE)) -> 140418.7262 | AP26: 1680560.332 | AQ26: ='1.Dados_cont_historicos'!AQ26*(1+VLOOKUP('1.Dados_cont_historicos'!AQ$4,'3.Índices_inflação'!$A$2:$BA$105,$BW26,FALSE)) -> 144949.4318 | AR26: ='1.Dados_cont_historicos'!AR26*(1+VLOOKUP('1.Dados_cont_historicos'!AR$4,'3.Índices_inflação'!$A$2:$BA$105,$BW26,FALSE)) -> 139888.4061 | AS26: ='1.Dados_cont_historicos'!AS26*(1+VLOOKUP('1.Dados_cont_historicos'!AS$4,'3.Índices_inflação'!$A$2:$BA$105,$BW26,FALSE)) -> 132671.2444 | AT26: ='1.Dados_cont_historicos'!AT26*(1+VLOOKUP('1.Dados_cont_historicos'!AT$4,'3.Índices_inflação'!$A$2:$BA$105,$BW26,FALSE)) -> 141523.3437 | AU26: ='1.Dados_cont_historicos'!AU26*(1+VLOOKUP('1.Dados_cont_historicos'!AU$4,'3.Índices_inflação'!$A$2:$BA$105,$BW26,FALSE)) -> 143523.7776 | AV26: ='1.Dados_cont_historicos'!AV26*(1+VLOOKUP('1.Dados_cont_historicos'!AV$4,'3.Índices_inflação'!$A$2:$BA$105,$BW26,FALSE)) -> 136174.0228 | AW26: ='1.Dados_cont_historicos'!AW26*(1+VLOOKUP('1.Dados_cont_historicos'!AW$4,'3.Índices_inflação'!$A$2:$BA$105,$BW26,FALSE)) -> 141974.9249 | AX26: ='1.Dados_cont_historicos'!AX26*(1+VLOOKUP('1.Dados_cont_historicos'!AX$4,'3.Índices_inflação'!$A$2:$BA$105,$BW26,FALSE)) -> 138590.8181 | AY26: ='1.Dados_cont_historicos'!AY26*(1+VLOOKUP('1.Dados_cont_historicos'!AY$4,'3.Índices_inflação'!$A$2:$BA$105,$BW26,FALSE)) -> 131805.8633 | AZ26: ='1.Dados_cont_historicos'!AZ26*(1+VLOOKUP('1.Dados_cont_historicos'!AZ$4,'3.Índices_inflação'!$A$2:$BA$105,$BW26,FALSE)) -> 140592.461 | BA26: ='1.Dados_cont_historicos'!BA26*(1+VLOOKUP('1.Dados_cont_historicos'!BA$4,'3.Índices_inflação'!$A$2:$BA$105,$BW26,FALSE)) -> 139384.7609 | BB26: ='1.Dados_cont_historicos'!BB26*(1+VLOOKUP('1.Dados_cont_historicos'!BB$4,'3.Índices_inflação'!$A$2:$BA$105,$BW26,FALSE)) -> 143457.6405 | BC26: 1674536.695 | BD26: ='1.Dados_cont_historicos'!BD26*(1+VLOOKUP('1.Dados_cont_historicos'!BD$4,'3.Índices_inflação'!$A$2:$BA$105,$BW26,FALSE)) -> 144474.8863 | BE26: ='1.Dados_cont_historicos'!BE26*(1+VLOOKUP('1.Dados_cont_historicos'!BE$4,'3.Índices_inflação'!$A$2:$BA$105,$BW26,FALSE)) -> 140563.9064 | BF26: ='1.Dados_cont_historicos'!BF26*(1+VLOOKUP('1.Dados_cont_historicos'!BF$4,'3.Índices_inflação'!$A$2:$BA$105,$BW26,FALSE)) -> 146567.3629 | BG26: ='1.Dados_cont_historicos'!BG26*(1+VLOOKUP('1.Dados_cont_historicos'!BG$4,'3.Índices_inflação'!$A$2:$BA$105,$BW26,FALSE)) -> 143585.1029 | BH26: ='1.Dados_cont_historicos'!BH26*(1+VLOOKUP('1.Dados_cont_historicos'!BH$4,'3.Índices_inflação'!$A$2:$BA$105,$BW26,FALSE)) -> 142978.3873 | BI26: ='1.Dados_cont_historicos'!BI26*(1+VLOOKUP('1.Dados_cont_historicos'!BI$4,'3.Índices_inflação'!$A$2:$BA$105,$BW26,FALSE)) -> 136528.0753 | BJ26: ='1.Dados_cont_historicos'!BJ26*(1+VLOOKUP('1.Dados_cont_historicos'!BJ$4,'3.Índices_inflação'!$A$2:$BA$105,$BW26,FALSE)) -> 142486.0347 | BM26: 1046907.734 | BN26: 1378873.684 | BO26: 1680560.332 | BP26: 1674536.695 | BQ26: 1093780.377 | BR26: 1698663.327 | BS26: 1686058.884 | BT26: 1691015.3 | BU26: 0.00293964548 | BV26: IPCA | BW26: 28
C27: Comunicação, Publicidade e Propaganda Legal | D27: ='1.Dados_cont_historicos'!D27*(1+VLOOKUP('1.Dados_cont_historicos'!D$4,'3.Índices_inflação'!$A$2:$BA$105,$BW27,FALSE)) -> 5270.580435 | E27: ='1.Dados_cont_historicos'!E27*(1+VLOOKUP('1.Dados_cont_historicos'!E$4,'3.Índices_inflação'!$A$2:$BA$105,$BW27,FALSE)) -> 283.5514488 | F27: ='1.Dados_cont_historicos'!F27*(1+VLOOKUP('1.Dados_cont_historicos'!F$4,'3.Índices_inflação'!$A$2:$BA$105,$BW27,FALSE)) -> 0 | G27: ='1.Dados_cont_historicos'!G27*(1+VLOOKUP('1.Dados_cont_historicos'!G$4,'3.Índices_inflação'!$A$2:$BA$105,$BW27,FALSE)) -> 0 | H27: ='1.Dados_cont_historicos'!H27*(1+VLOOKUP('1.Dados_cont_historicos'!H$4,'3.Índices_inflação'!$A$2:$BA$105,$BW27,FALSE)) -> 3.583912055 | I27: ='1.Dados_cont_historicos'!I27*(1+VLOOKUP('1.Dados_cont_historicos'!I$4,'3.Índices_inflação'!$A$2:$BA$105,$BW27,FALSE)) -> 2395.165869 | J27: ='1.Dados_cont_historicos'!J27*(1+VLOOKUP('1.Dados_cont_historicos'!J$4,'3.Índices_inflação'!$A$2:$BA$105,$BW27,FALSE)) -> 11591.28343 | K27: ='1.Dados_cont_historicos'!K27*(1+VLOOKUP('1.Dados_cont_historicos'!K$4,'3.Índices_inflação'!$A$2:$BA$105,$BW27,FALSE)) -> 304.4553094 | L27: ='1.Dados_cont_historicos'!L27*(1+VLOOKUP('1.Dados_cont_historicos'!L$4,'3.Índices_inflação'!$A$2:$BA$105,$BW27,FALSE)) -> 54.63727766 | M27: ='1.Dados_cont_historicos'!M27*(1+VLOOKUP('1.Dados_cont_historicos'!M$4,'3.Índices_inflação'!$A$2:$BA$105,$BW27,FALSE)) -> 0 | N27: ='1.Dados_cont_historicos'!N27*(1+VLOOKUP('1.Dados_cont_historicos'!N$4,'3.Índices_inflação'!$A$2:$BA$105,$BW27,FALSE)) -> 0 | O27: ='1.Dados_cont_historicos'!O27*(1+VLOOKUP('1.Dados_cont_historicos'!O$4,'3.Índices_inflação'!$A$2:$BA$105,$BW27,FALSE)) -> 0 | P27: 19903.25768 | Q27: ='1.Dados_cont_historicos'!Q27*(1+VLOOKUP('1.Dados_cont_historicos'!Q$4,'3.Índices_inflação'!$A$2:$BA$105,$BW27,FALSE)) -> 0 | R27: ='1.Dados_cont_historicos'!R27*(1+VLOOKUP('1.Dados_cont_historicos'!R$4,'3.Índices_inflação'!$A$2:$BA$105,$BW27,FALSE)) -> 5592.301031 | S27: ='1.Dados_cont_historicos'!S27*(1+VLOOKUP('1.Dados_cont_historicos'!S$4,'3.Índices_inflação'!$A$2:$BA$105,$BW27,FALSE)) -> 9736.764271 | T27: ='1.Dados_cont_historicos'!T27*(1+VLOOKUP('1.Dados_cont_historicos'!T$4,'3.Índices_inflação'!$A$2:$BA$105,$BW27,FALSE)) -> 372.0986307 | U27: ='1.Dados_cont_historicos'!U27*(1+VLOOKUP('1.Dados_cont_historicos'!U$4,'3.Índices_inflação'!$A$2:$BA$105,$BW27,FALSE)) -> 565.9652304 | V27: ='1.Dados_cont_historicos'!V27*(1+VLOOKUP('1.Dados_cont_historicos'!V$4,'3.Índices_inflação'!$A$2:$BA$105,$BW27,FALSE)) -> 721.3416771 | W27: ='1.Dados_cont_historicos'!W27*(1+VLOOKUP('1.Dados_cont_historicos'!W$4,'3.Índices_inflação'!$A$2:$BA$105,$BW27,FALSE)) -> 112.176005 | X27: ='1.Dados_cont_historicos'!X27*(1+VLOOKUP('1.Dados_cont_historicos'!X$4,'3.Índices_inflação'!$A$2:$BA$105,$BW27,FALSE)) -> 980.4446161 | Y27: ='1.Dados_cont_historicos'!Y27*(1+VLOOKUP('1.Dados_cont_historicos'!Y$4,'3.Índices_inflação'!$A$2:$BA$105,$BW27,FALSE)) -> 58.1138185 | Z27: ='1.Dados_cont_historicos'!Z27*(1+VLOOKUP('1.Dados_cont_historicos'!Z$4,'3.Índices_inflação'!$A$2:$BA$105,$BW27,FALSE)) -> 1427.846054 | AA27: ='1.Dados_cont_historicos'!AA27*(1+VLOOKUP('1.Dados_cont_historicos'!AA$4,'3.Índices_inflação'!$A$2:$BA$105,$BW27,FALSE)) -> 982.1932585 | AB27: ='1.Dados_cont_historicos'!AB27*(1+VLOOKUP('1.Dados_cont_historicos'!AB$4,'3.Índices_inflação'!$A$2:$BA$105,$BW27,FALSE)) -> 505.9874371 | AC27: 21055.23203 | AD27: ='1.Dados_cont_historicos'!AD27*(1+VLOOKUP('1.Dados_cont_historicos'!AD$4,'3.Índices_inflação'!$A$2:$BA$105,$BW27,FALSE)) -> 240.6301419 | AE27: ='1.Dados_cont_historicos'!AE27*(1+VLOOKUP('1.Dados_cont_historicos'!AE$4,'3.Índices_inflação'!$A$2:$BA$105,$BW27,FALSE)) -> 383.35978 | AF27: ='1.Dados_cont_historicos'!AF27*(1+VLOOKUP('1.Dados_cont_historicos'!AF$4,'3.Índices_inflação'!$A$2:$BA$105,$BW27,FALSE)) -> 11082.23681 | AG27: ='1.Dados_cont_historicos'!AG27*(1+VLOOKUP('1.Dados_cont_historicos'!AG$4,'3.Índices_inflação'!$A$2:$BA$105,$BW27,FALSE)) -> 756.698787 | AH27: ='1.Dados_cont_historicos'!AH27*(1+VLOOKUP('1.Dados_cont_historicos'!AH$4,'3.Índices_inflação'!$A$2:$BA$105,$BW27,FALSE)) -> 472.3227224 | AI27: ='1.Dados_cont_historicos'!AI27*(1+VLOOKUP('1.Dados_cont_historicos'!AI$4,'3.Índices_inflação'!$A$2:$BA$105,$BW27,FALSE)) -> 1180.688737 | AJ27: ='1.Dados_cont_historicos'!AJ27*(1+VLOOKUP('1.Dados_cont_historicos'!AJ$4,'3.Índices_inflação'!$A$2:$BA$105,$BW27,FALSE)) -> 0 | AK27: ='1.Dados_cont_historicos'!AK27*(1+VLOOKUP('1.Dados_cont_historicos'!AK$4,'3.Índices_inflação'!$A$2:$BA$105,$BW27,FALSE)) -> 0 | AL27: ='1.Dados_cont_historicos'!AL27*(1+VLOOKUP('1.Dados_cont_historicos'!AL$4,'3.Índices_inflação'!$A$2:$BA$105,$BW27,FALSE)) -> 0 | AM27: ='1.Dados_cont_historicos'!AM27*(1+VLOOKUP('1.Dados_cont_historicos'!AM$4,'3.Índices_inflação'!$A$2:$BA$105,$BW27,FALSE)) -> 3784.58469 | AN27: ='1.Dados_cont_historicos'!AN27*(1+VLOOKUP('1.Dados_cont_historicos'!AN$4,'3.Índices_inflação'!$A$2:$BA$105,$BW27,FALSE)) -> 655.4687807 | AO27: ='1.Dados_cont_historicos'!AO27*(1+VLOOKUP('1.Dados_cont_historicos'!AO$4,'3.Índices_inflação'!$A$2:$BA$105,$BW27,FALSE)) -> 601.7296906 | AP27: 19157.72014 | AQ27: ='1.Dados_cont_historicos'!AQ27*(1+VLOOKUP('1.Dados_cont_historicos'!AQ$4,'3.Índices_inflação'!$A$2:$BA$105,$BW27,FALSE)) -> 2748.689783 | AR27: ='1.Dados_cont_historicos'!AR27*(1+VLOOKUP('1.Dados_cont_historicos'!AR$4,'3.Índices_inflação'!$A$2:$BA$105,$BW27,FALSE)) -> 1336.166697 | AS27: ='1.Dados_cont_historicos'!AS27*(1+VLOOKUP('1.Dados_cont_historicos'!AS$4,'3.Índices_inflação'!$A$2:$BA$105,$BW27,FALSE)) -> 552.5098075 | AT27: ='1.Dados_cont_historicos'!AT27*(1+VLOOKUP('1.Dados_cont_historicos'!AT$4,'3.Índices_inflação'!$A$2:$BA$105,$BW27,FALSE)) -> 600.4135736 | AU27: ='1.Dados_cont_historicos'!AU27*(1+VLOOKUP('1.Dados_cont_historicos'!AU$4,'3.Índices_inflação'!$A$2:$BA$105,$BW27,FALSE)) -> 417.2565103 | AV27: ='1.Dados_cont_historicos'!AV27*(1+VLOOKUP('1.Dados_cont_historicos'!AV$4,'3.Índices_inflação'!$A$2:$BA$105,$BW27,FALSE)) -> 0 | AW27: ='1.Dados_cont_historicos'!AW27*(1+VLOOKUP('1.Dados_cont_historicos'!AW$4,'3.Índices_inflação'!$A$2:$BA$105,$BW27,FALSE)) -> 0 | AX27: ='1.Dados_cont_historicos'!AX27*(1+VLOOKUP('1.Dados_cont_historicos'!AX$4,'3.Índices_inflação'!$A$2:$BA$105,$BW27,FALSE)) -> 0 | AY27: ='1.Dados_cont_historicos'!AY27*(1+VLOOKUP('1.Dados_cont_historicos'!AY$4,'3.Índices_inflação'!$A$2:$BA$105,$BW27,FALSE)) -> 0 | AZ27: ='1.Dados_cont_historicos'!AZ27*(1+VLOOKUP('1.Dados_cont_historicos'!AZ$4,'3.Índices_inflação'!$A$2:$BA$105,$BW27,FALSE)) -> 0 | BA27: ='1.Dados_cont_historicos'!BA27*(1+VLOOKUP('1.Dados_cont_historicos'!BA$4,'3.Índices_inflação'!$A$2:$BA$105,$BW27,FALSE)) -> 0 | BB27: ='1.Dados_cont_historicos'!BB27*(1+VLOOKUP('1.Dados_cont_historicos'!BB$4,'3.Índices_inflação'!$A$2:$BA$105,$BW27,FALSE)) -> 0 | BC27: 5655.036372 | BD27: ='1.Dados_cont_historicos'!BD27*(1+VLOOKUP('1.Dados_cont_historicos'!BD$4,'3.Índices_inflação'!$A$2:$BA$105,$BW27,FALSE)) -> 0 | BE27: ='1.Dados_cont_historicos'!BE27*(1+VLOOKUP('1.Dados_cont_historicos'!BE$4,'3.Índices_inflação'!$A$2:$BA$105,$BW27,FALSE)) -> 569.3898766 | BF27: ='1.Dados_cont_historicos'!BF27*(1+VLOOKUP('1.Dados_cont_historicos'!BF$4,'3.Índices_inflação'!$A$2:$BA$105,$BW27,FALSE)) -> 0 | BG27: ='1.Dados_cont_historicos'!BG27*(1+VLOOKUP('1.Dados_cont_historicos'!BG$4,'3.Índices_inflação'!$A$2:$BA$105,$BW27,FALSE)) -> 38243.19346 | BH27: ='1.Dados_cont_historicos'!BH27*(1+VLOOKUP('1.Dados_cont_historicos'!BH$4,'3.Índices_inflação'!$A$2:$BA$105,$BW27,FALSE)) -> 415.6709356 | BI27: ='1.Dados_cont_historicos'!BI27*(1+VLOOKUP('1.Dados_cont_historicos'!BI$4,'3.Índices_inflação'!$A$2:$BA$105,$BW27,FALSE)) -> 0 | BJ27: ='1.Dados_cont_historicos'!BJ27*(1+VLOOKUP('1.Dados_cont_historicos'!BJ$4,'3.Índices_inflação'!$A$2:$BA$105,$BW27,FALSE)) -> 0 | BM27: 19903.25768 | BN27: 21055.23203 | BO27: 19157.72014 | BP27: 5655.036372 | BQ27: 17459.73943 | BR27: 18070.52217 | BS27: 10696.81953 | BT27: 39228.25427 | BU27: 2.667282051 | BV27: IPCA | BW27: 28
C28: Convênios | D28: ='1.Dados_cont_historicos'!D28*(1+VLOOKUP('1.Dados_cont_historicos'!D$4,'3.Índices_inflação'!$A$2:$BA$105,$BW28,FALSE)) -> 0 | E28: ='1.Dados_cont_historicos'!E28*(1+VLOOKUP('1.Dados_cont_historicos'!E$4,'3.Índices_inflação'!$A$2:$BA$105,$BW28,FALSE)) -> 0 | F28: ='1.Dados_cont_historicos'!F28*(1+VLOOKUP('1.Dados_cont_historicos'!F$4,'3.Índices_inflação'!$A$2:$BA$105,$BW28,FALSE)) -> 0 | G28: ='1.Dados_cont_historicos'!G28*(1+VLOOKUP('1.Dados_cont_historicos'!G$4,'3.Índices_inflação'!$A$2:$BA$105,$BW28,FALSE)) -> 0 | H28: ='1.Dados_cont_historicos'!H28*(1+VLOOKUP('1.Dados_cont_historicos'!H$4,'3.Índices_inflação'!$A$2:$BA$105,$BW28,FALSE)) -> 0 | I28: ='1.Dados_cont_historicos'!I28*(1+VLOOKUP('1.Dados_cont_historicos'!I$4,'3.Índices_inflação'!$A$2:$BA$105,$BW28,FALSE)) -> 0 | J28: ='1.Dados_cont_historicos'!J28*(1+VLOOKUP('1.Dados_cont_historicos'!J$4,'3.Índices_inflação'!$A$2:$BA$105,$BW28,FALSE)) -> 0 | K28: ='1.Dados_cont_historicos'!K28*(1+VLOOKUP('1.Dados_cont_historicos'!K$4,'3.Índices_inflação'!$A$2:$BA$105,$BW28,FALSE)) -> 0 | L28: ='1.Dados_cont_historicos'!L28*(1+VLOOKUP('1.Dados_cont_historicos'!L$4,'3.Índices_inflação'!$A$2:$BA$105,$BW28,FALSE)) -> 0 | M28: ='1.Dados_cont_historicos'!M28*(1+VLOOKUP('1.Dados_cont_historicos'!M$4,'3.Índices_inflação'!$A$2:$BA$105,$BW28,FALSE)) -> 0 | N28: ='1.Dados_cont_historicos'!N28*(1+VLOOKUP('1.Dados_cont_historicos'!N$4,'3.Índices_inflação'!$A$2:$BA$105,$BW28,FALSE)) -> 0 | O28: ='1.Dados_cont_historicos'!O28*(1+VLOOKUP('1.Dados_cont_historicos'!O$4,'3.Índices_inflação'!$A$2:$BA$105,$BW28,FALSE)) -> 0 | P28: 0 | Q28: ='1.Dados_cont_historicos'!Q28*(1+VLOOKUP('1.Dados_cont_historicos'!Q$4,'3.Índices_inflação'!$A$2:$BA$105,$BW28,FALSE)) -> 0 | R28: ='1.Dados_cont_historicos'!R28*(1+VLOOKUP('1.Dados_cont_historicos'!R$4,'3.Índices_inflação'!$A$2:$BA$105,$BW28,FALSE)) -> 0 | S28: ='1.Dados_cont_historicos'!S28*(1+VLOOKUP('1.Dados_cont_historicos'!S$4,'3.Índices_inflação'!$A$2:$BA$105,$BW28,FALSE)) -> 0 | T28: ='1.Dados_cont_historicos'!T28*(1+VLOOKUP('1.Dados_cont_historicos'!T$4,'3.Índices_inflação'!$A$2:$BA$105,$BW28,FALSE)) -> 0 | U28: ='1.Dados_cont_historicos'!U28*(1+VLOOKUP('1.Dados_cont_historicos'!U$4,'3.Índices_inflação'!$A$2:$BA$105,$BW28,FALSE)) -> 0 | V28: ='1.Dados_cont_historicos'!V28*(1+VLOOKUP('1.Dados_cont_historicos'!V$4,'3.Índices_inflação'!$A$2:$BA$105,$BW28,FALSE)) -> 0 | W28: ='1.Dados_cont_historicos'!W28*(1+VLOOKUP('1.Dados_cont_historicos'!W$4,'3.Índices_inflação'!$A$2:$BA$105,$BW28,FALSE)) -> 0 | X28: ='1.Dados_cont_historicos'!X28*(1+VLOOKUP('1.Dados_cont_historicos'!X$4,'3.Índices_inflação'!$A$2:$BA$105,$BW28,FALSE)) -> 0 | Y28: ='1.Dados_cont_historicos'!Y28*(1+VLOOKUP('1.Dados_cont_historicos'!Y$4,'3.Índices_inflação'!$A$2:$BA$105,$BW28,FALSE)) -> 0 | Z28: ='1.Dados_cont_historicos'!Z28*(1+VLOOKUP('1.Dados_cont_historicos'!Z$4,'3.Índices_inflação'!$A$2:$BA$105,$BW28,FALSE)) -> 0 | AA28: ='1.Dados_cont_historicos'!AA28*(1+VLOOKUP('1.Dados_cont_historicos'!AA$4,'3.Índices_inflação'!$A$2:$BA$105,$BW28,FALSE)) -> 0 | AB28: ='1.Dados_cont_historicos'!AB28*(1+VLOOKUP('1.Dados_cont_historicos'!AB$4,'3.Índices_inflação'!$A$2:$BA$105,$BW28,FALSE)) -> 0 | AC28: 0 | AD28: ='1.Dados_cont_historicos'!AD28*(1+VLOOKUP('1.Dados_cont_historicos'!AD$4,'3.Índices_inflação'!$A$2:$BA$105,$BW28,FALSE)) -> 0 | AE28: ='1.Dados_cont_historicos'!AE28*(1+VLOOKUP('1.Dados_cont_historicos'!AE$4,'3.Índices_inflação'!$A$2:$BA$105,$BW28,FALSE)) -> 0 | AF28: ='1.Dados_cont_historicos'!AF28*(1+VLOOKUP('1.Dados_cont_historicos'!AF$4,'3.Índices_inflação'!$A$2:$BA$105,$BW28,FALSE)) -> 214419.0676 | AG28: ='1.Dados_cont_historicos'!AG28*(1+VLOOKUP('1.Dados_cont_historicos'!AG$4,'3.Índices_inflação'!$A$2:$BA$105,$BW28,FALSE)) -> 0 | AH28: ='1.Dados_cont_historicos'!AH28*(1+VLOOKUP('1.Dados_cont_historicos'!AH$4,'3.Índices_inflação'!$A$2:$BA$105,$BW28,FALSE)) -> 0 | AI28: ='1.Dados_cont_historicos'!AI28*(1+VLOOKUP('1.Dados_cont_historicos'!AI$4,'3.Índices_inflação'!$A$2:$BA$105,$BW28,FALSE)) -> 0 | AJ28: ='1.Dados_cont_historicos'!AJ28*(1+VLOOKUP('1.Dados_cont_historicos'!AJ$4,'3.Índices_inflação'!$A$2:$BA$105,$BW28,FALSE)) -> 0 | AK28: ='1.Dados_cont_historicos'!AK28*(1+VLOOKUP('1.Dados_cont_historicos'!AK$4,'3.Índices_inflação'!$A$2:$BA$105,$BW28,FALSE)) -> 0 | AL28: ='1.Dados_cont_historicos'!AL28*(1+VLOOKUP('1.Dados_cont_historicos'!AL$4,'3.Índices_inflação'!$A$2:$BA$105,$BW28,FALSE)) -> 0 | AM28: ='1.Dados_cont_historicos'!AM28*(1+VLOOKUP('1.Dados_cont_historicos'!AM$4,'3.Índices_inflação'!$A$2:$BA$105,$BW28,FALSE)) -> 0 | AN28: ='1.Dados_cont_historicos'!AN28*(1+VLOOKUP('1.Dados_cont_historicos'!AN$4,'3.Índices_inflação'!$A$2:$BA$105,$BW28,FALSE)) -> 0 | AO28: ='1.Dados_cont_historicos'!AO28*(1+VLOOKUP('1.Dados_cont_historicos'!AO$4,'3.Índices_inflação'!$A$2:$BA$105,$BW28,FALSE)) -> 0 | AP28: 214419.0676 | AQ28: ='1.Dados_cont_historicos'!AQ28*(1+VLOOKUP('1.Dados_cont_historicos'!AQ$4,'3.Índices_inflação'!$A$2:$BA$105,$BW28,FALSE)) -> 0 | AR28: ='1.Dados_cont_historicos'!AR28*(1+VLOOKUP('1.Dados_cont_historicos'!AR$4,'3.Índices_inflação'!$A$2:$BA$105,$BW28,FALSE)) -> 0 | AS28: ='1.Dados_cont_historicos'!AS28*(1+VLOOKUP('1.Dados_cont_historicos'!AS$4,'3.Índices_inflação'!$A$2:$BA$105,$BW28,FALSE)) -> 0 | AT28: ='1.Dados_cont_historicos'!AT28*(1+VLOOKUP('1.Dados_cont_historicos'!AT$4,'3.Índices_inflação'!$A$2:$BA$105,$BW28,FALSE)) -> 0 | AU28: ='1.Dados_cont_historicos'!AU28*(1+VLOOKUP('1.Dados_cont_historicos'!AU$4,'3.Índices_inflação'!$A$2:$BA$105,$BW28,FALSE)) -> 0 | AV28: ='1.Dados_cont_historicos'!AV28*(1+VLOOKUP('1.Dados_cont_historicos'!AV$4,'3.Índices_inflação'!$A$2:$BA$105,$BW28,FALSE)) -> 0 | AW28: ='1.Dados_cont_historicos'!AW28*(1+VLOOKUP('1.Dados_cont_historicos'!AW$4,'3.Índices_inflação'!$A$2:$BA$105,$BW28,FALSE)) -> 0 | AX28: ='1.Dados_cont_historicos'!AX28*(1+VLOOKUP('1.Dados_cont_historicos'!AX$4,'3.Índices_inflação'!$A$2:$BA$105,$BW28,FALSE)) -> 0 | AY28: ='1.Dados_cont_historicos'!AY28*(1+VLOOKUP('1.Dados_cont_historicos'!AY$4,'3.Índices_inflação'!$A$2:$BA$105,$BW28,FALSE)) -> 0 | AZ28: ='1.Dados_cont_historicos'!AZ28*(1+VLOOKUP('1.Dados_cont_historicos'!AZ$4,'3.Índices_inflação'!$A$2:$BA$105,$BW28,FALSE)) -> 0 | BA28: ='1.Dados_cont_historicos'!BA28*(1+VLOOKUP('1.Dados_cont_historicos'!BA$4,'3.Índices_inflação'!$A$2:$BA$105,$BW28,FALSE)) -> 0 | BB28: ='1.Dados_cont_historicos'!BB28*(1+VLOOKUP('1.Dados_cont_historicos'!BB$4,'3.Índices_inflação'!$A$2:$BA$105,$BW28,FALSE)) -> 0 | BC28: 0 | BD28: ='1.Dados_cont_historicos'!BD28*(1+VLOOKUP('1.Dados_cont_historicos'!BD$4,'3.Índices_inflação'!$A$2:$BA$105,$BW28,FALSE)) -> 0 | BE28: ='1.Dados_cont_historicos'!BE28*(1+VLOOKUP('1.Dados_cont_historicos'!BE$4,'3.Índices_inflação'!$A$2:$BA$105,$BW28,FALSE)) -> 0 | BF28: ='1.Dados_cont_historicos'!BF28*(1+VLOOKUP('1.Dados_cont_historicos'!BF$4,'3.Índices_inflação'!$A$2:$BA$105,$BW28,FALSE)) -> 0 | BG28: ='1.Dados_cont_historicos'!BG28*(1+VLOOKUP('1.Dados_cont_historicos'!BG$4,'3.Índices_inflação'!$A$2:$BA$105,$BW28,FALSE)) -> 0 | BH28: ='1.Dados_cont_historicos'!BH28*(1+VLOOKUP('1.Dados_cont_historicos'!BH$4,'3.Índices_inflação'!$A$2:$BA$105,$BW28,FALSE)) -> 0 | BI28: ='1.Dados_cont_historicos'!BI28*(1+VLOOKUP('1.Dados_cont_historicos'!BI$4,'3.Índices_inflação'!$A$2:$BA$105,$BW28,FALSE)) -> 0 | BJ28: ='1.Dados_cont_historicos'!BJ28*(1+VLOOKUP('1.Dados_cont_historicos'!BJ$4,'3.Índices_inflação'!$A$2:$BA$105,$BW28,FALSE)) -> 0 | BM28: 0 | BN28: 0 | BO28: 214419.0676 | BP28: 0 | BQ28: 0 | BR28: 214419.0676 | BS28: 0 | BT28: 0 | BV28: IPCA | BW28: 28
C29: Energia Elétrica | D29: ='1.Dados_cont_historicos'!D29*(1+VLOOKUP('1.Dados_cont_historicos'!D$4,'3.Índices_inflação'!$A$2:$BA$105,$BW29,FALSE)) -> 614832.5261 | E29: ='1.Dados_cont_historicos'!E29*(1+VLOOKUP('1.Dados_cont_historicos'!E$4,'3.Índices_inflação'!$A$2:$BA$105,$BW29,FALSE)) -> 924629.6807 | F29: ='1.Dados_cont_historicos'!F29*(1+VLOOKUP('1.Dados_cont_historicos'!F$4,'3.Índices_inflação'!$A$2:$BA$105,$BW29,FALSE)) -> 736251.8159 | G29: ='1.Dados_cont_historicos'!G29*(1+VLOOKUP('1.Dados_cont_historicos'!G$4,'3.Índices_inflação'!$A$2:$BA$105,$BW29,FALSE)) -> 1032383.821 | H29: ='1.Dados_cont_historicos'!H29*(1+VLOOKUP('1.Dados_cont_historicos'!H$4,'3.Índices_inflação'!$A$2:$BA$105,$BW29,FALSE)) -> 761456.8373 | I29: ='1.Dados_cont_historicos'!I29*(1+VLOOKUP('1.Dados_cont_historicos'!I$4,'3.Índices_inflação'!$A$2:$BA$105,$BW29,FALSE)) -> 880306.2704 | J29: ='1.Dados_cont_historicos'!J29*(1+VLOOKUP('1.Dados_cont_historicos'!J$4,'3.Índices_inflação'!$A$2:$BA$105,$BW29,FALSE)) -> 893188.982 | K29: ='1.Dados_cont_historicos'!K29*(1+VLOOKUP('1.Dados_cont_historicos'!K$4,'3.Índices_inflação'!$A$2:$BA$105,$BW29,FALSE)) -> 756973.1828 | L29: ='1.Dados_cont_historicos'!L29*(1+VLOOKUP('1.Dados_cont_historicos'!L$4,'3.Índices_inflação'!$A$2:$BA$105,$BW29,FALSE)) -> 836683.2221 | M29: ='1.Dados_cont_historicos'!M29*(1+VLOOKUP('1.Dados_cont_historicos'!M$4,'3.Índices_inflação'!$A$2:$BA$105,$BW29,FALSE)) -> 894791.6895 | N29: ='1.Dados_cont_historicos'!N29*(1+VLOOKUP('1.Dados_cont_historicos'!N$4,'3.Índices_inflação'!$A$2:$BA$105,$BW29,FALSE)) -> 786885.5245 | O29: ='1.Dados_cont_historicos'!O29*(1+VLOOKUP('1.Dados_cont_historicos'!O$4,'3.Índices_inflação'!$A$2:$BA$105,$BW29,FALSE)) -> 976650.1887 | P29: 10095033.74 | Q29: ='1.Dados_cont_historicos'!Q29*(1+VLOOKUP('1.Dados_cont_historicos'!Q$4,'3.Índices_inflação'!$A$2:$BA$105,$BW29,FALSE)) -> 744582.1087 | R29: ='1.Dados_cont_historicos'!R29*(1+VLOOKUP('1.Dados_cont_historicos'!R$4,'3.Índices_inflação'!$A$2:$BA$105,$BW29,FALSE)) -> 911938.4576 | S29: ='1.Dados_cont_historicos'!S29*(1+VLOOKUP('1.Dados_cont_historicos'!S$4,'3.Índices_inflação'!$A$2:$BA$105,$BW29,FALSE)) -> 812601.7337 | T29: ='1.Dados_cont_historicos'!T29*(1+VLOOKUP('1.Dados_cont_historicos'!T$4,'3.Índices_inflação'!$A$2:$BA$105,$BW29,FALSE)) -> 739749.7634 | U29: ='1.Dados_cont_historicos'!U29*(1+VLOOKUP('1.Dados_cont_historicos'!U$4,'3.Índices_inflação'!$A$2:$BA$105,$BW29,FALSE)) -> 875838.8047 | V29: ='1.Dados_cont_historicos'!V29*(1+VLOOKUP('1.Dados_cont_historicos'!V$4,'3.Índices_inflação'!$A$2:$BA$105,$BW29,FALSE)) -> 660027.2861 | W29: ='1.Dados_cont_historicos'!W29*(1+VLOOKUP('1.Dados_cont_historicos'!W$4,'3.Índices_inflação'!$A$2:$BA$105,$BW29,FALSE)) -> 766217.96 | X29: ='1.Dados_cont_historicos'!X29*(1+VLOOKUP('1.Dados_cont_historicos'!X$4,'3.Índices_inflação'!$A$2:$BA$105,$BW29,FALSE)) -> 854686.662 | Y29: ='1.Dados_cont_historicos'!Y29*(1+VLOOKUP('1.Dados_cont_historicos'!Y$4,'3.Índices_inflação'!$A$2:$BA$105,$BW29,FALSE)) -> 990296.413 | Z29: ='1.Dados_cont_historicos'!Z29*(1+VLOOKUP('1.Dados_cont_historicos'!Z$4,'3.Índices_inflação'!$A$2:$BA$105,$BW29,FALSE)) -> 903572.9023 | AA29: ='1.Dados_cont_historicos'!AA29*(1+VLOOKUP('1.Dados_cont_historicos'!AA$4,'3.Índices_inflação'!$A$2:$BA$105,$BW29,FALSE)) -> 994911.3054 | AB29: ='1.Dados_cont_historicos'!AB29*(1+VLOOKUP('1.Dados_cont_historicos'!AB$4,'3.Índices_inflação'!$A$2:$BA$105,$BW29,FALSE)) -> 954072.3136 | AC29: 10208495.71 | AD29: ='1.Dados_cont_historicos'!AD29*(1+VLOOKUP('1.Dados_cont_historicos'!AD$4,'3.Índices_inflação'!$A$2:$BA$105,$BW29,FALSE)) -> 927850.7887 | AE29: ='1.Dados_cont_historicos'!AE29*(1+VLOOKUP('1.Dados_cont_historicos'!AE$4,'3.Índices_inflação'!$A$2:$BA$105,$BW29,FALSE)) -> 944270.292 | AF29: ='1.Dados_cont_historicos'!AF29*(1+VLOOKUP('1.Dados_cont_historicos'!AF$4,'3.Índices_inflação'!$A$2:$BA$105,$BW29,FALSE)) -> 1036861.243 | AG29: ='1.Dados_cont_historicos'!AG29*(1+VLOOKUP('1.Dados_cont_historicos'!AG$4,'3.Índices_inflação'!$A$2:$BA$105,$BW29,FALSE)) -> 935779.5277 | AH29: ='1.Dados_cont_historicos'!AH29*(1+VLOOKUP('1.Dados_cont_historicos'!AH$4,'3.Índices_inflação'!$A$2:$BA$105,$BW29,FALSE)) -> 893859.8713 | AI29: ='1.Dados_cont_historicos'!AI29*(1+VLOOKUP('1.Dados_cont_historicos'!AI$4,'3.Índices_inflação'!$A$2:$BA$105,$BW29,FALSE)) -> 771896.064 | AJ29: ='1.Dados_cont_historicos'!AJ29*(1+VLOOKUP('1.Dados_cont_historicos'!AJ$4,'3.Índices_inflação'!$A$2:$BA$105,$BW29,FALSE)) -> 797724.2745 | AK29: ='1.Dados_cont_historicos'!AK29*(1+VLOOKUP('1.Dados_cont_historicos'!AK$4,'3.Índices_inflação'!$A$2:$BA$105,$BW29,FALSE)) -> 1047354.869 | AL29: ='1.Dados_cont_historicos'!AL29*(1+VLOOKUP('1.Dados_cont_historicos'!AL$4,'3.Índices_inflação'!$A$2:$BA$105,$BW29,FALSE)) -> 1009113.816 | AM29: ='1.Dados_cont_historicos'!AM29*(1+VLOOKUP('1.Dados_cont_historicos'!AM$4,'3.Índices_inflação'!$A$2:$BA$105,$BW29,FALSE)) -> 1061811.354 | AN29: ='1.Dados_cont_historicos'!AN29*(1+VLOOKUP('1.Dados_cont_historicos'!AN$4,'3.Índices_inflação'!$A$2:$BA$105,$BW29,FALSE)) -> 782251.0671 | AO29: ='1.Dados_cont_historicos'!AO29*(1+VLOOKUP('1.Dados_cont_historicos'!AO$4,'3.Índices_inflação'!$A$2:$BA$105,$BW29,FALSE)) -> 947553.5609 | AP29: 11156326.73 | AQ29: ='1.Dados_cont_historicos'!AQ29*(1+VLOOKUP('1.Dados_cont_historicos'!AQ$4,'3.Índices_inflação'!$A$2:$BA$105,$BW29,FALSE)) -> 749153.4649 | AR29: ='1.Dados_cont_historicos'!AR29*(1+VLOOKUP('1.Dados_cont_historicos'!AR$4,'3.Índices_inflação'!$A$2:$BA$105,$BW29,FALSE)) -> 1047065.544 | AS29: ='1.Dados_cont_historicos'!AS29*(1+VLOOKUP('1.Dados_cont_historicos'!AS$4,'3.Índices_inflação'!$A$2:$BA$105,$BW29,FALSE)) -> 897447.5199 | AT29: ='1.Dados_cont_historicos'!AT29*(1+VLOOKUP('1.Dados_cont_historicos'!AT$4,'3.Índices_inflação'!$A$2:$BA$105,$BW29,FALSE)) -> 757884.0725 | AU29: ='1.Dados_cont_historicos'!AU29*(1+VLOOKUP('1.Dados_cont_historicos'!AU$4,'3.Índices_inflação'!$A$2:$BA$105,$BW29,FALSE)) -> 856354.0868 | AV29: ='1.Dados_cont_historicos'!AV29*(1+VLOOKUP('1.Dados_cont_historicos'!AV$4,'3.Índices_inflação'!$A$2:$BA$105,$BW29,FALSE)) -> 645016.5397 | AW29: ='1.Dados_cont_historicos'!AW29*(1+VLOOKUP('1.Dados_cont_historicos'!AW$4,'3.Índices_inflação'!$A$2:$BA$105,$BW29,FALSE)) -> 813007.1627 | AX29: ='1.Dados_cont_historicos'!AX29*(1+VLOOKUP('1.Dados_cont_historicos'!AX$4,'3.Índices_inflação'!$A$2:$BA$105,$BW29,FALSE)) -> 825437.5385 | AY29: ='1.Dados_cont_historicos'!AY29*(1+VLOOKUP('1.Dados_cont_historicos'!AY$4,'3.Índices_inflação'!$A$2:$BA$105,$BW29,FALSE)) -> 1106179.598 | AZ29: ='1.Dados_cont_historicos'!AZ29*(1+VLOOKUP('1.Dados_cont_historicos'!AZ$4,'3.Índices_inflação'!$A$2:$BA$105,$BW29,FALSE)) -> 796307.8786 | BA29: ='1.Dados_cont_historicos'!BA29*(1+VLOOKUP('1.Dados_cont_historicos'!BA$4,'3.Índices_inflação'!$A$2:$BA$105,$BW29,FALSE)) -> 962855.0773 | BB29: ='1.Dados_cont_historicos'!BB29*(1+VLOOKUP('1.Dados_cont_historicos'!BB$4,'3.Índices_inflação'!$A$2:$BA$105,$BW29,FALSE)) -> 800548.0518 | BC29: 10257256.53 | BD29: ='1.Dados_cont_historicos'!BD29*(1+VLOOKUP('1.Dados_cont_historicos'!BD$4,'3.Índices_inflação'!$A$2:$BA$105,$BW29,FALSE)) -> 875214.1238 | BE29: ='1.Dados_cont_historicos'!BE29*(1+VLOOKUP('1.Dados_cont_historicos'!BE$4,'3.Índices_inflação'!$A$2:$BA$105,$BW29,FALSE)) -> 1051132.41 | BF29: ='1.Dados_cont_historicos'!BF29*(1+VLOOKUP('1.Dados_cont_historicos'!BF$4,'3.Índices_inflação'!$A$2:$BA$105,$BW29,FALSE)) -> 831661.1855 | BG29: ='1.Dados_cont_historicos'!BG29*(1+VLOOKUP('1.Dados_cont_historicos'!BG$4,'3.Índices_inflação'!$A$2:$BA$105,$BW29,FALSE)) -> 870306.971 | BH29: ='1.Dados_cont_historicos'!BH29*(1+VLOOKUP('1.Dados_cont_historicos'!BH$4,'3.Índices_inflação'!$A$2:$BA$105,$BW29,FALSE)) -> 855021.3124 | BI29: ='1.Dados_cont_historicos'!BI29*(1+VLOOKUP('1.Dados_cont_historicos'!BI$4,'3.Índices_inflação'!$A$2:$BA$105,$BW29,FALSE)) -> 663553.7869 | BJ29: ='1.Dados_cont_historicos'!BJ29*(1+VLOOKUP('1.Dados_cont_historicos'!BJ$4,'3.Índices_inflação'!$A$2:$BA$105,$BW29,FALSE)) -> 811323.4605 | BM29: 10095033.74 | BN29: 10208495.71 | BO29: 11156326.73 | BP29: 10257256.53 | BQ29: 9762939.922 | BR29: 11005781.66 | BS29: 10614013.06 | BT29: 10449541.39 | BU29: -0.01549570958 | BV29: IEE | BW29: 53
C30: Indenizações | D30: ='1.Dados_cont_historicos'!D30*(1+VLOOKUP('1.Dados_cont_historicos'!D$4,'3.Índices_inflação'!$A$2:$BA$105,$BW30,FALSE)) -> 0 | E30: ='1.Dados_cont_historicos'!E30*(1+VLOOKUP('1.Dados_cont_historicos'!E$4,'3.Índices_inflação'!$A$2:$BA$105,$BW30,FALSE)) -> 0 | F30: ='1.Dados_cont_historicos'!F30*(1+VLOOKUP('1.Dados_cont_historicos'!F$4,'3.Índices_inflação'!$A$2:$BA$105,$BW30,FALSE)) -> 0 | G30: ='1.Dados_cont_historicos'!G30*(1+VLOOKUP('1.Dados_cont_historicos'!G$4,'3.Índices_inflação'!$A$2:$BA$105,$BW30,FALSE)) -> 0 | H30: ='1.Dados_cont_historicos'!H30*(1+VLOOKUP('1.Dados_cont_historicos'!H$4,'3.Índices_inflação'!$A$2:$BA$105,$BW30,FALSE)) -> 0 | I30: ='1.Dados_cont_historicos'!I30*(1+VLOOKUP('1.Dados_cont_historicos'!I$4,'3.Índices_inflação'!$A$2:$BA$105,$BW30,FALSE)) -> 0 | J30: ='1.Dados_cont_historicos'!J30*(1+VLOOKUP('1.Dados_cont_historicos'!J$4,'3.Índices_inflação'!$A$2:$BA$105,$BW30,FALSE)) -> 0 | K30: ='1.Dados_cont_historicos'!K30*(1+VLOOKUP('1.Dados_cont_historicos'!K$4,'3.Índices_inflação'!$A$2:$BA$105,$BW30,FALSE)) -> 0 | L30: ='1.Dados_cont_historicos'!L30*(1+VLOOKUP('1.Dados_cont_historicos'!L$4,'3.Índices_inflação'!$A$2:$BA$105,$BW30,FALSE)) -> 0 | M30: ='1.Dados_cont_historicos'!M30*(1+VLOOKUP('1.Dados_cont_historicos'!M$4,'3.Índices_inflação'!$A$2:$BA$105,$BW30,FALSE)) -> 0 | N30: ='1.Dados_cont_historicos'!N30*(1+VLOOKUP('1.Dados_cont_historicos'!N$4,'3.Índices_inflação'!$A$2:$BA$105,$BW30,FALSE)) -> 0 | O30: ='1.Dados_cont_historicos'!O30*(1+VLOOKUP('1.Dados_cont_historicos'!O$4,'3.Índices_inflação'!$A$2:$BA$105,$BW30,FALSE)) -> 0 | P30: 0 | Q30: ='1.Dados_cont_historicos'!Q30*(1+VLOOKUP('1.Dados_cont_historicos'!Q$4,'3.Índices_inflação'!$A$2:$BA$105,$BW30,FALSE)) -> 0 | R30: ='1.Dados_cont_historicos'!R30*(1+VLOOKUP('1.Dados_cont_historicos'!R$4,'3.Índices_inflação'!$A$2:$BA$105,$BW30,FALSE)) -> 0 | S30: ='1.Dados_cont_historicos'!S30*(1+VLOOKUP('1.Dados_cont_historicos'!S$4,'3.Índices_inflação'!$A$2:$BA$105,$BW30,FALSE)) -> 0 | T30: ='1.Dados_cont_historicos'!T30*(1+VLOOKUP('1.Dados_cont_historicos'!T$4,'3.Índices_inflação'!$A$2:$BA$105,$BW30,FALSE)) -> 0 | U30: ='1.Dados_cont_historicos'!U30*(1+VLOOKUP('1.Dados_cont_historicos'!U$4,'3.Índices_inflação'!$A$2:$BA$105,$BW30,FALSE)) -> 0 | V30: ='1.Dados_cont_historicos'!V30*(1+VLOOKUP('1.Dados_cont_historicos'!V$4,'3.Índices_inflação'!$A$2:$BA$105,$BW30,FALSE)) -> 0 | W30: ='1.Dados_cont_historicos'!W30*(1+VLOOKUP('1.Dados_cont_historicos'!W$4,'3.Índices_inflação'!$A$2:$BA$105,$BW30,FALSE)) -> 0 | X30: ='1.Dados_cont_historicos'!X30*(1+VLOOKUP('1.Dados_cont_historicos'!X$4,'3.Índices_inflação'!$A$2:$BA$105,$BW30,FALSE)) -> 0 | Y30: ='1.Dados_cont_historicos'!Y30*(1+VLOOKUP('1.Dados_cont_historicos'!Y$4,'3.Índices_inflação'!$A$2:$BA$105,$BW30,FALSE)) -> 0 | Z30: ='1.Dados_cont_historicos'!Z30*(1+VLOOKUP('1.Dados_cont_historicos'!Z$4,'3.Índices_inflação'!$A$2:$BA$105,$BW30,FALSE)) -> 0 | AA30: ='1.Dados_cont_historicos'!AA30*(1+VLOOKUP('1.Dados_cont_historicos'!AA$4,'3.Índices_inflação'!$A$2:$BA$105,$BW30,FALSE)) -> 0 | AB30: ='1.Dados_cont_historicos'!AB30*(1+VLOOKUP('1.Dados_cont_historicos'!AB$4,'3.Índices_inflação'!$A$2:$BA$105,$BW30,FALSE)) -> 0 | AC30: 0 | AD30: ='1.Dados_cont_historicos'!AD30*(1+VLOOKUP('1.Dados_cont_historicos'!AD$4,'3.Índices_inflação'!$A$2:$BA$105,$BW30,FALSE)) -> 0 | AE30: ='1.Dados_cont_historicos'!AE30*(1+VLOOKUP('1.Dados_cont_historicos'!AE$4,'3.Índices_inflação'!$A$2:$BA$105,$BW30,FALSE)) -> 0 | AF30: ='1.Dados_cont_historicos'!AF30*(1+VLOOKUP('1.Dados_cont_historicos'!AF$4,'3.Índices_inflação'!$A$2:$BA$105,$BW30,FALSE)) -> 0 | AG30: ='1.Dados_cont_historicos'!AG30*(1+VLOOKUP('1.Dados_cont_historicos'!AG$4,'3.Índices_inflação'!$A$2:$BA$105,$BW30,FALSE)) -> 0 | AH30: ='1.Dados_cont_historicos'!AH30*(1+VLOOKUP('1.Dados_cont_historicos'!AH$4,'3.Índices_inflação'!$A$2:$BA$105,$BW30,FALSE)) -> 0 | AI30: ='1.Dados_cont_historicos'!AI30*(1+VLOOKUP('1.Dados_cont_historicos'!AI$4,'3.Índices_inflação'!$A$2:$BA$105,$BW30,FALSE)) -> 0 | AJ30: ='1.Dados_cont_historicos'!AJ30*(1+VLOOKUP('1.Dados_cont_historicos'!AJ$4,'3.Índices_inflação'!$A$2:$BA$105,$BW30,FALSE)) -> 0 | AK30: ='1.Dados_cont_historicos'!AK30*(1+VLOOKUP('1.Dados_cont_historicos'!AK$4,'3.Índices_inflação'!$A$2:$BA$105,$BW30,FALSE)) -> 0 | AL30: ='1.Dados_cont_historicos'!AL30*(1+VLOOKUP('1.Dados_cont_historicos'!AL$4,'3.Índices_inflação'!$A$2:$BA$105,$BW30,FALSE)) -> 0 | AM30: ='1.Dados_cont_historicos'!AM30*(1+VLOOKUP('1.Dados_cont_historicos'!AM$4,'3.Índices_inflação'!$A$2:$BA$105,$BW30,FALSE)) -> 0 | AN30: ='1.Dados_cont_historicos'!AN30*(1+VLOOKUP('1.Dados_cont_historicos'!AN$4,'3.Índices_inflação'!$A$2:$BA$105,$BW30,FALSE)) -> 0 | AO30: ='1.Dados_cont_historicos'!AO30*(1+VLOOKUP('1.Dados_cont_historicos'!AO$4,'3.Índices_inflação'!$A$2:$BA$105,$BW30,FALSE)) -> 0 | AP30: 0 | AQ30: ='1.Dados_cont_historicos'!AQ30*(1+VLOOKUP('1.Dados_cont_historicos'!AQ$4,'3.Índices_inflação'!$A$2:$BA$105,$BW30,FALSE)) -> 0 | AR30: ='1.Dados_cont_historicos'!AR30*(1+VLOOKUP('1.Dados_cont_historicos'!AR$4,'3.Índices_inflação'!$A$2:$BA$105,$BW30,FALSE)) -> 0 | AS30: ='1.Dados_cont_historicos'!AS30*(1+VLOOKUP('1.Dados_cont_historicos'!AS$4,'3.Índices_inflação'!$A$2:$BA$105,$BW30,FALSE)) -> 0 | AT30: ='1.Dados_cont_historicos'!AT30*(1+VLOOKUP('1.Dados_cont_historicos'!AT$4,'3.Índices_inflação'!$A$2:$BA$105,$BW30,FALSE)) -> 0 | AU30: ='1.Dados_cont_historicos'!AU30*(1+VLOOKUP('1.Dados_cont_historicos'!AU$4,'3.Índices_inflação'!$A$2:$BA$105,$BW30,FALSE)) -> 0 | AV30: ='1.Dados_cont_historicos'!AV30*(1+VLOOKUP('1.Dados_cont_historicos'!AV$4,'3.Índices_inflação'!$A$2:$BA$105,$BW30,FALSE)) -> 0 | AW30: ='1.Dados_cont_historicos'!AW30*(1+VLOOKUP('1.Dados_cont_historicos'!AW$4,'3.Índices_inflação'!$A$2:$BA$105,$BW30,FALSE)) -> 0 | AX30: ='1.Dados_cont_historicos'!AX30*(1+VLOOKUP('1.Dados_cont_historicos'!AX$4,'3.Índices_inflação'!$A$2:$BA$105,$BW30,FALSE)) -> 0 | AY30: ='1.Dados_cont_historicos'!AY30*(1+VLOOKUP('1.Dados_cont_historicos'!AY$4,'3.Índices_inflação'!$A$2:$BA$105,$BW30,FALSE)) -> 0 | AZ30: ='1.Dados_cont_historicos'!AZ30*(1+VLOOKUP('1.Dados_cont_historicos'!AZ$4,'3.Índices_inflação'!$A$2:$BA$105,$BW30,FALSE)) -> 0 | BA30: ='1.Dados_cont_historicos'!BA30*(1+VLOOKUP('1.Dados_cont_historicos'!BA$4,'3.Índices_inflação'!$A$2:$BA$105,$BW30,FALSE)) -> 0 | BB30: ='1.Dados_cont_historicos'!BB30*(1+VLOOKUP('1.Dados_cont_historicos'!BB$4,'3.Índices_inflação'!$A$2:$BA$105,$BW30,FALSE)) -> 0 | BC30: 0 | BD30: ='1.Dados_cont_historicos'!BD30*(1+VLOOKUP('1.Dados_cont_historicos'!BD$4,'3.Índices_inflação'!$A$2:$BA$105,$BW30,FALSE)) -> 0 | BE30: ='1.Dados_cont_historicos'!BE30*(1+VLOOKUP('1.Dados_cont_historicos'!BE$4,'3.Índices_inflação'!$A$2:$BA$105,$BW30,FALSE)) -> 0 | BF30: ='1.Dados_cont_historicos'!BF30*(1+VLOOKUP('1.Dados_cont_historicos'!BF$4,'3.Índices_inflação'!$A$2:$BA$105,$BW30,FALSE)) -> 0 | BG30: ='1.Dados_cont_historicos'!BG30*(1+VLOOKUP('1.Dados_cont_historicos'!BG$4,'3.Índices_inflação'!$A$2:$BA$105,$BW30,FALSE)) -> 0 | BH30: ='1.Dados_cont_historicos'!BH30*(1+VLOOKUP('1.Dados_cont_historicos'!BH$4,'3.Índices_inflação'!$A$2:$BA$105,$BW30,FALSE)) -> 0 | BI30: ='1.Dados_cont_historicos'!BI30*(1+VLOOKUP('1.Dados_cont_historicos'!BI$4,'3.Índices_inflação'!$A$2:$BA$105,$BW30,FALSE)) -> 0 | BJ30: ='1.Dados_cont_historicos'!BJ30*(1+VLOOKUP('1.Dados_cont_historicos'!BJ$4,'3.Índices_inflação'!$A$2:$BA$105,$BW30,FALSE)) -> 0 | BM30: 0 | BN30: 0 | BO30: 0 | BP30: 0 | BQ30: 0 | BR30: 0 | BS30: 0 | BT30: 0 | BV30: IGP-M | BW30: 7
C31: Manutenção | D31: ='1.Dados_cont_historicos'!D31*(1+VLOOKUP('1.Dados_cont_historicos'!D$4,'3.Índices_inflação'!$A$2:$BA$105,$BW31,FALSE)) -> 235488.2797 | E31: ='1.Dados_cont_historicos'!E31*(1+VLOOKUP('1.Dados_cont_historicos'!E$4,'3.Índices_inflação'!$A$2:$BA$105,$BW31,FALSE)) -> 260485.0253 | F31: ='1.Dados_cont_historicos'!F31*(1+VLOOKUP('1.Dados_cont_historicos'!F$4,'3.Índices_inflação'!$A$2:$BA$105,$BW31,FALSE)) -> 228483.5533 | G31: ='1.Dados_cont_historicos'!G31*(1+VLOOKUP('1.Dados_cont_historicos'!G$4,'3.Índices_inflação'!$A$2:$BA$105,$BW31,FALSE)) -> 236404.5702 | H31: ='1.Dados_cont_historicos'!H31*(1+VLOOKUP('1.Dados_cont_historicos'!H$4,'3.Índices_inflação'!$A$2:$BA$105,$BW31,FALSE)) -> 425910.5489 | I31: ='1.Dados_cont_historicos'!I31*(1+VLOOKUP('1.Dados_cont_historicos'!I$4,'3.Índices_inflação'!$A$2:$BA$105,$BW31,FALSE)) -> 316527.4726 | J31: ='1.Dados_cont_historicos'!J31*(1+VLOOKUP('1.Dados_cont_historicos'!J$4,'3.Índices_inflação'!$A$2:$BA$105,$BW31,FALSE)) -> 332490.1565 | K31: ='1.Dados_cont_historicos'!K31*(1+VLOOKUP('1.Dados_cont_historicos'!K$4,'3.Índices_inflação'!$A$2:$BA$105,$BW31,FALSE)) -> 436392.1197 | L31: ='1.Dados_cont_historicos'!L31*(1+VLOOKUP('1.Dados_cont_historicos'!L$4,'3.Índices_inflação'!$A$2:$BA$105,$BW31,FALSE)) -> 354592.0801 | M31: ='1.Dados_cont_historicos'!M31*(1+VLOOKUP('1.Dados_cont_historicos'!M$4,'3.Índices_inflação'!$A$2:$BA$105,$BW31,FALSE)) -> 426588.2542 | N31: ='1.Dados_cont_historicos'!N31*(1+VLOOKUP('1.Dados_cont_historicos'!N$4,'3.Índices_inflação'!$A$2:$BA$105,$BW31,FALSE)) -> 299243.5491 | O31: ='1.Dados_cont_historicos'!O31*(1+VLOOKUP('1.Dados_cont_historicos'!O$4,'3.Índices_inflação'!$A$2:$BA$105,$BW31,FALSE)) -> 331536.179 | P31: 3884141.789 | Q31: ='1.Dados_cont_historicos'!Q31*(1+VLOOKUP('1.Dados_cont_historicos'!Q$4,'3.Índices_inflação'!$A$2:$BA$105,$BW31,FALSE)) -> 336080.7074 | R31: ='1.Dados_cont_historicos'!R31*(1+VLOOKUP('1.Dados_cont_historicos'!R$4,'3.Índices_inflação'!$A$2:$BA$105,$BW31,FALSE)) -> 228202.2902 | S31: ='1.Dados_cont_historicos'!S31*(1+VLOOKUP('1.Dados_cont_historicos'!S$4,'3.Índices_inflação'!$A$2:$BA$105,$BW31,FALSE)) -> 335065.1143 | T31: ='1.Dados_cont_historicos'!T31*(1+VLOOKUP('1.Dados_cont_historicos'!T$4,'3.Índices_inflação'!$A$2:$BA$105,$BW31,FALSE)) -> 383350.2104 | U31: ='1.Dados_cont_historicos'!U31*(1+VLOOKUP('1.Dados_cont_historicos'!U$4,'3.Índices_inflação'!$A$2:$BA$105,$BW31,FALSE)) -> 357025.6249 | V31: ='1.Dados_cont_historicos'!V31*(1+VLOOKUP('1.Dados_cont_historicos'!V$4,'3.Índices_inflação'!$A$2:$BA$105,$BW31,FALSE)) -> 424281.5317 | W31: ='1.Dados_cont_historicos'!W31*(1+VLOOKUP('1.Dados_cont_historicos'!W$4,'3.Índices_inflação'!$A$2:$BA$105,$BW31,FALSE)) -> 523377.0782 | X31: ='1.Dados_cont_historicos'!X31*(1+VLOOKUP('1.Dados_cont_historicos'!X$4,'3.Índices_inflação'!$A$2:$BA$105,$BW31,FALSE)) -> 481689.842 | Y31: ='1.Dados_cont_historicos'!Y31*(1+VLOOKUP('1.Dados_cont_historicos'!Y$4,'3.Índices_inflação'!$A$2:$BA$105,$BW31,FALSE)) -> 344769.0661 | Z31: ='1.Dados_cont_historicos'!Z31*(1+VLOOKUP('1.Dados_cont_historicos'!Z$4,'3.Índices_inflação'!$A$2:$BA$105,$BW31,FALSE)) -> 528885.1542 | AA31: ='1.Dados_cont_historicos'!AA31*(1+VLOOKUP('1.Dados_cont_historicos'!AA$4,'3.Índices_inflação'!$A$2:$BA$105,$BW31,FALSE)) -> 803516.6139 | AB31: ='1.Dados_cont_historicos'!AB31*(1+VLOOKUP('1.Dados_cont_historicos'!AB$4,'3.Índices_inflação'!$A$2:$BA$105,$BW31,FALSE)) -> 710655.0064 | AC31: 5456898.24 | AD31: ='1.Dados_cont_historicos'!AD31*(1+VLOOKUP('1.Dados_cont_historicos'!AD$4,'3.Índices_inflação'!$A$2:$BA$105,$BW31,FALSE)) -> 355503.3857 | AE31: ='1.Dados_cont_historicos'!AE31*(1+VLOOKUP('1.Dados_cont_historicos'!AE$4,'3.Índices_inflação'!$A$2:$BA$105,$BW31,FALSE)) -> 818257.0294 | AF31: ='1.Dados_cont_historicos'!AF31*(1+VLOOKUP('1.Dados_cont_historicos'!AF$4,'3.Índices_inflação'!$A$2:$BA$105,$BW31,FALSE)) -> 1176619.022 | AG31: ='1.Dados_cont_historicos'!AG31*(1+VLOOKUP('1.Dados_cont_historicos'!AG$4,'3.Índices_inflação'!$A$2:$BA$105,$BW31,FALSE)) -> 761642.832 | AH31: ='1.Dados_cont_historicos'!AH31*(1+VLOOKUP('1.Dados_cont_historicos'!AH$4,'3.Índices_inflação'!$A$2:$BA$105,$BW31,FALSE)) -> 1223214.672 | AI31: ='1.Dados_cont_historicos'!AI31*(1+VLOOKUP('1.Dados_cont_historicos'!AI$4,'3.Índices_inflação'!$A$2:$BA$105,$BW31,FALSE)) -> 664657.6725 | AJ31: ='1.Dados_cont_historicos'!AJ31*(1+VLOOKUP('1.Dados_cont_historicos'!AJ$4,'3.Índices_inflação'!$A$2:$BA$105,$BW31,FALSE)) -> 960065.2239 | AK31: ='1.Dados_cont_historicos'!AK31*(1+VLOOKUP('1.Dados_cont_historicos'!AK$4,'3.Índices_inflação'!$A$2:$BA$105,$BW31,FALSE)) -> 759457.2403 | AL31: ='1.Dados_cont_historicos'!AL31*(1+VLOOKUP('1.Dados_cont_historicos'!AL$4,'3.Índices_inflação'!$A$2:$BA$105,$BW31,FALSE)) -> 294684.332 | AM31: ='1.Dados_cont_historicos'!AM31*(1+VLOOKUP('1.Dados_cont_historicos'!AM$4,'3.Índices_inflação'!$A$2:$BA$105,$BW31,FALSE)) -> 388314.5229 | AN31: ='1.Dados_cont_historicos'!AN31*(1+VLOOKUP('1.Dados_cont_historicos'!AN$4,'3.Índices_inflação'!$A$2:$BA$105,$BW31,FALSE)) -> 290073.4896 | AO31: ='1.Dados_cont_historicos'!AO31*(1+VLOOKUP('1.Dados_cont_historicos'!AO$4,'3.Índices_inflação'!$A$2:$BA$105,$BW31,FALSE)) -> 509125.8332 | AP31: 8201615.256 | AQ31: ='1.Dados_cont_historicos'!AQ31*(1+VLOOKUP('1.Dados_cont_historicos'!AQ$4,'3.Índices_inflação'!$A$2:$BA$105,$BW31,FALSE)) -> 346319.8466 | AR31: ='1.Dados_cont_historicos'!AR31*(1+VLOOKUP('1.Dados_cont_historicos'!AR$4,'3.Índices_inflação'!$A$2:$BA$105,$BW31,FALSE)) -> 454416.4237 | AS31: ='1.Dados_cont_historicos'!AS31*(1+VLOOKUP('1.Dados_cont_historicos'!AS$4,'3.Índices_inflação'!$A$2:$BA$105,$BW31,FALSE)) -> 320689.7616 | AT31: ='1.Dados_cont_historicos'!AT31*(1+VLOOKUP('1.Dados_cont_historicos'!AT$4,'3.Índices_inflação'!$A$2:$BA$105,$BW31,FALSE)) -> 277502.1507 | AU31: ='1.Dados_cont_historicos'!AU31*(1+VLOOKUP('1.Dados_cont_historicos'!AU$4,'3.Índices_inflação'!$A$2:$BA$105,$BW31,FALSE)) -> 394014.6634 | AV31: ='1.Dados_cont_historicos'!AV31*(1+VLOOKUP('1.Dados_cont_historicos'!AV$4,'3.Índices_inflação'!$A$2:$BA$105,$BW31,FALSE)) -> 185410.7391 | AW31: ='1.Dados_cont_historicos'!AW31*(1+VLOOKUP('1.Dados_cont_historicos'!AW$4,'3.Índices_inflação'!$A$2:$BA$105,$BW31,FALSE)) -> 293960.2669 | AX31: ='1.Dados_cont_historicos'!AX31*(1+VLOOKUP('1.Dados_cont_historicos'!AX$4,'3.Índices_inflação'!$A$2:$BA$105,$BW31,FALSE)) -> 211388.0961 | AY31: ='1.Dados_cont_historicos'!AY31*(1+VLOOKUP('1.Dados_cont_historicos'!AY$4,'3.Índices_inflação'!$A$2:$BA$105,$BW31,FALSE)) -> 421115.7802 | AZ31: ='1.Dados_cont_historicos'!AZ31*(1+VLOOKUP('1.Dados_cont_historicos'!AZ$4,'3.Índices_inflação'!$A$2:$BA$105,$BW31,FALSE)) -> 385769.5166 | BA31: ='1.Dados_cont_historicos'!BA31*(1+VLOOKUP('1.Dados_cont_historicos'!BA$4,'3.Índices_inflação'!$A$2:$BA$105,$BW31,FALSE)) -> 410031.01 | BB31: ='1.Dados_cont_historicos'!BB31*(1+VLOOKUP('1.Dados_cont_historicos'!BB$4,'3.Índices_inflação'!$A$2:$BA$105,$BW31,FALSE)) -> 502439.5111 | BC31: 4203057.766 | BD31: ='1.Dados_cont_historicos'!BD31*(1+VLOOKUP('1.Dados_cont_historicos'!BD$4,'3.Índices_inflação'!$A$2:$BA$105,$BW31,FALSE)) -> 271867.2437 | BE31: ='1.Dados_cont_historicos'!BE31*(1+VLOOKUP('1.Dados_cont_historicos'!BE$4,'3.Índices_inflação'!$A$2:$BA$105,$BW31,FALSE)) -> 364607.0539 | BF31: ='1.Dados_cont_historicos'!BF31*(1+VLOOKUP('1.Dados_cont_historicos'!BF$4,'3.Índices_inflação'!$A$2:$BA$105,$BW31,FALSE)) -> 321674.0779 | BG31: ='1.Dados_cont_historicos'!BG31*(1+VLOOKUP('1.Dados_cont_historicos'!BG$4,'3.Índices_inflação'!$A$2:$BA$105,$BW31,FALSE)) -> 308379.6528 | BH31: ='1.Dados_cont_historicos'!BH31*(1+VLOOKUP('1.Dados_cont_historicos'!BH$4,'3.Índices_inflação'!$A$2:$BA$105,$BW31,FALSE)) -> 395748.3279 | BI31: ='1.Dados_cont_historicos'!BI31*(1+VLOOKUP('1.Dados_cont_historicos'!BI$4,'3.Índices_inflação'!$A$2:$BA$105,$BW31,FALSE)) -> 186782.7786 | BJ31: ='1.Dados_cont_historicos'!BJ31*(1+VLOOKUP('1.Dados_cont_historicos'!BJ$4,'3.Índices_inflação'!$A$2:$BA$105,$BW31,FALSE)) -> 296723.4934 | BM31: 3884141.789 | BN31: 5456898.24 | BO31: 8201615.256 | BP31: 4203057.766 | BQ31: 4435734.739 | BR31: 8829475.52 | BS31: 4513969.27 | BT31: 4076526.542 | BU31: -0.09690866321 | BV31: INCC-DI MS | BW31: 19
C32: Material de Tratamento | D32: ='1.Dados_cont_historicos'!D32*(1+VLOOKUP('1.Dados_cont_historicos'!D$4,'3.Índices_inflação'!$A$2:$BA$105,$BW32,FALSE)) -> 202506.5779 | E32: ='1.Dados_cont_historicos'!E32*(1+VLOOKUP('1.Dados_cont_historicos'!E$4,'3.Índices_inflação'!$A$2:$BA$105,$BW32,FALSE)) -> 238676.6546 | F32: ='1.Dados_cont_historicos'!F32*(1+VLOOKUP('1.Dados_cont_historicos'!F$4,'3.Índices_inflação'!$A$2:$BA$105,$BW32,FALSE)) -> 335673.046 | G32: ='1.Dados_cont_historicos'!G32*(1+VLOOKUP('1.Dados_cont_historicos'!G$4,'3.Índices_inflação'!$A$2:$BA$105,$BW32,FALSE)) -> 322034.9797 | H32: ='1.Dados_cont_historicos'!H32*(1+VLOOKUP('1.Dados_cont_historicos'!H$4,'3.Índices_inflação'!$A$2:$BA$105,$BW32,FALSE)) -> 63078.39751 | I32: ='1.Dados_cont_historicos'!I32*(1+VLOOKUP('1.Dados_cont_historicos'!I$4,'3.Índices_inflação'!$A$2:$BA$105,$BW32,FALSE)) -> 123789.2238 | J32: ='1.Dados_cont_historicos'!J32*(1+VLOOKUP('1.Dados_cont_historicos'!J$4,'3.Índices_inflação'!$A$2:$BA$105,$BW32,FALSE)) -> 141875.0744 | K32: ='1.Dados_cont_historicos'!K32*(1+VLOOKUP('1.Dados_cont_historicos'!K$4,'3.Índices_inflação'!$A$2:$BA$105,$BW32,FALSE)) -> 102398.5623 | L32: ='1.Dados_cont_historicos'!L32*(1+VLOOKUP('1.Dados_cont_historicos'!L$4,'3.Índices_inflação'!$A$2:$BA$105,$BW32,FALSE)) -> 73552.38328 | M32: ='1.Dados_cont_historicos'!M32*(1+VLOOKUP('1.Dados_cont_historicos'!M$4,'3.Índices_inflação'!$A$2:$BA$105,$BW32,FALSE)) -> 68263.16164 | N32: ='1.Dados_cont_historicos'!N32*(1+VLOOKUP('1.Dados_cont_historicos'!N$4,'3.Índices_inflação'!$A$2:$BA$105,$BW32,FALSE)) -> 351539.3134 | O32: ='1.Dados_cont_historicos'!O32*(1+VLOOKUP('1.Dados_cont_historicos'!O$4,'3.Índices_inflação'!$A$2:$BA$105,$BW32,FALSE)) -> 141640.5538 | P32: 2165027.928 | Q32: ='1.Dados_cont_historicos'!Q32*(1+VLOOKUP('1.Dados_cont_historicos'!Q$4,'3.Índices_inflação'!$A$2:$BA$105,$BW32,FALSE)) -> 244625.7743 | R32: ='1.Dados_cont_historicos'!R32*(1+VLOOKUP('1.Dados_cont_historicos'!R$4,'3.Índices_inflação'!$A$2:$BA$105,$BW32,FALSE)) -> 125666.3053 | S32: ='1.Dados_cont_historicos'!S32*(1+VLOOKUP('1.Dados_cont_historicos'!S$4,'3.Índices_inflação'!$A$2:$BA$105,$BW32,FALSE)) -> 129062.4201 | T32: ='1.Dados_cont_historicos'!T32*(1+VLOOKUP('1.Dados_cont_historicos'!T$4,'3.Índices_inflação'!$A$2:$BA$105,$BW32,FALSE)) -> 192958.5932 | U32: ='1.Dados_cont_historicos'!U32*(1+VLOOKUP('1.Dados_cont_historicos'!U$4,'3.Índices_inflação'!$A$2:$BA$105,$BW32,FALSE)) -> 128102.0467 | V32: ='1.Dados_cont_historicos'!V32*(1+VLOOKUP('1.Dados_cont_historicos'!V$4,'3.Índices_inflação'!$A$2:$BA$105,$BW32,FALSE)) -> 117100.8144 | W32: ='1.Dados_cont_historicos'!W32*(1+VLOOKUP('1.Dados_cont_historicos'!W$4,'3.Índices_inflação'!$A$2:$BA$105,$BW32,FALSE)) -> 210083.5775 | X32: ='1.Dados_cont_historicos'!X32*(1+VLOOKUP('1.Dados_cont_historicos'!X$4,'3.Índices_inflação'!$A$2:$BA$105,$BW32,FALSE)) -> 194174.7356 | Y32: ='1.Dados_cont_historicos'!Y32*(1+VLOOKUP('1.Dados_cont_historicos'!Y$4,'3.Índices_inflação'!$A$2:$BA$105,$BW32,FALSE)) -> 111020.9546 | Z32: ='1.Dados_cont_historicos'!Z32*(1+VLOOKUP('1.Dados_cont_historicos'!Z$4,'3.Índices_inflação'!$A$2:$BA$105,$BW32,FALSE)) -> 202214.8603 | AA32: ='1.Dados_cont_historicos'!AA32*(1+VLOOKUP('1.Dados_cont_historicos'!AA$4,'3.Índices_inflação'!$A$2:$BA$105,$BW32,FALSE)) -> 185984.524 | AB32: ='1.Dados_cont_historicos'!AB32*(1+VLOOKUP('1.Dados_cont_historicos'!AB$4,'3.Índices_inflação'!$A$2:$BA$105,$BW32,FALSE)) -> 205648.3106 | AC32: 2046642.917 | AD32: ='1.Dados_cont_historicos'!AD32*(1+VLOOKUP('1.Dados_cont_historicos'!AD$4,'3.Índices_inflação'!$A$2:$BA$105,$BW32,FALSE)) -> 196149.983 | AE32: ='1.Dados_cont_historicos'!AE32*(1+VLOOKUP('1.Dados_cont_historicos'!AE$4,'3.Índices_inflação'!$A$2:$BA$105,$BW32,FALSE)) -> 165725.439 | AF32: ='1.Dados_cont_historicos'!AF32*(1+VLOOKUP('1.Dados_cont_historicos'!AF$4,'3.Índices_inflação'!$A$2:$BA$105,$BW32,FALSE)) -> 187389.197 | AG32: ='1.Dados_cont_historicos'!AG32*(1+VLOOKUP('1.Dados_cont_historicos'!AG$4,'3.Índices_inflação'!$A$2:$BA$105,$BW32,FALSE)) -> 183662.0248 | AH32: ='1.Dados_cont_historicos'!AH32*(1+VLOOKUP('1.Dados_cont_historicos'!AH$4,'3.Índices_inflação'!$A$2:$BA$105,$BW32,FALSE)) -> 206540.3259 | AI32: ='1.Dados_cont_historicos'!AI32*(1+VLOOKUP('1.Dados_cont_historicos'!AI$4,'3.Índices_inflação'!$A$2:$BA$105,$BW32,FALSE)) -> 118507.4344 | AJ32: ='1.Dados_cont_historicos'!AJ32*(1+VLOOKUP('1.Dados_cont_historicos'!AJ$4,'3.Índices_inflação'!$A$2:$BA$105,$BW32,FALSE)) -> 328485.2984 | AK32: ='1.Dados_cont_historicos'!AK32*(1+VLOOKUP('1.Dados_cont_historicos'!AK$4,'3.Índices_inflação'!$A$2:$BA$105,$BW32,FALSE)) -> 240693.4756 | AL32: ='1.Dados_cont_historicos'!AL32*(1+VLOOKUP('1.Dados_cont_historicos'!AL$4,'3.Índices_inflação'!$A$2:$BA$105,$BW32,FALSE)) -> 200863.5678 | AM32: ='1.Dados_cont_historicos'!AM32*(1+VLOOKUP('1.Dados_cont_historicos'!AM$4,'3.Índices_inflação'!$A$2:$BA$105,$BW32,FALSE)) -> 220652.2184 | AN32: ='1.Dados_cont_historicos'!AN32*(1+VLOOKUP('1.Dados_cont_historicos'!AN$4,'3.Índices_inflação'!$A$2:$BA$105,$BW32,FALSE)) -> 227553.1766 | AO32: ='1.Dados_cont_historicos'!AO32*(1+VLOOKUP('1.Dados_cont_historicos'!AO$4,'3.Índices_inflação'!$A$2:$BA$105,$BW32,FALSE)) -> 234816.8051 | AP32: 2511038.946 | AQ32: ='1.Dados_cont_historicos'!AQ32*(1+VLOOKUP('1.Dados_cont_historicos'!AQ$4,'3.Índices_inflação'!$A$2:$BA$105,$BW32,FALSE)) -> 142754.7024 | AR32: ='1.Dados_cont_historicos'!AR32*(1+VLOOKUP('1.Dados_cont_historicos'!AR$4,'3.Índices_inflação'!$A$2:$BA$105,$BW32,FALSE)) -> 160490.9337 | AS32: ='1.Dados_cont_historicos'!AS32*(1+VLOOKUP('1.Dados_cont_historicos'!AS$4,'3.Índices_inflação'!$A$2:$BA$105,$BW32,FALSE)) -> 300874.7311 | AT32: ='1.Dados_cont_historicos'!AT32*(1+VLOOKUP('1.Dados_cont_historicos'!AT$4,'3.Índices_inflação'!$A$2:$BA$105,$BW32,FALSE)) -> 192814.5007 | AU32: ='1.Dados_cont_historicos'!AU32*(1+VLOOKUP('1.Dados_cont_historicos'!AU$4,'3.Índices_inflação'!$A$2:$BA$105,$BW32,FALSE)) -> 217608.3128 | AV32: ='1.Dados_cont_historicos'!AV32*(1+VLOOKUP('1.Dados_cont_historicos'!AV$4,'3.Índices_inflação'!$A$2:$BA$105,$BW32,FALSE)) -> 139657.1332 | AW32: ='1.Dados_cont_historicos'!AW32*(1+VLOOKUP('1.Dados_cont_historicos'!AW$4,'3.Índices_inflação'!$A$2:$BA$105,$BW32,FALSE)) -> 253889.1302 | AX32: ='1.Dados_cont_historicos'!AX32*(1+VLOOKUP('1.Dados_cont_historicos'!AX$4,'3.Índices_inflação'!$A$2:$BA$105,$BW32,FALSE)) -> 245681.6798 | AY32: ='1.Dados_cont_historicos'!AY32*(1+VLOOKUP('1.Dados_cont_historicos'!AY$4,'3.Índices_inflação'!$A$2:$BA$105,$BW32,FALSE)) -> 170968.7935 | AZ32: ='1.Dados_cont_historicos'!AZ32*(1+VLOOKUP('1.Dados_cont_historicos'!AZ$4,'3.Índices_inflação'!$A$2:$BA$105,$BW32,FALSE)) -> 146860.5612 | BA32: ='1.Dados_cont_historicos'!BA32*(1+VLOOKUP('1.Dados_cont_historicos'!BA$4,'3.Índices_inflação'!$A$2:$BA$105,$BW32,FALSE)) -> 267254.0196 | BB32: ='1.Dados_cont_historicos'!BB32*(1+VLOOKUP('1.Dados_cont_historicos'!BB$4,'3.Índices_inflação'!$A$2:$BA$105,$BW32,FALSE)) -> 269630.9121 | BC32: 2508485.41 | BD32: ='1.Dados_cont_historicos'!BD32*(1+VLOOKUP('1.Dados_cont_historicos'!BD$4,'3.Índices_inflação'!$A$2:$BA$105,$BW32,FALSE)) -> 97927.41818 | BE32: ='1.Dados_cont_historicos'!BE32*(1+VLOOKUP('1.Dados_cont_historicos'!BE$4,'3.Índices_inflação'!$A$2:$BA$105,$BW32,FALSE)) -> 205469.6781 | BF32: ='1.Dados_cont_historicos'!BF32*(1+VLOOKUP('1.Dados_cont_historicos'!BF$4,'3.Índices_inflação'!$A$2:$BA$105,$BW32,FALSE)) -> 205512.0888 | BG32: ='1.Dados_cont_historicos'!BG32*(1+VLOOKUP('1.Dados_cont_historicos'!BG$4,'3.Índices_inflação'!$A$2:$BA$105,$BW32,FALSE)) -> 110796.1026 | BH32: ='1.Dados_cont_historicos'!BH32*(1+VLOOKUP('1.Dados_cont_historicos'!BH$4,'3.Índices_inflação'!$A$2:$BA$105,$BW32,FALSE)) -> 218217.6161 | BI32: ='1.Dados_cont_historicos'!BI32*(1+VLOOKUP('1.Dados_cont_historicos'!BI$4,'3.Índices_inflação'!$A$2:$BA$105,$BW32,FALSE)) -> 141835.7845 | BJ32: ='1.Dados_cont_historicos'!BJ32*(1+VLOOKUP('1.Dados_cont_historicos'!BJ$4,'3.Índices_inflação'!$A$2:$BA$105,$BW32,FALSE)) -> 259550.8578 | BM32: 2165027.928 | BN32: 2046642.917 | BO32: 2511038.946 | BP32: 2508485.41 | BQ32: 1884993.506 | BR32: 2285503.088 | BS32: 2532668.688 | BT32: 2339705.512 | BU32: -0.07618966365 | BV32: IGP-M | BW32: 7
C33: Outros Materiais | D33: ='1.Dados_cont_historicos'!D33*(1+VLOOKUP('1.Dados_cont_historicos'!D$4,'3.Índices_inflação'!$A$2:$BA$105,$BW33,FALSE)) -> 73195.13759 | E33: ='1.Dados_cont_historicos'!E33*(1+VLOOKUP('1.Dados_cont_historicos'!E$4,'3.Índices_inflação'!$A$2:$BA$105,$BW33,FALSE)) -> 36316.52329 | F33: ='1.Dados_cont_historicos'!F33*(1+VLOOKUP('1.Dados_cont_historicos'!F$4,'3.Índices_inflação'!$A$2:$BA$105,$BW33,FALSE)) -> 21062.24629 | G33: ='1.Dados_cont_historicos'!G33*(1+VLOOKUP('1.Dados_cont_historicos'!G$4,'3.Índices_inflação'!$A$2:$BA$105,$BW33,FALSE)) -> 27617.66257 | H33: ='1.Dados_cont_historicos'!H33*(1+VLOOKUP('1.Dados_cont_historicos'!H$4,'3.Índices_inflação'!$A$2:$BA$105,$BW33,FALSE)) -> 28701.2496 | I33: ='1.Dados_cont_historicos'!I33*(1+VLOOKUP('1.Dados_cont_historicos'!I$4,'3.Índices_inflação'!$A$2:$BA$105,$BW33,FALSE)) -> 42249.80371 | J33: ='1.Dados_cont_historicos'!J33*(1+VLOOKUP('1.Dados_cont_historicos'!J$4,'3.Índices_inflação'!$A$2:$BA$105,$BW33,FALSE)) -> 35176.52839 | K33: ='1.Dados_cont_historicos'!K33*(1+VLOOKUP('1.Dados_cont_historicos'!K$4,'3.Índices_inflação'!$A$2:$BA$105,$BW33,FALSE)) -> 24560.88345 | L33: ='1.Dados_cont_historicos'!L33*(1+VLOOKUP('1.Dados_cont_historicos'!L$4,'3.Índices_inflação'!$A$2:$BA$105,$BW33,FALSE)) -> 33151.70304 | M33: ='1.Dados_cont_historicos'!M33*(1+VLOOKUP('1.Dados_cont_historicos'!M$4,'3.Índices_inflação'!$A$2:$BA$105,$BW33,FALSE)) -> 36068.61901 | N33: ='1.Dados_cont_historicos'!N33*(1+VLOOKUP('1.Dados_cont_historicos'!N$4,'3.Índices_inflação'!$A$2:$BA$105,$BW33,FALSE)) -> 17710.57041 | O33: ='1.Dados_cont_historicos'!O33*(1+VLOOKUP('1.Dados_cont_historicos'!O$4,'3.Índices_inflação'!$A$2:$BA$105,$BW33,FALSE)) -> 12055.24561 | P33: 387866.173 | Q33: ='1.Dados_cont_historicos'!Q33*(1+VLOOKUP('1.Dados_cont_historicos'!Q$4,'3.Índices_inflação'!$A$2:$BA$105,$BW33,FALSE)) -> 37948.54352 | R33: ='1.Dados_cont_historicos'!R33*(1+VLOOKUP('1.Dados_cont_historicos'!R$4,'3.Índices_inflação'!$A$2:$BA$105,$BW33,FALSE)) -> 12360.19297 | S33: ='1.Dados_cont_historicos'!S33*(1+VLOOKUP('1.Dados_cont_historicos'!S$4,'3.Índices_inflação'!$A$2:$BA$105,$BW33,FALSE)) -> 34690.45306 | T33: ='1.Dados_cont_historicos'!T33*(1+VLOOKUP('1.Dados_cont_historicos'!T$4,'3.Índices_inflação'!$A$2:$BA$105,$BW33,FALSE)) -> 26872.01104 | U33: ='1.Dados_cont_historicos'!U33*(1+VLOOKUP('1.Dados_cont_historicos'!U$4,'3.Índices_inflação'!$A$2:$BA$105,$BW33,FALSE)) -> 13356.62311 | V33: ='1.Dados_cont_historicos'!V33*(1+VLOOKUP('1.Dados_cont_historicos'!V$4,'3.Índices_inflação'!$A$2:$BA$105,$BW33,FALSE)) -> 32637.44533 | W33: ='1.Dados_cont_historicos'!W33*(1+VLOOKUP('1.Dados_cont_historicos'!W$4,'3.Índices_inflação'!$A$2:$BA$105,$BW33,FALSE)) -> 22497.84107 | X33: ='1.Dados_cont_historicos'!X33*(1+VLOOKUP('1.Dados_cont_historicos'!X$4,'3.Índices_inflação'!$A$2:$BA$105,$BW33,FALSE)) -> 39998.19088 | Y33: ='1.Dados_cont_historicos'!Y33*(1+VLOOKUP('1.Dados_cont_historicos'!Y$4,'3.Índices_inflação'!$A$2:$BA$105,$BW33,FALSE)) -> 27194.93021 | Z33: ='1.Dados_cont_historicos'!Z33*(1+VLOOKUP('1.Dados_cont_historicos'!Z$4,'3.Índices_inflação'!$A$2:$BA$105,$BW33,FALSE)) -> 34289.21941 | AA33: ='1.Dados_cont_historicos'!AA33*(1+VLOOKUP('1.Dados_cont_historicos'!AA$4,'3.Índices_inflação'!$A$2:$BA$105,$BW33,FALSE)) -> 4889.032725 | AB33: ='1.Dados_cont_historicos'!AB33*(1+VLOOKUP('1.Dados_cont_historicos'!AB$4,'3.Índices_inflação'!$A$2:$BA$105,$BW33,FALSE)) -> 55780.29722 | AC33: 342514.7805 | AD33: ='1.Dados_cont_historicos'!AD33*(1+VLOOKUP('1.Dados_cont_historicos'!AD$4,'3.Índices_inflação'!$A$2:$BA$105,$BW33,FALSE)) -> 14541.99637 | AE33: ='1.Dados_cont_historicos'!AE33*(1+VLOOKUP('1.Dados_cont_historicos'!AE$4,'3.Índices_inflação'!$A$2:$BA$105,$BW33,FALSE)) -> 16837.99456 | AF33: ='1.Dados_cont_historicos'!AF33*(1+VLOOKUP('1.Dados_cont_historicos'!AF$4,'3.Índices_inflação'!$A$2:$BA$105,$BW33,FALSE)) -> 14764.66957 | AG33: ='1.Dados_cont_historicos'!AG33*(1+VLOOKUP('1.Dados_cont_historicos'!AG$4,'3.Índices_inflação'!$A$2:$BA$105,$BW33,FALSE)) -> 15856.20324 | AH33: ='1.Dados_cont_historicos'!AH33*(1+VLOOKUP('1.Dados_cont_historicos'!AH$4,'3.Índices_inflação'!$A$2:$BA$105,$BW33,FALSE)) -> 19506.20738 | AI33: ='1.Dados_cont_historicos'!AI33*(1+VLOOKUP('1.Dados_cont_historicos'!AI$4,'3.Índices_inflação'!$A$2:$BA$105,$BW33,FALSE)) -> 24057.29932 | AJ33: ='1.Dados_cont_historicos'!AJ33*(1+VLOOKUP('1.Dados_cont_historicos'!AJ$4,'3.Índices_inflação'!$A$2:$BA$105,$BW33,FALSE)) -> 29200.46504 | AK33: ='1.Dados_cont_historicos'!AK33*(1+VLOOKUP('1.Dados_cont_historicos'!AK$4,'3.Índices_inflação'!$A$2:$BA$105,$BW33,FALSE)) -> 19068.42706 | AL33: ='1.Dados_cont_historicos'!AL33*(1+VLOOKUP('1.Dados_cont_historicos'!AL$4,'3.Índices_inflação'!$A$2:$BA$105,$BW33,FALSE)) -> 19950.42983 | AM33: ='1.Dados_cont_historicos'!AM33*(1+VLOOKUP('1.Dados_cont_historicos'!AM$4,'3.Índices_inflação'!$A$2:$BA$105,$BW33,FALSE)) -> 18905.08053 | AN33: ='1.Dados_cont_historicos'!AN33*(1+VLOOKUP('1.Dados_cont_historicos'!AN$4,'3.Índices_inflação'!$A$2:$BA$105,$BW33,FALSE)) -> 21511.56268 | AO33: ='1.Dados_cont_historicos'!AO33*(1+VLOOKUP('1.Dados_cont_historicos'!AO$4,'3.Índices_inflação'!$A$2:$BA$105,$BW33,FALSE)) -> 61715.46161 | AP33: 275915.7972 | AQ33: ='1.Dados_cont_historicos'!AQ33*(1+VLOOKUP('1.Dados_cont_historicos'!AQ$4,'3.Índices_inflação'!$A$2:$BA$105,$BW33,FALSE)) -> 15399.69571 | AR33: ='1.Dados_cont_historicos'!AR33*(1+VLOOKUP('1.Dados_cont_historicos'!AR$4,'3.Índices_inflação'!$A$2:$BA$105,$BW33,FALSE)) -> 12269.60519 | AS33: ='1.Dados_cont_historicos'!AS33*(1+VLOOKUP('1.Dados_cont_historicos'!AS$4,'3.Índices_inflação'!$A$2:$BA$105,$BW33,FALSE)) -> 21633.21231 | AT33: ='1.Dados_cont_historicos'!AT33*(1+VLOOKUP('1.Dados_cont_historicos'!AT$4,'3.Índices_inflação'!$A$2:$BA$105,$BW33,FALSE)) -> 33545.01849 | AU33: ='1.Dados_cont_historicos'!AU33*(1+VLOOKUP('1.Dados_cont_historicos'!AU$4,'3.Índices_inflação'!$A$2:$BA$105,$BW33,FALSE)) -> 35847.67381 | AV33: ='1.Dados_cont_historicos'!AV33*(1+VLOOKUP('1.Dados_cont_historicos'!AV$4,'3.Índices_inflação'!$A$2:$BA$105,$BW33,FALSE)) -> 21945.72983 | AW33: ='1.Dados_cont_historicos'!AW33*(1+VLOOKUP('1.Dados_cont_historicos'!AW$4,'3.Índices_inflação'!$A$2:$BA$105,$BW33,FALSE)) -> 25590.96786 | AX33: ='1.Dados_cont_historicos'!AX33*(1+VLOOKUP('1.Dados_cont_historicos'!AX$4,'3.Índices_inflação'!$A$2:$BA$105,$BW33,FALSE)) -> 15271.07313 | AY33: ='1.Dados_cont_historicos'!AY33*(1+VLOOKUP('1.Dados_cont_historicos'!AY$4,'3.Índices_inflação'!$A$2:$BA$105,$BW33,FALSE)) -> 10968.44391 | AZ33: ='1.Dados_cont_historicos'!AZ33*(1+VLOOKUP('1.Dados_cont_historicos'!AZ$4,'3.Índices_inflação'!$A$2:$BA$105,$BW33,FALSE)) -> 32480.98976 | BA33: ='1.Dados_cont_historicos'!BA33*(1+VLOOKUP('1.Dados_cont_historicos'!BA$4,'3.Índices_inflação'!$A$2:$BA$105,$BW33,FALSE)) -> 46094.49247 | BB33: ='1.Dados_cont_historicos'!BB33*(1+VLOOKUP('1.Dados_cont_historicos'!BB$4,'3.Índices_inflação'!$A$2:$BA$105,$BW33,FALSE)) -> 47881.5824 | BC33: 318928.4849 | BD33: ='1.Dados_cont_historicos'!BD33*(1+VLOOKUP('1.Dados_cont_historicos'!BD$4,'3.Índices_inflação'!$A$2:$BA$105,$BW33,FALSE)) -> 7049.766019 | BE33: ='1.Dados_cont_historicos'!BE33*(1+VLOOKUP('1.Dados_cont_historicos'!BE$4,'3.Índices_inflação'!$A$2:$BA$105,$BW33,FALSE)) -> 12081.26405 | BF33: ='1.Dados_cont_historicos'!BF33*(1+VLOOKUP('1.Dados_cont_historicos'!BF$4,'3.Índices_inflação'!$A$2:$BA$105,$BW33,FALSE)) -> 2139.866824 | BG33: ='1.Dados_cont_historicos'!BG33*(1+VLOOKUP('1.Dados_cont_historicos'!BG$4,'3.Índices_inflação'!$A$2:$BA$105,$BW33,FALSE)) -> 11381.44428 | BH33: ='1.Dados_cont_historicos'!BH33*(1+VLOOKUP('1.Dados_cont_historicos'!BH$4,'3.Índices_inflação'!$A$2:$BA$105,$BW33,FALSE)) -> 35948.0473 | BI33: ='1.Dados_cont_historicos'!BI33*(1+VLOOKUP('1.Dados_cont_historicos'!BI$4,'3.Índices_inflação'!$A$2:$BA$105,$BW33,FALSE)) -> 22288.08321 | BJ33: ='1.Dados_cont_historicos'!BJ33*(1+VLOOKUP('1.Dados_cont_historicos'!BJ$4,'3.Índices_inflação'!$A$2:$BA$105,$BW33,FALSE)) -> 26161.64644 | BM33: 387866.173 | BN33: 342514.7805 | BO33: 275915.7972 | BP33: 318928.4849 | BQ33: 303910.1316 | BR33: 296916.5059 | BS33: 307382.8649 | BT33: 269746.6998 | BU33: -0.1224406739 | BV33: IGP-M | BW33: 7
C34: Pessoal | D34: ='1.Dados_cont_historicos'!D34*(1+VLOOKUP('1.Dados_cont_historicos'!D$4,'3.Índices_inflação'!$A$2:$BA$105,$BW34,FALSE)) -> 1362852.309 | E34: ='1.Dados_cont_historicos'!E34*(1+VLOOKUP('1.Dados_cont_historicos'!E$4,'3.Índices_inflação'!$A$2:$BA$105,$BW34,FALSE)) -> 1361288.148 | F34: ='1.Dados_cont_historicos'!F34*(1+VLOOKUP('1.Dados_cont_historicos'!F$4,'3.Índices_inflação'!$A$2:$BA$105,$BW34,FALSE)) -> 1953880.643 | G34: ='1.Dados_cont_historicos'!G34*(1+VLOOKUP('1.Dados_cont_historicos'!G$4,'3.Índices_inflação'!$A$2:$BA$105,$BW34,FALSE)) -> 1650182.457 | H34: ='1.Dados_cont_historicos'!H34*(1+VLOOKUP('1.Dados_cont_historicos'!H$4,'3.Índices_inflação'!$A$2:$BA$105,$BW34,FALSE)) -> 1734759.16 | I34: ='1.Dados_cont_historicos'!I34*(1+VLOOKUP('1.Dados_cont_historicos'!I$4,'3.Índices_inflação'!$A$2:$BA$105,$BW34,FALSE)) -> 1499573.792 | J34: ='1.Dados_cont_historicos'!J34*(1+VLOOKUP('1.Dados_cont_historicos'!J$4,'3.Índices_inflação'!$A$2:$BA$105,$BW34,FALSE)) -> 1504276.777 | K34: ='1.Dados_cont_historicos'!K34*(1+VLOOKUP('1.Dados_cont_historicos'!K$4,'3.Índices_inflação'!$A$2:$BA$105,$BW34,FALSE)) -> 1530794.513 | L34: ='1.Dados_cont_historicos'!L34*(1+VLOOKUP('1.Dados_cont_historicos'!L$4,'3.Índices_inflação'!$A$2:$BA$105,$BW34,FALSE)) -> 1446623.025 | M34: ='1.Dados_cont_historicos'!M34*(1+VLOOKUP('1.Dados_cont_historicos'!M$4,'3.Índices_inflação'!$A$2:$BA$105,$BW34,FALSE)) -> 1656502.172 | N34: ='1.Dados_cont_historicos'!N34*(1+VLOOKUP('1.Dados_cont_historicos'!N$4,'3.Índices_inflação'!$A$2:$BA$105,$BW34,FALSE)) -> 1644152.279 | O34: ='1.Dados_cont_historicos'!O34*(1+VLOOKUP('1.Dados_cont_historicos'!O$4,'3.Índices_inflação'!$A$2:$BA$105,$BW34,FALSE)) -> 1662295.923 | P34: 19007181.2 | Q34: ='1.Dados_cont_historicos'!Q34*(1+VLOOKUP('1.Dados_cont_historicos'!Q$4,'3.Índices_inflação'!$A$2:$BA$105,$BW34,FALSE)) -> 1652930.121 | R34: ='1.Dados_cont_historicos'!R34*(1+VLOOKUP('1.Dados_cont_historicos'!R$4,'3.Índices_inflação'!$A$2:$BA$105,$BW34,FALSE)) -> 1683155.838 | S34: ='1.Dados_cont_historicos'!S34*(1+VLOOKUP('1.Dados_cont_historicos'!S$4,'3.Índices_inflação'!$A$2:$BA$105,$BW34,FALSE)) -> 1516074.917 | T34: ='1.Dados_cont_historicos'!T34*(1+VLOOKUP('1.Dados_cont_historicos'!T$4,'3.Índices_inflação'!$A$2:$BA$105,$BW34,FALSE)) -> 1638389.121 | U34: ='1.Dados_cont_historicos'!U34*(1+VLOOKUP('1.Dados_cont_historicos'!U$4,'3.Índices_inflação'!$A$2:$BA$105,$BW34,FALSE)) -> 1984559.813 | V34: ='1.Dados_cont_historicos'!V34*(1+VLOOKUP('1.Dados_cont_historicos'!V$4,'3.Índices_inflação'!$A$2:$BA$105,$BW34,FALSE)) -> 1671319.925 | W34: ='1.Dados_cont_historicos'!W34*(1+VLOOKUP('1.Dados_cont_historicos'!W$4,'3.Índices_inflação'!$A$2:$BA$105,$BW34,FALSE)) -> 1636884.559 | X34: ='1.Dados_cont_historicos'!X34*(1+VLOOKUP('1.Dados_cont_historicos'!X$4,'3.Índices_inflação'!$A$2:$BA$105,$BW34,FALSE)) -> 1686233.774 | Y34: ='1.Dados_cont_historicos'!Y34*(1+VLOOKUP('1.Dados_cont_historicos'!Y$4,'3.Índices_inflação'!$A$2:$BA$105,$BW34,FALSE)) -> 1725563.619 | Z34: ='1.Dados_cont_historicos'!Z34*(1+VLOOKUP('1.Dados_cont_historicos'!Z$4,'3.Índices_inflação'!$A$2:$BA$105,$BW34,FALSE)) -> 1763873.643 | AA34: ='1.Dados_cont_historicos'!AA34*(1+VLOOKUP('1.Dados_cont_historicos'!AA$4,'3.Índices_inflação'!$A$2:$BA$105,$BW34,FALSE)) -> 1717088.243 | AB34: ='1.Dados_cont_historicos'!AB34*(1+VLOOKUP('1.Dados_cont_historicos'!AB$4,'3.Índices_inflação'!$A$2:$BA$105,$BW34,FALSE)) -> 2002530.171 | AC34: 20678603.74 | AD34: ='1.Dados_cont_historicos'!AD34*(1+VLOOKUP('1.Dados_cont_historicos'!AD$4,'3.Índices_inflação'!$A$2:$BA$105,$BW34,FALSE)) -> 1773113.878 | AE34: ='1.Dados_cont_historicos'!AE34*(1+VLOOKUP('1.Dados_cont_historicos'!AE$4,'3.Índices_inflação'!$A$2:$BA$105,$BW34,FALSE)) -> 1716215.454 | AF34: ='1.Dados_cont_historicos'!AF34*(1+VLOOKUP('1.Dados_cont_historicos'!AF$4,'3.Índices_inflação'!$A$2:$BA$105,$BW34,FALSE)) -> 1701893.648 | AG34: ='1.Dados_cont_historicos'!AG34*(1+VLOOKUP('1.Dados_cont_historicos'!AG$4,'3.Índices_inflação'!$A$2:$BA$105,$BW34,FALSE)) -> 1716170.553 | AH34: ='1.Dados_cont_historicos'!AH34*(1+VLOOKUP('1.Dados_cont_historicos'!AH$4,'3.Índices_inflação'!$A$2:$BA$105,$BW34,FALSE)) -> 1717033.146 | AI34: ='1.Dados_cont_historicos'!AI34*(1+VLOOKUP('1.Dados_cont_historicos'!AI$4,'3.Índices_inflação'!$A$2:$BA$105,$BW34,FALSE)) -> 1629398.812 | AJ34: ='1.Dados_cont_historicos'!AJ34*(1+VLOOKUP('1.Dados_cont_historicos'!AJ$4,'3.Índices_inflação'!$A$2:$BA$105,$BW34,FALSE)) -> 1770590.368 | AK34: ='1.Dados_cont_historicos'!AK34*(1+VLOOKUP('1.Dados_cont_historicos'!AK$4,'3.Índices_inflação'!$A$2:$BA$105,$BW34,FALSE)) -> 1779145.939 | AL34: ='1.Dados_cont_historicos'!AL34*(1+VLOOKUP('1.Dados_cont_historicos'!AL$4,'3.Índices_inflação'!$A$2:$BA$105,$BW34,FALSE)) -> 1696633.188 | AM34: ='1.Dados_cont_historicos'!AM34*(1+VLOOKUP('1.Dados_cont_historicos'!AM$4,'3.Índices_inflação'!$A$2:$BA$105,$BW34,FALSE)) -> 1783875.346 | AN34: ='1.Dados_cont_historicos'!AN34*(1+VLOOKUP('1.Dados_cont_historicos'!AN$4,'3.Índices_inflação'!$A$2:$BA$105,$BW34,FALSE)) -> 1740329.543 | AO34: ='1.Dados_cont_historicos'!AO34*(1+VLOOKUP('1.Dados_cont_historicos'!AO$4,'3.Índices_inflação'!$A$2:$BA$105,$BW34,FALSE)) -> 1990470.857 | AP34: 21014870.73 | AQ34: ='1.Dados_cont_historicos'!AQ34*(1+VLOOKUP('1.Dados_cont_historicos'!AQ$4,'3.Índices_inflação'!$A$2:$BA$105,$BW34,FALSE)) -> 1724825.082 | AR34: ='1.Dados_cont_historicos'!AR34*(1+VLOOKUP('1.Dados_cont_historicos'!AR$4,'3.Índices_inflação'!$A$2:$BA$105,$BW34,FALSE)) -> 1705706.167 | AS34: ='1.Dados_cont_historicos'!AS34*(1+VLOOKUP('1.Dados_cont_historicos'!AS$4,'3.Índices_inflação'!$A$2:$BA$105,$BW34,FALSE)) -> 1749761.09 | AT34: ='1.Dados_cont_historicos'!AT34*(1+VLOOKUP('1.Dados_cont_historicos'!AT$4,'3.Índices_inflação'!$A$2:$BA$105,$BW34,FALSE)) -> 1768736.548 | AU34: ='1.Dados_cont_historicos'!AU34*(1+VLOOKUP('1.Dados_cont_historicos'!AU$4,'3.Índices_inflação'!$A$2:$BA$105,$BW34,FALSE)) -> 1786633.512 | AV34: ='1.Dados_cont_historicos'!AV34*(1+VLOOKUP('1.Dados_cont_historicos'!AV$4,'3.Índices_inflação'!$A$2:$BA$105,$BW34,FALSE)) -> 1778773.628 | AW34: ='1.Dados_cont_historicos'!AW34*(1+VLOOKUP('1.Dados_cont_historicos'!AW$4,'3.Índices_inflação'!$A$2:$BA$105,$BW34,FALSE)) -> 1696775.816 | AX34: ='1.Dados_cont_historicos'!AX34*(1+VLOOKUP('1.Dados_cont_historicos'!AX$4,'3.Índices_inflação'!$A$2:$BA$105,$BW34,FALSE)) -> 1713635.873 | AY34: ='1.Dados_cont_historicos'!AY34*(1+VLOOKUP('1.Dados_cont_historicos'!AY$4,'3.Índices_inflação'!$A$2:$BA$105,$BW34,FALSE)) -> 1681217.767 | AZ34: ='1.Dados_cont_historicos'!AZ34*(1+VLOOKUP('1.Dados_cont_historicos'!AZ$4,'3.Índices_inflação'!$A$2:$BA$105,$BW34,FALSE)) -> 1703428.723 | BA34: ='1.Dados_cont_historicos'!BA34*(1+VLOOKUP('1.Dados_cont_historicos'!BA$4,'3.Índices_inflação'!$A$2:$BA$105,$BW34,FALSE)) -> 1775041.976 | BB34: ='1.Dados_cont_historicos'!BB34*(1+VLOOKUP('1.Dados_cont_historicos'!BB$4,'3.Índices_inflação'!$A$2:$BA$105,$BW34,FALSE)) -> 1780717.969 | BC34: 20865254.15 | BD34: ='1.Dados_cont_historicos'!BD34*(1+VLOOKUP('1.Dados_cont_historicos'!BD$4,'3.Índices_inflação'!$A$2:$BA$105,$BW34,FALSE)) -> 1670243.415 | BE34: ='1.Dados_cont_historicos'!BE34*(1+VLOOKUP('1.Dados_cont_historicos'!BE$4,'3.Índices_inflação'!$A$2:$BA$105,$BW34,FALSE)) -> 1766454.245 | BF34: ='1.Dados_cont_historicos'!BF34*(1+VLOOKUP('1.Dados_cont_historicos'!BF$4,'3.Índices_inflação'!$A$2:$BA$105,$BW34,FALSE)) -> 1691180.736 | BG34: ='1.Dados_cont_historicos'!BG34*(1+VLOOKUP('1.Dados_cont_historicos'!BG$4,'3.Índices_inflação'!$A$2:$BA$105,$BW34,FALSE)) -> 1703719.093 | BH34: ='1.Dados_cont_historicos'!BH34*(1+VLOOKUP('1.Dados_cont_historicos'!BH$4,'3.Índices_inflação'!$A$2:$BA$105,$BW34,FALSE)) -> 1782166.929 | BI34: ='1.Dados_cont_historicos'!BI34*(1+VLOOKUP('1.Dados_cont_historicos'!BI$4,'3.Índices_inflação'!$A$2:$BA$105,$BW34,FALSE)) -> 1784109.949 | BJ34: ='1.Dados_cont_historicos'!BJ34*(1+VLOOKUP('1.Dados_cont_historicos'!BJ$4,'3.Índices_inflação'!$A$2:$BA$105,$BW34,FALSE)) -> 1704241.629 | BM34: 19007181.2 | BN34: 20678603.74 | BO34: 21014870.73 | BP34: 20865254.15 | BQ34: 19723682.21 | BR34: 20919705.31 | BS34: 21201666.72 | BT34: 20756158.3 | BU34: -0.02101289578 | BV34: INPC | BW34: 4
C35: Serviços de Terceiros | D35: ='1.Dados_cont_historicos'!D35*(1+VLOOKUP('1.Dados_cont_historicos'!D$4,'3.Índices_inflação'!$A$2:$BA$105,$BW35,FALSE)) -> 220453.102 | E35: ='1.Dados_cont_historicos'!E35*(1+VLOOKUP('1.Dados_cont_historicos'!E$4,'3.Índices_inflação'!$A$2:$BA$105,$BW35,FALSE)) -> 225899.8813 | F35: ='1.Dados_cont_historicos'!F35*(1+VLOOKUP('1.Dados_cont_historicos'!F$4,'3.Índices_inflação'!$A$2:$BA$105,$BW35,FALSE)) -> 448822.7115 | G35: ='1.Dados_cont_historicos'!G35*(1+VLOOKUP('1.Dados_cont_historicos'!G$4,'3.Índices_inflação'!$A$2:$BA$105,$BW35,FALSE)) -> 186688.9746 | H35: ='1.Dados_cont_historicos'!H35*(1+VLOOKUP('1.Dados_cont_historicos'!H$4,'3.Índices_inflação'!$A$2:$BA$105,$BW35,FALSE)) -> 408965.5924 | I35: ='1.Dados_cont_historicos'!I35*(1+VLOOKUP('1.Dados_cont_historicos'!I$4,'3.Índices_inflação'!$A$2:$BA$105,$BW35,FALSE)) -> 361184.3124 | J35: ='1.Dados_cont_historicos'!J35*(1+VLOOKUP('1.Dados_cont_historicos'!J$4,'3.Índices_inflação'!$A$2:$BA$105,$BW35,FALSE)) -> 188212.5282 | K35: ='1.Dados_cont_historicos'!K35*(1+VLOOKUP('1.Dados_cont_historicos'!K$4,'3.Índices_inflação'!$A$2:$BA$105,$BW35,FALSE)) -> 239669.8163 | L35: ='1.Dados_cont_historicos'!L35*(1+VLOOKUP('1.Dados_cont_historicos'!L$4,'3.Índices_inflação'!$A$2:$BA$105,$BW35,FALSE)) -> 308702.9161 | M35: ='1.Dados_cont_historicos'!M35*(1+VLOOKUP('1.Dados_cont_historicos'!M$4,'3.Índices_inflação'!$A$2:$BA$105,$BW35,FALSE)) -> 321744.5715 | N35: ='1.Dados_cont_historicos'!N35*(1+VLOOKUP('1.Dados_cont_historicos'!N$4,'3.Índices_inflação'!$A$2:$BA$105,$BW35,FALSE)) -> 298749.1282 | O35: ='1.Dados_cont_historicos'!O35*(1+VLOOKUP('1.Dados_cont_historicos'!O$4,'3.Índices_inflação'!$A$2:$BA$105,$BW35,FALSE)) -> 1162340.472 | P35: 4371434.007 | Q35: ='1.Dados_cont_historicos'!Q35*(1+VLOOKUP('1.Dados_cont_historicos'!Q$4,'3.Índices_inflação'!$A$2:$BA$105,$BW35,FALSE)) -> 156199.2011 | R35: ='1.Dados_cont_historicos'!R35*(1+VLOOKUP('1.Dados_cont_historicos'!R$4,'3.Índices_inflação'!$A$2:$BA$105,$BW35,FALSE)) -> 193699.4317 | S35: ='1.Dados_cont_historicos'!S35*(1+VLOOKUP('1.Dados_cont_historicos'!S$4,'3.Índices_inflação'!$A$2:$BA$105,$BW35,FALSE)) -> 35016.48428 | T35: ='1.Dados_cont_historicos'!T35*(1+VLOOKUP('1.Dados_cont_historicos'!T$4,'3.Índices_inflação'!$A$2:$BA$105,$BW35,FALSE)) -> 324658.1718 | U35: ='1.Dados_cont_historicos'!U35*(1+VLOOKUP('1.Dados_cont_historicos'!U$4,'3.Índices_inflação'!$A$2:$BA$105,$BW35,FALSE)) -> 36343.84613 | V35: ='1.Dados_cont_historicos'!V35*(1+VLOOKUP('1.Dados_cont_historicos'!V$4,'3.Índices_inflação'!$A$2:$BA$105,$BW35,FALSE)) -> 149017.6996 | W35: ='1.Dados_cont_historicos'!W35*(1+VLOOKUP('1.Dados_cont_historicos'!W$4,'3.Índices_inflação'!$A$2:$BA$105,$BW35,FALSE)) -> 249404.1977 | X35: ='1.Dados_cont_historicos'!X35*(1+VLOOKUP('1.Dados_cont_historicos'!X$4,'3.Índices_inflação'!$A$2:$BA$105,$BW35,FALSE)) -> 168393.7258 | Y35: ='1.Dados_cont_historicos'!Y35*(1+VLOOKUP('1.Dados_cont_historicos'!Y$4,'3.Índices_inflação'!$A$2:$BA$105,$BW35,FALSE)) -> 258550.3031 | Z35: ='1.Dados_cont_historicos'!Z35*(1+VLOOKUP('1.Dados_cont_historicos'!Z$4,'3.Índices_inflação'!$A$2:$BA$105,$BW35,FALSE)) -> 659855.1597 | AA35: ='1.Dados_cont_historicos'!AA35*(1+VLOOKUP('1.Dados_cont_historicos'!AA$4,'3.Índices_inflação'!$A$2:$BA$105,$BW35,FALSE)) -> 583784.3028 | AB35: ='1.Dados_cont_historicos'!AB35*(1+VLOOKUP('1.Dados_cont_historicos'!AB$4,'3.Índices_inflação'!$A$2:$BA$105,$BW35,FALSE)) -> 519178.016 | AC35: 3334100.54 | AD35: ='1.Dados_cont_historicos'!AD35*(1+VLOOKUP('1.Dados_cont_historicos'!AD$4,'3.Índices_inflação'!$A$2:$BA$105,$BW35,FALSE)) -> 574839.1861 | AE35: ='1.Dados_cont_historicos'!AE35*(1+VLOOKUP('1.Dados_cont_historicos'!AE$4,'3.Índices_inflação'!$A$2:$BA$105,$BW35,FALSE)) -> 66122.07455 | AF35: ='1.Dados_cont_historicos'!AF35*(1+VLOOKUP('1.Dados_cont_historicos'!AF$4,'3.Índices_inflação'!$A$2:$BA$105,$BW35,FALSE)) -> 148613.8051 | AG35: ='1.Dados_cont_historicos'!AG35*(1+VLOOKUP('1.Dados_cont_historicos'!AG$4,'3.Índices_inflação'!$A$2:$BA$105,$BW35,FALSE)) -> 90810.34399 | AH35: ='1.Dados_cont_historicos'!AH35*(1+VLOOKUP('1.Dados_cont_historicos'!AH$4,'3.Índices_inflação'!$A$2:$BA$105,$BW35,FALSE)) -> 138066.9456 | AI35: ='1.Dados_cont_historicos'!AI35*(1+VLOOKUP('1.Dados_cont_historicos'!AI$4,'3.Índices_inflação'!$A$2:$BA$105,$BW35,FALSE)) -> 50525.98767 | AJ35: ='1.Dados_cont_historicos'!AJ35*(1+VLOOKUP('1.Dados_cont_historicos'!AJ$4,'3.Índices_inflação'!$A$2:$BA$105,$BW35,FALSE)) -> 360524.3187 | AK35: ='1.Dados_cont_historicos'!AK35*(1+VLOOKUP('1.Dados_cont_historicos'!AK$4,'3.Índices_inflação'!$A$2:$BA$105,$BW35,FALSE)) -> 185746.5769 | AL35: ='1.Dados_cont_historicos'!AL35*(1+VLOOKUP('1.Dados_cont_historicos'!AL$4,'3.Índices_inflação'!$A$2:$BA$105,$BW35,FALSE)) -> 122738.3654 | AM35: ='1.Dados_cont_historicos'!AM35*(1+VLOOKUP('1.Dados_cont_historicos'!AM$4,'3.Índices_inflação'!$A$2:$BA$105,$BW35,FALSE)) -> 251534.5482 | AN35: ='1.Dados_cont_historicos'!AN35*(1+VLOOKUP('1.Dados_cont_historicos'!AN$4,'3.Índices_inflação'!$A$2:$BA$105,$BW35,FALSE)) -> 60110.02063 | AO35: ='1.Dados_cont_historicos'!AO35*(1+VLOOKUP('1.Dados_cont_historicos'!AO$4,'3.Índices_inflação'!$A$2:$BA$105,$BW35,FALSE)) -> 223431.9526 | AP35: 2273064.125 | AQ35: ='1.Dados_cont_historicos'!AQ35*(1+VLOOKUP('1.Dados_cont_historicos'!AQ$4,'3.Índices_inflação'!$A$2:$BA$105,$BW35,FALSE)) -> 478704.4122 | AR35: ='1.Dados_cont_historicos'!AR35*(1+VLOOKUP('1.Dados_cont_historicos'!AR$4,'3.Índices_inflação'!$A$2:$BA$105,$BW35,FALSE)) -> 161647.352 | AS35: ='1.Dados_cont_historicos'!AS35*(1+VLOOKUP('1.Dados_cont_historicos'!AS$4,'3.Índices_inflação'!$A$2:$BA$105,$BW35,FALSE)) -> 269068.4142 | AT35: ='1.Dados_cont_historicos'!AT35*(1+VLOOKUP('1.Dados_cont_historicos'!AT$4,'3.Índices_inflação'!$A$2:$BA$105,$BW35,FALSE)) -> 91961.38873 | AU35: ='1.Dados_cont_historicos'!AU35*(1+VLOOKUP('1.Dados_cont_historicos'!AU$4,'3.Índices_inflação'!$A$2:$BA$105,$BW35,FALSE)) -> 42505.0658 | AV35: ='1.Dados_cont_historicos'!AV35*(1+VLOOKUP('1.Dados_cont_historicos'!AV$4,'3.Índices_inflação'!$A$2:$BA$105,$BW35,FALSE)) -> 28994.64971 | AW35: ='1.Dados_cont_historicos'!AW35*(1+VLOOKUP('1.Dados_cont_historicos'!AW$4,'3.Índices_inflação'!$A$2:$BA$105,$BW35,FALSE)) -> 39777.36708 | AX35: ='1.Dados_cont_historicos'!AX35*(1+VLOOKUP('1.Dados_cont_historicos'!AX$4,'3.Índices_inflação'!$A$2:$BA$105,$BW35,FALSE)) -> 29883.69851 | AY35: ='1.Dados_cont_historicos'!AY35*(1+VLOOKUP('1.Dados_cont_historicos'!AY$4,'3.Índices_inflação'!$A$2:$BA$105,$BW35,FALSE)) -> 28373.49591 | AZ35: ='1.Dados_cont_historicos'!AZ35*(1+VLOOKUP('1.Dados_cont_historicos'!AZ$4,'3.Índices_inflação'!$A$2:$BA$105,$BW35,FALSE)) -> 30903.15697 | BA35: ='1.Dados_cont_historicos'!BA35*(1+VLOOKUP('1.Dados_cont_historicos'!BA$4,'3.Índices_inflação'!$A$2:$BA$105,$BW35,FALSE)) -> 210409.8836 | BB35: ='1.Dados_cont_historicos'!BB35*(1+VLOOKUP('1.Dados_cont_historicos'!BB$4,'3.Índices_inflação'!$A$2:$BA$105,$BW35,FALSE)) -> 138771.1974 | BC35: 1551000.082 | BD35: ='1.Dados_cont_historicos'!BD35*(1+VLOOKUP('1.Dados_cont_historicos'!BD$4,'3.Índices_inflação'!$A$2:$BA$105,$BW35,FALSE)) -> 9247.137816 | BE35: ='1.Dados_cont_historicos'!BE35*(1+VLOOKUP('1.Dados_cont_historicos'!BE$4,'3.Índices_inflação'!$A$2:$BA$105,$BW35,FALSE)) -> 63444.67453 | BF35: ='1.Dados_cont_historicos'!BF35*(1+VLOOKUP('1.Dados_cont_historicos'!BF$4,'3.Índices_inflação'!$A$2:$BA$105,$BW35,FALSE)) -> 178580.9988 | BG35: ='1.Dados_cont_historicos'!BG35*(1+VLOOKUP('1.Dados_cont_historicos'!BG$4,'3.Índices_inflação'!$A$2:$BA$105,$BW35,FALSE)) -> 138615.6073 | BH35: ='1.Dados_cont_historicos'!BH35*(1+VLOOKUP('1.Dados_cont_historicos'!BH$4,'3.Índices_inflação'!$A$2:$BA$105,$BW35,FALSE)) -> 42343.54655 | BI35: ='1.Dados_cont_historicos'!BI35*(1+VLOOKUP('1.Dados_cont_historicos'!BI$4,'3.Índices_inflação'!$A$2:$BA$105,$BW35,FALSE)) -> 29070.0358 | BJ35: ='1.Dados_cont_historicos'!BJ35*(1+VLOOKUP('1.Dados_cont_historicos'!BJ$4,'3.Índices_inflação'!$A$2:$BA$105,$BW35,FALSE)) -> 39920.5656 | BM35: 4371434.007 | BN35: 3334100.54 | BO35: 2273064.125 | BP35: 1551000.082 | BQ35: 3475545.937 | BR35: 3619264.169 | BS35: 1956220.114 | BT35: 939563.9988 | BU35: -0.5197043562 | BV35: IPCA | BW35: 28
